Workbook

Sheet Дополнительная комплектация
A1: Базовая комплектация | AY1: 1
A2: 1. Каркас модулей изготовлен из ЛДСП оклеенной кромкой ПВХ 0,4 мм. Задняя стенка модулей из облагороженной ХДФ;
A3: 2. Фасад; | AY3: 1
A4: 3. Амортизатор (демпфер) Hettich для плавного закрывания в столах трапециях радиусных L=800;
A5: 4. Петли Hattich Sensys (с доводчиком) за усключением стола углового радиусного, шкафов антресольных. ВНИМАНИЕ! В случае выбора механизма Push to open петли Hettich Sensys меняются на петли без доподчика
A6: 5. Верхние шкафы высотой 600, 720, 920 мм с нишей и рабочие столы комплектуются одной полкой. Шкаф высотой 920 мм комплектуется двумя полками;
A7: 6. Выкатные механизмы Hettich в рабочих столах с выкатными ящиками;
A8: 7. Ручка скоба 96 мм;
A9: 8. Стекло "Простое";
A10: 9. Регулируемые опоры высотой 100мм с цоколем ЛДСП в цвет каркаса;
A11: 10. Регулируемые навесы Hettich для навесных шкафов;
A12: 11. Антресольные шкафы комплектуются газлифтами или, в зависимости от типа шкафа, механизмами BLUM Aventos;
A13: 12. По умолчанию рамки фасадов изготавливаются с крестом, за исключением фасадов с фрезеровкой: Вега, Карат,
B14: Квадро, Квадро 2, Техно, Мыло, Мыло 2, Мыло 3, Лира, Тоскана
A16: Классификация цветов и материалов
A18: Классификация цветов фасадов МДФ в пленке ПВХ
A20: 1 ценовая категория
A21: Древесные матовые | I21: Тик, Сандал белый, Дуб беленый, Дуб солнечный, Каштан золотистый, Яблоня Тадж, Тёмный Венге, Дуб Сонома, Кремовый Ясень, Дуб сокальский, Чайное дерево, Ель сизая, Миндаль, Крымское дерево
A22: Однотонные матовые | I22: Черные цветы, Базилик, Гриджио Венеция, Крема Венеция
A24: 2 ценовая категория
A25: Супер матовые | I25: Лайм, Индиго, Фиолет, Графит, Шафран, Шоколад
A26: Древесные матовые | I26: Патина Радиал, Тополь Скай, Дуб Шардоне, Дуб бирюзовый, Белая сосна
A27: Древесные глянцевые | I27: Платан глянец, Жемчужное Дерево глянец, Венге глянец
A28: Однотонные глянцевые | I28: Оранжевый металлик, Красный металлик, Чёрный металлик, Белый металлик, Фиолетовый металлик, Салатовый металлик, Серый металлик, Золотой металлик, Хамелеон Коричневый металлик, Ваниль металлик, Белый глянец, Оливковый глянец, Бордо глянец, Ваниль глянец, Желтый глянец, Черный глянец, Латте, Гранат металлик, Горький шоколад, Бонди металлик, Ярко-зеленый металлик, Оранжевый глянец
A29: Фантазийные | I29: Мрамор глянцевый, Кожа крокодила, Огни Нью-Йорка, Серебряный дождь.
A31: 3 ценовая категория
A32: Древесные матовые | I32: Вяз седой
A33: Фантазийные | I33: Синга-крем, Шелк-крем, Шелк-аметист
A35: ВНИМАНИЕ!!! Возможны незначительные изменения в тональности пленки ПВХ (2-3 тона), что не является браком
A37: Классификация цветов фасадов МДФ в пленке ПВХ+ патина
A39: 1 ценовая категория
A40: Древесные матовые | I40: Сандал белый+золото/серебро, Кремовый ясень/коричневая, Тик/золотая патина
A42: 2 ценовая категория
A43: Однотонные глянцевые | I43: Белый глянец/золото, Ваниль глянец/золото
A44: Древесные матовые | I44: Белая Сосна/золото, Дуб бирюзовый/золото-коричневая, Дуб шардоне/золото-серебро, Тополь скай/белая
A46: Сочетание фрезеровки и патинированной пленки ПВХ
A47: София | M47: Карат | AJ47: Косичка | AP47: Глория
A52: Cандал белый/серебро-золото | M52: Кремовый Ясень | Y52: Белый глянец | AD52: Ваниль глянец | AJ52: Тик | AP52: Белая сосна
M53: /коричневая | S53: /золото | Y53: /золото | AD53: /золото | AJ53: золото | AP53: /золото
A54: Косичка | M54: Тоскана
A59: Дуб Шардоне | M59: Кр. Ясень | R59: Тополь скай
A60: /золото | F60: /серебрянная | M60: золото | R60: белая
A61: ВНИМАНИЕ!!! Патинированные фасады могут незначительно отличаться. | AD61: + | AE61: =CEILING('Дополнительная комплектация 2'!AE61:AF61*'Дополнительная комплектация'!$AY$1,'Дополнительная комплектация'!$AY$3) -> 2300 | AH61: руб/кв.м. | AL61: + | AM61: =CEILING('Дополнительная комплектация 2'!AM61:AN61*'Дополнительная комплектация'!$AY$1,'Дополнительная комплектация'!$AY$3) -> 100 | AQ61: руб/1 фасад | AV61: - "косичка"
A63: Таблица патинированных фасадов
A65: Цвет пленки | F65: Фрезеровка | P65: Цвет патины
F66: Основная | J66: Дополнительная | P66: Основной | T66: Дополнительный
A67: Белая сосна | F67: Глория | J67: Карат | P67: Золото | T67: Коричневая/Серебро
A68: Белый глянец | F68: Карат | P68: Золото
A69: Ваниль глянец | F69: Карат | P69: Золото
A70: Кремовый ясень | F70: Карат | P70: Коричневая | T70: Золото
A71: Кремовый ясень | F71: Тоскана | P71: Золото
A72: Сандал белый | F72: Карат | J72: София | P72: Серебро | T72: Золото
A73: Тик | F73: Косичка | J73: Карат | P73: Золото
A74: Дуб шардоне | F74: Косичка | J74: Карат, Тоскана | P74: Золото | T74: Серебро
A75: Дуб бирюзовый | F75: Тоскана | J75: Карат | P75: Золото | T75: Коричневая/Белая
A76: Тополь скай | F76: Тоскана | J76: Карат | P76: Белая | T76: Коричневая
A78: Классификация цветов фасадов ЛДСП толщиной 16 мм.
A80: 1 ценовая категория | L80: 2 ценовая категория | X80: 3 ценовая категория | AK80: 1-я Ц.К. | AN80: - | AO80: =CEILING('Дополнительная комплектация 2'!AO79:AP79*'Дополнительная комплектация'!$AY$1,'Дополнительная комплектация'!$AY$3) -> 910 | AR80: руб/кв.м.
A81: Белый | L81: Выбеленное дерево | X81: Дуб Кантри
A82: Серый | L82: Капучино | X82: Дуб Антик | AK82: 2-я Ц.К. | AN82: - | AO82: =CEILING('Дополнительная комплектация 2'!AO81:AP81*'Дополнительная комплектация'!$AY$1,'Дополнительная комплектация'!$AY$3) -> 990 | AR82: руб/кв.м.
A83: Орех итальянский | L83: Сонома | X83: Зеленый лайм
A84: Гварнери | X84: Лаванда | AK84: 3-я Ц.К. | AN84: - | AO84: =CEILING('Дополнительная комплектация 2'!AO83:AP83*'Дополнительная комплектация'!$AY$1,'Дополнительная комплектация'!$AY$3) -> 1100 | AR84: руб/кв.м.
A85: Венге
A86: Дуб шамони темный
A87: Дуб шамони светлый
A88: Бежевый
A91: Схема расположения стекла на фасадах шкафов. | AD91: глухой фасад | AL91: Фасад со стеклом
AR92: размер стекла
AR93: H=83 мм.
AR94: L= ширина фасада
AF100: ***Фасады ЛДСП кромяться кромкой ПВХ 2 мм.
AF101: в цвет фасада.
A102: Классификация цветов фасадов ЛДСП22
A103: Фасад 22 - рамочный фасад, изготавливается ил ЛДСП толщиной 22 мм. Фасад кромиться кромкой ПВХ толщиной 2 мм.
A104: Цветовое исполнение
B105: Дуб шамони темный | L105: Выбеленное дерево
B106: Дуб шамони светлый | L106: Капучино | AJ106: Фасад ящиков и дверей
B107: Сонома | X107: глухой фасад | AC107: Фасад со стеклом | AJ107: высотой/шириной менее 300 мм.
A108: ВНИМАНИЕ!!! Не принимаются заказы на кухни, в которых присутствуют угловые позиции: шкафы и столы угловые трапеция, шкафы угловые прямые. Кроме столов и шкафов с обозначением "Ф22".
A109: Классификация цветов фасадов Пластик
A110: Фасад "Пластик" изготавливается из ДСП толщиной 16 мм. покрытый с лицевой стороны пластиком высокого давления, с обратной
A111: стороны белым пластиком низкого давления. Общая толщина фасада 18 мм.
A112: 1 ценовая категория | L112: 2 ценовая категория | W112: 3 ценовая категория | AH112: 4 ценовая категория
A113: 2326 Акация белая | L113: 2047 Кантри | W113: 001 Арпа Белый гл | AH113: 4587 Славянский дуб | BK113: -
A114: 2553 Белый | W114: 0200 Ваниль
A115: 2562 Перламутр бежевый | W115: 0553 Шоколад | AH115: ВНИМАНИЕ!!! Фасасы Пластик 2, 3 и 4 категории кромятся в цвет фасада кромкой ABS толщиной 1 мм.
A116: 2566 Перламутр сиреневый | W116: 0700 Антрацит
A117: 2570 Перламутр салатовый | AH117: Фасады Пластик 1 ценовой категории кромяться кромкой толщиной 2 мм. только в цвет каркаса!!!
A118: 2779 Акация чёрная | N118: + | O118: =CEILING('Дополнительная комплектация 2'!O119:P119*'Дополнительная комплектация'!$AY$1,'Дополнительная комплектация'!$AY$3) -> 118 | R118: - руб/м.п. за кромку для пластика 2, 3 и 4 категории
C120: =CEILING('Дополнительная комплектация 2'!C120:D120*'Дополнительная комплектация'!$AY$1,'Дополнительная комплектация'!$AY$3) -> 2420 | F120: - кв.метр | O120: =CEILING('Дополнительная комплектация 2'!O120:P120*'Дополнительная комплектация'!$AY$1,'Дополнительная комплектация'!$AY$3) -> 2550 | R120: - кв.метр | Z120: =CEILING('Дополнительная комплектация 2'!Z120:AA120*'Дополнительная комплектация'!$AY$1,'Дополнительная комплектация'!$AY$3) -> 3770 | AC120: - кв.метр | AK120: =CEILING('Дополнительная комплектация 2'!AK120:AL120*'Дополнительная комплектация'!$AY$1,'Дополнительная комплектация'!$AY$3) -> 4780 | AN120: - кв.метр
B121: + | C121: =CEILING('Дополнительная комплектация 2'!C121:D121*'Дополнительная комплектация'!$AY$1,'Дополнительная комплектация'!$AY$3) -> 20 | F121: - руб/м.п. за кромку в цвет каркаса
A122: Классификация цветов фасадов UV-лак
A123: Наименование | K123: Кромка ABS | S123: Кромка 3D | AC123: Кромка Aл. Профиль
A124: 1127 Винный красный | K124: SF 354Y Винный красный | S124: DC19R9 Красный+металл | AL124: Внимание!!! Фасады UV-лак со стеклом не изготавливаются в Ал.кромке.
A125: 0800 Черный | K125: SF319V Черный | S125: DC19R6 Черный+металл
A126: 1655 Белый сканд | K126: SF498V Белый | S126: DC19R8 Белый+металл
A127: 1017 Дуб Тортона !!! | K127: DC 62V3 Дуб тортона | S127: DC 38R8 Дуб Тортона + металл
A128: 8985 Оранжевый | K128: SF 103W Оранжевый | S128: DC 24R0 Оранжевый+металл | AL128: 1017 Дуб Тортона !!! - обращаем внимание, что данный цвет невозможно изготовить высотой более 716 мм. с текстурой горизонтально
A129: 1006 Бирюза | K129: SF 01U5 Бирюза | S129: -
A130: 9410 Крем | K130: SF 62N6 Крем | S130: DC 24R7 Крем+металл
A131: 9061 Лайм | K131: SF 72N1 Лайм | S131: DC 35R3 Лайм+металл
A132: 3540 Капучино | K132: SF 557Y Капучино | S132: DC 42R6 Капучино+металл
A133: 7128 Оливковый | K133: SF 23Р1 Оливковый | S133: DC 48R6 Оливковый+металл
A134: =CEILING('Дополнительная комплектация 2'!A134:B134*'Дополнительная комплектация'!$AY$1,'Дополнительная комплектация'!$AY$3) -> 2930 | D134: руб/кв.м. | K134: + | L134: =CEILING('Дополнительная комплектация 2'!L134:M134*'Дополнительная комплектация'!$AY$1,'Дополнительная комплектация'!$AY$3) -> 118 | O134: руб/м.п. | T134: + | U134: =CEILING('Дополнительная комплектация 2'!U134:V134*'Дополнительная комплектация'!$AY$1,'Дополнительная комплектация'!$AY$3) -> 260 | X134: руб/м.п. | AD134: + | AE134: =CEILING('Дополнительная комплектация 2'!AE134:AF134*'Дополнительная комплектация'!$AY$1,'Дополнительная комплектация'!$AY$3) -> 118 | AH134: руб/м.п.
A135: глухого фасада
A136: Классификация цветов столешниц
A137: 1 ценовая категория | L137: →2 ценовая категория | X137: 4 ценовая категория | AJ137: 6 ценовая категория
A138: 2231 Оникс кл. бежевый+ | L138: 3521 Тростник+ | X138: 0135 Мятный | AJ138: 0100 Светлая доска
A139: 2411 Оникс серый+ | L139: 3842 Дуглас светлый*+ | X139: 0140Г КАСТИЛЛО ТЕМНЫЙ | AJ139: 0101 Потертая доска
A140: 3026 Марквина черный | L140: 3844 Дуглас темный*+ | X140: 0148Г ПАЛАДИНА | AJ140: 0150Г Таурус Андромеда
A141: 3031К Мрамор серый | L141: 4035К Аламбра темная+ | X141: 1111Q Белый+ | AJ141: 3210 Кремовый кашемир
A142: 3034 Марквина синий | L142: 4039 Таурус+ | X142: 2326 Винтаж+ | AJ142: 4484 Мокрый зебрано
A143: 3250 Вишня | X143: 3255 Коко боло+ | AJ143: 7732А Коричневый камень
L144: 3 ценовая категория | X144: 700М Роза Альба
A145: 2 ценовая категория→ | L145: 2237 Семолина карамельная+ | AJ145: 7 ценовая категория
A146: 0141 Мрамор Паулино+ | L146: 3845 Дуглас мокко*+ | X146: 5 ценовая категория | AJ146: 0125 Каштан
A147: 2047 Кантри+ | L147: 4401R Металлик+ | X147: 0129Г Реголит | AJ147: 0126 Панга-панга
A148: 2182 Мейсен ваниль+ | L148: 5004 Цветочный сатин+ | X148: 713Г Гранит черный | AJ148: 3329 Вулканический камень
A149: 2233 Марокканский кам.+ | X149: 905Г Белые камни | AJ149: 4071Г Выбеленный дуб
A150: 2235 Семолина серая+ | X150: 912Г Коперфильд серый | AJ150: 4494Г Каштановый феникс
A151: 2338 Лунный металл+ | AJ151: 4496Г Лаутер
A152: 2430 Антарес+ | AJ152: 5212 Белый кварц
AJ153: 9171Г Вечерний салют
A154: * - Данные цвета менее стойкие к истиранию, под воздействием тепла и пара склонны к образованию пятен, поэтому не рекомендуется их использовать для горизонтальных поверхностей!!!
A155: + - Данные цвета доступны к заказу столешниц (38) свыше 3000 мм. до 3480 мм.
A156: Цветовое исполнение каркасов
A157: Белый, Серый, Орех итальянский, Гварнери, Венге, Бежевый, Выбеленное дерево, Капучино, Дуб шамони темный, Дуб шамони светлый, Сонома
A158: Фасады МДФ в пленке ПВХ
A159: Мы предлагаем несколько типов фрезеровок:
AK164: Лира | AN164: Тоскана | AQ164: Косичка**
A165: * рамки с крестом | H165: ** отличается по стоимости
A166: Стандартные размеры
A167: Высота | C167: Ширина
C168: 146* | E168: 196 | G168: 246 | I168: 262 | K168: 276 | M168: 282 | O168: 286 | Q168: 296 | S168: 316 | U168: 326 | W168: 346 | Y168: 376 | AA168: 396 | AC168: 404 | AE168: 426 | AG168: 446 | AI168: 476 | AK168: 496 | AM168: 546 | AO168: 596 | AQ168: 696 | AS168: 796 | AU168: 896 | AW168: 996
A169: 116* | AG169: ** | AO169: **
A170: 141
A171: 176
A172: 266
A173: 283
A174: 296
A175: 356
A176: 396
A177: 456
A178: 536
A179: 573
A180: 596
A181: 716 | C181: ***
A182: 916 | C182: ***
A183: 956
A184: 1096
A185: 1296
A186: 1316
A187: 1466
A188: 1516
D189: - размеры, на которые принимаются заявки по двойной цене
D190: - размеры, на которые не принимаются заявки
B191: * | D191: - фасад без рисунка
B192: ** | D192: - фасад ящика стол под встр. техн. выполняется с рисунком.
B193: *** | D193: - фасад бутылочницы выполняется с рисунком.
H195: 1 Ц.К. | J195: =CEILING('Дополнительная комплектация 2'!J206:K206*'Дополнительная комплектация'!$AY$1,'Дополнительная комплектация'!$AY$3) -> 1800 | L195: р. | N195: 2 Ц.К. | P195: =CEILING('Дополнительная комплектация 2'!P206:Q206*'Дополнительная комплектация'!$AY$1,'Дополнительная комплектация'!$AY$3) -> 2300 | R195: р. | T195: 3 Ц.К. | V195: =CEILING('Дополнительная комплектация 2'!V206:W206*'Дополнительная комплектация'!$AY$1,'Дополнительная комплектация'!$AY$3) -> 3170 | X195: р. | AA195: не рассчитывается в калькулятор | AN195: + | AO195: =CEILING('Дополнительная комплектация 2'!AO206:AP206*'Дополнительная комплектация'!$AY$1,'Дополнительная комплектация'!$AY$3) -> 100 | AQ195: руб/1 фасад | AU195: - "косичка"
A196: DALLAS
A197: Dallas | F197: Фасады МДФ толщиной 16 мм. покрыты эмалью по таблице RAL и матовым лаком. Внутренняя сторона фасадов всегда белая.
F198: Срок изготовления - 30 дней.
J199: H min = 176 мм. | V199: H = 716 / 916 мм. | AH199: H = 596 мм.
B209: Глухой фасад | N209: Фасад с 2 перекрестием | Z209: Фасад с 1 перекрестием | AK209: Фасад РБК
B210: L = 196 - 596 мм. | N210: L = 296 - 596 мм. | Z210: L = 296 - 596 мм. | AK210: L = 246 - 596 мм.
B211: =CEILING('Дополнительная комплектация 2'!D210*'Дополнительная комплектация'!$AY$1,'Дополнительная комплектация'!$AY$3) -> 6600 | G211: м\ кв. р.
N212: H=356/396/456 | AD212: H=356/396/456
A217: Фасад антр. шкафа с 2 перекрестием | Q217: Фасад антр. шкафа с 1 перекрестием
B218: L = 696 / 796 / 896 / 996 мм. | R218: L = 396 - 596 мм.
A220: Декоративные элементы
G226: Опора колонны Dallac | R226: Багет Dallas, L=2200 H-75 мм. | AD226: Багет нижний Dallas, L=2200 Н-50мм | AQ226: Цоколь Dallas, L=2200
G227: Цена, руб | R227: =CEILING('Дополнительная комплектация 2'!R228:U228*'Дополнительная комплектация'!$AY$1,'Дополнительная комплектация'!$AY$3) -> 1090 | V227: руб./шт. | AD227: =CEILING('Дополнительная комплектация 2'!AD228:AG228*'Дополнительная комплектация'!$AY$1,'Дополнительная комплектация'!$AY$3) -> 738 | AH227: руб./шт. | AO227: h-100 | AQ227: =CEILING('Дополнительная комплектация 2'!AQ228:AT228*'Дополнительная комплектация'!$AY$1,'Дополнительная комплектация'!$AY$3) -> 1360 | AU227: руб./шт.
G228: L\H | I228: 100 мм | L228: 150 мм | AO228: h-150 | AQ228: =CEILING('Дополнительная комплектация 2'!AQ229:AT229*'Дополнительная комплектация'!$AY$1,'Дополнительная комплектация'!$AY$3) -> 2090 | AU228: руб./шт.
G229: 50мм
G230: 75мм
G231: 100 мм
R233: Багет 16, L=2200 мм. | AD233: Таблица эмалей RAL | AO233: Багет универсальный Dallas, L=2200
A234: Колонна Dallas | R234: =CEILING('Дополнительная комплектация 2'!R235:U235*'Дополнительная комплектация'!$AY$1,'Дополнительная комплектация'!$AY$3) -> 1020 | V234: руб./шт. | AD234: =CEILING('Дополнительная комплектация 2'!AD235:AG235*'Дополнительная комплектация'!$AY$1,'Дополнительная комплектация'!$AY$3) -> 600 | AI234: руб. /шт. | AO234: =CEILING('Дополнительная комплектация 2'!AO235:AR235*'Дополнительная комплектация'!$AY$1,'Дополнительная комплектация'!$AY$3) -> 2110
A235: L = 50 / 75 / 100 мм
A237: Victoria
A238: Фасад Victoria - рамочный фасад. Рамка фасада - МДФ покрытый натуральным шпоном дуба, филенка - МДФ покрытый натуральным шпоном дуба.
A239: Фасады могут изготавливаться в морилке, цвет - Орех с коричневой патиной или без патины, а так же фасады могут покрываться матовой эмалью, по таблице RAL,
A240: с золотой, коричневой или серебряной патиной или без патины. | V240: ВНИМАНИЕ! 1ЦК-морилка/эмаль без патины. 2ЦК - морилка/эмаль с патиной/ СРОК ИЗГОТОВЛЕНИЯ 30 дней
K241: H min = 296 мм. | T241: H min = 296 мм. | AC241: H min = 296 мм.
AE243: Фасад ящиков и дверей
AE244: L = 146 - 296/
AE245: Н = 116 - 296
C250: Глухой фасад | M250: Фасад РБК | V250: Фасад решетка | AN250: Колонна "Виктория"
C251: L min = 296 мм. | M251: L min = 296 мм. | V251: L min = 296 мм. | AN251: L = 50 / 75 / 100 мм
A259: Багет верхний с дентилом, L max = 3600 мм.* | T259: Багет верхний радиусный | AE259: Багет нижний, L max = 1 800 мм. H=50 мм.
B260: 1 ц.к. | D260: =CEILING('Дополнительная комплектация 2'!D260:J260*'Дополнительная комплектация'!$AY$1,'Дополнительная комплектация'!$AY$3) -> 2940 | G260: + | H260: пат | J260: =CEILING('Дополнительная комплектация 2'!J260:P260*'Дополнительная комплектация'!$AY$1,'Дополнительная комплектация'!$AY$3) -> 3530 | T260: 1 ц.к. | V260: =CEILING('Дополнительная комплектация 2'!V260:AB260*'Дополнительная комплектация'!$AY$1,'Дополнительная комплектация'!$AY$3) -> 1140 | Y260: + | Z260: пат | AB260: =CEILING('Дополнительная комплектация 2'!AB260:AH260*'Дополнительная комплектация'!$AY$1,'Дополнительная комплектация'!$AY$3) -> 1370 | AF260: 1 ц.к. | AH260: =CEILING('Дополнительная комплектация 2'!AH260:AN260*'Дополнительная комплектация'!$AY$1,'Дополнительная комплектация'!$AY$3) -> 1040 | AK260: + | AL260: пат | AN260: =CEILING('Дополнительная комплектация 2'!AN260:AT260*'Дополнительная комплектация'!$AY$1,'Дополнительная комплектация'!$AY$3) -> 1240
A261: * - также есть возмоность заказа 1800 мм.
T262: Стоимость фасадов "Виктория" руб./м.кв.
T263: 1 ц.к. | W263: =CEILING('Дополнительная комплектация 2'!W263:AC263*'Дополнительная комплектация'!$AY$1,'Дополнительная комплектация'!$AY$3) -> 11520
T264: 1 ц.к. + | W264: =CEILING('Дополнительная комплектация 2'!W264:AC264*'Дополнительная комплектация'!$AY$1,'Дополнительная комплектация'!$AY$3) -> 13810
A265: Цоколь шпонированный, L max= 2200 мм.
A266: Н=100 | C266: 1 ц.к. | E266: =CEILING('Дополнительная комплектация 2'!E266:K266*'Дополнительная комплектация'!$AY$1,'Дополнительная комплектация'!$AY$3) -> 2170 | H266: + | I266: пат | K266: =CEILING('Дополнительная комплектация 2'!K266:P266*'Дополнительная комплектация'!$AY$1,'Дополнительная комплектация'!$AY$3) -> 2600 | Q266: Н=150 | S266: 1 ц.к. | U266: =CEILING('Дополнительная комплектация 2'!U266:AA266*'Дополнительная комплектация'!$AY$1,'Дополнительная комплектация'!$AY$3) -> 3320 | X266: + | Y266: пат | AA266: =CEILING('Дополнительная комплектация 2'!AA266:AG266*'Дополнительная комплектация'!$AY$1,'Дополнительная комплектация'!$AY$3) -> 3980
A269: Стекла
F270: Простое* | S270: Кварц 1 | AF270: Гранит тонированный | AQ270: Елизавета**
... 272 more rows

Sheet Дополнительная комплектация 2 (hidden)
A1: Базовая комплектация
A2: 1. Каркас модулей изготовлен из ЛДСП оклеенной кромкой ПВХ 0,4 мм. Задняя стенка модулей из облагороженной ХДФ;
A3: 2. Фасад;
A4: 3. Амортизатор (демпфер) Hettich для плавного закрывания;
A6: 4. Верхние шкафы высотой 600, 720, 920 мм с нишей и рабочие столы комплектуются одной полкой. Шкаф высотой 920 мм комплектуется двумя полками;
A7: 5. Метабоксы Hettich в выкатных ящиках рабочих столов;
A8: 6. Ручка скоба 96 мм;
A9: 7. Стекло "Простое";
A10: 8. Регулируемые опоры высотой 100мм с цоколем ЛДСП в цвет каркаса;
A11: 9. Регулируемые навесы Hettich для навесных шкафов;
A12: 10. Антресольные шкафы комплектуются газлифтами;
A13: 11. По умолчанию рамки фасадов изготавливаются с крестом, за исключением фасадов с фрезеровкой: Вега, Карат,
B14: Квадро, Квадро 2, Техно, Мыло, Мыло 2, Мыло 3, Кантри, Лира, Тоскана
A16: Классификация цветов и материалов
A18: Классификация цветов фасадов МДФ в пленке ПВХ
A20: Базовая ценовая категория
A21: Древесные матовые | I21: Дуб сокальский, Чайное дерево
A23: 1 ценовая категория
A24: Древесные матовые | I24: Ольха, Тик, Дуб канадский, Сандал белый, Дуб беленый, Дуб солнечный, Каштан золотистый, Яблоня Тадж, Тёмный Венге, Бежевый холст, Коричневый холст, Дуб Сонома
A25: Однотонные матовые | I25: Черные цветы
A27: 2 ценовая категория
A28: Супер матовые | I28: Лайм, Индиго, Фиолет, Фуксия
A29: Древесные матовые | I29: Патина Радиал
A30: Древесные глянцевые | I30: Вишня глянец, Клен глянец, Платан глянец, Жемчужное Дерево глянец
A31: Однотонные глянцевые | I31: Красный металлик, Чёрный металлик, Белый металлик, Оранжевый металлик, Фиолетовый металлик, Салатовый металлик, Серый металлик, Золотой металлик, Корица металлик, Хамелеон Коричневый металлик, Белый глянец, Оливковый глянец, Бордо глянец, Ваниль глянец, Оранжевый глянец, Желтый глянец, Черный глянец, Латте, Белый дым глянец
A32: Фантазийные | I32: Мрамор глянцевый, Кожа крокодила, Огни Нью-Йорка, Цветы, Серебряный дождь.
A34: 3 ценовая категория
A35: Древесные матовые | I35: Эффект старения, Вяз седой
A36: Фантазийные | I36: Синга-крем, Синга-аметист, Шелк-крем, Шелк-аметист
A37: ВНИМАНИЕ!!! Возможны незначительные изменения в тональности пленки ПВХ (2-3 тона), что не является браком
A39: Классификация цветов фасадов МДФ в пленке ПВХ+ патина
A41: 1 ценовая категория
A42: Древесные матовые | I42: Сандал белый+золото/серебро, Каштан золотистый+золото,
A44: 2 ценовая категория
A48: Рекомендуемое сочетание фрезеровки и патинированной пленки ПВХ
A49: ТИП рисунка | I49: Цвет пленки ПХ+Патина
A50: София | I50: Сандал белый+патина
A51: Квадро-2 | I51: Каштан золотистый+патина
A52: Квадро | I52: Эффект старения
A53: Карат | I53: Шелк-крем+золото
A60: ВНИМАНИЕ!!! Патинированные фасады могут незначительно отличаться.
AE61: 2300 | AM61: 100
AO79: 910
AO81: 990
AO83: 1100
B115: по пластику
O119: 118
C120: 2420 | O120: 2550 | Z120: 3770 | AK120: 4780
C121: 20
A134: 2930 | L134: 118 | U134: 260 | AE134: 118
A144: Классификация цветов столешниц
A146: 1 ценовая категория | K146: 3 ценовая категория | V146: 4 ценовая категория | AG146: 5 ценовая категория
A147: 4037 Тасмания | K147: 2182 Мейсен ваниль | V147: 1111Q Белый | AG147: 3210 Кремовый кашемир
A148: 2 ценовая категория | K148: 2233 Марокканский камень | V148: 2237 Семолина карамельная | AG148: 4484 Мокрый зебрано
A149: 2231 Оникс клас-кий бежевый | K149: 2235 Семолина серая | V149: 2326 Винтаж | AG149: 7732А Коричневый камень
A150: 2338 Лунный металл | K150: 3842 Дуглас светлый* | V150: 3255 Коко боло | AG150: 0100 Светлая доска
A151: 2411 Оникс серый | K151: 3844 Дуглас темный* | V151: 3845 Дуглас мокко* | AG151: 0101 Потертая доска
A152: 2430 Антарес | K152: 4035К Аламбра темная | V152: 4401R Металлик | AG152: 0102 Белый бархат
A153: 3521 Тростник | K153: 5004 Цветочный сатин | V153: 5568Г Гранит черный | AG153: 0103 Черный бархат
V154: 700М Роза Альба
V155: 905Г Белые камни | AG155: 6 ценовая категория
V156: 912Г Коперфильд серый | AG156: 5212 Белый кварц
AG157: 9171Г Вечерний салют
AG158: 4071Г Выбеленный дуб
AG159: 4494Г Каштановый феникс
AG160: 4496Г Лаутер
AG161: 3329 Вулканический камень
A163: * - Данные цвета менее стойкие к истиранию, под воздействием тепла и пара склонны к образованию пятен, поэтому не рекомендуется их использовать для горизонтальных поверхностей!!!
A164: Цветовое исполнение каркасов
A165: Белый, Серый, Бук Бавария, Орех итальянский, Гварнери, Венге, Дуб млечный, Выбеленное дерево, Капучино
A167: Фасады МДФ в пленке ПВХ
A168: Мы предлагаем несколько типов фрезеровок:
AK173: Лира | AN173: Тоскана
A174: * рамки с крестом
A176: Стандартные размеры
A177: Высота | C177: Ширина
C179: 146* | E179: 196 | G179: 246 | I179: 262 | K179: 276 | M179: 282 | O179: 286 | Q179: 296 | S179: 316 | U179: 326 | W179: 346 | Y179: 376 | AA179: 396 | AC179: 404 | AE179: 426 | AG179: 446 | AI179: 496 | AK179: 546 | AM179: 596 | AO179: 696 | AQ179: 796 | AS179: 896 | AU179: 996
A180: 116* | AG180: ** | AM180: **
A181: 141
A182: 176
A183: 266
A184: 283
A185: 296
A186: 356
A187: 396
A188: 456
A189: 536
A190: 573
A191: 596
A192: 716 | C192: ***
A193: 916 | C193: ***
A194: 1096
A195: 1296
A196: 1466
D198: - размеры, на которые принимаются заявки по двойной цене
D200: - размеры, на которые не принимаются заявки
B202: * | D202: - фасад без рисунка
B203: ** | D203: - фасад ящика стол под встр. техн. выполняется с рисунком.
B204: *** | D204: - фасад бутылочницы выполняется с рисунком.
B205: Стоимсоть изготовления стандартных фасадов МДФ в пленке ПВХ м.кв., нестандарт +100%
H206: 1 Ц.К. | J206: 1800 | L206: р. | N206: 2 Ц.К. | P206: 2300 | R206: р. | T206: 3 Ц.К. | V206: 3170 | X206: р. | AO206: 100
B210: Даллас | D210: 6600
R227: Багет Dallas, L=2200 H-75 мм. | AD227: Багет нижний Dallas, L=2200 Н-50мм | AQ227: Цоколь Dallas
R228: 1090 | V228: руб./шт. | AD228: 738 | AH228: руб./шт. | AQ228: 1360 | AU228: руб./шт.
AQ229: 2090
R234: Багет 16, L=2200 мм. | AD234: Таблица эмалей RAL | AO234: Багет универсальный Dallas, L=2200
R235: 1020 | V235: руб./шт. | AD235: 600 | AI235: руб. /шт. | AO235: =R235+R228 -> 2110
A237: Victoria
D260: 2940 | J260: 3530 | V260: 1140 | AB260: 1370 | AH260: 1040 | AN260: 1240
T262: Стоимость фасадов "Виктория" руб./м.кв.
T263: 1 ц.к. | W263: 11520
T264: 2 ц.к. | W264: 13810
A266: Н=100 | C266: 1 ц.к. | E266: 2170 | K266: 2600 | Q266: Н=150 | S266: 2 ц.к. | U266: 3320 | AA266: 3980
A269: Стекла
F271: Простое* | S271: Кварц 1 | AF271: Гранит тонированный | AQ271: Елизавета
F272: 1 ценовая категория (р./м.кв.) | S272: 4 ценовая категория (р./м.кв.) | AF272: 6 ценовая категория (р./м.кв.) | AQ272: 9 ценовая категория (р./м.кв.)
F274: 602 | S274: 1003 | AF274: 1881 | AQ274: 3700 | AT274: + | AU274: 170
F276: Миллениум | S276: Кварц-2 | AF276: Меркан тонированный
F277: 2 ценовая категория (р./м.кв.) | S277: 4 ценовая категория (р./м.кв.) | AF277: 6 ценовая категория (р./м.кв.)
F279: 680 | S279: 1003 | AF279: 1881
F281: Дельта (бронза) | S281: Гранит светлый | AF281: Сатин тонированный | AQ281: виктория
F282: 3 ценовая категория (р./м.кв.) | S282: 5 ценовая категория (р./м.кв.) | AF282: 6 ценовая категория (р./м.кв.) | AQ282: 10 ценовая категория (р./м.кв.)
F284: 801 | S284: 1683 | AF284: 1881 | AQ284: 3240 | AT284: + | AU284: 270
F286: Тонированная бронза | S286: Меркан светлый | AF286: Lacobel | AM286: Цвета стекол Lacobel:
F287: 4 ценовая категория (р./м.кв.) | S287: 5 ценовая категория (р./м.кв.) | AF287: 7 ценовая категория (р./м.кв.) | AM287: 1. 1164 Зеленый | AR287: 4. 1586 Красный
AM288: 2. 9003 Белый | AR288: 5. 1015 Светло-бежевый
F289: 1003 | S289: 1683 | AF289: 2700 | AM289: 3. 5002 Синий | AR289: 6. 9005 Черный
F291: Жасмин | S291: Сатин светлый | AF291: Фреза сатин | AQ291: ромб
F292: 4 ценовая категория (р./м.кв.) | S292: 5 ценовая категория (р./м.кв.) | AF292: 8 ценовая категория (р./м.кв.) | AQ292: 8 ценовая категория (р./м.кв.)
F294: 1003 | S294: 1683 | AF294: 3440 | AQ294: 3440
A295: *Входит в базовую комплектацию.
AL296: 270 | AN296: рублей для гнутых
A298: ВНИМАНИЕ!!! Стекло Lakobel, Тонированное бронза НЕ ИЗГОТАВЛИВАЕТСЯ на гнутых фасадах!!!
A299: Столешница и стеновая панель
A300: Столешницы изготавливаются из влагостойкого ДСП, толщиной 26 и 38 мм, покрытого пластиком высокого давления (HPL) или пластиком низкого давления (CPL)
H301: Наименование | T301: Цена р. м\п
T302: 1-я ц.к. | X302: 2-я ц.к. | AB302: 3-я ц.к. | AF302: 4-я ц.к. | AJ302: 5-я ц.к. | AN302: 6-я ц.к. | AR302: 7-я ц.к.
H303: Столешница с U-профилем 26 мм | T303: 860 | X303: 910 | AB303: 1030 | AF303: 1090 | AJ303: 1150 | AN303: 1510 | AR303: 2080
H304: Столешница с U-профилем 38 мм | T304: 1180 | X304: 1240 | AB304: 1390 | AF304: 1510 | AJ304: 1690 | AN304: 2200 | AR304: 2710
H305: Столешница столов трапеция | T305: Цена руб. шт.
H306: трапеция 800 26 мм | T306: 1600 | X306: 1700 | AB306: 1920 | AF306: 2020 | AJ306: 2150 | AN306: 2810 | AR306: 3870
H307: трапеция 900 26 мм | T307: 1930 | X307: 2050 | AB307: 2320 | AF307: 2440 | AJ307: 2590 | AN307: 3380 | AR307: 4670
H308: трапеция 1000 26 мм | T308: 2390 | X308: 2540 | AB308: 2870 | AF308: 3020 | AJ308: 3200 | AN308: 4190 | AR308: 5770
H309: трапеция 800 38 мм | T309: 2190 | X309: 2310 | AB309: 2590 | AF309: 2820 | AJ309: 3140 | AN309: 4090 | AR309: 5050
H310: трапеция 900 38 мм | T310: 2640 | X310: 2790 | AB310: 3130 | AF310: 3400 | AJ310: 3790 | AN310: 4930 | AR310: 6090
H311: трапеция 1000 38 мм | T311: 3270 | X311: 3450 | AB311: 3870 | AF311: 4200 | AJ311: 4690 | AN311: 6100 | AR311: 7540
H312: Столешница 1200х3000 26 мм. | T312: 5230 | X312: 5560 | AB312: 6300 | AF312: 6620 | AJ312: 7030 | AN312: 9190 | AR312: 12660
H313: Столешница 1200х3000 38 мм. | T313: 7170 | X313: 7580 | AB313: 8490 | AF313: 9220 | AJ313: 10280 | AN313: 13400 | AR313: 16540
H314: Столешницы свыше 3000 мм. руб.шт.
H315: Наименование | T315: 1-я ц.к. | X315: 2-я ц.к. | AB315: 3-я ц.к. | AF315: 4-я ц.к. | AJ315: 5-я ц.к. | AN315: 6-я ц.к.
H316: Столешница 600х3100х38 мм | T316: 5600 | U316: 6510 | V316: 6510 | W316: 6510 | X316: 5600 | Y316: 7238 | Z316: 7511 | AA316: 7784 | AB316: 5600 | AC316: 9422 | AD316: 10104.5 | AE316: 10787 | AF316: - | AJ316: - | AN316: -
H317: Столешница 600х3200х38 мм | T317: 5600 | U317: 6510 | V317: 6510 | W317: 6510 | X317: 5600 | Y317: 7238 | Z317: 7511 | AA317: 7784 | AB317: 5600 | AC317: 9422 | AD317: 10104.5 | AE317: 10787 | AF317: - | AJ317: - | AN317: -
H318: Столешница 600х3300х38 мм | T318: 5600 | U318: 6510 | V318: 6510 | W318: 6510 | X318: 5600 | Y318: 7238 | Z318: 7511 | AA318: 7784 | AB318: 5600 | AC318: 9422 | AD318: 10104.5 | AE318: 10787 | AF318: - | AJ318: - | AN318: -
H319: Столешница 600х3400х38 мм | T319: 5600 | U319: 6510 | V319: 6510 | W319: 6510 | X319: 5600 | Y319: 7238 | Z319: 7511 | AA319: 7784 | AB319: 5600 | AC319: 9422 | AD319: 10104.5 | AE319: 10787 | AF319: - | AJ319: - | AN319: -
H320: Столешница 600х3500х38 мм | T320: 5600 | U320: 6510 | V320: 6510 | W320: 6510 | X320: 5600 | Y320: 7238 | Z320: 7511 | AA320: 7784 | AB320: 5600 | AC320: 9422 | AD320: 10104.5 | AE320: 10787 | AF320: - | AJ320: - | AN320: -
H322: (1) Планка торцевая | Q322: руб. шт.
Q323: 26 мм | T323: 38 мм
Q324: 49 | T324: 62
H325: (2) Планка угловая | Q325: 88 | T325: 88
H326: (3) Планка Т-образная | Q326: 41 | T326: 43
H329: Наименование | T329: Цена р. м\п
T330: 1-я ц.к. | X330: 2-я ц.к. | AB330: 3-я ц.к. | AF330: 4-я ц.к. | AJ330: 5-я ц.к. | AN330: 6-я ц.к. | AR330: 7-я ц.к.
H331: Столешница 38 мм | T331: 1180 | X331: 1240 | AB331: 1390 | AF331: 1510 | AJ331: 1690 | AN331: 2200 | AR331: 2710
H332: Столешница столов трапеция | T332: Цена руб. шт.
H333: трапеция 800 38 мм | T333: 2190 | X333: 2310 | AB333: 2590 | AF333: 2820 | AJ333: 3140 | AN333: 4090 | AR333: 5050
H334: трапеция 900 38 мм | T334: 2640 | X334: 2790 | AB334: 3130 | AF334: 3400 | AJ334: 3790 | AN334: 4930 | AR334: 6090
H335: трапеция 1000 38 мм | T335: 3270 | X335: 3450 | AB335: 3870 | AF335: 4200 | AJ335: 4690 | AN335: 6100 | AR335: 7540
H336: Столешница 1200х3000 26 мм. | T336: 5230 | X336: 5560 | AB336: 6300 | AF336: 6620 | AJ336: 7030 | AN336: 9190 | AR336: 12660
H337: Столешница 1200х3000 38 мм. | T337: 7170 | X337: 7580 | AB337: 8490 | AF337: 9220 | AJ337: 10280 | AN337: 13400 | AR337: 16540
H338: тамбурат | T338: 3840 | X338: 3950 | AB338: 4260 | AF338: 4760 | AJ338: 5030 | AN338: 6000 | AR338: 7390
H339: Цены и категории кромок, р.м\п | T339: 1-я ц.к. | X339: 2-я ц.к. | AB339: 3-я ц.к. | AF339: 4-я ц.к.
T340: 22 | X340: 180 | AB340: 324 | AF340: 486
A342: Еврозапил | M342: 400 | Y342: Тамбурат 600 х1200 | AJ342: руб/шт
Y343: Тамбурат 400 х 1200 | AJ343: руб/шт
A344: Доступные цвета тамбурата: 0100 Светлая доска, 0101 Потертая доска, 2430 Антарес, 3842 Дуглас светлый, 3844 Дуглас темный, 2326 Винтаж, 2235 Семолина серая, 1111Q Белый
A348: Стеновая панель
U350: Цена р./шт.
D351: Наименование | Q351: 1 ЦК | U351: 2 ЦК | Y351: 3 ЦК | AC351: 4 ЦК | AG351: 5 ЦК | AK351: 6 ЦК | AO351: 7 ЦК
D352: Стеновая панель 3050 х 600мм. | Q352: 1830 | U352: 1970 | Y352: 2250 | AC352: 2390 | AG352: 2530 | AK352: 3440 | AO352: 4900
D353: Стеновая панель 1500 х 600мм. | Q353: =Q352/2 -> 915 | U353: =U352/2 -> 985 | Y353: =Y352/2 -> 1125 | AC353: =AC352/2 -> 1195 | AG353: =AG352/2 -> 1265 | AK353: =AK352/2 -> 1720 | AO353: =AO352/2 -> 2450
D354: Грифильная стеновая панель 1500 х 600мм. | Q354: 3900
A356: Фотопластик 15 "Лист с РОСОЙ" | W356: Фотопластик 12 "Корзинка"
A358: Фотопластик 37 "Камни" | W358: Фотопластик 31 "Горные водопады"
A359: Стеновая панель
A361: Фотопластик 24 "Зерна кофе" | W361: Фотопластик 23 "Вишня"
F363: Профиль для стеновой панели руб.шт.
F364: Профиль торцевой | S364: 23
F365: Профиль угловой | S365: 29
F366: Профиль щелевой | S366: 30
A368: Пристеночные бортики (Плинтус)
S369: Э.Ц.К. | U369: 1 ЦК | W369: 2 ЦК | Y369: 3 ЦК | AA369: 4 ЦК | AC369: 5 ЦК | AE369: 6 ЦК
F370: Плинтус треугольный со вставкой L max = 3050 мм. , заглушки в комплекте | S370: =$AA$371+AA372 -> 324 | U370: =$AA$371+AC372 -> 324 | W370: =$AA$371+AE372 -> 379 | Y370: =$AA$371+AG372 -> 394 | AA370: =$AA$371+AI372 -> 424 | AC370: =$AA$371+AK372 -> 474 | AE370: =$AA$371+AM372 -> 554
F371: Плинтус Rehau (Lmax = 4200мм) | S371: 1475 | AA371: 234
F372: Комплект заглушек для плинтуса Rehau р.\комп. | S372: 150 | AA372: 90 | AC372: 90 | AE372: 145 | AG372: 160 | AI372: 190 | AK372: 240 | AM372: 320
F373: Плинтус Алюминиевый полукруглый с заглушками (Lmax = 4000мм) | S373: 1500
F374: Комплект заглушек для плинтуса алюминиевого р.\комп. | S374: 65
A376: Цвета плинтуса Rehau
A378: 2182 Мейсен ваниль | J378: 2430 Антарес | R378: 3844 Дуглас темный | Z378: 905Г Белые камни | AH378: 5004 Цветочный сатин
A379: 2326 Винтаж | J379: 3521 Тростник | R379: 3845 Дуглас мокко | Z379: 5568Г Гранит черный | AH379: 2233 Марокканский камень
A380: 2338 Лунный металл | J380: 3842 Дуглас светлый | R380: 4401R Металлик | Z380: 4843 Алюминиевая полоса | AH380: 2237 Семолина карамельная
... 192 more rows

Sheet Шкафы
B1: Шкафы высотой 600, 720, 920 мм.
B2: ЭСКИЗ | C2: ГРУППА | D2: РАЗМЕР | E2: ПВХ 1-я ц.к. | F2: ПВХ 1-я ц.к. + патина | G2: ПВХ 2-я ц.к. | H2: ПВХ 2-я ц.к. + патина | I2: ПВХ 3-я ц.к. | J2: Эмаль по RAL | K2: Фасад 22 сборный | L2: Виктория | N2: ЛДСП | Q2: UV-лак кромка ABC/AL кромка | R2: UV-лак кромка 3D акр | S2: Пластик 1 | T2: Пластик 2 | U2: Пластик 3 | V2: Пластик 4 | W2: Стекла МДФ-ПВХ | AG2: Стекла Фасад-22, Пластик | AN2: Стекла ЛДСП
L3: 1 ц.к. | M3: 1 ц.к. +патина | N3: 1 ц.к. | O3: 2 ц.к. | P3: 3 ц.к. | W3: Миллениум | X3: Дельта | Y3: Тониров,Жасм,КВ-1,КВ-2 | Z3: Гр(св),Мер(св),Сат(св) | AA3: Гр(тем),Мер(тем),Сат(тем) | AB3: Lacobel | AC3: Фреза сатин, Ромб | AD3: Елизавета | AE3: Виктория | AF3: Решетка | AG3: Миллениум | AH3: Дельта | AI3: Тониров,Жасм,КВ-1,КВ-2 | AJ3: Гр(св),Мер(св),Сат(св) | AK3: Гр(тем),Мер(тем),Сат(тем) | AL3: Lacobel | AM3: Фреза сатин | AN3: Дельта | AO3: Тониров,Жасм,КВ-1,КВ-2 | AP3: Гр(св),Мер(св),Сат(св) | AQ3: Гр(тем),Мер(тем),Сат(тем) | AR3: Lacobel
C4: Шкаф 1дв Н=360 | D4: L-400 | E4: =CEILING('Шкафы (2)'!E4*'Дополнительная комплектация'!$AY$1,'Дополнительная комплектация'!$AY$3) -> 1239 | F4: =CEILING('Шкафы (2)'!F4*'Дополнительная комплектация'!$AY$1,'Дополнительная комплектация'!$AY$3) -> 1569 | G4: =CEILING('Шкафы (2)'!G4*'Дополнительная комплектация'!$AY$1,'Дополнительная комплектация'!$AY$3) -> 1309 | H4: =CEILING('Шкафы (2)'!H4*'Дополнительная комплектация'!$AY$1,'Дополнительная комплектация'!$AY$3) -> 1639 | I4: =CEILING('Шкафы (2)'!I4*'Дополнительная комплектация'!$AY$1,'Дополнительная комплектация'!$AY$3) -> 1439 | J4: =CEILING('Шкафы (2)'!J4*'Дополнительная комплектация'!$AY$1,'Дополнительная комплектация'!$AY$3) -> 1919 | K4: =CEILING('Шкафы (2)'!K4*'Дополнительная комплектация'!$AY$1,'Дополнительная комплектация'!$AY$3) -> 1359 | L4: =CEILING('Шкафы (2)'!L4*'Дополнительная комплектация'!$AY$1,'Дополнительная комплектация'!$AY$3) -> 2609 | M4: =CEILING('Шкафы (2)'!M4*'Дополнительная комплектация'!$AY$1,'Дополнительная комплектация'!$AY$3) -> 2939 | N4: =CEILING('Шкафы (2)'!N4*'Дополнительная комплектация'!$AY$1,'Дополнительная комплектация'!$AY$3) -> 1119 | O4: =CEILING('Шкафы (2)'!O4*'Дополнительная комплектация'!$AY$1,'Дополнительная комплектация'!$AY$3) -> 1129 | P4: =CEILING('Шкафы (2)'!P4*'Дополнительная комплектация'!$AY$1,'Дополнительная комплектация'!$AY$3) -> 1149 | Q4: =CEILING('Шкафы (2)'!Q4*'Дополнительная комплектация'!$AY$1,'Дополнительная комплектация'!$AY$3) -> 1579 | R4: =CEILING('Шкафы (2)'!R4*'Дополнительная комплектация'!$AY$1,'Дополнительная комплектация'!$AY$3) -> 1789 | S4: =CEILING('Шкафы (2)'!S4*'Дополнительная комплектация'!$AY$1,'Дополнительная комплектация'!$AY$3) -> 1359 | T4: =CEILING('Шкафы (2)'!T4*'Дополнительная комплектация'!$AY$1,'Дополнительная комплектация'!$AY$3) -> 1529 | U4: =CEILING('Шкафы (2)'!U4*'Дополнительная комплектация'!$AY$1,'Дополнительная комплектация'!$AY$3) -> 1699 | V4: =CEILING('Шкафы (2)'!V4*'Дополнительная комплектация'!$AY$1,'Дополнительная комплектация'!$AY$3) -> 1839 | W4: - | X4: - | Y4: - | Z4: - | AA4: - | AB4: - | AC4: - | AD4: - | AE4: - | AF4: - | AG4: - | AH4: - | AI4: - | AJ4: - | AK4: - | AL4: - | AM4: - | AN4: - | AO4: - | AP4: - | AQ4: - | AR4: - | AS4: Н=360
C5: Шкаф 1дв Н=400 | D5: L-400 | E5: =CEILING('Шкафы (2)'!E5*'Дополнительная комплектация'!$AY$1,'Дополнительная комплектация'!$AY$3) -> 1288 | F5: =CEILING('Шкафы (2)'!F5*'Дополнительная комплектация'!$AY$1,'Дополнительная комплектация'!$AY$3) -> 1648 | G5: =CEILING('Шкафы (2)'!G5*'Дополнительная комплектация'!$AY$1,'Дополнительная комплектация'!$AY$3) -> 1368 | H5: =CEILING('Шкафы (2)'!H5*'Дополнительная комплектация'!$AY$1,'Дополнительная комплектация'!$AY$3) -> 1728 | I5: =CEILING('Шкафы (2)'!I5*'Дополнительная комплектация'!$AY$1,'Дополнительная комплектация'!$AY$3) -> 1508 | J5: =CEILING('Шкафы (2)'!J5*'Дополнительная комплектация'!$AY$1,'Дополнительная комплектация'!$AY$3) -> 2038 | K5: =CEILING('Шкафы (2)'!K5*'Дополнительная комплектация'!$AY$1,'Дополнительная комплектация'!$AY$3) -> 1398 | L5: =CEILING('Шкафы (2)'!L5*'Дополнительная комплектация'!$AY$1,'Дополнительная комплектация'!$AY$3) -> 2818 | M5: =CEILING('Шкафы (2)'!M5*'Дополнительная комплектация'!$AY$1,'Дополнительная комплектация'!$AY$3) -> 3178 | N5: =CEILING('Шкафы (2)'!N5*'Дополнительная комплектация'!$AY$1,'Дополнительная комплектация'!$AY$3) -> 1148 | O5: =CEILING('Шкафы (2)'!O5*'Дополнительная комплектация'!$AY$1,'Дополнительная комплектация'!$AY$3) -> 1168 | P5: =CEILING('Шкафы (2)'!P5*'Дополнительная комплектация'!$AY$1,'Дополнительная комплектация'!$AY$3) -> 1178 | Q5: =CEILING('Шкафы (2)'!Q5*'Дополнительная комплектация'!$AY$1,'Дополнительная комплектация'!$AY$3) -> 1658 | R5: =CEILING('Шкафы (2)'!R5*'Дополнительная комплектация'!$AY$1,'Дополнительная комплектация'!$AY$3) -> 1878 | S5: =CEILING('Шкафы (2)'!S5*'Дополнительная комплектация'!$AY$1,'Дополнительная комплектация'!$AY$3) -> 1418 | T5: =CEILING('Шкафы (2)'!T5*'Дополнительная комплектация'!$AY$1,'Дополнительная комплектация'!$AY$3) -> 1598 | U5: =CEILING('Шкафы (2)'!U5*'Дополнительная комплектация'!$AY$1,'Дополнительная комплектация'!$AY$3) -> 1788 | V5: =CEILING('Шкафы (2)'!V5*'Дополнительная комплектация'!$AY$1,'Дополнительная комплектация'!$AY$3) -> 1948 | W5: - | X5: - | Y5: - | Z5: - | AA5: - | AB5: - | AC5: - | AD5: - | AE5: - | AF5: - | AG5: - | AH5: - | AI5: - | AJ5: - | AK5: - | AL5: - | AM5: - | AN5: - | AO5: - | AP5: - | AQ5: - | AR5: - | AS5: Н=400
C6: Шкаф Н=360 2дв | D6: L=600 | E6: =CEILING('Шкафы (2)'!E6*'Дополнительная комплектация'!$AY$1,'Дополнительная комплектация'!$AY$3) -> 1844 | F6: =CEILING('Шкафы (2)'!F6*'Дополнительная комплектация'!$AY$1,'Дополнительная комплектация'!$AY$3) -> 2324 | G6: =CEILING('Шкафы (2)'!G6*'Дополнительная комплектация'!$AY$1,'Дополнительная комплектация'!$AY$3) -> 1944 | H6: =CEILING('Шкафы (2)'!H6*'Дополнительная комплектация'!$AY$1,'Дополнительная комплектация'!$AY$3) -> 2424 | I6: =CEILING('Шкафы (2)'!I6*'Дополнительная комплектация'!$AY$1,'Дополнительная комплектация'!$AY$3) -> 2124 | J6: =CEILING('Шкафы (2)'!J6*'Дополнительная комплектация'!$AY$1,'Дополнительная комплектация'!$AY$3) -> 2864 | K6: =CEILING('Шкафы (2)'!K6*'Дополнительная комплектация'!$AY$1,'Дополнительная комплектация'!$AY$3) -> 2144 | L6: =CEILING('Шкафы (2)'!L6*'Дополнительная комплектация'!$AY$1,'Дополнительная комплектация'!$AY$3) -> 3884 | M6: =CEILING('Шкафы (2)'!M6*'Дополнительная комплектация'!$AY$1,'Дополнительная комплектация'!$AY$3) -> 4384 | N6: =CEILING('Шкафы (2)'!N6*'Дополнительная комплектация'!$AY$1,'Дополнительная комплектация'!$AY$3) -> 1664 | O6: =CEILING('Шкафы (2)'!O6*'Дополнительная комплектация'!$AY$1,'Дополнительная комплектация'!$AY$3) -> 1664 | P6: =CEILING('Шкафы (2)'!P6*'Дополнительная комплектация'!$AY$1,'Дополнительная комплектация'!$AY$3) -> 1704 | Q6: =CEILING('Шкафы (2)'!Q6*'Дополнительная комплектация'!$AY$1,'Дополнительная комплектация'!$AY$3) -> 2384 | R6: =CEILING('Шкафы (2)'!R6*'Дополнительная комплектация'!$AY$1,'Дополнительная комплектация'!$AY$3) -> 2764 | S6: =CEILING('Шкафы (2)'!S6*'Дополнительная комплектация'!$AY$1,'Дополнительная комплектация'!$AY$3) -> 2024 | T6: =CEILING('Шкафы (2)'!T6*'Дополнительная комплектация'!$AY$1,'Дополнительная комплектация'!$AY$3) -> 2304 | U6: =CEILING('Шкафы (2)'!U6*'Дополнительная комплектация'!$AY$1,'Дополнительная комплектация'!$AY$3) -> 2564 | V6: =CEILING('Шкафы (2)'!V6*'Дополнительная комплектация'!$AY$1,'Дополнительная комплектация'!$AY$3) -> 2784 | W6: - | X6: - | Y6: - | Z6: - | AA6: - | AB6: - | AC6: - | AD6: - | AE6: - | AF6: - | AG6: - | AH6: - | AI6: - | AJ6: - | AK6: - | AL6: - | AM6: - | AN6: - | AO6: - | AP6: - | AQ6: - | AR6: - | AS6: L=600
D7: L=700 | E7: =CEILING('Шкафы (2)'!E7*'Дополнительная комплектация'!$AY$1,'Дополнительная комплектация'!$AY$3) -> 1963 | F7: =CEILING('Шкафы (2)'!F7*'Дополнительная комплектация'!$AY$1,'Дополнительная комплектация'!$AY$3) -> 2543 | G7: =CEILING('Шкафы (2)'!G7*'Дополнительная комплектация'!$AY$1,'Дополнительная комплектация'!$AY$3) -> 2083 | H7: =CEILING('Шкафы (2)'!H7*'Дополнительная комплектация'!$AY$1,'Дополнительная комплектация'!$AY$3) -> 2663 | I7: =CEILING('Шкафы (2)'!I7*'Дополнительная комплектация'!$AY$1,'Дополнительная комплектация'!$AY$3) -> 2303 | J7: =CEILING('Шкафы (2)'!J7*'Дополнительная комплектация'!$AY$1,'Дополнительная комплектация'!$AY$3) -> 3143 | K7: =CEILING('Шкафы (2)'!K7*'Дополнительная комплектация'!$AY$1,'Дополнительная комплектация'!$AY$3) -> 2223 | L7: =CEILING('Шкафы (2)'!L7*'Дополнительная комплектация'!$AY$1,'Дополнительная комплектация'!$AY$3) -> 4363 | M7: =CEILING('Шкафы (2)'!M7*'Дополнительная комплектация'!$AY$1,'Дополнительная комплектация'!$AY$3) -> 4923 | N7: =CEILING('Шкафы (2)'!N7*'Дополнительная комплектация'!$AY$1,'Дополнительная комплектация'!$AY$3) -> 1743 | O7: =CEILING('Шкафы (2)'!O7*'Дополнительная комплектация'!$AY$1,'Дополнительная комплектация'!$AY$3) -> 1763 | P7: =CEILING('Шкафы (2)'!P7*'Дополнительная комплектация'!$AY$1,'Дополнительная комплектация'!$AY$3) -> 1803 | Q7: =CEILING('Шкафы (2)'!Q7*'Дополнительная комплектация'!$AY$1,'Дополнительная комплектация'!$AY$3) -> 2583 | R7: =CEILING('Шкафы (2)'!R7*'Дополнительная комплектация'!$AY$1,'Дополнительная комплектация'!$AY$3) -> 2983 | S7: =CEILING('Шкафы (2)'!S7*'Дополнительная комплектация'!$AY$1,'Дополнительная комплектация'!$AY$3) -> 2183 | T7: =CEILING('Шкафы (2)'!T7*'Дополнительная комплектация'!$AY$1,'Дополнительная комплектация'!$AY$3) -> 2483 | U7: =CEILING('Шкафы (2)'!U7*'Дополнительная комплектация'!$AY$1,'Дополнительная комплектация'!$AY$3) -> 2783 | V7: =CEILING('Шкафы (2)'!V7*'Дополнительная комплектация'!$AY$1,'Дополнительная комплектация'!$AY$3) -> 3023 | W7: - | X7: - | Y7: - | Z7: - | AA7: - | AB7: - | AC7: - | AD7: - | AE7: - | AF7: - | AG7: - | AH7: - | AI7: - | AJ7: - | AK7: - | AL7: - | AM7: - | AN7: - | AO7: - | AP7: - | AQ7: - | AR7: - | AS7: L=700
D8: L=800 | E8: =CEILING('Шкафы (2)'!E8*'Дополнительная комплектация'!$AY$1,'Дополнительная комплектация'!$AY$3) -> 2060 | F8: =CEILING('Шкафы (2)'!F8*'Дополнительная комплектация'!$AY$1,'Дополнительная комплектация'!$AY$3) -> 2720 | G8: =CEILING('Шкафы (2)'!G8*'Дополнительная комплектация'!$AY$1,'Дополнительная комплектация'!$AY$3) -> 2200 | H8: =CEILING('Шкафы (2)'!H8*'Дополнительная комплектация'!$AY$1,'Дополнительная комплектация'!$AY$3) -> 2860 | I8: =CEILING('Шкафы (2)'!I8*'Дополнительная комплектация'!$AY$1,'Дополнительная комплектация'!$AY$3) -> 2460 | J8: =CEILING('Шкафы (2)'!J8*'Дополнительная комплектация'!$AY$1,'Дополнительная комплектация'!$AY$3) -> 3420 | K8: =CEILING('Шкафы (2)'!K8*'Дополнительная комплектация'!$AY$1,'Дополнительная комплектация'!$AY$3) -> 2300 | L8: =CEILING('Шкафы (2)'!L8*'Дополнительная комплектация'!$AY$1,'Дополнительная комплектация'!$AY$3) -> 4800 | M8: =CEILING('Шкафы (2)'!M8*'Дополнительная комплектация'!$AY$1,'Дополнительная комплектация'!$AY$3) -> 5460 | N8: =CEILING('Шкафы (2)'!N8*'Дополнительная комплектация'!$AY$1,'Дополнительная комплектация'!$AY$3) -> 1820 | O8: =CEILING('Шкафы (2)'!O8*'Дополнительная комплектация'!$AY$1,'Дополнительная комплектация'!$AY$3) -> 1840 | P8: =CEILING('Шкафы (2)'!P8*'Дополнительная комплектация'!$AY$1,'Дополнительная комплектация'!$AY$3) -> 1880 | Q8: =CEILING('Шкафы (2)'!Q8*'Дополнительная комплектация'!$AY$1,'Дополнительная комплектация'!$AY$3) -> 2740 | R8: =CEILING('Шкафы (2)'!R8*'Дополнительная комплектация'!$AY$1,'Дополнительная комплектация'!$AY$3) -> 3160 | S8: =CEILING('Шкафы (2)'!S8*'Дополнительная комплектация'!$AY$1,'Дополнительная комплектация'!$AY$3) -> 2300 | T8: =CEILING('Шкафы (2)'!T8*'Дополнительная комплектация'!$AY$1,'Дополнительная комплектация'!$AY$3) -> 2640 | U8: =CEILING('Шкафы (2)'!U8*'Дополнительная комплектация'!$AY$1,'Дополнительная комплектация'!$AY$3) -> 2980 | V8: =CEILING('Шкафы (2)'!V8*'Дополнительная комплектация'!$AY$1,'Дополнительная комплектация'!$AY$3) -> 3260 | W8: - | X8: - | Y8: - | Z8: - | AA8: - | AB8: - | AC8: - | AD8: - | AE8: - | AF8: - | AG8: - | AH8: - | AI8: - | AJ8: - | AK8: - | AL8: - | AM8: - | AN8: - | AO8: - | AP8: - | AQ8: - | AR8: - | AS8: L=800
C9: Шкаф Н=400 2дв | D9: L=600 | E9: =CEILING('Шкафы (2)'!E9*'Дополнительная комплектация'!$AY$1,'Дополнительная комплектация'!$AY$3) -> 1905 | F9: =CEILING('Шкафы (2)'!F9*'Дополнительная комплектация'!$AY$1,'Дополнительная комплектация'!$AY$3) -> 2445 | G9: =CEILING('Шкафы (2)'!G9*'Дополнительная комплектация'!$AY$1,'Дополнительная комплектация'!$AY$3) -> 2025 | H9: =CEILING('Шкафы (2)'!H9*'Дополнительная комплектация'!$AY$1,'Дополнительная комплектация'!$AY$3) -> 2565 | I9: =CEILING('Шкафы (2)'!I9*'Дополнительная комплектация'!$AY$1,'Дополнительная комплектация'!$AY$3) -> 2225 | J9: =CEILING('Шкафы (2)'!J9*'Дополнительная комплектация'!$AY$1,'Дополнительная комплектация'!$AY$3) -> 3025 | K9: =CEILING('Шкафы (2)'!K9*'Дополнительная комплектация'!$AY$1,'Дополнительная комплектация'!$AY$3) -> 2205 | L9: =CEILING('Шкафы (2)'!L9*'Дополнительная комплектация'!$AY$1,'Дополнительная комплектация'!$AY$3) -> 4185 | M9: =CEILING('Шкафы (2)'!M9*'Дополнительная комплектация'!$AY$1,'Дополнительная комплектация'!$AY$3) -> 4725 | N9: =CEILING('Шкафы (2)'!N9*'Дополнительная комплектация'!$AY$1,'Дополнительная комплектация'!$AY$3) -> 1705 | O9: =CEILING('Шкафы (2)'!O9*'Дополнительная комплектация'!$AY$1,'Дополнительная комплектация'!$AY$3) -> 1725 | P9: =CEILING('Шкафы (2)'!P9*'Дополнительная комплектация'!$AY$1,'Дополнительная комплектация'!$AY$3) -> 1745 | Q9: =CEILING('Шкафы (2)'!Q9*'Дополнительная комплектация'!$AY$1,'Дополнительная комплектация'!$AY$3) -> 2505 | R9: =CEILING('Шкафы (2)'!R9*'Дополнительная комплектация'!$AY$1,'Дополнительная комплектация'!$AY$3) -> 2885 | S9: =CEILING('Шкафы (2)'!S9*'Дополнительная комплектация'!$AY$1,'Дополнительная комплектация'!$AY$3) -> 2105 | T9: =CEILING('Шкафы (2)'!T9*'Дополнительная комплектация'!$AY$1,'Дополнительная комплектация'!$AY$3) -> 2405 | U9: =CEILING('Шкафы (2)'!U9*'Дополнительная комплектация'!$AY$1,'Дополнительная комплектация'!$AY$3) -> 2705 | V9: =CEILING('Шкафы (2)'!V9*'Дополнительная комплектация'!$AY$1,'Дополнительная комплектация'!$AY$3) -> 2925 | W9: - | X9: - | Y9: - | Z9: - | AA9: - | AB9: - | AC9: - | AD9: - | AE9: - | AF9: - | AG9: - | AH9: - | AI9: - | AJ9: - | AK9: - | AL9: - | AM9: - | AN9: - | AO9: - | AP9: - | AQ9: - | AR9: - | AS9: L=600
D10: L=700 | E10: =CEILING('Шкафы (2)'!E10*'Дополнительная комплектация'!$AY$1,'Дополнительная комплектация'!$AY$3) -> 2045 | F10: =CEILING('Шкафы (2)'!F10*'Дополнительная комплектация'!$AY$1,'Дополнительная комплектация'!$AY$3) -> 2665 | G10: =CEILING('Шкафы (2)'!G10*'Дополнительная комплектация'!$AY$1,'Дополнительная комплектация'!$AY$3) -> 2185 | H10: =CEILING('Шкафы (2)'!H10*'Дополнительная комплектация'!$AY$1,'Дополнительная комплектация'!$AY$3) -> 2805 | I10: =CEILING('Шкафы (2)'!I10*'Дополнительная комплектация'!$AY$1,'Дополнительная комплектация'!$AY$3) -> 2405 | J10: =CEILING('Шкафы (2)'!J10*'Дополнительная комплектация'!$AY$1,'Дополнительная комплектация'!$AY$3) -> 3345 | K10: =CEILING('Шкафы (2)'!K10*'Дополнительная комплектация'!$AY$1,'Дополнительная комплектация'!$AY$3) -> 2285 | L10: =CEILING('Шкафы (2)'!L10*'Дополнительная комплектация'!$AY$1,'Дополнительная комплектация'!$AY$3) -> 4705 | M10: =CEILING('Шкафы (2)'!M10*'Дополнительная комплектация'!$AY$1,'Дополнительная комплектация'!$AY$3) -> 5325 | N10: =CEILING('Шкафы (2)'!N10*'Дополнительная комплектация'!$AY$1,'Дополнительная комплектация'!$AY$3) -> 1785 | O10: =CEILING('Шкафы (2)'!O10*'Дополнительная комплектация'!$AY$1,'Дополнительная комплектация'!$AY$3) -> 1825 | P10: =CEILING('Шкафы (2)'!P10*'Дополнительная комплектация'!$AY$1,'Дополнительная комплектация'!$AY$3) -> 1845 | Q10: =CEILING('Шкафы (2)'!Q10*'Дополнительная комплектация'!$AY$1,'Дополнительная комплектация'!$AY$3) -> 2705 | R10: =CEILING('Шкафы (2)'!R10*'Дополнительная комплектация'!$AY$1,'Дополнительная комплектация'!$AY$3) -> 3125 | S10: =CEILING('Шкафы (2)'!S10*'Дополнительная комплектация'!$AY$1,'Дополнительная комплектация'!$AY$3) -> 2265 | T10: =CEILING('Шкафы (2)'!T10*'Дополнительная комплектация'!$AY$1,'Дополнительная комплектация'!$AY$3) -> 2585 | U10: =CEILING('Шкафы (2)'!U10*'Дополнительная комплектация'!$AY$1,'Дополнительная комплектация'!$AY$3) -> 2925 | V10: =CEILING('Шкафы (2)'!V10*'Дополнительная комплектация'!$AY$1,'Дополнительная комплектация'!$AY$3) -> 3205 | W10: - | X10: - | Y10: - | Z10: - | AA10: - | AB10: - | AC10: - | AD10: - | AE10: - | AF10: - | AG10: - | AH10: - | AI10: - | AJ10: - | AK10: - | AL10: - | AM10: - | AN10: - | AO10: - | AP10: - | AQ10: - | AR10: - | AS10: L=700
D11: L=800 | E11: =CEILING('Шкафы (2)'!E11*'Дополнительная комплектация'!$AY$1,'Дополнительная комплектация'!$AY$3) -> 2143 | F11: =CEILING('Шкафы (2)'!F11*'Дополнительная комплектация'!$AY$1,'Дополнительная комплектация'!$AY$3) -> 2863 | G11: =CEILING('Шкафы (2)'!G11*'Дополнительная комплектация'!$AY$1,'Дополнительная комплектация'!$AY$3) -> 2303 | H11: =CEILING('Шкафы (2)'!H11*'Дополнительная комплектация'!$AY$1,'Дополнительная комплектация'!$AY$3) -> 3023 | I11: =CEILING('Шкафы (2)'!I11*'Дополнительная комплектация'!$AY$1,'Дополнительная комплектация'!$AY$3) -> 2583 | J11: =CEILING('Шкафы (2)'!J11*'Дополнительная комплектация'!$AY$1,'Дополнительная комплектация'!$AY$3) -> 3643 | K11: =CEILING('Шкафы (2)'!K11*'Дополнительная комплектация'!$AY$1,'Дополнительная комплектация'!$AY$3) -> 2363 | L11: =CEILING('Шкафы (2)'!L11*'Дополнительная комплектация'!$AY$1,'Дополнительная комплектация'!$AY$3) -> 5203 | M11: =CEILING('Шкафы (2)'!M11*'Дополнительная комплектация'!$AY$1,'Дополнительная комплектация'!$AY$3) -> 5923 | N11: =CEILING('Шкафы (2)'!N11*'Дополнительная комплектация'!$AY$1,'Дополнительная комплектация'!$AY$3) -> 1863 | O11: =CEILING('Шкафы (2)'!O11*'Дополнительная комплектация'!$AY$1,'Дополнительная комплектация'!$AY$3) -> 1903 | P11: =CEILING('Шкафы (2)'!P11*'Дополнительная комплектация'!$AY$1,'Дополнительная комплектация'!$AY$3) -> 1923 | Q11: =CEILING('Шкафы (2)'!Q11*'Дополнительная комплектация'!$AY$1,'Дополнительная комплектация'!$AY$3) -> 2883 | R11: =CEILING('Шкафы (2)'!R11*'Дополнительная комплектация'!$AY$1,'Дополнительная комплектация'!$AY$3) -> 3323 | S11: =CEILING('Шкафы (2)'!S11*'Дополнительная комплектация'!$AY$1,'Дополнительная комплектация'!$AY$3) -> 2403 | T11: =CEILING('Шкафы (2)'!T11*'Дополнительная комплектация'!$AY$1,'Дополнительная комплектация'!$AY$3) -> 2763 | U11: =CEILING('Шкафы (2)'!U11*'Дополнительная комплектация'!$AY$1,'Дополнительная комплектация'!$AY$3) -> 3143 | V11: =CEILING('Шкафы (2)'!V11*'Дополнительная комплектация'!$AY$1,'Дополнительная комплектация'!$AY$3) -> 3463 | W11: - | X11: - | Y11: - | Z11: - | AA11: - | AB11: - | AC11: - | AD11: - | AE11: - | AF11: - | AG11: - | AH11: - | AI11: - | AJ11: - | AK11: - | AL11: - | AM11: - | AN11: - | AO11: - | AP11: - | AQ11: - | AR11: - | AS11: L=800
C12: Шкаф 1дв 1ст Н=360 | D12: L-400 | E12: =CEILING('Шкафы (2)'!E12*'Дополнительная комплектация'!$AY$1,'Дополнительная комплектация'!$AY$3) -> 1292 | F12: =CEILING('Шкафы (2)'!F12*'Дополнительная комплектация'!$AY$1,'Дополнительная комплектация'!$AY$3) -> 1622 | G12: =CEILING('Шкафы (2)'!G12*'Дополнительная комплектация'!$AY$1,'Дополнительная комплектация'!$AY$3) -> 1362 | H12: =CEILING('Шкафы (2)'!H12*'Дополнительная комплектация'!$AY$1,'Дополнительная комплектация'!$AY$3) -> 1692 | I12: =CEILING('Шкафы (2)'!I12*'Дополнительная комплектация'!$AY$1,'Дополнительная комплектация'!$AY$3) -> 1492 | J12: =CEILING('Шкафы (2)'!J12*'Дополнительная комплектация'!$AY$1,'Дополнительная комплектация'!$AY$3) -> 1972 | K12: =CEILING('Шкафы (2)'!K12*'Дополнительная комплектация'!$AY$1,'Дополнительная комплектация'!$AY$3) -> 1377 | L12: =CEILING('Шкафы (2)'!L12*'Дополнительная комплектация'!$AY$1,'Дополнительная комплектация'!$AY$3) -> 2662 | M12: =CEILING('Шкафы (2)'!M12*'Дополнительная комплектация'!$AY$1,'Дополнительная комплектация'!$AY$3) -> 2992 | N12: =CEILING('Шкафы (2)'!N12*'Дополнительная комплектация'!$AY$1,'Дополнительная комплектация'!$AY$3) -> 1137 | O12: =CEILING('Шкафы (2)'!O12*'Дополнительная комплектация'!$AY$1,'Дополнительная комплектация'!$AY$3) -> 1147 | P12: =CEILING('Шкафы (2)'!P12*'Дополнительная комплектация'!$AY$1,'Дополнительная комплектация'!$AY$3) -> 1157 | Q12: =CEILING('Шкафы (2)'!Q12*'Дополнительная комплектация'!$AY$1,'Дополнительная комплектация'!$AY$3) -> 1677 | R12: =CEILING('Шкафы (2)'!R12*'Дополнительная комплектация'!$AY$1,'Дополнительная комплектация'!$AY$3) -> 2017 | S12: =CEILING('Шкафы (2)'!S12*'Дополнительная комплектация'!$AY$1,'Дополнительная комплектация'!$AY$3) -> 1487 | T12: =CEILING('Шкафы (2)'!T12*'Дополнительная комплектация'!$AY$1,'Дополнительная комплектация'!$AY$3) -> 1717 | U12: =CEILING('Шкафы (2)'!U12*'Дополнительная комплектация'!$AY$1,'Дополнительная комплектация'!$AY$3) -> 1847 | V12: =CEILING('Шкафы (2)'!V12*'Дополнительная комплектация'!$AY$1,'Дополнительная комплектация'!$AY$3) -> 1947 | W12: =CEILING('Шкафы (2)'!W12*'Дополнительная комплектация'!$AY$1,'Дополнительная комплектация'!$AY$3) -> 6 | X12: =CEILING('Шкафы (2)'!X12*'Дополнительная комплектация'!$AY$1,'Дополнительная комплектация'!$AY$3) -> 15 | Y12: =CEILING('Шкафы (2)'!Y12*'Дополнительная комплектация'!$AY$1,'Дополнительная комплектация'!$AY$3) -> 30 | Z12: =CEILING('Шкафы (2)'!Z12*'Дополнительная комплектация'!$AY$1,'Дополнительная комплектация'!$AY$3) -> 81 | AA12: =CEILING('Шкафы (2)'!AA12*'Дополнительная комплектация'!$AY$1,'Дополнительная комплектация'!$AY$3) -> 96 | AB12: =CEILING('Шкафы (2)'!AB12*'Дополнительная комплектация'!$AY$1,'Дополнительная комплектация'!$AY$3) -> 158 | AC12: =CEILING('Шкафы (2)'!AC12*'Дополнительная комплектация'!$AY$1,'Дополнительная комплектация'!$AY$3) -> 213 | AD12: =CEILING('Шкафы (2)'!AD12*'Дополнительная комплектация'!$AY$1,'Дополнительная комплектация'!$AY$3) -> 403 | AE12: =CEILING('Шкафы (2)'!AE12*'Дополнительная комплектация'!$AY$1,'Дополнительная комплектация'!$AY$3) -> 455 | AF12: * | AG12: =CEILING('Шкафы (2)'!AG12*'Дополнительная комплектация'!$AY$1,'Дополнительная комплектация'!$AY$3) -> 0 | AH12: =CEILING('Шкафы (2)'!AH12*'Дополнительная комплектация'!$AY$1,'Дополнительная комплектация'!$AY$3) -> 10 | AI12: =CEILING('Шкафы (2)'!AI12*'Дополнительная комплектация'!$AY$1,'Дополнительная комплектация'!$AY$3) -> 20 | AJ12: =CEILING('Шкафы (2)'!AJ12*'Дополнительная комплектация'!$AY$1,'Дополнительная комплектация'!$AY$3) -> 50 | AK12: =CEILING('Шкафы (2)'!AK12*'Дополнительная комплектация'!$AY$1,'Дополнительная комплектация'!$AY$3) -> 60 | AL12: =CEILING('Шкафы (2)'!AL12*'Дополнительная комплектация'!$AY$1,'Дополнительная комплектация'!$AY$3) -> 90 | AM12: =CEILING('Шкафы (2)'!AM12*'Дополнительная комплектация'!$AY$1,'Дополнительная комплектация'!$AY$3) -> 130 | AN12: =CEILING('Шкафы (2)'!AN12*'Дополнительная комплектация'!$AY$1,'Дополнительная комплектация'!$AY$3) -> 0 | AO12: =CEILING('Шкафы (2)'!AO12*'Дополнительная комплектация'!$AY$1,'Дополнительная комплектация'!$AY$3) -> 10 | AP12: =CEILING('Шкафы (2)'!AP12*'Дополнительная комплектация'!$AY$1,'Дополнительная комплектация'!$AY$3) -> 40 | AQ12: =CEILING('Шкафы (2)'!AQ12*'Дополнительная комплектация'!$AY$1,'Дополнительная комплектация'!$AY$3) -> 40 | AR12: =CEILING('Шкафы (2)'!AR12*'Дополнительная комплектация'!$AY$1,'Дополнительная комплектация'!$AY$3) -> 70 | AS12: Н=360
C13: Шкаф 1дв 1ст Н=400 | D13: L-400 | E13: =CEILING('Шкафы (2)'!E13*'Дополнительная комплектация'!$AY$1,'Дополнительная комплектация'!$AY$3) -> 1350 | F13: =CEILING('Шкафы (2)'!F13*'Дополнительная комплектация'!$AY$1,'Дополнительная комплектация'!$AY$3) -> 1710 | G13: =CEILING('Шкафы (2)'!G13*'Дополнительная комплектация'!$AY$1,'Дополнительная комплектация'!$AY$3) -> 1430 | H13: =CEILING('Шкафы (2)'!H13*'Дополнительная комплектация'!$AY$1,'Дополнительная комплектация'!$AY$3) -> 1790 | I13: =CEILING('Шкафы (2)'!I13*'Дополнительная комплектация'!$AY$1,'Дополнительная комплектация'!$AY$3) -> 1570 | J13: =CEILING('Шкафы (2)'!J13*'Дополнительная комплектация'!$AY$1,'Дополнительная комплектация'!$AY$3) -> 2100 | K13: =CEILING('Шкафы (2)'!K13*'Дополнительная комплектация'!$AY$1,'Дополнительная комплектация'!$AY$3) -> 1456 | L13: =CEILING('Шкафы (2)'!L13*'Дополнительная комплектация'!$AY$1,'Дополнительная комплектация'!$AY$3) -> 2880 | M13: =CEILING('Шкафы (2)'!M13*'Дополнительная комплектация'!$AY$1,'Дополнительная комплектация'!$AY$3) -> 3240 | N13: =CEILING('Шкафы (2)'!N13*'Дополнительная комплектация'!$AY$1,'Дополнительная комплектация'!$AY$3) -> 1166 | O13: =CEILING('Шкафы (2)'!O13*'Дополнительная комплектация'!$AY$1,'Дополнительная комплектация'!$AY$3) -> 1186 | P13: =CEILING('Шкафы (2)'!P13*'Дополнительная комплектация'!$AY$1,'Дополнительная комплектация'!$AY$3) -> 1196 | Q13: =CEILING('Шкафы (2)'!Q13*'Дополнительная комплектация'!$AY$1,'Дополнительная комплектация'!$AY$3) -> 1756 | R13: =CEILING('Шкафы (2)'!R13*'Дополнительная комплектация'!$AY$1,'Дополнительная комплектация'!$AY$3) -> 2106 | S13: =CEILING('Шкафы (2)'!S13*'Дополнительная комплектация'!$AY$1,'Дополнительная комплектация'!$AY$3) -> 1576 | T13: =CEILING('Шкафы (2)'!T13*'Дополнительная комплектация'!$AY$1,'Дополнительная комплектация'!$AY$3) -> 1826 | U13: =CEILING('Шкафы (2)'!U13*'Дополнительная комплектация'!$AY$1,'Дополнительная комплектация'!$AY$3) -> 1966 | V13: =CEILING('Шкафы (2)'!V13*'Дополнительная комплектация'!$AY$1,'Дополнительная комплектация'!$AY$3) -> 2076 | W13: =CEILING('Шкафы (2)'!W13*'Дополнительная комплектация'!$AY$1,'Дополнительная комплектация'!$AY$3) -> 7 | X13: =CEILING('Шкафы (2)'!X13*'Дополнительная комплектация'!$AY$1,'Дополнительная комплектация'!$AY$3) -> 18 | Y13: =CEILING('Шкафы (2)'!Y13*'Дополнительная комплектация'!$AY$1,'Дополнительная комплектация'!$AY$3) -> 36 | Z13: =CEILING('Шкафы (2)'!Z13*'Дополнительная комплектация'!$AY$1,'Дополнительная комплектация'!$AY$3) -> 97 | AA13: =CEILING('Шкафы (2)'!AA13*'Дополнительная комплектация'!$AY$1,'Дополнительная комплектация'!$AY$3) -> 115 | AB13: =CEILING('Шкафы (2)'!AB13*'Дополнительная комплектация'!$AY$1,'Дополнительная комплектация'!$AY$3) -> 189 | AC13: =CEILING('Шкафы (2)'!AC13*'Дополнительная комплектация'!$AY$1,'Дополнительная комплектация'!$AY$3) -> 256 | AD13: =CEILING('Шкафы (2)'!AD13*'Дополнительная комплектация'!$AY$1,'Дополнительная комплектация'!$AY$3) -> 449 | AE13: =CEILING('Шкафы (2)'!AE13*'Дополнительная комплектация'!$AY$1,'Дополнительная комплектация'!$AY$3) -> 513 | AF13: * | AG13: =CEILING('Шкафы (2)'!AG13*'Дополнительная комплектация'!$AY$1,'Дополнительная комплектация'!$AY$3) -> 10 | AH13: =CEILING('Шкафы (2)'!AH13*'Дополнительная комплектация'!$AY$1,'Дополнительная комплектация'!$AY$3) -> 30 | AI13: =CEILING('Шкафы (2)'!AI13*'Дополнительная комплектация'!$AY$1,'Дополнительная комплектация'!$AY$3) -> 50 | AJ13: =CEILING('Шкафы (2)'!AJ13*'Дополнительная комплектация'!$AY$1,'Дополнительная комплектация'!$AY$3) -> 140 | AK13: =CEILING('Шкафы (2)'!AK13*'Дополнительная комплектация'!$AY$1,'Дополнительная комплектация'!$AY$3) -> 170 | AL13: =CEILING('Шкафы (2)'!AL13*'Дополнительная комплектация'!$AY$1,'Дополнительная комплектация'!$AY$3) -> 270 | AM13: =CEILING('Шкафы (2)'!AM13*'Дополнительная комплектация'!$AY$1,'Дополнительная комплектация'!$AY$3) -> 370 | AN13: =CEILING('Шкафы (2)'!AN13*'Дополнительная комплектация'!$AY$1,'Дополнительная комплектация'!$AY$3) -> 10 | AO13: =CEILING('Шкафы (2)'!AO13*'Дополнительная комплектация'!$AY$1,'Дополнительная комплектация'!$AY$3) -> 20 | AP13: =CEILING('Шкафы (2)'!AP13*'Дополнительная комплектация'!$AY$1,'Дополнительная комплектация'!$AY$3) -> 40 | AQ13: =CEILING('Шкафы (2)'!AQ13*'Дополнительная комплектация'!$AY$1,'Дополнительная комплектация'!$AY$3) -> 50 | AR13: =CEILING('Шкафы (2)'!AR13*'Дополнительная комплектация'!$AY$1,'Дополнительная комплектация'!$AY$3) -> 80 | AS13: Н=400
C14: Шкаф Н=360 2дв 2ст | D14: L=600 | E14: =CEILING('Шкафы (2)'!E14*'Дополнительная комплектация'!$AY$1,'Дополнительная комплектация'!$AY$3) -> 1919 | F14: =CEILING('Шкафы (2)'!F14*'Дополнительная комплектация'!$AY$1,'Дополнительная комплектация'!$AY$3) -> 2399 | G14: =CEILING('Шкафы (2)'!G14*'Дополнительная комплектация'!$AY$1,'Дополнительная комплектация'!$AY$3) -> 2019 | H14: =CEILING('Шкафы (2)'!H14*'Дополнительная комплектация'!$AY$1,'Дополнительная комплектация'!$AY$3) -> 2499 | I14: =CEILING('Шкафы (2)'!I14*'Дополнительная комплектация'!$AY$1,'Дополнительная комплектация'!$AY$3) -> 2199 | J14: =CEILING('Шкафы (2)'!J14*'Дополнительная комплектация'!$AY$1,'Дополнительная комплектация'!$AY$3) -> 2939 | K14: =CEILING('Шкафы (2)'!K14*'Дополнительная комплектация'!$AY$1,'Дополнительная комплектация'!$AY$3) -> 2179 | L14: =CEILING('Шкафы (2)'!L14*'Дополнительная комплектация'!$AY$1,'Дополнительная комплектация'!$AY$3) -> 3959 | M14: =CEILING('Шкафы (2)'!M14*'Дополнительная комплектация'!$AY$1,'Дополнительная комплектация'!$AY$3) -> 4459 | N14: =CEILING('Шкафы (2)'!N14*'Дополнительная комплектация'!$AY$1,'Дополнительная комплектация'!$AY$3) -> 1679 | O14: =CEILING('Шкафы (2)'!O14*'Дополнительная комплектация'!$AY$1,'Дополнительная комплектация'!$AY$3) -> 1699 | P14: =CEILING('Шкафы (2)'!P14*'Дополнительная комплектация'!$AY$1,'Дополнительная комплектация'!$AY$3) -> 1719 | Q14: =CEILING('Шкафы (2)'!Q14*'Дополнительная комплектация'!$AY$1,'Дополнительная комплектация'!$AY$3) -> 2539 | R14: =CEILING('Шкафы (2)'!R14*'Дополнительная комплектация'!$AY$1,'Дополнительная комплектация'!$AY$3) -> 3079 | S14: =CEILING('Шкафы (2)'!S14*'Дополнительная комплектация'!$AY$1,'Дополнительная комплектация'!$AY$3) -> 2319 | T14: =CEILING('Шкафы (2)'!T14*'Дополнительная комплектация'!$AY$1,'Дополнительная комплектация'!$AY$3) -> 2719 | U14: =CEILING('Шкафы (2)'!U14*'Дополнительная комплектация'!$AY$1,'Дополнительная комплектация'!$AY$3) -> 2919 | V14: =CEILING('Шкафы (2)'!V14*'Дополнительная комплектация'!$AY$1,'Дополнительная комплектация'!$AY$3) -> 3099 | W14: =CEILING('Шкафы (2)'!W14*'Дополнительная комплектация'!$AY$1,'Дополнительная комплектация'!$AY$3) -> 8 | X14: =CEILING('Шкафы (2)'!X14*'Дополнительная комплектация'!$AY$1,'Дополнительная комплектация'!$AY$3) -> 20 | Y14: =CEILING('Шкафы (2)'!Y14*'Дополнительная комплектация'!$AY$1,'Дополнительная комплектация'!$AY$3) -> 40 | Z14: =CEILING('Шкафы (2)'!Z14*'Дополнительная комплектация'!$AY$1,'Дополнительная комплектация'!$AY$3) -> 108 | AA14: =CEILING('Шкафы (2)'!AA14*'Дополнительная комплектация'!$AY$1,'Дополнительная комплектация'!$AY$3) -> 128 | AB14: =CEILING('Шкафы (2)'!AB14*'Дополнительная комплектация'!$AY$1,'Дополнительная комплектация'!$AY$3) -> 210 | AC14: =CEILING('Шкафы (2)'!AC14*'Дополнительная комплектация'!$AY$1,'Дополнительная комплектация'!$AY$3) -> 284 | AD14: =CEILING('Шкафы (2)'!AD14*'Дополнительная комплектация'!$AY$1,'Дополнительная комплектация'!$AY$3) -> 650 | AE14: =CEILING('Шкафы (2)'!AE14*'Дополнительная комплектация'!$AY$1,'Дополнительная комплектация'!$AY$3) -> 696 | AF14: * | AG14: =CEILING('Шкафы (2)'!AG14*'Дополнительная комплектация'!$AY$1,'Дополнительная комплектация'!$AY$3) -> 0 | AH14: =CEILING('Шкафы (2)'!AH14*'Дополнительная комплектация'!$AY$1,'Дополнительная комплектация'!$AY$3) -> 0 | AI14: =CEILING('Шкафы (2)'!AI14*'Дополнительная комплектация'!$AY$1,'Дополнительная комплектация'!$AY$3) -> 20 | AJ14: =CEILING('Шкафы (2)'!AJ14*'Дополнительная комплектация'!$AY$1,'Дополнительная комплектация'!$AY$3) -> 60 | AK14: =CEILING('Шкафы (2)'!AK14*'Дополнительная комплектация'!$AY$1,'Дополнительная комплектация'!$AY$3) -> 60 | AL14: =CEILING('Шкафы (2)'!AL14*'Дополнительная комплектация'!$AY$1,'Дополнительная комплектация'!$AY$3) -> 100 | AM14: =CEILING('Шкафы (2)'!AM14*'Дополнительная комплектация'!$AY$1,'Дополнительная комплектация'!$AY$3) -> 140 | AN14: =CEILING('Шкафы (2)'!AN14*'Дополнительная комплектация'!$AY$1,'Дополнительная комплектация'!$AY$3) -> 20 | AO14: =CEILING('Шкафы (2)'!AO14*'Дополнительная комплектация'!$AY$1,'Дополнительная комплектация'!$AY$3) -> 20 | AP14: =CEILING('Шкафы (2)'!AP14*'Дополнительная комплектация'!$AY$1,'Дополнительная комплектация'!$AY$3) -> 60 | AQ14: =CEILING('Шкафы (2)'!AQ14*'Дополнительная комплектация'!$AY$1,'Дополнительная комплектация'!$AY$3) -> 80 | AR14: =CEILING('Шкафы (2)'!AR14*'Дополнительная комплектация'!$AY$1,'Дополнительная комплектация'!$AY$3) -> 120 | AS14: L=600
D15: L=700 | E15: =CEILING('Шкафы (2)'!E15*'Дополнительная комплектация'!$AY$1,'Дополнительная комплектация'!$AY$3) -> 2054 | F15: =CEILING('Шкафы (2)'!F15*'Дополнительная комплектация'!$AY$1,'Дополнительная комплектация'!$AY$3) -> 2634 | G15: =CEILING('Шкафы (2)'!G15*'Дополнительная комплектация'!$AY$1,'Дополнительная комплектация'!$AY$3) -> 2174 | H15: =CEILING('Шкафы (2)'!H15*'Дополнительная комплектация'!$AY$1,'Дополнительная комплектация'!$AY$3) -> 2754 | I15: =CEILING('Шкафы (2)'!I15*'Дополнительная комплектация'!$AY$1,'Дополнительная комплектация'!$AY$3) -> 2394 | J15: =CEILING('Шкафы (2)'!J15*'Дополнительная комплектация'!$AY$1,'Дополнительная комплектация'!$AY$3) -> 3234 | K15: =CEILING('Шкафы (2)'!K15*'Дополнительная комплектация'!$AY$1,'Дополнительная комплектация'!$AY$3) -> 2258 | L15: =CEILING('Шкафы (2)'!L15*'Дополнительная комплектация'!$AY$1,'Дополнительная комплектация'!$AY$3) -> 4454 | M15: =CEILING('Шкафы (2)'!M15*'Дополнительная комплектация'!$AY$1,'Дополнительная комплектация'!$AY$3) -> 5014 | N15: =CEILING('Шкафы (2)'!N15*'Дополнительная комплектация'!$AY$1,'Дополнительная комплектация'!$AY$3) -> 1778 | O15: =CEILING('Шкафы (2)'!O15*'Дополнительная комплектация'!$AY$1,'Дополнительная комплектация'!$AY$3) -> 1798 | P15: =CEILING('Шкафы (2)'!P15*'Дополнительная комплектация'!$AY$1,'Дополнительная комплектация'!$AY$3) -> 1818 | Q15: =CEILING('Шкафы (2)'!Q15*'Дополнительная комплектация'!$AY$1,'Дополнительная комплектация'!$AY$3) -> 2738 | R15: =CEILING('Шкафы (2)'!R15*'Дополнительная комплектация'!$AY$1,'Дополнительная комплектация'!$AY$3) -> 3358 | S15: =CEILING('Шкафы (2)'!S15*'Дополнительная комплектация'!$AY$1,'Дополнительная комплектация'!$AY$3) -> 2438 | T15: =CEILING('Шкафы (2)'!T15*'Дополнительная комплектация'!$AY$1,'Дополнительная комплектация'!$AY$3) -> 2878 | U15: =CEILING('Шкафы (2)'!U15*'Дополнительная комплектация'!$AY$1,'Дополнительная комплектация'!$AY$3) -> 3118 | V15: =CEILING('Шкафы (2)'!V15*'Дополнительная комплектация'!$AY$1,'Дополнительная комплектация'!$AY$3) -> 3298 | W15: =CEILING('Шкафы (2)'!W15*'Дополнительная комплектация'!$AY$1,'Дополнительная комплектация'!$AY$3) -> 10 | X15: =CEILING('Шкафы (2)'!X15*'Дополнительная комплектация'!$AY$1,'Дополнительная комплектация'!$AY$3) -> 24 | Y15: =CEILING('Шкафы (2)'!Y15*'Дополнительная комплектация'!$AY$1,'Дополнительная комплектация'!$AY$3) -> 50 | Z15: =CEILING('Шкафы (2)'!Z15*'Дополнительная комплектация'!$AY$1,'Дополнительная комплектация'!$AY$3) -> 134 | AA15: =CEILING('Шкафы (2)'!AA15*'Дополнительная комплектация'!$AY$1,'Дополнительная комплектация'!$AY$3) -> 160 | AB15: =CEILING('Шкафы (2)'!AB15*'Дополнительная комплектация'!$AY$1,'Дополнительная комплектация'!$AY$3) -> 262 | AC15: =CEILING('Шкафы (2)'!AC15*'Дополнительная комплектация'!$AY$1,'Дополнительная комплектация'!$AY$3) -> 354 | AD15: =CEILING('Шкафы (2)'!AD15*'Дополнительная комплектация'!$AY$1,'Дополнительная комплектация'!$AY$3) -> 726 | AE15: =CEILING('Шкафы (2)'!AE15*'Дополнительная комплектация'!$AY$1,'Дополнительная комплектация'!$AY$3) -> 802 | AF15: * | AG15: =CEILING('Шкафы (2)'!AG15*'Дополнительная комплектация'!$AY$1,'Дополнительная комплектация'!$AY$3) -> 0 | AH15: =CEILING('Шкафы (2)'!AH15*'Дополнительная комплектация'!$AY$1,'Дополнительная комплектация'!$AY$3) -> 20 | AI15: =CEILING('Шкафы (2)'!AI15*'Дополнительная комплектация'!$AY$1,'Дополнительная комплектация'!$AY$3) -> 20 | AJ15: =CEILING('Шкафы (2)'!AJ15*'Дополнительная комплектация'!$AY$1,'Дополнительная комплектация'!$AY$3) -> 80 | AK15: =CEILING('Шкафы (2)'!AK15*'Дополнительная комплектация'!$AY$1,'Дополнительная комплектация'!$AY$3) -> 80 | AL15: =CEILING('Шкафы (2)'!AL15*'Дополнительная комплектация'!$AY$1,'Дополнительная комплектация'!$AY$3) -> 140 | AM15: =CEILING('Шкафы (2)'!AM15*'Дополнительная комплектация'!$AY$1,'Дополнительная комплектация'!$AY$3) -> 200 | AN15: =CEILING('Шкафы (2)'!AN15*'Дополнительная комплектация'!$AY$1,'Дополнительная комплектация'!$AY$3) -> 20 | AO15: =CEILING('Шкафы (2)'!AO15*'Дополнительная комплектация'!$AY$1,'Дополнительная комплектация'!$AY$3) -> 20 | AP15: =CEILING('Шкафы (2)'!AP15*'Дополнительная комплектация'!$AY$1,'Дополнительная комплектация'!$AY$3) -> 60 | AQ15: =CEILING('Шкафы (2)'!AQ15*'Дополнительная комплектация'!$AY$1,'Дополнительная комплектация'!$AY$3) -> 80 | AR15: =CEILING('Шкафы (2)'!AR15*'Дополнительная комплектация'!$AY$1,'Дополнительная комплектация'!$AY$3) -> 140 | AS15: L=700
D16: L=800 | E16: =CEILING('Шкафы (2)'!E16*'Дополнительная комплектация'!$AY$1,'Дополнительная комплектация'!$AY$3) -> 2165 | F16: =CEILING('Шкафы (2)'!F16*'Дополнительная комплектация'!$AY$1,'Дополнительная комплектация'!$AY$3) -> 2825 | G16: =CEILING('Шкафы (2)'!G16*'Дополнительная комплектация'!$AY$1,'Дополнительная комплектация'!$AY$3) -> 2305 | H16: =CEILING('Шкафы (2)'!H16*'Дополнительная комплектация'!$AY$1,'Дополнительная комплектация'!$AY$3) -> 2965 | I16: =CEILING('Шкафы (2)'!I16*'Дополнительная комплектация'!$AY$1,'Дополнительная комплектация'!$AY$3) -> 2565 | J16: =CEILING('Шкафы (2)'!J16*'Дополнительная комплектация'!$AY$1,'Дополнительная комплектация'!$AY$3) -> 3525 | K16: =CEILING('Шкафы (2)'!K16*'Дополнительная комплектация'!$AY$1,'Дополнительная комплектация'!$AY$3) -> 2335 | L16: =CEILING('Шкафы (2)'!L16*'Дополнительная комплектация'!$AY$1,'Дополнительная комплектация'!$AY$3) -> 4905 | M16: =CEILING('Шкафы (2)'!M16*'Дополнительная комплектация'!$AY$1,'Дополнительная комплектация'!$AY$3) -> 5565 | N16: =CEILING('Шкафы (2)'!N16*'Дополнительная комплектация'!$AY$1,'Дополнительная комплектация'!$AY$3) -> 1855 | O16: =CEILING('Шкафы (2)'!O16*'Дополнительная комплектация'!$AY$1,'Дополнительная комплектация'!$AY$3) -> 1875 | P16: =CEILING('Шкафы (2)'!P16*'Дополнительная комплектация'!$AY$1,'Дополнительная комплектация'!$AY$3) -> 1895 | Q16: =CEILING('Шкафы (2)'!Q16*'Дополнительная комплектация'!$AY$1,'Дополнительная комплектация'!$AY$3) -> 2935 | R16: =CEILING('Шкафы (2)'!R16*'Дополнительная комплектация'!$AY$1,'Дополнительная комплектация'!$AY$3) -> 3615 | S16: =CEILING('Шкафы (2)'!S16*'Дополнительная комплектация'!$AY$1,'Дополнительная комплектация'!$AY$3) -> 2555 | T16: =CEILING('Шкафы (2)'!T16*'Дополнительная комплектация'!$AY$1,'Дополнительная комплектация'!$AY$3) -> 3015 | U16: =CEILING('Шкафы (2)'!U16*'Дополнительная комплектация'!$AY$1,'Дополнительная комплектация'!$AY$3) -> 3275 | V16: =CEILING('Шкафы (2)'!V16*'Дополнительная комплектация'!$AY$1,'Дополнительная комплектация'!$AY$3) -> 3475 | W16: =CEILING('Шкафы (2)'!W16*'Дополнительная комплектация'!$AY$1,'Дополнительная комплектация'!$AY$3) -> 12 | X16: =CEILING('Шкафы (2)'!X16*'Дополнительная комплектация'!$AY$1,'Дополнительная комплектация'!$AY$3) -> 30 | Y16: =CEILING('Шкафы (2)'!Y16*'Дополнительная комплектация'!$AY$1,'Дополнительная комплектация'!$AY$3) -> 60 | Z16: =CEILING('Шкафы (2)'!Z16*'Дополнительная комплектация'!$AY$1,'Дополнительная комплектация'!$AY$3) -> 162 | AA16: =CEILING('Шкафы (2)'!AA16*'Дополнительная комплектация'!$AY$1,'Дополнительная комплектация'!$AY$3) -> 192 | AB16: =CEILING('Шкафы (2)'!AB16*'Дополнительная комплектация'!$AY$1,'Дополнительная комплектация'!$AY$3) -> 316 | AC16: =CEILING('Шкафы (2)'!AC16*'Дополнительная комплектация'!$AY$1,'Дополнительная комплектация'!$AY$3) -> 426 | AD16: =CEILING('Шкафы (2)'!AD16*'Дополнительная комплектация'!$AY$1,'Дополнительная комплектация'!$AY$3) -> 806 | AE16: =CEILING('Шкафы (2)'!AE16*'Дополнительная комплектация'!$AY$1,'Дополнительная комплектация'!$AY$3) -> 910 | AF16: * | AG16: =CEILING('Шкафы (2)'!AG16*'Дополнительная комплектация'!$AY$1,'Дополнительная комплектация'!$AY$3) -> 0 | AH16: =CEILING('Шкафы (2)'!AH16*'Дополнительная комплектация'!$AY$1,'Дополнительная комплектация'!$AY$3) -> 20 | AI16: =CEILING('Шкафы (2)'!AI16*'Дополнительная комплектация'!$AY$1,'Дополнительная комплектация'!$AY$3) -> 40 | AJ16: =CEILING('Шкафы (2)'!AJ16*'Дополнительная комплектация'!$AY$1,'Дополнительная комплектация'!$AY$3) -> 100 | AK16: =CEILING('Шкафы (2)'!AK16*'Дополнительная комплектация'!$AY$1,'Дополнительная комплектация'!$AY$3) -> 120 | AL16: =CEILING('Шкафы (2)'!AL16*'Дополнительная комплектация'!$AY$1,'Дополнительная комплектация'!$AY$3) -> 180 | AM16: =CEILING('Шкафы (2)'!AM16*'Дополнительная комплектация'!$AY$1,'Дополнительная комплектация'!$AY$3) -> 260 | AN16: =CEILING('Шкафы (2)'!AN16*'Дополнительная комплектация'!$AY$1,'Дополнительная комплектация'!$AY$3) -> 0 | AO16: =CEILING('Шкафы (2)'!AO16*'Дополнительная комплектация'!$AY$1,'Дополнительная комплектация'!$AY$3) -> 20 | AP16: =CEILING('Шкафы (2)'!AP16*'Дополнительная комплектация'!$AY$1,'Дополнительная комплектация'!$AY$3) -> 80 | AQ16: =CEILING('Шкафы (2)'!AQ16*'Дополнительная комплектация'!$AY$1,'Дополнительная комплектация'!$AY$3) -> 80 | AR16: =CEILING('Шкафы (2)'!AR16*'Дополнительная комплектация'!$AY$1,'Дополнительная комплектация'!$AY$3) -> 140 | AS16: L=800
C17: Шкаф Н=400 2дв 2ст | D17: L=600 | E17: =CEILING('Шкафы (2)'!E17*'Дополнительная комплектация'!$AY$1,'Дополнительная комплектация'!$AY$3) -> 1992 | F17: =CEILING('Шкафы (2)'!F17*'Дополнительная комплектация'!$AY$1,'Дополнительная комплектация'!$AY$3) -> 2532 | G17: =CEILING('Шкафы (2)'!G17*'Дополнительная комплектация'!$AY$1,'Дополнительная комплектация'!$AY$3) -> 2112 | H17: =CEILING('Шкафы (2)'!H17*'Дополнительная комплектация'!$AY$1,'Дополнительная комплектация'!$AY$3) -> 2652 | I17: =CEILING('Шкафы (2)'!I17*'Дополнительная комплектация'!$AY$1,'Дополнительная комплектация'!$AY$3) -> 2312 | J17: =CEILING('Шкафы (2)'!J17*'Дополнительная комплектация'!$AY$1,'Дополнительная комплектация'!$AY$3) -> 3112 | K17: =CEILING('Шкафы (2)'!K17*'Дополнительная комплектация'!$AY$1,'Дополнительная комплектация'!$AY$3) -> 2220 | L17: =CEILING('Шкафы (2)'!L17*'Дополнительная комплектация'!$AY$1,'Дополнительная комплектация'!$AY$3) -> 4272 | M17: =CEILING('Шкафы (2)'!M17*'Дополнительная комплектация'!$AY$1,'Дополнительная комплектация'!$AY$3) -> 4812 | N17: =CEILING('Шкафы (2)'!N17*'Дополнительная комплектация'!$AY$1,'Дополнительная комплектация'!$AY$3) -> 1740 | O17: =CEILING('Шкафы (2)'!O17*'Дополнительная комплектация'!$AY$1,'Дополнительная комплектация'!$AY$3) -> 1740 | P17: =CEILING('Шкафы (2)'!P17*'Дополнительная комплектация'!$AY$1,'Дополнительная комплектация'!$AY$3) -> 1780 | Q17: =CEILING('Шкафы (2)'!Q17*'Дополнительная комплектация'!$AY$1,'Дополнительная комплектация'!$AY$3) -> 2640 | R17: =CEILING('Шкафы (2)'!R17*'Дополнительная комплектация'!$AY$1,'Дополнительная комплектация'!$AY$3) -> 3220 | S17: =CEILING('Шкафы (2)'!S17*'Дополнительная комплектация'!$AY$1,'Дополнительная комплектация'!$AY$3) -> 2400 | T17: =CEILING('Шкафы (2)'!T17*'Дополнительная комплектация'!$AY$1,'Дополнительная комплектация'!$AY$3) -> 2820 | U17: =CEILING('Шкафы (2)'!U17*'Дополнительная комплектация'!$AY$1,'Дополнительная комплектация'!$AY$3) -> 3040 | V17: =CEILING('Шкафы (2)'!V17*'Дополнительная комплектация'!$AY$1,'Дополнительная комплектация'!$AY$3) -> 3240 | W17: =CEILING('Шкафы (2)'!W17*'Дополнительная комплектация'!$AY$1,'Дополнительная комплектация'!$AY$3) -> 10 | X17: =CEILING('Шкафы (2)'!X17*'Дополнительная комплектация'!$AY$1,'Дополнительная комплектация'!$AY$3) -> 24 | Y17: =CEILING('Шкафы (2)'!Y17*'Дополнительная комплектация'!$AY$1,'Дополнительная комплектация'!$AY$3) -> 48 | Z17: =CEILING('Шкафы (2)'!Z17*'Дополнительная комплектация'!$AY$1,'Дополнительная комплектация'!$AY$3) -> 130 | AA17: =CEILING('Шкафы (2)'!AA17*'Дополнительная комплектация'!$AY$1,'Дополнительная комплектация'!$AY$3) -> 154 | AB17: =CEILING('Шкафы (2)'!AB17*'Дополнительная комплектация'!$AY$1,'Дополнительная комплектация'!$AY$3) -> 252 | AC17: =CEILING('Шкафы (2)'!AC17*'Дополнительная комплектация'!$AY$1,'Дополнительная комплектация'!$AY$3) -> 340 | AD17: =CEILING('Шкафы (2)'!AD17*'Дополнительная комплектация'!$AY$1,'Дополнительная комплектация'!$AY$3) -> 712 | AE17: =CEILING('Шкафы (2)'!AE17*'Дополнительная комплектация'!$AY$1,'Дополнительная комплектация'!$AY$3) -> 792 | AF17: * | AG17: =CEILING('Шкафы (2)'!AG17*'Дополнительная комплектация'!$AY$1,'Дополнительная комплектация'!$AY$3) -> 0 | AH17: =CEILING('Шкафы (2)'!AH17*'Дополнительная комплектация'!$AY$1,'Дополнительная комплектация'!$AY$3) -> 20 | AI17: =CEILING('Шкафы (2)'!AI17*'Дополнительная комплектация'!$AY$1,'Дополнительная комплектация'!$AY$3) -> 20 | AJ17: =CEILING('Шкафы (2)'!AJ17*'Дополнительная комплектация'!$AY$1,'Дополнительная комплектация'!$AY$3) -> 80 | AK17: =CEILING('Шкафы (2)'!AK17*'Дополнительная комплектация'!$AY$1,'Дополнительная комплектация'!$AY$3) -> 80 | AL17: =CEILING('Шкафы (2)'!AL17*'Дополнительная комплектация'!$AY$1,'Дополнительная комплектация'!$AY$3) -> 140 | AM17: =CEILING('Шкафы (2)'!AM17*'Дополнительная комплектация'!$AY$1,'Дополнительная комплектация'!$AY$3) -> 180 | AN17: =CEILING('Шкафы (2)'!AN17*'Дополнительная комплектация'!$AY$1,'Дополнительная комплектация'!$AY$3) -> 0 | AO17: =CEILING('Шкафы (2)'!AO17*'Дополнительная комплектация'!$AY$1,'Дополнительная комплектация'!$AY$3) -> 20 | AP17: =CEILING('Шкафы (2)'!AP17*'Дополнительная комплектация'!$AY$1,'Дополнительная комплектация'!$AY$3) -> 40 | AQ17: =CEILING('Шкафы (2)'!AQ17*'Дополнительная комплектация'!$AY$1,'Дополнительная комплектация'!$AY$3) -> 60 | AR17: =CEILING('Шкафы (2)'!AR17*'Дополнительная комплектация'!$AY$1,'Дополнительная комплектация'!$AY$3) -> 100 | AS17: L=600
D18: L=700 | E18: =CEILING('Шкафы (2)'!E18*'Дополнительная комплектация'!$AY$1,'Дополнительная комплектация'!$AY$3) -> 2150 | F18: =CEILING('Шкафы (2)'!F18*'Дополнительная комплектация'!$AY$1,'Дополнительная комплектация'!$AY$3) -> 2770 | G18: =CEILING('Шкафы (2)'!G18*'Дополнительная комплектация'!$AY$1,'Дополнительная комплектация'!$AY$3) -> 2290 | H18: =CEILING('Шкафы (2)'!H18*'Дополнительная комплектация'!$AY$1,'Дополнительная комплектация'!$AY$3) -> 2910 | I18: =CEILING('Шкафы (2)'!I18*'Дополнительная комплектация'!$AY$1,'Дополнительная комплектация'!$AY$3) -> 2510 | J18: =CEILING('Шкафы (2)'!J18*'Дополнительная комплектация'!$AY$1,'Дополнительная комплектация'!$AY$3) -> 3450 | K18: =CEILING('Шкафы (2)'!K18*'Дополнительная комплектация'!$AY$1,'Дополнительная комплектация'!$AY$3) -> 2300 | L18: =CEILING('Шкафы (2)'!L18*'Дополнительная комплектация'!$AY$1,'Дополнительная комплектация'!$AY$3) -> 4810 | M18: =CEILING('Шкафы (2)'!M18*'Дополнительная комплектация'!$AY$1,'Дополнительная комплектация'!$AY$3) -> 5430 | N18: =CEILING('Шкафы (2)'!N18*'Дополнительная комплектация'!$AY$1,'Дополнительная комплектация'!$AY$3) -> 1820 | O18: =CEILING('Шкафы (2)'!O18*'Дополнительная комплектация'!$AY$1,'Дополнительная комплектация'!$AY$3) -> 1840 | P18: =CEILING('Шкафы (2)'!P18*'Дополнительная комплектация'!$AY$1,'Дополнительная комплектация'!$AY$3) -> 1880 | Q18: =CEILING('Шкафы (2)'!Q18*'Дополнительная комплектация'!$AY$1,'Дополнительная комплектация'!$AY$3) -> 2880 | R18: =CEILING('Шкафы (2)'!R18*'Дополнительная комплектация'!$AY$1,'Дополнительная комплектация'!$AY$3) -> 3520 | S18: =CEILING('Шкафы (2)'!S18*'Дополнительная комплектация'!$AY$1,'Дополнительная комплектация'!$AY$3) -> 2520 | T18: =CEILING('Шкафы (2)'!T18*'Дополнительная комплектация'!$AY$1,'Дополнительная комплектация'!$AY$3) -> 2980 | U18: =CEILING('Шкафы (2)'!U18*'Дополнительная комплектация'!$AY$1,'Дополнительная комплектация'!$AY$3) -> 3240 | V18: =CEILING('Шкафы (2)'!V18*'Дополнительная комплектация'!$AY$1,'Дополнительная комплектация'!$AY$3) -> 3440 | W18: =CEILING('Шкафы (2)'!W18*'Дополнительная комплектация'!$AY$1,'Дополнительная комплектация'!$AY$3) -> 12 | X18: =CEILING('Шкафы (2)'!X18*'Дополнительная комплектация'!$AY$1,'Дополнительная комплектация'!$AY$3) -> 30 | Y18: =CEILING('Шкафы (2)'!Y18*'Дополнительная комплектация'!$AY$1,'Дополнительная комплектация'!$AY$3) -> 60 | Z18: =CEILING('Шкафы (2)'!Z18*'Дополнительная комплектация'!$AY$1,'Дополнительная комплектация'!$AY$3) -> 162 | AA18: =CEILING('Шкафы (2)'!AA18*'Дополнительная комплектация'!$AY$1,'Дополнительная комплектация'!$AY$3) -> 192 | AB18: =CEILING('Шкафы (2)'!AB18*'Дополнительная комплектация'!$AY$1,'Дополнительная комплектация'!$AY$3) -> 316 | AC18: =CEILING('Шкафы (2)'!AC18*'Дополнительная комплектация'!$AY$1,'Дополнительная комплектация'!$AY$3) -> 426 | AD18: =CEILING('Шкафы (2)'!AD18*'Дополнительная комплектация'!$AY$1,'Дополнительная комплектация'!$AY$3) -> 806 | AE18: =CEILING('Шкафы (2)'!AE18*'Дополнительная комплектация'!$AY$1,'Дополнительная комплектация'!$AY$3) -> 910 | AF18: * | AG18: =CEILING('Шкафы (2)'!AG18*'Дополнительная комплектация'!$AY$1,'Дополнительная комплектация'!$AY$3) -> 20 | AH18: =CEILING('Шкафы (2)'!AH18*'Дополнительная комплектация'!$AY$1,'Дополнительная комплектация'!$AY$3) -> 20 | AI18: =CEILING('Шкафы (2)'!AI18*'Дополнительная комплектация'!$AY$1,'Дополнительная комплектация'!$AY$3) -> 40 | AJ18: =CEILING('Шкафы (2)'!AJ18*'Дополнительная комплектация'!$AY$1,'Дополнительная комплектация'!$AY$3) -> 100 | AK18: =CEILING('Шкафы (2)'!AK18*'Дополнительная комплектация'!$AY$1,'Дополнительная комплектация'!$AY$3) -> 120 | AL18: =CEILING('Шкафы (2)'!AL18*'Дополнительная комплектация'!$AY$1,'Дополнительная комплектация'!$AY$3) -> 180 | AM18: =CEILING('Шкафы (2)'!AM18*'Дополнительная комплектация'!$AY$1,'Дополнительная комплектация'!$AY$3) -> 260 | AN18: =CEILING('Шкафы (2)'!AN18*'Дополнительная комплектация'!$AY$1,'Дополнительная комплектация'!$AY$3) -> 20 | AO18: =CEILING('Шкафы (2)'!AO18*'Дополнительная комплектация'!$AY$1,'Дополнительная комплектация'!$AY$3) -> 40 | AP18: =CEILING('Шкафы (2)'!AP18*'Дополнительная комплектация'!$AY$1,'Дополнительная комплектация'!$AY$3) -> 80 | AQ18: =CEILING('Шкафы (2)'!AQ18*'Дополнительная комплектация'!$AY$1,'Дополнительная комплектация'!$AY$3) -> 80 | AR18: =CEILING('Шкафы (2)'!AR18*'Дополнительная комплектация'!$AY$1,'Дополнительная комплектация'!$AY$3) -> 140 | AS18: L=700
D19: L=800 | E19: =CEILING('Шкафы (2)'!E19*'Дополнительная комплектация'!$AY$1,'Дополнительная комплектация'!$AY$3) -> 2266 | F19: =CEILING('Шкафы (2)'!F19*'Дополнительная комплектация'!$AY$1,'Дополнительная комплектация'!$AY$3) -> 2986 | G19: =CEILING('Шкафы (2)'!G19*'Дополнительная комплектация'!$AY$1,'Дополнительная комплектация'!$AY$3) -> 2426 | H19: =CEILING('Шкафы (2)'!H19*'Дополнительная комплектация'!$AY$1,'Дополнительная комплектация'!$AY$3) -> 3146 | I19: =CEILING('Шкафы (2)'!I19*'Дополнительная комплектация'!$AY$1,'Дополнительная комплектация'!$AY$3) -> 2706 | J19: =CEILING('Шкафы (2)'!J19*'Дополнительная комплектация'!$AY$1,'Дополнительная комплектация'!$AY$3) -> 3766 | K19: =CEILING('Шкафы (2)'!K19*'Дополнительная комплектация'!$AY$1,'Дополнительная комплектация'!$AY$3) -> 2478 | L19: =CEILING('Шкафы (2)'!L19*'Дополнительная комплектация'!$AY$1,'Дополнительная комплектация'!$AY$3) -> 5326 | M19: =CEILING('Шкафы (2)'!M19*'Дополнительная комплектация'!$AY$1,'Дополнительная комплектация'!$AY$3) -> 6046 | N19: =CEILING('Шкафы (2)'!N19*'Дополнительная комплектация'!$AY$1,'Дополнительная комплектация'!$AY$3) -> 1898 | O19: =CEILING('Шкафы (2)'!O19*'Дополнительная комплектация'!$AY$1,'Дополнительная комплектация'!$AY$3) -> 1938 | P19: =CEILING('Шкафы (2)'!P19*'Дополнительная комплектация'!$AY$1,'Дополнительная комплектация'!$AY$3) -> 1958 | Q19: =CEILING('Шкафы (2)'!Q19*'Дополнительная комплектация'!$AY$1,'Дополнительная комплектация'!$AY$3) -> 3078 | R19: =CEILING('Шкафы (2)'!R19*'Дополнительная комплектация'!$AY$1,'Дополнительная комплектация'!$AY$3) -> 3778 | S19: =CEILING('Шкафы (2)'!S19*'Дополнительная комплектация'!$AY$1,'Дополнительная комплектация'!$AY$3) -> 2718 | T19: =CEILING('Шкафы (2)'!T19*'Дополнительная комплектация'!$AY$1,'Дополнительная комплектация'!$AY$3) -> 3218 | U19: =CEILING('Шкафы (2)'!U19*'Дополнительная комплектация'!$AY$1,'Дополнительная комплектация'!$AY$3) -> 3498 | V19: =CEILING('Шкафы (2)'!V19*'Дополнительная комплектация'!$AY$1,'Дополнительная комплектация'!$AY$3) -> 3718 | W19: =CEILING('Шкафы (2)'!W19*'Дополнительная комплектация'!$AY$1,'Дополнительная комплектация'!$AY$3) -> 14 | X19: =CEILING('Шкафы (2)'!X19*'Дополнительная комплектация'!$AY$1,'Дополнительная комплектация'!$AY$3) -> 36 | Y19: =CEILING('Шкафы (2)'!Y19*'Дополнительная комплектация'!$AY$1,'Дополнительная комплектация'!$AY$3) -> 72 | Z19: =CEILING('Шкафы (2)'!Z19*'Дополнительная комплектация'!$AY$1,'Дополнительная комплектация'!$AY$3) -> 194 | AA19: =CEILING('Шкафы (2)'!AA19*'Дополнительная комплектация'!$AY$1,'Дополнительная комплектация'!$AY$3) -> 230 | AB19: =CEILING('Шкафы (2)'!AB19*'Дополнительная комплектация'!$AY$1,'Дополнительная комплектация'!$AY$3) -> 378 | AC19: =CEILING('Шкафы (2)'!AC19*'Дополнительная комплектация'!$AY$1,'Дополнительная комплектация'!$AY$3) -> 512 | AD19: =CEILING('Шкафы (2)'!AD19*'Дополнительная комплектация'!$AY$1,'Дополнительная комплектация'!$AY$3) -> 898 | AE19: =CEILING('Шкафы (2)'!AE19*'Дополнительная комплектация'!$AY$1,'Дополнительная комплектация'!$AY$3) -> 1026 | AF19: * | AG19: =CEILING('Шкафы (2)'!AG19*'Дополнительная комплектация'!$AY$1,'Дополнительная комплектация'!$AY$3) -> 20 | AH19: =CEILING('Шкафы (2)'!AH19*'Дополнительная комплектация'!$AY$1,'Дополнительная комплектация'!$AY$3) -> 60 | AI19: =CEILING('Шкафы (2)'!AI19*'Дополнительная комплектация'!$AY$1,'Дополнительная комплектация'!$AY$3) -> 100 | AJ19: =CEILING('Шкафы (2)'!AJ19*'Дополнительная комплектация'!$AY$1,'Дополнительная комплектация'!$AY$3) -> 280 | AK19: =CEILING('Шкафы (2)'!AK19*'Дополнительная комплектация'!$AY$1,'Дополнительная комплектация'!$AY$3) -> 340 | AL19: =CEILING('Шкафы (2)'!AL19*'Дополнительная комплектация'!$AY$1,'Дополнительная комплектация'!$AY$3) -> 540 | AM19: =CEILING('Шкафы (2)'!AM19*'Дополнительная комплектация'!$AY$1,'Дополнительная комплектация'!$AY$3) -> 740 | AN19: =CEILING('Шкафы (2)'!AN19*'Дополнительная комплектация'!$AY$1,'Дополнительная комплектация'!$AY$3) -> 20 | AO19: =CEILING('Шкафы (2)'!AO19*'Дополнительная комплектация'!$AY$1,'Дополнительная комплектация'!$AY$3) -> 40 | AP19: =CEILING('Шкафы (2)'!AP19*'Дополнительная комплектация'!$AY$1,'Дополнительная комплектация'!$AY$3) -> 80 | AQ19: =CEILING('Шкафы (2)'!AQ19*'Дополнительная комплектация'!$AY$1,'Дополнительная комплектация'!$AY$3) -> 100 | AR19: =CEILING('Шкафы (2)'!AR19*'Дополнительная комплектация'!$AY$1,'Дополнительная комплектация'!$AY$3) -> 160 | AS19: L=800
C20: Шкаф Н=600 1 дверь Л/ПР | D20: L=150 | E20: =CEILING('Шкафы (2)'!E20*'Дополнительная комплектация'!$AY$1,'Дополнительная комплектация'!$AY$3) -> 1161 | F20: =CEILING('Шкафы (2)'!F20*'Дополнительная комплектация'!$AY$1,'Дополнительная комплектация'!$AY$3) -> 1361 | G20: =CEILING('Шкафы (2)'!G20*'Дополнительная комплектация'!$AY$1,'Дополнительная комплектация'!$AY$3) -> 1201 | H20: =CEILING('Шкафы (2)'!H20*'Дополнительная комплектация'!$AY$1,'Дополнительная комплектация'!$AY$3) -> 1401 | I20: =CEILING('Шкафы (2)'!I20*'Дополнительная комплектация'!$AY$1,'Дополнительная комплектация'!$AY$3) -> 1281 | J20: =CEILING('Шкафы (2)'!J20*'Дополнительная комплектация'!$AY$1,'Дополнительная комплектация'!$AY$3) -> 1571 | K20: =CEILING('Шкафы (2)'!K20*'Дополнительная комплектация'!$AY$1,'Дополнительная комплектация'!$AY$3) -> 1281 | L20: =CEILING('Шкафы (2)'!L20*'Дополнительная комплектация'!$AY$1,'Дополнительная комплектация'!$AY$3) -> 2001 | M20: =CEILING('Шкафы (2)'!M20*'Дополнительная комплектация'!$AY$1,'Дополнительная комплектация'!$AY$3) -> 2201 | N20: =CEILING('Шкафы (2)'!N20*'Дополнительная комплектация'!$AY$1,'Дополнительная комплектация'!$AY$3) -> 1081 | O20: =CEILING('Шкафы (2)'!O20*'Дополнительная комплектация'!$AY$1,'Дополнительная комплектация'!$AY$3) -> 1091 | P20: =CEILING('Шкафы (2)'!P20*'Дополнительная комплектация'!$AY$1,'Дополнительная комплектация'!$AY$3) -> 1101 | Q20: =CEILING('Шкафы (2)'!Q20*'Дополнительная комплектация'!$AY$1,'Дополнительная комплектация'!$AY$3) -> 1431 | R20: =CEILING('Шкафы (2)'!R20*'Дополнительная комплектация'!$AY$1,'Дополнительная комплектация'!$AY$3) -> 1641 | S20: =CEILING('Шкафы (2)'!S20*'Дополнительная комплектация'!$AY$1,'Дополнительная комплектация'!$AY$3) -> 1241 | T20: =CEILING('Шкафы (2)'!T20*'Дополнительная комплектация'!$AY$1,'Дополнительная комплектация'!$AY$3) -> 1401 | U20: =CEILING('Шкафы (2)'!U20*'Дополнительная комплектация'!$AY$1,'Дополнительная комплектация'!$AY$3) -> 1501 | V20: =CEILING('Шкафы (2)'!V20*'Дополнительная комплектация'!$AY$1,'Дополнительная комплектация'!$AY$3) -> 1591 | W20: - | X20: - | Y20: - | Z20: - | AA20: - | AB20: - | AC20: - | AD20: - | AE20: - | AF20: - | AG20: - | AH20: - | AI20: - | AJ20: - | AK20: - | AL20: - | AM20: - | AN20: - | AO20: - | AP20: - | AQ20: - | AR20: - | AS20: L=150
D21: L=200 | E21: =CEILING('Шкафы (2)'!E21*'Дополнительная комплектация'!$AY$1,'Дополнительная комплектация'!$AY$3) -> 1243 | F21: =CEILING('Шкафы (2)'!F21*'Дополнительная комплектация'!$AY$1,'Дополнительная комплектация'!$AY$3) -> 1513 | G21: =CEILING('Шкафы (2)'!G21*'Дополнительная комплектация'!$AY$1,'Дополнительная комплектация'!$AY$3) -> 1303 | H21: =CEILING('Шкафы (2)'!H21*'Дополнительная комплектация'!$AY$1,'Дополнительная комплектация'!$AY$3) -> 1573 | I21: =CEILING('Шкафы (2)'!I21*'Дополнительная комплектация'!$AY$1,'Дополнительная комплектация'!$AY$3) -> 1403 | J21: =CEILING('Шкафы (2)'!J21*'Дополнительная комплектация'!$AY$1,'Дополнительная комплектация'!$AY$3) -> 1803 | K21: =CEILING('Шкафы (2)'!K21*'Дополнительная комплектация'!$AY$1,'Дополнительная комплектация'!$AY$3) -> 1333 | L21: =CEILING('Шкафы (2)'!L21*'Дополнительная комплектация'!$AY$1,'Дополнительная комплектация'!$AY$3) -> 2383 | M21: =CEILING('Шкафы (2)'!M21*'Дополнительная комплектация'!$AY$1,'Дополнительная комплектация'!$AY$3) -> 2643 | N21: =CEILING('Шкафы (2)'!N21*'Дополнительная комплектация'!$AY$1,'Дополнительная комплектация'!$AY$3) -> 1143 | O21: =CEILING('Шкафы (2)'!O21*'Дополнительная комплектация'!$AY$1,'Дополнительная комплектация'!$AY$3) -> 1153 | P21: =CEILING('Шкафы (2)'!P21*'Дополнительная комплектация'!$AY$1,'Дополнительная комплектация'!$AY$3) -> 1163 | Q21: =CEILING('Шкафы (2)'!Q21*'Дополнительная комплектация'!$AY$1,'Дополнительная комплектация'!$AY$3) -> 1563 | R21: =CEILING('Шкафы (2)'!R21*'Дополнительная комплектация'!$AY$1,'Дополнительная комплектация'!$AY$3) -> 1783 | S21: =CEILING('Шкафы (2)'!S21*'Дополнительная комплектация'!$AY$1,'Дополнительная комплектация'!$AY$3) -> 1343 | T21: =CEILING('Шкафы (2)'!T21*'Дополнительная комплектация'!$AY$1,'Дополнительная комплектация'!$AY$3) -> 1513 | U21: =CEILING('Шкафы (2)'!U21*'Дополнительная комплектация'!$AY$1,'Дополнительная комплектация'!$AY$3) -> 1663 | V21: =CEILING('Шкафы (2)'!V21*'Дополнительная комплектация'!$AY$1,'Дополнительная комплектация'!$AY$3) -> 1783 | W21: - | X21: - | Y21: - | Z21: - | AA21: - | AB21: - | AC21: - | AD21: - | AE21: - | AF21: - | AG21: - | AH21: - | AI21: - | AJ21: - | AK21: - | AL21: - | AM21: - | AN21: - | AO21: - | AP21: - | AQ21: - | AR21: - | AS21: L=200
D22: L=250 | E22: =CEILING('Шкафы (2)'!E22*'Дополнительная комплектация'!$AY$1,'Дополнительная комплектация'!$AY$3) -> 1325 | F22: =CEILING('Шкафы (2)'!F22*'Дополнительная комплектация'!$AY$1,'Дополнительная комплектация'!$AY$3) -> 1665 | G22: =CEILING('Шкафы (2)'!G22*'Дополнительная комплектация'!$AY$1,'Дополнительная комплектация'!$AY$3) -> 1405 | H22: =CEILING('Шкафы (2)'!H22*'Дополнительная комплектация'!$AY$1,'Дополнительная комплектация'!$AY$3) -> 1735 | I22: =CEILING('Шкафы (2)'!I22*'Дополнительная комплектация'!$AY$1,'Дополнительная комплектация'!$AY$3) -> 1525 | J22: =CEILING('Шкафы (2)'!J22*'Дополнительная комплектация'!$AY$1,'Дополнительная комплектация'!$AY$3) -> 2035 | K22: =CEILING('Шкафы (2)'!K22*'Дополнительная комплектация'!$AY$1,'Дополнительная комплектация'!$AY$3) -> 1385 | L22: =CEILING('Шкафы (2)'!L22*'Дополнительная комплектация'!$AY$1,'Дополнительная комплектация'!$AY$3) -> 2755 | M22: =CEILING('Шкафы (2)'!M22*'Дополнительная комплектация'!$AY$1,'Дополнительная комплектация'!$AY$3) -> 3095 | N22: =CEILING('Шкафы (2)'!N22*'Дополнительная комплектация'!$AY$1,'Дополнительная комплектация'!$AY$3) -> 1195 | O22: =CEILING('Шкафы (2)'!O22*'Дополнительная комплектация'!$AY$1,'Дополнительная комплектация'!$AY$3) -> 1215 | P22: =CEILING('Шкафы (2)'!P22*'Дополнительная комплектация'!$AY$1,'Дополнительная комплектация'!$AY$3) -> 1225 | Q22: =CEILING('Шкафы (2)'!Q22*'Дополнительная комплектация'!$AY$1,'Дополнительная комплектация'!$AY$3) -> 1695 | R22: =CEILING('Шкафы (2)'!R22*'Дополнительная комплектация'!$AY$1,'Дополнительная комплектация'!$AY$3) -> 1935 | S22: =CEILING('Шкафы (2)'!S22*'Дополнительная комплектация'!$AY$1,'Дополнительная комплектация'!$AY$3) -> 1455 | T22: =CEILING('Шкафы (2)'!T22*'Дополнительная комплектация'!$AY$1,'Дополнительная комплектация'!$AY$3) -> 1635 | U22: =CEILING('Шкафы (2)'!U22*'Дополнительная комплектация'!$AY$1,'Дополнительная комплектация'!$AY$3) -> 1815 | V22: =CEILING('Шкафы (2)'!V22*'Дополнительная комплектация'!$AY$1,'Дополнительная комплектация'!$AY$3) -> 1965 | W22: - | X22: - | Y22: - | Z22: - | AA22: - | AB22: - | AC22: - | AD22: - | AE22: - | AF22: - | AG22: - | AH22: - | AI22: - | AJ22: - | AK22: - | AL22: - | AM22: - | AN22: - | AO22: - | AP22: - | AQ22: - | AR22: - | AS22: L=250
D23: L=300 | E23: =CEILING('Шкафы (2)'!E23*'Дополнительная комплектация'!$AY$1,'Дополнительная комплектация'!$AY$3) -> 1418 | F23: =CEILING('Шкафы (2)'!F23*'Дополнительная комплектация'!$AY$1,'Дополнительная комплектация'!$AY$3) -> 1818 | G23: =CEILING('Шкафы (2)'!G23*'Дополнительная комплектация'!$AY$1,'Дополнительная комплектация'!$AY$3) -> 1508 | H23: =CEILING('Шкафы (2)'!H23*'Дополнительная комплектация'!$AY$1,'Дополнительная комплектация'!$AY$3) -> 1908 | I23: =CEILING('Шкафы (2)'!I23*'Дополнительная комплектация'!$AY$1,'Дополнительная комплектация'!$AY$3) -> 1658 | J23: =CEILING('Шкафы (2)'!J23*'Дополнительная комплектация'!$AY$1,'Дополнительная комплектация'!$AY$3) -> 2258 | K23: =CEILING('Шкафы (2)'!K23*'Дополнительная комплектация'!$AY$1,'Дополнительная комплектация'!$AY$3) -> 1528 | L23: =CEILING('Шкафы (2)'!L23*'Дополнительная комплектация'!$AY$1,'Дополнительная комплектация'!$AY$3) -> 3128 | M23: =CEILING('Шкафы (2)'!M23*'Дополнительная комплектация'!$AY$1,'Дополнительная комплектация'!$AY$3) -> 3538 | N23: =CEILING('Шкафы (2)'!N23*'Дополнительная комплектация'!$AY$1,'Дополнительная комплектация'!$AY$3) -> 1258 | O23: =CEILING('Шкафы (2)'!O23*'Дополнительная комплектация'!$AY$1,'Дополнительная комплектация'!$AY$3) -> 1268 | P23: =CEILING('Шкафы (2)'!P23*'Дополнительная комплектация'!$AY$1,'Дополнительная комплектация'!$AY$3) -> 1288 | Q23: =CEILING('Шкафы (2)'!Q23*'Дополнительная комплектация'!$AY$1,'Дополнительная комплектация'!$AY$3) -> 1828 | R23: =CEILING('Шкафы (2)'!R23*'Дополнительная комплектация'!$AY$1,'Дополнительная комплектация'!$AY$3) -> 2078 | S23: =CEILING('Шкафы (2)'!S23*'Дополнительная комплектация'!$AY$1,'Дополнительная комплектация'!$AY$3) -> 1558 | T23: =CEILING('Шкафы (2)'!T23*'Дополнительная комплектация'!$AY$1,'Дополнительная комплектация'!$AY$3) -> 1758 | U23: =CEILING('Шкафы (2)'!U23*'Дополнительная комплектация'!$AY$1,'Дополнительная комплектация'!$AY$3) -> 1978 | V23: =CEILING('Шкафы (2)'!V23*'Дополнительная комплектация'!$AY$1,'Дополнительная комплектация'!$AY$3) -> 2148 | W23: - | X23: - | Y23: - | Z23: - | AA23: - | AB23: - | AC23: - | AD23: - | AE23: - | AF23: - | AG23: - | AH23: - | AI23: - | AJ23: - | AK23: - | AL23: - | AM23: - | AN23: - | AO23: - | AP23: - | AQ23: - | AR23: - | AS23: L=300
D24: L=350 | E24: =CEILING('Шкафы (2)'!E24*'Дополнительная комплектация'!$AY$1,'Дополнительная комплектация'!$AY$3) -> 1500 | F24: =CEILING('Шкафы (2)'!F24*'Дополнительная комплектация'!$AY$1,'Дополнительная комплектация'!$AY$3) -> 1980 | G24: =CEILING('Шкафы (2)'!G24*'Дополнительная комплектация'!$AY$1,'Дополнительная комплектация'!$AY$3) -> 1600 | H24: =CEILING('Шкафы (2)'!H24*'Дополнительная комплектация'!$AY$1,'Дополнительная комплектация'!$AY$3) -> 2080 | I24: =CEILING('Шкафы (2)'!I24*'Дополнительная комплектация'!$AY$1,'Дополнительная комплектация'!$AY$3) -> 1780 | J24: =CEILING('Шкафы (2)'!J24*'Дополнительная комплектация'!$AY$1,'Дополнительная комплектация'!$AY$3) -> 2490 | K24: =CEILING('Шкафы (2)'!K24*'Дополнительная комплектация'!$AY$1,'Дополнительная комплектация'!$AY$3) -> 1570 | L24: =CEILING('Шкафы (2)'!L24*'Дополнительная комплектация'!$AY$1,'Дополнительная комплектация'!$AY$3) -> 3510 | M24: =CEILING('Шкафы (2)'!M24*'Дополнительная комплектация'!$AY$1,'Дополнительная комплектация'!$AY$3) -> 3980 | N24: =CEILING('Шкафы (2)'!N24*'Дополнительная комплектация'!$AY$1,'Дополнительная комплектация'!$AY$3) -> 1320 | O24: =CEILING('Шкафы (2)'!O24*'Дополнительная комплектация'!$AY$1,'Дополнительная комплектация'!$AY$3) -> 1330 | P24: =CEILING('Шкафы (2)'!P24*'Дополнительная комплектация'!$AY$1,'Дополнительная комплектация'!$AY$3) -> 1360 | Q24: =CEILING('Шкафы (2)'!Q24*'Дополнительная комплектация'!$AY$1,'Дополнительная комплектация'!$AY$3) -> 1960 | R24: =CEILING('Шкафы (2)'!R24*'Дополнительная комплектация'!$AY$1,'Дополнительная комплектация'!$AY$3) -> 2220 | S24: =CEILING('Шкафы (2)'!S24*'Дополнительная комплектация'!$AY$1,'Дополнительная комплектация'!$AY$3) -> 1670 | T24: =CEILING('Шкафы (2)'!T24*'Дополнительная комплектация'!$AY$1,'Дополнительная комплектация'!$AY$3) -> 1880 | U24: =CEILING('Шкафы (2)'!U24*'Дополнительная комплектация'!$AY$1,'Дополнительная комплектация'!$AY$3) -> 2130 | V24: =CEILING('Шкафы (2)'!V24*'Дополнительная комплектация'!$AY$1,'Дополнительная комплектация'!$AY$3) -> 2340 | W24: - | X24: - | Y24: - | Z24: - | AA24: - | AB24: - | AC24: - | AD24: - | AE24: - | AF24: - | AG24: - | AH24: - | AI24: - | AJ24: - | AK24: - | AL24: - | AM24: - | AN24: - | AO24: - | AP24: - | AQ24: - | AR24: - | AS24: L=350
D25: L=400 | E25: =CEILING('Шкафы (2)'!E25*'Дополнительная комплектация'!$AY$1,'Дополнительная комплектация'!$AY$3) -> 1583 | F25: =CEILING('Шкафы (2)'!F25*'Дополнительная комплектация'!$AY$1,'Дополнительная комплектация'!$AY$3) -> 2133 | G25: =CEILING('Шкафы (2)'!G25*'Дополнительная комплектация'!$AY$1,'Дополнительная комплектация'!$AY$3) -> 1703 | H25: =CEILING('Шкафы (2)'!H25*'Дополнительная комплектация'!$AY$1,'Дополнительная комплектация'!$AY$3) -> 2253 | I25: =CEILING('Шкафы (2)'!I25*'Дополнительная комплектация'!$AY$1,'Дополнительная комплектация'!$AY$3) -> 1913 | J25: =CEILING('Шкафы (2)'!J25*'Дополнительная комплектация'!$AY$1,'Дополнительная комплектация'!$AY$3) -> 2723 | K25: =CEILING('Шкафы (2)'!K25*'Дополнительная комплектация'!$AY$1,'Дополнительная комплектация'!$AY$3) -> 1633 | L25: =CEILING('Шкафы (2)'!L25*'Дополнительная комплектация'!$AY$1,'Дополнительная комплектация'!$AY$3) -> 3883 | M25: =CEILING('Шкафы (2)'!M25*'Дополнительная комплектация'!$AY$1,'Дополнительная комплектация'!$AY$3) -> 4423 | N25: =CEILING('Шкафы (2)'!N25*'Дополнительная комплектация'!$AY$1,'Дополнительная комплектация'!$AY$3) -> 1373 | O25: =CEILING('Шкафы (2)'!O25*'Дополнительная комплектация'!$AY$1,'Дополнительная комплектация'!$AY$3) -> 1393 | P25: =CEILING('Шкафы (2)'!P25*'Дополнительная комплектация'!$AY$1,'Дополнительная комплектация'!$AY$3) -> 1423 | Q25: =CEILING('Шкафы (2)'!Q25*'Дополнительная комплектация'!$AY$1,'Дополнительная комплектация'!$AY$3) -> 2093 | R25: =CEILING('Шкафы (2)'!R25*'Дополнительная комплектация'!$AY$1,'Дополнительная комплектация'!$AY$3) -> 2373 | S25: =CEILING('Шкафы (2)'!S25*'Дополнительная комплектация'!$AY$1,'Дополнительная комплектация'!$AY$3) -> 1773 | T25: =CEILING('Шкафы (2)'!T25*'Дополнительная комплектация'!$AY$1,'Дополнительная комплектация'!$AY$3) -> 2003 | U25: =CEILING('Шкафы (2)'!U25*'Дополнительная комплектация'!$AY$1,'Дополнительная комплектация'!$AY$3) -> 2283 | V25: =CEILING('Шкафы (2)'!V25*'Дополнительная комплектация'!$AY$1,'Дополнительная комплектация'!$AY$3) -> 2523 | W25: - | X25: - | Y25: - | Z25: - | AA25: - | AB25: - | AC25: - | AD25: - | AE25: - | AF25: - | AG25: - | AH25: - | AI25: - | AJ25: - | AK25: - | AL25: - | AM25: - | AN25: - | AO25: - | AP25: - | AQ25: - | AR25: - | AS25: L=400
D26: L=450 | E26: =CEILING('Шкафы (2)'!E26*'Дополнительная комплектация'!$AY$1,'Дополнительная комплектация'!$AY$3) -> 1676 | F26: =CEILING('Шкафы (2)'!F26*'Дополнительная комплектация'!$AY$1,'Дополнительная комплектация'!$AY$3) -> 2286 | G26: =CEILING('Шкафы (2)'!G26*'Дополнительная комплектация'!$AY$1,'Дополнительная комплектация'!$AY$3) -> 1806 | H26: =CEILING('Шкафы (2)'!H26*'Дополнительная комплектация'!$AY$1,'Дополнительная комплектация'!$AY$3) -> 2416 | I26: =CEILING('Шкафы (2)'!I26*'Дополнительная комплектация'!$AY$1,'Дополнительная комплектация'!$AY$3) -> 2036 | J26: =CEILING('Шкафы (2)'!J26*'Дополнительная комплектация'!$AY$1,'Дополнительная комплектация'!$AY$3) -> 2946 | K26: =CEILING('Шкафы (2)'!K26*'Дополнительная комплектация'!$AY$1,'Дополнительная комплектация'!$AY$3) -> 1686 | L26: =CEILING('Шкафы (2)'!L26*'Дополнительная комплектация'!$AY$1,'Дополнительная комплектация'!$AY$3) -> 4256 | M26: =CEILING('Шкафы (2)'!M26*'Дополнительная комплектация'!$AY$1,'Дополнительная комплектация'!$AY$3) -> 4866 | N26: =CEILING('Шкафы (2)'!N26*'Дополнительная комплектация'!$AY$1,'Дополнительная комплектация'!$AY$3) -> 1436 | O26: =CEILING('Шкафы (2)'!O26*'Дополнительная комплектация'!$AY$1,'Дополнительная комплектация'!$AY$3) -> 1456 | P26: =CEILING('Шкафы (2)'!P26*'Дополнительная комплектация'!$AY$1,'Дополнительная комплектация'!$AY$3) -> 1486 | Q26: =CEILING('Шкафы (2)'!Q26*'Дополнительная комплектация'!$AY$1,'Дополнительная комплектация'!$AY$3) -> 2216 | R26: =CEILING('Шкафы (2)'!R26*'Дополнительная комплектация'!$AY$1,'Дополнительная комплектация'!$AY$3) -> 2516 | S26: =CEILING('Шкафы (2)'!S26*'Дополнительная комплектация'!$AY$1,'Дополнительная комплектация'!$AY$3) -> 1876 | T26: =CEILING('Шкафы (2)'!T26*'Дополнительная комплектация'!$AY$1,'Дополнительная комплектация'!$AY$3) -> 2116 | U26: =CEILING('Шкафы (2)'!U26*'Дополнительная комплектация'!$AY$1,'Дополнительная комплектация'!$AY$3) -> 2446 | V26: =CEILING('Шкафы (2)'!V26*'Дополнительная комплектация'!$AY$1,'Дополнительная комплектация'!$AY$3) -> 2716 | W26: - | X26: - | Y26: - | Z26: - | AA26: - | AB26: - | AC26: - | AD26: - | AE26: - | AF26: - | AG26: - | AH26: - | AI26: - | AJ26: - | AK26: - | AL26: - | AM26: - | AN26: - | AO26: - | AP26: - | AQ26: - | AR26: - | AS26: L=450
D27: L=500* | E27: =CEILING('Шкафы (2)'!E27*'Дополнительная комплектация'!$AY$1,'Дополнительная комплектация'!$AY$3) -> 1758 | F27: =CEILING('Шкафы (2)'!F27*'Дополнительная комплектация'!$AY$1,'Дополнительная комплектация'!$AY$3) -> 2438 | G27: =CEILING('Шкафы (2)'!G27*'Дополнительная комплектация'!$AY$1,'Дополнительная комплектация'!$AY$3) -> 1908 | H27: =CEILING('Шкафы (2)'!H27*'Дополнительная комплектация'!$AY$1,'Дополнительная комплектация'!$AY$3) -> 2588 | I27: =CEILING('Шкафы (2)'!I27*'Дополнительная комплектация'!$AY$1,'Дополнительная комплектация'!$AY$3) -> 2168 | J27: =CEILING('Шкафы (2)'!J27*'Дополнительная комплектация'!$AY$1,'Дополнительная комплектация'!$AY$3) -> 3178 | K27: =CEILING('Шкафы (2)'!K27*'Дополнительная комплектация'!$AY$1,'Дополнительная комплектация'!$AY$3) -> 1748 | L27: =CEILING('Шкафы (2)'!L27*'Дополнительная комплектация'!$AY$1,'Дополнительная комплектация'!$AY$3) -> 4638 | M27: =CEILING('Шкафы (2)'!M27*'Дополнительная комплектация'!$AY$1,'Дополнительная комплектация'!$AY$3) -> 5318 | N27: =CEILING('Шкафы (2)'!N27*'Дополнительная комплектация'!$AY$1,'Дополнительная комплектация'!$AY$3) -> 1498 | O27: =CEILING('Шкафы (2)'!O27*'Дополнительная комплектация'!$AY$1,'Дополнительная комплектация'!$AY$3) -> 1518 | P27: =CEILING('Шкафы (2)'!P27*'Дополнительная комплектация'!$AY$1,'Дополнительная комплектация'!$AY$3) -> 1558 | Q27: =CEILING('Шкафы (2)'!Q27*'Дополнительная комплектация'!$AY$1,'Дополнительная комплектация'!$AY$3) -> 2348 | R27: =CEILING('Шкафы (2)'!R27*'Дополнительная комплектация'!$AY$1,'Дополнительная комплектация'!$AY$3) -> 2658 | S27: =CEILING('Шкафы (2)'!S27*'Дополнительная комплектация'!$AY$1,'Дополнительная комплектация'!$AY$3) -> 1988 | T27: =CEILING('Шкафы (2)'!T27*'Дополнительная комплектация'!$AY$1,'Дополнительная комплектация'!$AY$3) -> 2238 | U27: =CEILING('Шкафы (2)'!U27*'Дополнительная комплектация'!$AY$1,'Дополнительная комплектация'!$AY$3) -> 2598 | V27: =CEILING('Шкафы (2)'!V27*'Дополнительная комплектация'!$AY$1,'Дополнительная комплектация'!$AY$3) -> 2898 | W27: - | X27: - | Y27: - | Z27: - | AA27: - | AB27: - | AC27: - | AD27: - | AE27: - | AF27: - | AG27: - | AH27: - | AI27: - | AJ27: - | AK27: - | AL27: - | AM27: - | AN27: - | AO27: - | AP27: - | AQ27: - | AR27: - | AS27: L=500*
D28: L=600* | E28: =CEILING('Шкафы (2)'!E28*'Дополнительная комплектация'!$AY$1,'Дополнительная комплектация'!$AY$3) -> 1934 | F28: =CEILING('Шкафы (2)'!F28*'Дополнительная комплектация'!$AY$1,'Дополнительная комплектация'!$AY$3) -> 2754 | G28: =CEILING('Шкафы (2)'!G28*'Дополнительная комплектация'!$AY$1,'Дополнительная комплектация'!$AY$3) -> 2114 | H28: =CEILING('Шкафы (2)'!H28*'Дополнительная комплектация'!$AY$1,'Дополнительная комплектация'!$AY$3) -> 2924 | I28: =CEILING('Шкафы (2)'!I28*'Дополнительная комплектация'!$AY$1,'Дополнительная комплектация'!$AY$3) -> 2424 | J28: =CEILING('Шкафы (2)'!J28*'Дополнительная комплектация'!$AY$1,'Дополнительная комплектация'!$AY$3) -> 3634 | K28: =CEILING('Шкафы (2)'!K28*'Дополнительная комплектация'!$AY$1,'Дополнительная комплектация'!$AY$3) -> 1864 | L28: =CEILING('Шкафы (2)'!L28*'Дополнительная комплектация'!$AY$1,'Дополнительная комплектация'!$AY$3) -> 5384 | M28: =CEILING('Шкафы (2)'!M28*'Дополнительная комплектация'!$AY$1,'Дополнительная комплектация'!$AY$3) -> 6204 | N28: =CEILING('Шкафы (2)'!N28*'Дополнительная комплектация'!$AY$1,'Дополнительная комплектация'!$AY$3) -> 1614 | O28: =CEILING('Шкафы (2)'!O28*'Дополнительная комплектация'!$AY$1,'Дополнительная комплектация'!$AY$3) -> 1644 | P28: =CEILING('Шкафы (2)'!P28*'Дополнительная комплектация'!$AY$1,'Дополнительная комплектация'!$AY$3) -> 1684 | Q28: =CEILING('Шкафы (2)'!Q28*'Дополнительная комплектация'!$AY$1,'Дополнительная комплектация'!$AY$3) -> 2614 | R28: =CEILING('Шкафы (2)'!R28*'Дополнительная комплектация'!$AY$1,'Дополнительная комплектация'!$AY$3) -> 2954 | S28: =CEILING('Шкафы (2)'!S28*'Дополнительная комплектация'!$AY$1,'Дополнительная комплектация'!$AY$3) -> 2204 | T28: =CEILING('Шкафы (2)'!T28*'Дополнительная комплектация'!$AY$1,'Дополнительная комплектация'!$AY$3) -> 2484 | U28: =CEILING('Шкафы (2)'!U28*'Дополнительная комплектация'!$AY$1,'Дополнительная комплектация'!$AY$3) -> 2914 | V28: =CEILING('Шкафы (2)'!V28*'Дополнительная комплектация'!$AY$1,'Дополнительная комплектация'!$AY$3) -> 3274 | W28: - | X28: - | Y28: - | Z28: - | AA28: - | AB28: - | AC28: - | AD28: - | AE28: - | AF28: - | AG28: - | AH28: - | AI28: - | AJ28: - | AK28: - | AL28: - | AM28: - | AN28: - | AO28: - | AP28: - | AQ28: - | AR28: - | AS28: L=600*
C29: Шкаф Н=720 1 дверь Л/ПР | D29: L=150 | E29: =CEILING('Шкафы (2)'!E29*'Дополнительная комплектация'!$AY$1,'Дополнительная комплектация'!$AY$3) -> 1245 | F29: =CEILING('Шкафы (2)'!F29*'Дополнительная комплектация'!$AY$1,'Дополнительная комплектация'!$AY$3) -> 1485 | G29: =CEILING('Шкафы (2)'!G29*'Дополнительная комплектация'!$AY$1,'Дополнительная комплектация'!$AY$3) -> 1295 | H29: =CEILING('Шкафы (2)'!H29*'Дополнительная комплектация'!$AY$1,'Дополнительная комплектация'!$AY$3) -> 1535 | I29: =CEILING('Шкафы (2)'!I29*'Дополнительная комплектация'!$AY$1,'Дополнительная комплектация'!$AY$3) -> 1385 | J29: =CEILING('Шкафы (2)'!J29*'Дополнительная комплектация'!$AY$1,'Дополнительная комплектация'!$AY$3) -> 1745 | K29: =CEILING('Шкафы (2)'!K29*'Дополнительная комплектация'!$AY$1,'Дополнительная комплектация'!$AY$3) -> 1355 | L29: =CEILING('Шкафы (2)'!L29*'Дополнительная комплектация'!$AY$1,'Дополнительная комплектация'!$AY$3) -> 2255 | M29: =CEILING('Шкафы (2)'!M29*'Дополнительная комплектация'!$AY$1,'Дополнительная комплектация'!$AY$3) -> 2495 | N29: =CEILING('Шкафы (2)'!N29*'Дополнительная комплектация'!$AY$1,'Дополнительная комплектация'!$AY$3) -> 1155 | O29: =CEILING('Шкафы (2)'!O29*'Дополнительная комплектация'!$AY$1,'Дополнительная комплектация'!$AY$3) -> 1155 | P29: =CEILING('Шкафы (2)'!P29*'Дополнительная комплектация'!$AY$1,'Дополнительная комплектация'!$AY$3) -> 1165 | Q29: =CEILING('Шкафы (2)'!Q29*'Дополнительная комплектация'!$AY$1,'Дополнительная комплектация'!$AY$3) -> 1565 | R29: =CEILING('Шкафы (2)'!R29*'Дополнительная комплектация'!$AY$1,'Дополнительная комплектация'!$AY$3) -> 1805 | S29: =CEILING('Шкафы (2)'!S29*'Дополнительная комплектация'!$AY$1,'Дополнительная комплектация'!$AY$3) -> 1345 | T29: =CEILING('Шкафы (2)'!T29*'Дополнительная комплектация'!$AY$1,'Дополнительная комплектация'!$AY$3) -> 1525 | U29: =CEILING('Шкафы (2)'!U29*'Дополнительная комплектация'!$AY$1,'Дополнительная комплектация'!$AY$3) -> 1655 | V29: =CEILING('Шкафы (2)'!V29*'Дополнительная комплектация'!$AY$1,'Дополнительная комплектация'!$AY$3) -> 1755 | W29: - | X29: - | Y29: - | Z29: - | AA29: - | AB29: - | AC29: - | AD29: - | AE29: - | AF29: - | AG29: - | AH29: - | AI29: - | AJ29: - | AK29: - | AL29: - | AM29: - | AN29: - | AO29: - | AP29: - | AQ29: - | AR29: - | AS29: L=150
D30: L=200 | E30: =CEILING('Шкафы (2)'!E30*'Дополнительная комплектация'!$AY$1,'Дополнительная комплектация'!$AY$3) -> 1341 | F30: =CEILING('Шкафы (2)'!F30*'Дополнительная комплектация'!$AY$1,'Дополнительная комплектация'!$AY$3) -> 1671 | G30: =CEILING('Шкафы (2)'!G30*'Дополнительная комплектация'!$AY$1,'Дополнительная комплектация'!$AY$3) -> 1411 | H30: =CEILING('Шкафы (2)'!H30*'Дополнительная комплектация'!$AY$1,'Дополнительная комплектация'!$AY$3) -> 1741 | I30: =CEILING('Шкафы (2)'!I30*'Дополнительная комплектация'!$AY$1,'Дополнительная комплектация'!$AY$3) -> 1531 | J30: =CEILING('Шкафы (2)'!J30*'Дополнительная комплектация'!$AY$1,'Дополнительная комплектация'!$AY$3) -> 2021 | K30: =CEILING('Шкафы (2)'!K30*'Дополнительная комплектация'!$AY$1,'Дополнительная комплектация'!$AY$3) -> 1421 | L30: =CEILING('Шкафы (2)'!L30*'Дополнительная комплектация'!$AY$1,'Дополнительная комплектация'!$AY$3) -> 2711 | M30: =CEILING('Шкафы (2)'!M30*'Дополнительная комплектация'!$AY$1,'Дополнительная комплектация'!$AY$3) -> 3031 | N30: =CEILING('Шкафы (2)'!N30*'Дополнительная комплектация'!$AY$1,'Дополнительная комплектация'!$AY$3) -> 1221 | O30: =CEILING('Шкафы (2)'!O30*'Дополнительная комплектация'!$AY$1,'Дополнительная комплектация'!$AY$3) -> 1231 | P30: =CEILING('Шкафы (2)'!P30*'Дополнительная комплектация'!$AY$1,'Дополнительная комплектация'!$AY$3) -> 1241 | Q30: =CEILING('Шкафы (2)'!Q30*'Дополнительная комплектация'!$AY$1,'Дополнительная комплектация'!$AY$3) -> 1721 | R30: =CEILING('Шкафы (2)'!R30*'Дополнительная комплектация'!$AY$1,'Дополнительная комплектация'!$AY$3) -> 1981 | S30: =CEILING('Шкафы (2)'!S30*'Дополнительная комплектация'!$AY$1,'Дополнительная комплектация'!$AY$3) -> 1471 | T30: =CEILING('Шкафы (2)'!T30*'Дополнительная комплектация'!$AY$1,'Дополнительная комплектация'!$AY$3) -> 1661 | U30: =CEILING('Шкафы (2)'!U30*'Дополнительная комплектация'!$AY$1,'Дополнительная комплектация'!$AY$3) -> 1831 | V30: =CEILING('Шкафы (2)'!V30*'Дополнительная комплектация'!$AY$1,'Дополнительная комплектация'!$AY$3) -> 1981 | W30: - | X30: - | Y30: - | Z30: - | AA30: - | AB30: - | AC30: - | AD30: - | AE30: - | AF30: - | AG30: - | AH30: - | AI30: - | AJ30: - | AK30: - | AL30: - | AM30: - | AN30: - | AO30: - | AP30: - | AQ30: - | AR30: - | AS30: L=200
D31: L=250 | E31: =CEILING('Шкафы (2)'!E31*'Дополнительная комплектация'!$AY$1,'Дополнительная комплектация'!$AY$3) -> 1443 | F31: =CEILING('Шкафы (2)'!F31*'Дополнительная комплектация'!$AY$1,'Дополнительная комплектация'!$AY$3) -> 1843 | G31: =CEILING('Шкафы (2)'!G31*'Дополнительная комплектация'!$AY$1,'Дополнительная комплектация'!$AY$3) -> 1533 | H31: =CEILING('Шкафы (2)'!H31*'Дополнительная комплектация'!$AY$1,'Дополнительная комплектация'!$AY$3) -> 1933 | I31: =CEILING('Шкафы (2)'!I31*'Дополнительная комплектация'!$AY$1,'Дополнительная комплектация'!$AY$3) -> 1683 | J31: =CEILING('Шкафы (2)'!J31*'Дополнительная комплектация'!$AY$1,'Дополнительная комплектация'!$AY$3) -> 2283 | K31: =CEILING('Шкафы (2)'!K31*'Дополнительная комплектация'!$AY$1,'Дополнительная комплектация'!$AY$3) -> 1473 | L31: =CEILING('Шкафы (2)'!L31*'Дополнительная комплектация'!$AY$1,'Дополнительная комплектация'!$AY$3) -> 3153 | M31: =CEILING('Шкафы (2)'!M31*'Дополнительная комплектация'!$AY$1,'Дополнительная комплектация'!$AY$3) -> 3553 | N31: =CEILING('Шкафы (2)'!N31*'Дополнительная комплектация'!$AY$1,'Дополнительная комплектация'!$AY$3) -> 1283 | O31: =CEILING('Шкафы (2)'!O31*'Дополнительная комплектация'!$AY$1,'Дополнительная комплектация'!$AY$3) -> 1293 | P31: =CEILING('Шкафы (2)'!P31*'Дополнительная комплектация'!$AY$1,'Дополнительная комплектация'!$AY$3) -> 1313 | Q31: =CEILING('Шкафы (2)'!Q31*'Дополнительная комплектация'!$AY$1,'Дополнительная комплектация'!$AY$3) -> 1863 | R31: =CEILING('Шкафы (2)'!R31*'Дополнительная комплектация'!$AY$1,'Дополнительная комплектация'!$AY$3) -> 2143 | S31: =CEILING('Шкафы (2)'!S31*'Дополнительная комплектация'!$AY$1,'Дополнительная комплектация'!$AY$3) -> 1583 | T31: =CEILING('Шкафы (2)'!T31*'Дополнительная комплектация'!$AY$1,'Дополнительная комплектация'!$AY$3) -> 1803 | U31: =CEILING('Шкафы (2)'!U31*'Дополнительная комплектация'!$AY$1,'Дополнительная комплектация'!$AY$3) -> 2013 | V31: =CEILING('Шкафы (2)'!V31*'Дополнительная комплектация'!$AY$1,'Дополнительная комплектация'!$AY$3) -> 2193 | W31: - | X31: - | Y31: - | Z31: - | AA31: - | AB31: - | AC31: - | AD31: - | AE31: - | AF31: - | AG31: - | AH31: - | AI31: - | AJ31: - | AK31: - | AL31: - | AM31: - | AN31: - | AO31: - | AP31: - | AQ31: - | AR31: - | AS31: L=250
D32: L=300 | E32: =CEILING('Шкафы (2)'!E32*'Дополнительная комплектация'!$AY$1,'Дополнительная комплектация'!$AY$3) -> 1535 | F32: =CEILING('Шкафы (2)'!F32*'Дополнительная комплектация'!$AY$1,'Дополнительная комплектация'!$AY$3) -> 2025 | G32: =CEILING('Шкафы (2)'!G32*'Дополнительная комплектация'!$AY$1,'Дополнительная комплектация'!$AY$3) -> 1645 | H32: =CEILING('Шкафы (2)'!H32*'Дополнительная комплектация'!$AY$1,'Дополнительная комплектация'!$AY$3) -> 2125 | I32: =CEILING('Шкафы (2)'!I32*'Дополнительная комплектация'!$AY$1,'Дополнительная комплектация'!$AY$3) -> 1825 | J32: =CEILING('Шкафы (2)'!J32*'Дополнительная комплектация'!$AY$1,'Дополнительная комплектация'!$AY$3) -> 2555 | K32: =CEILING('Шкафы (2)'!K32*'Дополнительная комплектация'!$AY$1,'Дополнительная комплектация'!$AY$3) -> 1625 | L32: =CEILING('Шкафы (2)'!L32*'Дополнительная комплектация'!$AY$1,'Дополнительная комплектация'!$AY$3) -> 3595 | M32: =CEILING('Шкафы (2)'!M32*'Дополнительная комплектация'!$AY$1,'Дополнительная комплектация'!$AY$3) -> 4085 | N32: =CEILING('Шкафы (2)'!N32*'Дополнительная комплектация'!$AY$1,'Дополнительная комплектация'!$AY$3) -> 1345 | O32: =CEILING('Шкафы (2)'!O32*'Дополнительная комплектация'!$AY$1,'Дополнительная комплектация'!$AY$3) -> 1365 | P32: =CEILING('Шкафы (2)'!P32*'Дополнительная комплектация'!$AY$1,'Дополнительная комплектация'!$AY$3) -> 1385 | Q32: =CEILING('Шкафы (2)'!Q32*'Дополнительная комплектация'!$AY$1,'Дополнительная комплектация'!$AY$3) -> 2015 | R32: =CEILING('Шкафы (2)'!R32*'Дополнительная комплектация'!$AY$1,'Дополнительная комплектация'!$AY$3) -> 2305 | S32: =CEILING('Шкафы (2)'!S32*'Дополнительная комплектация'!$AY$1,'Дополнительная комплектация'!$AY$3) -> 1705 | T32: =CEILING('Шкафы (2)'!T32*'Дополнительная комплектация'!$AY$1,'Дополнительная комплектация'!$AY$3) -> 1935 | U32: =CEILING('Шкафы (2)'!U32*'Дополнительная комплектация'!$AY$1,'Дополнительная комплектация'!$AY$3) -> 2195 | V32: =CEILING('Шкафы (2)'!V32*'Дополнительная комплектация'!$AY$1,'Дополнительная комплектация'!$AY$3) -> 2405 | W32: - | X32: - | Y32: - | Z32: - | AA32: - | AB32: - | AC32: - | AD32: - | AE32: - | AF32: - | AG32: - | AH32: - | AI32: - | AJ32: - | AK32: - | AL32: - | AM32: - | AN32: - | AO32: - | AP32: - | AQ32: - | AR32: - | AS32: L=300
D33: L=350 | E33: =CEILING('Шкафы (2)'!E33*'Дополнительная комплектация'!$AY$1,'Дополнительная комплектация'!$AY$3) -> 1639 | F33: =CEILING('Шкафы (2)'!F33*'Дополнительная комплектация'!$AY$1,'Дополнительная комплектация'!$AY$3) -> 2209 | G33: =CEILING('Шкафы (2)'!G33*'Дополнительная комплектация'!$AY$1,'Дополнительная комплектация'!$AY$3) -> 1759 | H33: =CEILING('Шкафы (2)'!H33*'Дополнительная комплектация'!$AY$1,'Дополнительная комплектация'!$AY$3) -> 2329 | I33: =CEILING('Шкафы (2)'!I33*'Дополнительная комплектация'!$AY$1,'Дополнительная комплектация'!$AY$3) -> 1979 | J33: =CEILING('Шкафы (2)'!J33*'Дополнительная комплектация'!$AY$1,'Дополнительная комплектация'!$AY$3) -> 2829 | K33: =CEILING('Шкафы (2)'!K33*'Дополнительная комплектация'!$AY$1,'Дополнительная комплектация'!$AY$3) -> 1679 | L33: =CEILING('Шкафы (2)'!L33*'Дополнительная комплектация'!$AY$1,'Дополнительная комплектация'!$AY$3) -> 4039 | M33: =CEILING('Шкафы (2)'!M33*'Дополнительная комплектация'!$AY$1,'Дополнительная комплектация'!$AY$3) -> 4609 | N33: =CEILING('Шкафы (2)'!N33*'Дополнительная комплектация'!$AY$1,'Дополнительная комплектация'!$AY$3) -> 1419 | O33: =CEILING('Шкафы (2)'!O33*'Дополнительная комплектация'!$AY$1,'Дополнительная комплектация'!$AY$3) -> 1439 | P33: =CEILING('Шкафы (2)'!P33*'Дополнительная комплектация'!$AY$1,'Дополнительная комплектация'!$AY$3) -> 1459 | Q33: =CEILING('Шкафы (2)'!Q33*'Дополнительная комплектация'!$AY$1,'Дополнительная комплектация'!$AY$3) -> 2169 | R33: =CEILING('Шкафы (2)'!R33*'Дополнительная комплектация'!$AY$1,'Дополнительная комплектация'!$AY$3) -> 2469 | S33: =CEILING('Шкафы (2)'!S33*'Дополнительная комплектация'!$AY$1,'Дополнительная комплектация'!$AY$3) -> 1829 | T33: =CEILING('Шкафы (2)'!T33*'Дополнительная комплектация'!$AY$1,'Дополнительная комплектация'!$AY$3) -> 2069 | U33: =CEILING('Шкафы (2)'!U33*'Дополнительная комплектация'!$AY$1,'Дополнительная комплектация'!$AY$3) -> 2369 | V33: =CEILING('Шкафы (2)'!V33*'Дополнительная комплектация'!$AY$1,'Дополнительная комплектация'!$AY$3) -> 2619 | W33: - | X33: - | Y33: - | Z33: - | AA33: - | AB33: - | AC33: - | AD33: - | AE33: - | AF33: - | AG33: - | AH33: - | AI33: - | AJ33: - | AK33: - | AL33: - | AM33: - | AN33: - | AO33: - | AP33: - | AQ33: - | AR33: - | AS33: L=350
D34: L=400 | E34: =CEILING('Шкафы (2)'!E34*'Дополнительная комплектация'!$AY$1,'Дополнительная комплектация'!$AY$3) -> 1734 | F34: =CEILING('Шкафы (2)'!F34*'Дополнительная комплектация'!$AY$1,'Дополнительная комплектация'!$AY$3) -> 2384 | G34: =CEILING('Шкафы (2)'!G34*'Дополнительная комплектация'!$AY$1,'Дополнительная комплектация'!$AY$3) -> 1874 | H34: =CEILING('Шкафы (2)'!H34*'Дополнительная комплектация'!$AY$1,'Дополнительная комплектация'!$AY$3) -> 2524 | I34: =CEILING('Шкафы (2)'!I34*'Дополнительная комплектация'!$AY$1,'Дополнительная комплектация'!$AY$3) -> 2124 | J34: =CEILING('Шкафы (2)'!J34*'Дополнительная комплектация'!$AY$1,'Дополнительная комплектация'!$AY$3) -> 3094 | K34: =CEILING('Шкафы (2)'!K34*'Дополнительная комплектация'!$AY$1,'Дополнительная комплектация'!$AY$3) -> 1734 | L34: =CEILING('Шкафы (2)'!L34*'Дополнительная комплектация'!$AY$1,'Дополнительная комплектация'!$AY$3) -> 4494 | M34: =CEILING('Шкафы (2)'!M34*'Дополнительная комплектация'!$AY$1,'Дополнительная комплектация'!$AY$3) -> 5144 | N34: =CEILING('Шкафы (2)'!N34*'Дополнительная комплектация'!$AY$1,'Дополнительная комплектация'!$AY$3) -> 1484 | O34: =CEILING('Шкафы (2)'!O34*'Дополнительная комплектация'!$AY$1,'Дополнительная комплектация'!$AY$3) -> 1504 | P34: =CEILING('Шкафы (2)'!P34*'Дополнительная комплектация'!$AY$1,'Дополнительная комплектация'!$AY$3) -> 1534 | Q34: =CEILING('Шкафы (2)'!Q34*'Дополнительная комплектация'!$AY$1,'Дополнительная комплектация'!$AY$3) -> 2314 | R34: =CEILING('Шкафы (2)'!R34*'Дополнительная комплектация'!$AY$1,'Дополнительная комплектация'!$AY$3) -> 2634 | S34: =CEILING('Шкафы (2)'!S34*'Дополнительная комплектация'!$AY$1,'Дополнительная комплектация'!$AY$3) -> 1954 | T34: =CEILING('Шкафы (2)'!T34*'Дополнительная комплектация'!$AY$1,'Дополнительная комплектация'!$AY$3) -> 2214 | U34: =CEILING('Шкафы (2)'!U34*'Дополнительная комплектация'!$AY$1,'Дополнительная комплектация'!$AY$3) -> 2554 | V34: =CEILING('Шкафы (2)'!V34*'Дополнительная комплектация'!$AY$1,'Дополнительная комплектация'!$AY$3) -> 2844 | W34: - | X34: - | Y34: - | Z34: - | AA34: - | AB34: - | AC34: - | AD34: - | AE34: - | AF34: - | AG34: - | AH34: - | AI34: - | AJ34: - | AK34: - | AL34: - | AM34: - | AN34: - | AO34: - | AP34: - | AQ34: - | AR34: - | AS34: L=400
D35: L=450 | E35: =CEILING('Шкафы (2)'!E35*'Дополнительная комплектация'!$AY$1,'Дополнительная комплектация'!$AY$3) -> 1827 | F35: =CEILING('Шкафы (2)'!F35*'Дополнительная комплектация'!$AY$1,'Дополнительная комплектация'!$AY$3) -> 2567 | G35: =CEILING('Шкафы (2)'!G35*'Дополнительная комплектация'!$AY$1,'Дополнительная комплектация'!$AY$3) -> 1987 | H35: =CEILING('Шкафы (2)'!H35*'Дополнительная комплектация'!$AY$1,'Дополнительная комплектация'!$AY$3) -> 2727 | I35: =CEILING('Шкафы (2)'!I35*'Дополнительная комплектация'!$AY$1,'Дополнительная комплектация'!$AY$3) -> 2267 | J35: =CEILING('Шкафы (2)'!J35*'Дополнительная комплектация'!$AY$1,'Дополнительная комплектация'!$AY$3) -> 3367 | K35: =CEILING('Шкафы (2)'!K35*'Дополнительная комплектация'!$AY$1,'Дополнительная комплектация'!$AY$3) -> 1797 | L35: =CEILING('Шкафы (2)'!L35*'Дополнительная комплектация'!$AY$1,'Дополнительная комплектация'!$AY$3) -> 4937 | M35: =CEILING('Шкафы (2)'!M35*'Дополнительная комплектация'!$AY$1,'Дополнительная комплектация'!$AY$3) -> 5667 | N35: =CEILING('Шкафы (2)'!N35*'Дополнительная комплектация'!$AY$1,'Дополнительная комплектация'!$AY$3) -> 1547 | O35: =CEILING('Шкафы (2)'!O35*'Дополнительная комплектация'!$AY$1,'Дополнительная комплектация'!$AY$3) -> 1577 | P35: =CEILING('Шкафы (2)'!P35*'Дополнительная комплектация'!$AY$1,'Дополнительная комплектация'!$AY$3) -> 1607 | Q35: =CEILING('Шкафы (2)'!Q35*'Дополнительная комплектация'!$AY$1,'Дополнительная комплектация'!$AY$3) -> 2467 | R35: =CEILING('Шкафы (2)'!R35*'Дополнительная комплектация'!$AY$1,'Дополнительная комплектация'!$AY$3) -> 2797 | S35: =CEILING('Шкафы (2)'!S35*'Дополнительная комплектация'!$AY$1,'Дополнительная комплектация'!$AY$3) -> 2077 | T35: =CEILING('Шкафы (2)'!T35*'Дополнительная комплектация'!$AY$1,'Дополнительная комплектация'!$AY$3) -> 2347 | U35: =CEILING('Шкафы (2)'!U35*'Дополнительная комплектация'!$AY$1,'Дополнительная комплектация'!$AY$3) -> 2737 | V35: =CEILING('Шкафы (2)'!V35*'Дополнительная комплектация'!$AY$1,'Дополнительная комплектация'!$AY$3) -> 3057 | W35: - | X35: - | Y35: - | Z35: - | AA35: - | AB35: - | AC35: - | AD35: - | AE35: - | AF35: - | AG35: - | AH35: - | AI35: - | AJ35: - | AK35: - | AL35: - | AM35: - | AN35: - | AO35: - | AP35: - | AQ35: - | AR35: - | AS35: L=450
D36: L=500* | E36: =CEILING('Шкафы (2)'!E36*'Дополнительная комплектация'!$AY$1,'Дополнительная комплектация'!$AY$3) -> 1931 | F36: =CEILING('Шкафы (2)'!F36*'Дополнительная комплектация'!$AY$1,'Дополнительная комплектация'!$AY$3) -> 2751 | G36: =CEILING('Шкафы (2)'!G36*'Дополнительная комплектация'!$AY$1,'Дополнительная комплектация'!$AY$3) -> 2111 | H36: =CEILING('Шкафы (2)'!H36*'Дополнительная комплектация'!$AY$1,'Дополнительная комплектация'!$AY$3) -> 2921 | I36: =CEILING('Шкафы (2)'!I36*'Дополнительная комплектация'!$AY$1,'Дополнительная комплектация'!$AY$3) -> 2421 | J36: =CEILING('Шкафы (2)'!J36*'Дополнительная комплектация'!$AY$1,'Дополнительная комплектация'!$AY$3) -> 3631 | K36: =CEILING('Шкафы (2)'!K36*'Дополнительная комплектация'!$AY$1,'Дополнительная комплектация'!$AY$3) -> 1861 | L36: =CEILING('Шкафы (2)'!L36*'Дополнительная комплектация'!$AY$1,'Дополнительная комплектация'!$AY$3) -> 5381 | M36: =CEILING('Шкафы (2)'!M36*'Дополнительная комплектация'!$AY$1,'Дополнительная комплектация'!$AY$3) -> 6201 | N36: =CEILING('Шкафы (2)'!N36*'Дополнительная комплектация'!$AY$1,'Дополнительная комплектация'!$AY$3) -> 1611 | O36: =CEILING('Шкафы (2)'!O36*'Дополнительная комплектация'!$AY$1,'Дополнительная комплектация'!$AY$3) -> 1641 | P36: =CEILING('Шкафы (2)'!P36*'Дополнительная комплектация'!$AY$1,'Дополнительная комплектация'!$AY$3) -> 1681 | Q36: =CEILING('Шкафы (2)'!Q36*'Дополнительная комплектация'!$AY$1,'Дополнительная комплектация'!$AY$3) -> 2621 | R36: =CEILING('Шкафы (2)'!R36*'Дополнительная комплектация'!$AY$1,'Дополнительная комплектация'!$AY$3) -> 2961 | S36: =CEILING('Шкафы (2)'!S36*'Дополнительная комплектация'!$AY$1,'Дополнительная комплектация'!$AY$3) -> 2201 | T36: =CEILING('Шкафы (2)'!T36*'Дополнительная комплектация'!$AY$1,'Дополнительная комплектация'!$AY$3) -> 2481 | U36: =CEILING('Шкафы (2)'!U36*'Дополнительная комплектация'!$AY$1,'Дополнительная комплектация'!$AY$3) -> 2911 | V36: =CEILING('Шкафы (2)'!V36*'Дополнительная комплектация'!$AY$1,'Дополнительная комплектация'!$AY$3) -> 3271 | W36: - | X36: - | Y36: - | Z36: - | AA36: - | AB36: - | AC36: - | AD36: - | AE36: - | AF36: - | AG36: - | AH36: - | AI36: - | AJ36: - | AK36: - | AL36: - | AM36: - | AN36: - | AO36: - | AP36: - | AQ36: - | AR36: - | AS36: L=500*
D37: L=600* | E37: =CEILING('Шкафы (2)'!E37*'Дополнительная комплектация'!$AY$1,'Дополнительная комплектация'!$AY$3) -> 2128 | F37: =CEILING('Шкафы (2)'!F37*'Дополнительная комплектация'!$AY$1,'Дополнительная комплектация'!$AY$3) -> 3108 | G37: =CEILING('Шкафы (2)'!G37*'Дополнительная комплектация'!$AY$1,'Дополнительная комплектация'!$AY$3) -> 2338 | H37: =CEILING('Шкафы (2)'!H37*'Дополнительная комплектация'!$AY$1,'Дополнительная комплектация'!$AY$3) -> 3318 | I37: =CEILING('Шкафы (2)'!I37*'Дополнительная комплектация'!$AY$1,'Дополнительная комплектация'!$AY$3) -> 2708 | J37: =CEILING('Шкафы (2)'!J37*'Дополнительная комплектация'!$AY$1,'Дополнительная комплектация'!$AY$3) -> 4178 | K37: =CEILING('Шкафы (2)'!K37*'Дополнительная комплектация'!$AY$1,'Дополнительная комплектация'!$AY$3) -> 1978 | L37: =CEILING('Шкафы (2)'!L37*'Дополнительная комплектация'!$AY$1,'Дополнительная комплектация'!$AY$3) -> 6278 | M37: =CEILING('Шкафы (2)'!M37*'Дополнительная комплектация'!$AY$1,'Дополнительная комплектация'!$AY$3) -> 7258 | N37: =CEILING('Шкафы (2)'!N37*'Дополнительная комплектация'!$AY$1,'Дополнительная комплектация'!$AY$3) -> 1748 | O37: =CEILING('Шкафы (2)'!O37*'Дополнительная комплектация'!$AY$1,'Дополнительная комплектация'!$AY$3) -> 1778 | P37: =CEILING('Шкафы (2)'!P37*'Дополнительная комплектация'!$AY$1,'Дополнительная комплектация'!$AY$3) -> 1828 | Q37: =CEILING('Шкафы (2)'!Q37*'Дополнительная комплектация'!$AY$1,'Дополнительная комплектация'!$AY$3) -> 2918 | R37: =CEILING('Шкафы (2)'!R37*'Дополнительная комплектация'!$AY$1,'Дополнительная комплектация'!$AY$3) -> 3288 | S37: =CEILING('Шкафы (2)'!S37*'Дополнительная комплектация'!$AY$1,'Дополнительная комплектация'!$AY$3) -> 2448 | T37: =CEILING('Шкафы (2)'!T37*'Дополнительная комплектация'!$AY$1,'Дополнительная комплектация'!$AY$3) -> 2758 | U37: =CEILING('Шкафы (2)'!U37*'Дополнительная комплектация'!$AY$1,'Дополнительная комплектация'!$AY$3) -> 3278 | V37: =CEILING('Шкафы (2)'!V37*'Дополнительная комплектация'!$AY$1,'Дополнительная комплектация'!$AY$3) -> 3708 | W37: - | X37: - | Y37: - | Z37: - | AA37: - | AB37: - | AC37: - | AD37: - | AE37: - | AF37: - | AG37: - | AH37: - | AI37: - | AJ37: - | AK37: - | AL37: - | AM37: - | AN37: - | AO37: - | AP37: - | AQ37: - | AR37: - | AS37: L=600*
C38: Шкаф Н=920 1 дверь Л/ПР | D38: L=150 | E38: =CEILING('Шкафы (2)'!E38*'Дополнительная комплектация'!$AY$1,'Дополнительная комплектация'!$AY$3) -> 1412 | F38: =CEILING('Шкафы (2)'!F38*'Дополнительная комплектация'!$AY$1,'Дополнительная комплектация'!$AY$3) -> 1722 | G38: =CEILING('Шкафы (2)'!G38*'Дополнительная комплектация'!$AY$1,'Дополнительная комплектация'!$AY$3) -> 1482 | H38: =CEILING('Шкафы (2)'!H38*'Дополнительная комплектация'!$AY$1,'Дополнительная комплектация'!$AY$3) -> 1792 | I38: =CEILING('Шкафы (2)'!I38*'Дополнительная комплектация'!$AY$1,'Дополнительная комплектация'!$AY$3) -> 1592 | J38: =CEILING('Шкафы (2)'!J38*'Дополнительная комплектация'!$AY$1,'Дополнительная комплектация'!$AY$3) -> 2052 | K38: =CEILING('Шкафы (2)'!K38*'Дополнительная комплектация'!$AY$1,'Дополнительная комплектация'!$AY$3) -> 1502 | L38: =CEILING('Шкафы (2)'!L38*'Дополнительная комплектация'!$AY$1,'Дополнительная комплектация'!$AY$3) -> 2712 | M38: =CEILING('Шкафы (2)'!M38*'Дополнительная комплектация'!$AY$1,'Дополнительная комплектация'!$AY$3) -> 3022 | N38: =CEILING('Шкафы (2)'!N38*'Дополнительная комплектация'!$AY$1,'Дополнительная комплектация'!$AY$3) -> 1292 | O38: =CEILING('Шкафы (2)'!O38*'Дополнительная комплектация'!$AY$1,'Дополнительная комплектация'!$AY$3) -> 1302 | P38: =CEILING('Шкафы (2)'!P38*'Дополнительная комплектация'!$AY$1,'Дополнительная комплектация'!$AY$3) -> 1322 | Q38: =CEILING('Шкафы (2)'!Q38*'Дополнительная комплектация'!$AY$1,'Дополнительная комплектация'!$AY$3) -> 1812 | R38: =CEILING('Шкафы (2)'!R38*'Дополнительная комплектация'!$AY$1,'Дополнительная комплектация'!$AY$3) -> 2112 | S38: =CEILING('Шкафы (2)'!S38*'Дополнительная комплектация'!$AY$1,'Дополнительная комплектация'!$AY$3) -> 1542 | T38: =CEILING('Шкафы (2)'!T38*'Дополнительная комплектация'!$AY$1,'Дополнительная комплектация'!$AY$3) -> 1762 | U38: =CEILING('Шкафы (2)'!U38*'Дополнительная комплектация'!$AY$1,'Дополнительная комплектация'!$AY$3) -> 1922 | V38: =CEILING('Шкафы (2)'!V38*'Дополнительная комплектация'!$AY$1,'Дополнительная комплектация'!$AY$3) -> 2062 | W38: - | X38: - | Y38: - | Z38: - | AA38: - | AB38: - | AC38: - | AD38: - | AE38: - | AF38: - | AG38: - | AH38: - | AI38: - | AJ38: - | AK38: - | AL38: - | AM38: - | AN38: - | AO38: - | AP38: - | AQ38: - | AR38: - | AS38: L=150
D39: L=200 | E39: =CEILING('Шкафы (2)'!E39*'Дополнительная комплектация'!$AY$1,'Дополнительная комплектация'!$AY$3) -> 1536 | F39: =CEILING('Шкафы (2)'!F39*'Дополнительная комплектация'!$AY$1,'Дополнительная комплектация'!$AY$3) -> 1956 | G39: =CEILING('Шкафы (2)'!G39*'Дополнительная комплектация'!$AY$1,'Дополнительная комплектация'!$AY$3) -> 1626 | H39: =CEILING('Шкафы (2)'!H39*'Дополнительная комплектация'!$AY$1,'Дополнительная комплектация'!$AY$3) -> 2046 | I39: =CEILING('Шкафы (2)'!I39*'Дополнительная комплектация'!$AY$1,'Дополнительная комплектация'!$AY$3) -> 1786 | J39: =CEILING('Шкафы (2)'!J39*'Дополнительная комплектация'!$AY$1,'Дополнительная комплектация'!$AY$3) -> 2396 | K39: =CEILING('Шкафы (2)'!K39*'Дополнительная комплектация'!$AY$1,'Дополнительная комплектация'!$AY$3) -> 1586 | L39: =CEILING('Шкафы (2)'!L39*'Дополнительная комплектация'!$AY$1,'Дополнительная комплектация'!$AY$3) -> 3286 | M39: =CEILING('Шкафы (2)'!M39*'Дополнительная комплектация'!$AY$1,'Дополнительная комплектация'!$AY$3) -> 3696 | N39: =CEILING('Шкафы (2)'!N39*'Дополнительная комплектация'!$AY$1,'Дополнительная комплектация'!$AY$3) -> 1376 | O39: =CEILING('Шкафы (2)'!O39*'Дополнительная комплектация'!$AY$1,'Дополнительная комплектация'!$AY$3) -> 1396 | P39: =CEILING('Шкафы (2)'!P39*'Дополнительная комплектация'!$AY$1,'Дополнительная комплектация'!$AY$3) -> 1416 | Q39: =CEILING('Шкафы (2)'!Q39*'Дополнительная комплектация'!$AY$1,'Дополнительная комплектация'!$AY$3) -> 2006 | R39: =CEILING('Шкафы (2)'!R39*'Дополнительная комплектация'!$AY$1,'Дополнительная комплектация'!$AY$3) -> 2316 | S39: =CEILING('Шкафы (2)'!S39*'Дополнительная комплектация'!$AY$1,'Дополнительная комплектация'!$AY$3) -> 1696 | T39: =CEILING('Шкафы (2)'!T39*'Дополнительная комплектация'!$AY$1,'Дополнительная комплектация'!$AY$3) -> 1936 | U39: =CEILING('Шкафы (2)'!U39*'Дополнительная комплектация'!$AY$1,'Дополнительная комплектация'!$AY$3) -> 2156 | V39: =CEILING('Шкафы (2)'!V39*'Дополнительная комплектация'!$AY$1,'Дополнительная комплектация'!$AY$3) -> 2336 | W39: - | X39: - | Y39: - | Z39: - | AA39: - | AB39: - | AC39: - | AD39: - | AE39: - | AF39: - | AG39: - | AH39: - | AI39: - | AJ39: - | AK39: - | AL39: - | AM39: - | AN39: - | AO39: - | AP39: - | AQ39: - | AR39: - | AS39: L=200
D40: L=250 | E40: =CEILING('Шкафы (2)'!E40*'Дополнительная комплектация'!$AY$1,'Дополнительная комплектация'!$AY$3) -> 1671 | F40: =CEILING('Шкафы (2)'!F40*'Дополнительная комплектация'!$AY$1,'Дополнительная комплектация'!$AY$3) -> 2181 | G40: =CEILING('Шкафы (2)'!G40*'Дополнительная комплектация'!$AY$1,'Дополнительная комплектация'!$AY$3) -> 1781 | H40: =CEILING('Шкафы (2)'!H40*'Дополнительная комплектация'!$AY$1,'Дополнительная комплектация'!$AY$3) -> 2301 | I40: =CEILING('Шкафы (2)'!I40*'Дополнительная комплектация'!$AY$1,'Дополнительная комплектация'!$AY$3) -> 1971 | J40: =CEILING('Шкафы (2)'!J40*'Дополнительная комплектация'!$AY$1,'Дополнительная комплектация'!$AY$3) -> 2751 | K40: =CEILING('Шкафы (2)'!K40*'Дополнительная комплектация'!$AY$1,'Дополнительная комплектация'!$AY$3) -> 1661 | L40: =CEILING('Шкафы (2)'!L40*'Дополнительная комплектация'!$AY$1,'Дополнительная комплектация'!$AY$3) -> 3861 | M40: =CEILING('Шкафы (2)'!M40*'Дополнительная комплектация'!$AY$1,'Дополнительная комплектация'!$AY$3) -> 4371 | N40: =CEILING('Шкафы (2)'!N40*'Дополнительная комплектация'!$AY$1,'Дополнительная комплектация'!$AY$3) -> 1471 | O40: =CEILING('Шкафы (2)'!O40*'Дополнительная комплектация'!$AY$1,'Дополнительная комплектация'!$AY$3) -> 1481 | P40: =CEILING('Шкафы (2)'!P40*'Дополнительная комплектация'!$AY$1,'Дополнительная комплектация'!$AY$3) -> 1511 | Q40: =CEILING('Шкафы (2)'!Q40*'Дополнительная комплектация'!$AY$1,'Дополнительная комплектация'!$AY$3) -> 2191 | R40: =CEILING('Шкафы (2)'!R40*'Дополнительная комплектация'!$AY$1,'Дополнительная комплектация'!$AY$3) -> 2521 | S40: =CEILING('Шкафы (2)'!S40*'Дополнительная комплектация'!$AY$1,'Дополнительная комплектация'!$AY$3) -> 1851 | T40: =CEILING('Шкафы (2)'!T40*'Дополнительная комплектация'!$AY$1,'Дополнительная комплектация'!$AY$3) -> 2111 | U40: =CEILING('Шкафы (2)'!U40*'Дополнительная комплектация'!$AY$1,'Дополнительная комплектация'!$AY$3) -> 2381 | V40: =CEILING('Шкафы (2)'!V40*'Дополнительная комплектация'!$AY$1,'Дополнительная комплектация'!$AY$3) -> 2611 | W40: - | X40: - | Y40: - | Z40: - | AA40: - | AB40: - | AC40: - | AD40: - | AE40: - | AF40: - | AG40: - | AH40: - | AI40: - | AJ40: - | AK40: - | AL40: - | AM40: - | AN40: - | AO40: - | AP40: - | AQ40: - | AR40: - | AS40: L=250
D41: L=300 | E41: =CEILING('Шкафы (2)'!E41*'Дополнительная комплектация'!$AY$1,'Дополнительная комплектация'!$AY$3) -> 1795 | F41: =CEILING('Шкафы (2)'!F41*'Дополнительная комплектация'!$AY$1,'Дополнительная комплектация'!$AY$3) -> 2415 | G41: =CEILING('Шкафы (2)'!G41*'Дополнительная комплектация'!$AY$1,'Дополнительная комплектация'!$AY$3) -> 1925 | H41: =CEILING('Шкафы (2)'!H41*'Дополнительная комплектация'!$AY$1,'Дополнительная комплектация'!$AY$3) -> 2555 | I41: =CEILING('Шкафы (2)'!I41*'Дополнительная комплектация'!$AY$1,'Дополнительная комплектация'!$AY$3) -> 2165 | J41: =CEILING('Шкафы (2)'!J41*'Дополнительная комплектация'!$AY$1,'Дополнительная комплектация'!$AY$3) -> 3095 | K41: =CEILING('Шкафы (2)'!K41*'Дополнительная комплектация'!$AY$1,'Дополнительная комплектация'!$AY$3) -> 1845 | L41: =CEILING('Шкафы (2)'!L41*'Дополнительная комплектация'!$AY$1,'Дополнительная комплектация'!$AY$3) -> 4425 | M41: =CEILING('Шкафы (2)'!M41*'Дополнительная комплектация'!$AY$1,'Дополнительная комплектация'!$AY$3) -> 5055 | N41: =CEILING('Шкафы (2)'!N41*'Дополнительная комплектация'!$AY$1,'Дополнительная комплектация'!$AY$3) -> 1555 | O41: =CEILING('Шкафы (2)'!O41*'Дополнительная комплектация'!$AY$1,'Дополнительная комплектация'!$AY$3) -> 1575 | P41: =CEILING('Шкафы (2)'!P41*'Дополнительная комплектация'!$AY$1,'Дополнительная комплектация'!$AY$3) -> 1605 | Q41: =CEILING('Шкафы (2)'!Q41*'Дополнительная комплектация'!$AY$1,'Дополнительная комплектация'!$AY$3) -> 2385 | R41: =CEILING('Шкафы (2)'!R41*'Дополнительная комплектация'!$AY$1,'Дополнительная комплектация'!$AY$3) -> 2725 | S41: =CEILING('Шкафы (2)'!S41*'Дополнительная комплектация'!$AY$1,'Дополнительная комплектация'!$AY$3) -> 2005 | T41: =CEILING('Шкафы (2)'!T41*'Дополнительная комплектация'!$AY$1,'Дополнительная комплектация'!$AY$3) -> 2285 | U41: =CEILING('Шкафы (2)'!U41*'Дополнительная комплектация'!$AY$1,'Дополнительная комплектация'!$AY$3) -> 2615 | V41: =CEILING('Шкафы (2)'!V41*'Дополнительная комплектация'!$AY$1,'Дополнительная комплектация'!$AY$3) -> 2885 | W41: - | X41: - | Y41: - | Z41: - | AA41: - | AB41: - | AC41: - | AD41: - | AE41: - | AF41: - | AG41: - | AH41: - | AI41: - | AJ41: - | AK41: - | AL41: - | AM41: - | AN41: - | AO41: - | AP41: - | AQ41: - | AR41: - | AS41: L=300
D42: L=350 | E42: =CEILING('Шкафы (2)'!E42*'Дополнительная комплектация'!$AY$1,'Дополнительная комплектация'!$AY$3) -> 1920 | F42: =CEILING('Шкафы (2)'!F42*'Дополнительная комплектация'!$AY$1,'Дополнительная комплектация'!$AY$3) -> 2650 | G42: =CEILING('Шкафы (2)'!G42*'Дополнительная комплектация'!$AY$1,'Дополнительная комплектация'!$AY$3) -> 2080 | H42: =CEILING('Шкафы (2)'!H42*'Дополнительная комплектация'!$AY$1,'Дополнительная комплектация'!$AY$3) -> 2810 | I42: =CEILING('Шкафы (2)'!I42*'Дополнительная комплектация'!$AY$1,'Дополнительная комплектация'!$AY$3) -> 2350 | J42: =CEILING('Шкафы (2)'!J42*'Дополнительная комплектация'!$AY$1,'Дополнительная комплектация'!$AY$3) -> 3440 | K42: =CEILING('Шкафы (2)'!K42*'Дополнительная комплектация'!$AY$1,'Дополнительная комплектация'!$AY$3) -> 1910 | L42: =CEILING('Шкафы (2)'!L42*'Дополнительная комплектация'!$AY$1,'Дополнительная комплектация'!$AY$3) -> 5000 | M42: =CEILING('Шкафы (2)'!M42*'Дополнительная комплектация'!$AY$1,'Дополнительная комплектация'!$AY$3) -> 5730 | N42: =CEILING('Шкафы (2)'!N42*'Дополнительная комплектация'!$AY$1,'Дополнительная комплектация'!$AY$3) -> 1640 | O42: =CEILING('Шкафы (2)'!O42*'Дополнительная комплектация'!$AY$1,'Дополнительная комплектация'!$AY$3) -> 1660 | P42: =CEILING('Шкафы (2)'!P42*'Дополнительная комплектация'!$AY$1,'Дополнительная комплектация'!$AY$3) -> 1700 | Q42: =CEILING('Шкафы (2)'!Q42*'Дополнительная комплектация'!$AY$1,'Дополнительная комплектация'!$AY$3) -> 2580 | R42: =CEILING('Шкафы (2)'!R42*'Дополнительная комплектация'!$AY$1,'Дополнительная комплектация'!$AY$3) -> 2930 | S42: =CEILING('Шкафы (2)'!S42*'Дополнительная комплектация'!$AY$1,'Дополнительная комплектация'!$AY$3) -> 2170 | T42: =CEILING('Шкафы (2)'!T42*'Дополнительная комплектация'!$AY$1,'Дополнительная комплектация'!$AY$3) -> 2460 | U42: =CEILING('Шкафы (2)'!U42*'Дополнительная комплектация'!$AY$1,'Дополнительная комплектация'!$AY$3) -> 2840 | V42: =CEILING('Шкафы (2)'!V42*'Дополнительная комплектация'!$AY$1,'Дополнительная комплектация'!$AY$3) -> 3160 | W42: - | X42: - | Y42: - | Z42: - | AA42: - | AB42: - | AC42: - | AD42: - | AE42: - | AF42: - | AG42: - | AH42: - | AI42: - | AJ42: - | AK42: - | AL42: - | AM42: - | AN42: - | AO42: - | AP42: - | AQ42: - | AR42: - | AS42: L=350
D43: L=400 | E43: =CEILING('Шкафы (2)'!E43*'Дополнительная комплектация'!$AY$1,'Дополнительная комплектация'!$AY$3) -> 2043 | F43: =CEILING('Шкафы (2)'!F43*'Дополнительная комплектация'!$AY$1,'Дополнительная комплектация'!$AY$3) -> 2883 | G43: =CEILING('Шкафы (2)'!G43*'Дополнительная комплектация'!$AY$1,'Дополнительная комплектация'!$AY$3) -> 2223 | H43: =CEILING('Шкафы (2)'!H43*'Дополнительная комплектация'!$AY$1,'Дополнительная комплектация'!$AY$3) -> 3063 | I43: =CEILING('Шкафы (2)'!I43*'Дополнительная комплектация'!$AY$1,'Дополнительная комплектация'!$AY$3) -> 2543 | J43: =CEILING('Шкафы (2)'!J43*'Дополнительная комплектация'!$AY$1,'Дополнительная комплектация'!$AY$3) -> 3783 | K43: =CEILING('Шкафы (2)'!K43*'Дополнительная комплектация'!$AY$1,'Дополнительная комплектация'!$AY$3) -> 1983 | L43: =CEILING('Шкафы (2)'!L43*'Дополнительная комплектация'!$AY$1,'Дополнительная комплектация'!$AY$3) -> 5573 | M43: =CEILING('Шкафы (2)'!M43*'Дополнительная комплектация'!$AY$1,'Дополнительная комплектация'!$AY$3) -> 6403 | N43: =CEILING('Шкафы (2)'!N43*'Дополнительная комплектация'!$AY$1,'Дополнительная комплектация'!$AY$3) -> 1723 | O43: =CEILING('Шкафы (2)'!O43*'Дополнительная комплектация'!$AY$1,'Дополнительная комплектация'!$AY$3) -> 1753 | P43: =CEILING('Шкафы (2)'!P43*'Дополнительная комплектация'!$AY$1,'Дополнительная комплектация'!$AY$3) -> 1793 | Q43: =CEILING('Шкафы (2)'!Q43*'Дополнительная комплектация'!$AY$1,'Дополнительная комплектация'!$AY$3) -> 2763 | R43: =CEILING('Шкафы (2)'!R43*'Дополнительная комплектация'!$AY$1,'Дополнительная комплектация'!$AY$3) -> 3143 | S43: =CEILING('Шкафы (2)'!S43*'Дополнительная комплектация'!$AY$1,'Дополнительная комплектация'!$AY$3) -> 2323 | T43: =CEILING('Шкафы (2)'!T43*'Дополнительная комплектация'!$AY$1,'Дополнительная комплектация'!$AY$3) -> 2623 | U43: =CEILING('Шкафы (2)'!U43*'Дополнительная комплектация'!$AY$1,'Дополнительная комплектация'!$AY$3) -> 3073 | V43: =CEILING('Шкафы (2)'!V43*'Дополнительная комплектация'!$AY$1,'Дополнительная комплектация'!$AY$3) -> 3433 | W43: - | X43: - | Y43: - | Z43: - | AA43: - | AB43: - | AC43: - | AD43: - | AE43: - | AF43: - | AG43: - | AH43: - | AI43: - | AJ43: - | AK43: - | AL43: - | AM43: - | AN43: - | AO43: - | AP43: - | AQ43: - | AR43: - | AS43: L=400
D44: L=450 | E44: =CEILING('Шкафы (2)'!E44*'Дополнительная комплектация'!$AY$1,'Дополнительная комплектация'!$AY$3) -> 2178 | F44: =CEILING('Шкафы (2)'!F44*'Дополнительная комплектация'!$AY$1,'Дополнительная комплектация'!$AY$3) -> 3118 | G44: =CEILING('Шкафы (2)'!G44*'Дополнительная комплектация'!$AY$1,'Дополнительная комплектация'!$AY$3) -> 2378 | H44: =CEILING('Шкафы (2)'!H44*'Дополнительная комплектация'!$AY$1,'Дополнительная комплектация'!$AY$3) -> 3318 | I44: =CEILING('Шкафы (2)'!I44*'Дополнительная комплектация'!$AY$1,'Дополнительная комплектация'!$AY$3) -> 2738 | J44: =CEILING('Шкафы (2)'!J44*'Дополнительная комплектация'!$AY$1,'Дополнительная комплектация'!$AY$3) -> 4138 | K44: =CEILING('Шкафы (2)'!K44*'Дополнительная комплектация'!$AY$1,'Дополнительная комплектация'!$AY$3) -> 2068 | L44: =CEILING('Шкафы (2)'!L44*'Дополнительная комплектация'!$AY$1,'Дополнительная комплектация'!$AY$3) -> 6148 | M44: =CEILING('Шкафы (2)'!M44*'Дополнительная комплектация'!$AY$1,'Дополнительная комплектация'!$AY$3) -> 7088 | N44: =CEILING('Шкафы (2)'!N44*'Дополнительная комплектация'!$AY$1,'Дополнительная комплектация'!$AY$3) -> 1808 | O44: =CEILING('Шкафы (2)'!O44*'Дополнительная комплектация'!$AY$1,'Дополнительная комплектация'!$AY$3) -> 1838 | P44: =CEILING('Шкафы (2)'!P44*'Дополнительная комплектация'!$AY$1,'Дополнительная комплектация'!$AY$3) -> 1888 | Q44: =CEILING('Шкафы (2)'!Q44*'Дополнительная комплектация'!$AY$1,'Дополнительная комплектация'!$AY$3) -> 2958 | R44: =CEILING('Шкафы (2)'!R44*'Дополнительная комплектация'!$AY$1,'Дополнительная комплектация'!$AY$3) -> 3348 | S44: =CEILING('Шкафы (2)'!S44*'Дополнительная комплектация'!$AY$1,'Дополнительная комплектация'!$AY$3) -> 2478 | T44: =CEILING('Шкафы (2)'!T44*'Дополнительная комплектация'!$AY$1,'Дополнительная комплектация'!$AY$3) -> 2798 | U44: =CEILING('Шкафы (2)'!U44*'Дополнительная комплектация'!$AY$1,'Дополнительная комплектация'!$AY$3) -> 3298 | V44: =CEILING('Шкафы (2)'!V44*'Дополнительная комплектация'!$AY$1,'Дополнительная комплектация'!$AY$3) -> 3708 | W44: - | X44: - | Y44: - | Z44: - | AA44: - | AB44: - | AC44: - | AD44: - | AE44: - | AF44: - | AG44: - | AH44: - | AI44: - | AJ44: - | AK44: - | AL44: - | AM44: - | AN44: - | AO44: - | AP44: - | AQ44: - | AR44: - | AS44: L=450
D45: L=500* | E45: =CEILING('Шкафы (2)'!E45*'Дополнительная комплектация'!$AY$1,'Дополнительная комплектация'!$AY$3) -> 2303 | F45: =CEILING('Шкафы (2)'!F45*'Дополнительная комплектация'!$AY$1,'Дополнительная комплектация'!$AY$3) -> 3343 | G45: =CEILING('Шкафы (2)'!G45*'Дополнительная комплектация'!$AY$1,'Дополнительная комплектация'!$AY$3) -> 2523 | H45: =CEILING('Шкафы (2)'!H45*'Дополнительная комплектация'!$AY$1,'Дополнительная комплектация'!$AY$3) -> 3573 | I45: =CEILING('Шкафы (2)'!I45*'Дополнительная комплектация'!$AY$1,'Дополнительная комплектация'!$AY$3) -> 2923 | J45: =CEILING('Шкафы (2)'!J45*'Дополнительная комплектация'!$AY$1,'Дополнительная комплектация'!$AY$3) -> 4483 | K45: =CEILING('Шкафы (2)'!K45*'Дополнительная комплектация'!$AY$1,'Дополнительная комплектация'!$AY$3) -> 2143 | L45: =CEILING('Шкафы (2)'!L45*'Дополнительная комплектация'!$AY$1,'Дополнительная комплектация'!$AY$3) -> 6713 | M45: =CEILING('Шкафы (2)'!M45*'Дополнительная комплектация'!$AY$1,'Дополнительная комплектация'!$AY$3) -> 7763 | N45: =CEILING('Шкафы (2)'!N45*'Дополнительная комплектация'!$AY$1,'Дополнительная комплектация'!$AY$3) -> 1893 | O45: =CEILING('Шкафы (2)'!O45*'Дополнительная комплектация'!$AY$1,'Дополнительная комплектация'!$AY$3) -> 1933 | P45: =CEILING('Шкафы (2)'!P45*'Дополнительная комплектация'!$AY$1,'Дополнительная комплектация'!$AY$3) -> 1983 | Q45: =CEILING('Шкафы (2)'!Q45*'Дополнительная комплектация'!$AY$1,'Дополнительная комплектация'!$AY$3) -> 3143 | R45: =CEILING('Шкафы (2)'!R45*'Дополнительная комплектация'!$AY$1,'Дополнительная комплектация'!$AY$3) -> 3553 | S45: =CEILING('Шкафы (2)'!S45*'Дополнительная комплектация'!$AY$1,'Дополнительная комплектация'!$AY$3) -> 2643 | T45: =CEILING('Шкафы (2)'!T45*'Дополнительная комплектация'!$AY$1,'Дополнительная комплектация'!$AY$3) -> 2973 | U45: =CEILING('Шкафы (2)'!U45*'Дополнительная комплектация'!$AY$1,'Дополнительная комплектация'!$AY$3) -> 3533 | V45: =CEILING('Шкафы (2)'!V45*'Дополнительная комплектация'!$AY$1,'Дополнительная комплектация'!$AY$3) -> 3983 | W45: - | X45: - | Y45: - | Z45: - | AA45: - | AB45: - | AC45: - | AD45: - | AE45: - | AF45: - | AG45: - | AH45: - | AI45: - | AJ45: - | AK45: - | AL45: - | AM45: - | AN45: - | AO45: - | AP45: - | AQ45: - | AR45: - | AS45: L=500*
D46: L=600* | E46: =CEILING('Шкафы (2)'!E46*'Дополнительная комплектация'!$AY$1,'Дополнительная комплектация'!$AY$3) -> 2551 | F46: =CEILING('Шкафы (2)'!F46*'Дополнительная комплектация'!$AY$1,'Дополнительная комплектация'!$AY$3) -> 3811 | G46: =CEILING('Шкафы (2)'!G46*'Дополнительная комплектация'!$AY$1,'Дополнительная комплектация'!$AY$3) -> 2831 | H46: =CEILING('Шкафы (2)'!H46*'Дополнительная комплектация'!$AY$1,'Дополнительная комплектация'!$AY$3) -> 4081 | I46: =CEILING('Шкафы (2)'!I46*'Дополнительная комплектация'!$AY$1,'Дополнительная комплектация'!$AY$3) -> 3301 | J46: =CEILING('Шкафы (2)'!J46*'Дополнительная комплектация'!$AY$1,'Дополнительная комплектация'!$AY$3) -> 5171 | K46: =CEILING('Шкафы (2)'!K46*'Дополнительная комплектация'!$AY$1,'Дополнительная комплектация'!$AY$3) -> 2291 | L46: =CEILING('Шкафы (2)'!L46*'Дополнительная комплектация'!$AY$1,'Дополнительная комплектация'!$AY$3) -> 7861 | M46: =CEILING('Шкафы (2)'!M46*'Дополнительная комплектация'!$AY$1,'Дополнительная комплектация'!$AY$3) -> 9111 | N46: =CEILING('Шкафы (2)'!N46*'Дополнительная комплектация'!$AY$1,'Дополнительная комплектация'!$AY$3) -> 2071 | O46: =CEILING('Шкафы (2)'!O46*'Дополнительная комплектация'!$AY$1,'Дополнительная комплектация'!$AY$3) -> 2111 | P46: =CEILING('Шкафы (2)'!P46*'Дополнительная комплектация'!$AY$1,'Дополнительная комплектация'!$AY$3) -> 2171 | Q46: =CEILING('Шкафы (2)'!Q46*'Дополнительная комплектация'!$AY$1,'Дополнительная комплектация'!$AY$3) -> 3531 | R46: =CEILING('Шкафы (2)'!R46*'Дополнительная комплектация'!$AY$1,'Дополнительная комплектация'!$AY$3) -> 3961 | S46: =CEILING('Шкафы (2)'!S46*'Дополнительная комплектация'!$AY$1,'Дополнительная комплектация'!$AY$3) -> 2951 | T46: =CEILING('Шкафы (2)'!T46*'Дополнительная комплектация'!$AY$1,'Дополнительная комплектация'!$AY$3) -> 3321 | U46: =CEILING('Шкафы (2)'!U46*'Дополнительная комплектация'!$AY$1,'Дополнительная комплектация'!$AY$3) -> 3991 | V46: =CEILING('Шкафы (2)'!V46*'Дополнительная комплектация'!$AY$1,'Дополнительная комплектация'!$AY$3) -> 4541 | W46: - | X46: - | Y46: - | Z46: - | AA46: - | AB46: - | AC46: - | AD46: - | AE46: - | AF46: - | AG46: - | AH46: - | AI46: - | AJ46: - | AK46: - | AL46: - | AM46: - | AN46: - | AO46: - | AP46: - | AQ46: - | AR46: - | AS46: L=600*
C47: Шкаф Н=600 1 стекло Л/ПР | D47: L=300 | E47: =CEILING('Шкафы (2)'!E47*'Дополнительная комплектация'!$AY$1,'Дополнительная комплектация'!$AY$3) -> 1486 | F47: =CEILING('Шкафы (2)'!F47*'Дополнительная комплектация'!$AY$1,'Дополнительная комплектация'!$AY$3) -> 1886 | G47: =CEILING('Шкафы (2)'!G47*'Дополнительная комплектация'!$AY$1,'Дополнительная комплектация'!$AY$3) -> 1576 | H47: =CEILING('Шкафы (2)'!H47*'Дополнительная комплектация'!$AY$1,'Дополнительная комплектация'!$AY$3) -> 1976 | I47: =CEILING('Шкафы (2)'!I47*'Дополнительная комплектация'!$AY$1,'Дополнительная комплектация'!$AY$3) -> 1726 | J47: =CEILING('Шкафы (2)'!J47*'Дополнительная комплектация'!$AY$1,'Дополнительная комплектация'!$AY$3) -> 2326 | K47: =CEILING('Шкафы (2)'!K47*'Дополнительная комплектация'!$AY$1,'Дополнительная комплектация'!$AY$3) -> 1536 | L47: =CEILING('Шкафы (2)'!L47*'Дополнительная комплектация'!$AY$1,'Дополнительная комплектация'!$AY$3) -> 3196 | M47: =CEILING('Шкафы (2)'!M47*'Дополнительная комплектация'!$AY$1,'Дополнительная комплектация'!$AY$3) -> 3606 | N47: =CEILING('Шкафы (2)'!N47*'Дополнительная комплектация'!$AY$1,'Дополнительная комплектация'!$AY$3) -> 1276 | O47: =CEILING('Шкафы (2)'!O47*'Дополнительная комплектация'!$AY$1,'Дополнительная комплектация'!$AY$3) -> 1296 | P47: =CEILING('Шкафы (2)'!P47*'Дополнительная комплектация'!$AY$1,'Дополнительная комплектация'!$AY$3) -> 1316 | Q47: =CEILING('Шкафы (2)'!Q47*'Дополнительная комплектация'!$AY$1,'Дополнительная комплектация'!$AY$3) -> 1926 | R47: =CEILING('Шкафы (2)'!R47*'Дополнительная комплектация'!$AY$1,'Дополнительная комплектация'!$AY$3) -> 2276 | S47: =CEILING('Шкафы (2)'!S47*'Дополнительная комплектация'!$AY$1,'Дополнительная комплектация'!$AY$3) -> 1676 | T47: =CEILING('Шкафы (2)'!T47*'Дополнительная комплектация'!$AY$1,'Дополнительная комплектация'!$AY$3) -> 1966 | U47: =CEILING('Шкафы (2)'!U47*'Дополнительная комплектация'!$AY$1,'Дополнительная комплектация'!$AY$3) -> 2126 | V47: =CEILING('Шкафы (2)'!V47*'Дополнительная комплектация'!$AY$1,'Дополнительная комплектация'!$AY$3) -> 2256 | W47: =CEILING('Шкафы (2)'!W47*'Дополнительная комплектация'!$AY$1,'Дополнительная комплектация'!$AY$3) -> 8 | X47: =CEILING('Шкафы (2)'!X47*'Дополнительная комплектация'!$AY$1,'Дополнительная комплектация'!$AY$3) -> 20 | Y47: =CEILING('Шкафы (2)'!Y47*'Дополнительная комплектация'!$AY$1,'Дополнительная комплектация'!$AY$3) -> 40 | Z47: =CEILING('Шкафы (2)'!Z47*'Дополнительная комплектация'!$AY$1,'Дополнительная комплектация'!$AY$3) -> 108 | AA47: =CEILING('Шкафы (2)'!AA47*'Дополнительная комплектация'!$AY$1,'Дополнительная комплектация'!$AY$3) -> 128 | AB47: =CEILING('Шкафы (2)'!AB47*'Дополнительная комплектация'!$AY$1,'Дополнительная комплектация'!$AY$3) -> 210 | AC47: =CEILING('Шкафы (2)'!AC47*'Дополнительная комплектация'!$AY$1,'Дополнительная комплектация'!$AY$3) -> 284 | AD47: =CEILING('Шкафы (2)'!AD47*'Дополнительная комплектация'!$AY$1,'Дополнительная комплектация'!$AY$3) -> 480 | AE47: =CEILING('Шкафы (2)'!AE47*'Дополнительная комплектация'!$AY$1,'Дополнительная комплектация'!$AY$3) -> 588 | AF47: * | AG47: =CEILING('Шкафы (2)'!AG47*'Дополнительная комплектация'!$AY$1,'Дополнительная комплектация'!$AY$3) -> 10 | AH47: =CEILING('Шкафы (2)'!AH47*'Дополнительная комплектация'!$AY$1,'Дополнительная комплектация'!$AY$3) -> 10 | AI47: =CEILING('Шкафы (2)'!AI47*'Дополнительная комплектация'!$AY$1,'Дополнительная комплектация'!$AY$3) -> 30 | AJ47: =CEILING('Шкафы (2)'!AJ47*'Дополнительная комплектация'!$AY$1,'Дополнительная комплектация'!$AY$3) -> 70 | AK47: =CEILING('Шкафы (2)'!AK47*'Дополнительная комплектация'!$AY$1,'Дополнительная комплектация'!$AY$3) -> 80 | AL47: =CEILING('Шкафы (2)'!AL47*'Дополнительная комплектация'!$AY$1,'Дополнительная комплектация'!$AY$3) -> 120 | AM47: =CEILING('Шкафы (2)'!AM47*'Дополнительная комплектация'!$AY$1,'Дополнительная комплектация'!$AY$3) -> 170 | AN47: =CEILING('Шкафы (2)'!AN47*'Дополнительная комплектация'!$AY$1,'Дополнительная комплектация'!$AY$3) -> 10 | AO47: =CEILING('Шкафы (2)'!AO47*'Дополнительная комплектация'!$AY$1,'Дополнительная комплектация'!$AY$3) -> 20 | AP47: =CEILING('Шкафы (2)'!AP47*'Дополнительная комплектация'!$AY$1,'Дополнительная комплектация'!$AY$3) -> 30 | AQ47: =CEILING('Шкафы (2)'!AQ47*'Дополнительная комплектация'!$AY$1,'Дополнительная комплектация'!$AY$3) -> 40 | AR47: =CEILING('Шкафы (2)'!AR47*'Дополнительная комплектация'!$AY$1,'Дополнительная комплектация'!$AY$3) -> 60 | AS47: L=300
D48: L=350 | E48: =CEILING('Шкафы (2)'!E48*'Дополнительная комплектация'!$AY$1,'Дополнительная комплектация'!$AY$3) -> 1583 | F48: =CEILING('Шкафы (2)'!F48*'Дополнительная комплектация'!$AY$1,'Дополнительная комплектация'!$AY$3) -> 2063 | G48: =CEILING('Шкафы (2)'!G48*'Дополнительная комплектация'!$AY$1,'Дополнительная комплектация'!$AY$3) -> 1683 | H48: =CEILING('Шкафы (2)'!H48*'Дополнительная комплектация'!$AY$1,'Дополнительная комплектация'!$AY$3) -> 2163 | I48: =CEILING('Шкафы (2)'!I48*'Дополнительная комплектация'!$AY$1,'Дополнительная комплектация'!$AY$3) -> 1863 | J48: =CEILING('Шкафы (2)'!J48*'Дополнительная комплектация'!$AY$1,'Дополнительная комплектация'!$AY$3) -> 2573 | K48: =CEILING('Шкафы (2)'!K48*'Дополнительная комплектация'!$AY$1,'Дополнительная комплектация'!$AY$3) -> 1588 | L48: =CEILING('Шкафы (2)'!L48*'Дополнительная комплектация'!$AY$1,'Дополнительная комплектация'!$AY$3) -> 3593 | M48: =CEILING('Шкафы (2)'!M48*'Дополнительная комплектация'!$AY$1,'Дополнительная комплектация'!$AY$3) -> 4063 | N48: =CEILING('Шкафы (2)'!N48*'Дополнительная комплектация'!$AY$1,'Дополнительная комплектация'!$AY$3) -> 1338 | O48: =CEILING('Шкафы (2)'!O48*'Дополнительная комплектация'!$AY$1,'Дополнительная комплектация'!$AY$3) -> 1358 | P48: =CEILING('Шкафы (2)'!P48*'Дополнительная комплектация'!$AY$1,'Дополнительная комплектация'!$AY$3) -> 1378 | Q48: =CEILING('Шкафы (2)'!Q48*'Дополнительная комплектация'!$AY$1,'Дополнительная комплектация'!$AY$3) -> 2068 | R48: =CEILING('Шкафы (2)'!R48*'Дополнительная комплектация'!$AY$1,'Дополнительная комплектация'!$AY$3) -> 2448 | S48: =CEILING('Шкафы (2)'!S48*'Дополнительная комплектация'!$AY$1,'Дополнительная комплектация'!$AY$3) -> 1738 | T48: =CEILING('Шкафы (2)'!T48*'Дополнительная комплектация'!$AY$1,'Дополнительная комплектация'!$AY$3) -> 2058 | U48: =CEILING('Шкафы (2)'!U48*'Дополнительная комплектация'!$AY$1,'Дополнительная комплектация'!$AY$3) -> 2228 | V48: =CEILING('Шкафы (2)'!V48*'Дополнительная комплектация'!$AY$1,'Дополнительная комплектация'!$AY$3) -> 2368 | W48: =CEILING('Шкафы (2)'!W48*'Дополнительная комплектация'!$AY$1,'Дополнительная комплектация'!$AY$3) -> 10 | X48: =CEILING('Шкафы (2)'!X48*'Дополнительная комплектация'!$AY$1,'Дополнительная комплектация'!$AY$3) -> 25 | Y48: =CEILING('Шкафы (2)'!Y48*'Дополнительная комплектация'!$AY$1,'Дополнительная комплектация'!$AY$3) -> 50 | Z48: =CEILING('Шкафы (2)'!Z48*'Дополнительная комплектация'!$AY$1,'Дополнительная комплектация'!$AY$3) -> 135 | AA48: =CEILING('Шкафы (2)'!AA48*'Дополнительная комплектация'!$AY$1,'Дополнительная комплектация'!$AY$3) -> 160 | AB48: =CEILING('Шкафы (2)'!AB48*'Дополнительная комплектация'!$AY$1,'Дополнительная комплектация'!$AY$3) -> 263 | AC48: =CEILING('Шкафы (2)'!AC48*'Дополнительная комплектация'!$AY$1,'Дополнительная комплектация'!$AY$3) -> 355 | AD48: =CEILING('Шкафы (2)'!AD48*'Дополнительная комплектация'!$AY$1,'Дополнительная комплектация'!$AY$3) -> 558 | AE48: =CEILING('Шкафы (2)'!AE48*'Дополнительная комплектация'!$AY$1,'Дополнительная комплектация'!$AY$3) -> 668 | AF48: * | AG48: =CEILING('Шкафы (2)'!AG48*'Дополнительная комплектация'!$AY$1,'Дополнительная комплектация'!$AY$3) -> 10 | AH48: =CEILING('Шкафы (2)'!AH48*'Дополнительная комплектация'!$AY$1,'Дополнительная комплектация'!$AY$3) -> 20 | AI48: =CEILING('Шкафы (2)'!AI48*'Дополнительная комплектация'!$AY$1,'Дополнительная комплектация'!$AY$3) -> 30 | AJ48: =CEILING('Шкафы (2)'!AJ48*'Дополнительная комплектация'!$AY$1,'Дополнительная комплектация'!$AY$3) -> 90 | AK48: =CEILING('Шкафы (2)'!AK48*'Дополнительная комплектация'!$AY$1,'Дополнительная комплектация'!$AY$3) -> 100 | AL48: =CEILING('Шкафы (2)'!AL48*'Дополнительная комплектация'!$AY$1,'Дополнительная комплектация'!$AY$3) -> 170 | AM48: =CEILING('Шкафы (2)'!AM48*'Дополнительная комплектация'!$AY$1,'Дополнительная комплектация'!$AY$3) -> 230 | AN48: =CEILING('Шкафы (2)'!AN48*'Дополнительная комплектация'!$AY$1,'Дополнительная комплектация'!$AY$3) -> 10 | AO48: =CEILING('Шкафы (2)'!AO48*'Дополнительная комплектация'!$AY$1,'Дополнительная комплектация'!$AY$3) -> 20 | AP48: =CEILING('Шкафы (2)'!AP48*'Дополнительная комплектация'!$AY$1,'Дополнительная комплектация'!$AY$3) -> 40 | AQ48: =CEILING('Шкафы (2)'!AQ48*'Дополнительная комплектация'!$AY$1,'Дополнительная комплектация'!$AY$3) -> 40 | AR48: =CEILING('Шкафы (2)'!AR48*'Дополнительная комплектация'!$AY$1,'Дополнительная комплектация'!$AY$3) -> 70 | AS48: L=350
D49: L=400 | E49: =CEILING('Шкафы (2)'!E49*'Дополнительная комплектация'!$AY$1,'Дополнительная комплектация'!$AY$3) -> 1681 | F49: =CEILING('Шкафы (2)'!F49*'Дополнительная комплектация'!$AY$1,'Дополнительная комплектация'!$AY$3) -> 2231 | G49: =CEILING('Шкафы (2)'!G49*'Дополнительная комплектация'!$AY$1,'Дополнительная комплектация'!$AY$3) -> 1801 | H49: =CEILING('Шкафы (2)'!H49*'Дополнительная комплектация'!$AY$1,'Дополнительная комплектация'!$AY$3) -> 2351 | I49: =CEILING('Шкафы (2)'!I49*'Дополнительная комплектация'!$AY$1,'Дополнительная комплектация'!$AY$3) -> 2011 | J49: =CEILING('Шкафы (2)'!J49*'Дополнительная комплектация'!$AY$1,'Дополнительная комплектация'!$AY$3) -> 2821 | K49: =CEILING('Шкафы (2)'!K49*'Дополнительная комплектация'!$AY$1,'Дополнительная комплектация'!$AY$3) -> 1651 | L49: =CEILING('Шкафы (2)'!L49*'Дополнительная комплектация'!$AY$1,'Дополнительная комплектация'!$AY$3) -> 3981 | M49: =CEILING('Шкафы (2)'!M49*'Дополнительная комплектация'!$AY$1,'Дополнительная комплектация'!$AY$3) -> 4521 | N49: =CEILING('Шкафы (2)'!N49*'Дополнительная комплектация'!$AY$1,'Дополнительная комплектация'!$AY$3) -> 1401 | O49: =CEILING('Шкафы (2)'!O49*'Дополнительная комплектация'!$AY$1,'Дополнительная комплектация'!$AY$3) -> 1421 | P49: =CEILING('Шкафы (2)'!P49*'Дополнительная комплектация'!$AY$1,'Дополнительная комплектация'!$AY$3) -> 1451 | Q49: =CEILING('Шкафы (2)'!Q49*'Дополнительная комплектация'!$AY$1,'Дополнительная комплектация'!$AY$3) -> 2221 | R49: =CEILING('Шкафы (2)'!R49*'Дополнительная комплектация'!$AY$1,'Дополнительная комплектация'!$AY$3) -> 2631 | S49: =CEILING('Шкафы (2)'!S49*'Дополнительная комплектация'!$AY$1,'Дополнительная комплектация'!$AY$3) -> 1811 | T49: =CEILING('Шкафы (2)'!T49*'Дополнительная комплектация'!$AY$1,'Дополнительная комплектация'!$AY$3) -> 2151 | U49: =CEILING('Шкафы (2)'!U49*'Дополнительная комплектация'!$AY$1,'Дополнительная комплектация'!$AY$3) -> 2331 | V49: =CEILING('Шкафы (2)'!V49*'Дополнительная комплектация'!$AY$1,'Дополнительная комплектация'!$AY$3) -> 2481 | W49: =CEILING('Шкафы (2)'!W49*'Дополнительная комплектация'!$AY$1,'Дополнительная комплектация'!$AY$3) -> 12 | X49: =CEILING('Шкафы (2)'!X49*'Дополнительная комплектация'!$AY$1,'Дополнительная комплектация'!$AY$3) -> 30 | Y49: =CEILING('Шкафы (2)'!Y49*'Дополнительная комплектация'!$AY$1,'Дополнительная комплектация'!$AY$3) -> 60 | Z49: =CEILING('Шкафы (2)'!Z49*'Дополнительная комплектация'!$AY$1,'Дополнительная комплектация'!$AY$3) -> 162 | AA49: =CEILING('Шкафы (2)'!AA49*'Дополнительная комплектация'!$AY$1,'Дополнительная комплектация'!$AY$3) -> 192 | AB49: =CEILING('Шкафы (2)'!AB49*'Дополнительная комплектация'!$AY$1,'Дополнительная комплектация'!$AY$3) -> 315 | AC49: =CEILING('Шкафы (2)'!AC49*'Дополнительная комплектация'!$AY$1,'Дополнительная комплектация'!$AY$3) -> 426 | AD49: =CEILING('Шкафы (2)'!AD49*'Дополнительная комплектация'!$AY$1,'Дополнительная комплектация'!$AY$3) -> 635 | AE49: =CEILING('Шкафы (2)'!AE49*'Дополнительная комплектация'!$AY$1,'Дополнительная комплектация'!$AY$3) -> 747 | AF49: =CEILING('Шкафы (2)'!AF49*'Дополнительная комплектация'!$AY$1,'Дополнительная комплектация'!$AY$3) -> 1080 | AG49: =CEILING('Шкафы (2)'!AG49*'Дополнительная комплектация'!$AY$1,'Дополнительная комплектация'!$AY$3) -> 10 | AH49: =CEILING('Шкафы (2)'!AH49*'Дополнительная комплектация'!$AY$1,'Дополнительная комплектация'!$AY$3) -> 20 | AI49: =CEILING('Шкафы (2)'!AI49*'Дополнительная комплектация'!$AY$1,'Дополнительная комплектация'!$AY$3) -> 40 | AJ49: =CEILING('Шкафы (2)'!AJ49*'Дополнительная комплектация'!$AY$1,'Дополнительная комплектация'!$AY$3) -> 110 | AK49: =CEILING('Шкафы (2)'!AK49*'Дополнительная комплектация'!$AY$1,'Дополнительная комплектация'!$AY$3) -> 130 | AL49: =CEILING('Шкафы (2)'!AL49*'Дополнительная комплектация'!$AY$1,'Дополнительная комплектация'!$AY$3) -> 210 | AM49: =CEILING('Шкафы (2)'!AM49*'Дополнительная комплектация'!$AY$1,'Дополнительная комплектация'!$AY$3) -> 290 | AN49: =CEILING('Шкафы (2)'!AN49*'Дополнительная комплектация'!$AY$1,'Дополнительная комплектация'!$AY$3) -> 10 | AO49: =CEILING('Шкафы (2)'!AO49*'Дополнительная комплектация'!$AY$1,'Дополнительная комплектация'!$AY$3) -> 20 | AP49: =CEILING('Шкафы (2)'!AP49*'Дополнительная комплектация'!$AY$1,'Дополнительная комплектация'!$AY$3) -> 40 | AQ49: =CEILING('Шкафы (2)'!AQ49*'Дополнительная комплектация'!$AY$1,'Дополнительная комплектация'!$AY$3) -> 50 | AR49: =CEILING('Шкафы (2)'!AR49*'Дополнительная комплектация'!$AY$1,'Дополнительная комплектация'!$AY$3) -> 80 | AS49: L=400
D50: L=450 | E50: =CEILING('Шкафы (2)'!E50*'Дополнительная комплектация'!$AY$1,'Дополнительная комплектация'!$AY$3) -> 1788 | F50: =CEILING('Шкафы (2)'!F50*'Дополнительная комплектация'!$AY$1,'Дополнительная комплектация'!$AY$3) -> 2398 | G50: =CEILING('Шкафы (2)'!G50*'Дополнительная комплектация'!$AY$1,'Дополнительная комплектация'!$AY$3) -> 1918 | H50: =CEILING('Шкафы (2)'!H50*'Дополнительная комплектация'!$AY$1,'Дополнительная комплектация'!$AY$3) -> 2528 | I50: =CEILING('Шкафы (2)'!I50*'Дополнительная комплектация'!$AY$1,'Дополнительная комплектация'!$AY$3) -> 2148 | J50: =CEILING('Шкафы (2)'!J50*'Дополнительная комплектация'!$AY$1,'Дополнительная комплектация'!$AY$3) -> 3058 | K50: =CEILING('Шкафы (2)'!K50*'Дополнительная комплектация'!$AY$1,'Дополнительная комплектация'!$AY$3) -> 1703 | L50: =CEILING('Шкафы (2)'!L50*'Дополнительная комплектация'!$AY$1,'Дополнительная комплектация'!$AY$3) -> 4368 | M50: =CEILING('Шкафы (2)'!M50*'Дополнительная комплектация'!$AY$1,'Дополнительная комплектация'!$AY$3) -> 4978 | N50: =CEILING('Шкафы (2)'!N50*'Дополнительная комплектация'!$AY$1,'Дополнительная комплектация'!$AY$3) -> 1463 | O50: =CEILING('Шкафы (2)'!O50*'Дополнительная комплектация'!$AY$1,'Дополнительная комплектация'!$AY$3) -> 1483 | P50: =CEILING('Шкафы (2)'!P50*'Дополнительная комплектация'!$AY$1,'Дополнительная комплектация'!$AY$3) -> 1513 | Q50: =CEILING('Шкафы (2)'!Q50*'Дополнительная комплектация'!$AY$1,'Дополнительная комплектация'!$AY$3) -> 2363 | R50: =CEILING('Шкафы (2)'!R50*'Дополнительная комплектация'!$AY$1,'Дополнительная комплектация'!$AY$3) -> 2813 | S50: =CEILING('Шкафы (2)'!S50*'Дополнительная комплектация'!$AY$1,'Дополнительная комплектация'!$AY$3) -> 1883 | T50: =CEILING('Шкафы (2)'!T50*'Дополнительная комплектация'!$AY$1,'Дополнительная комплектация'!$AY$3) -> 2243 | U50: =CEILING('Шкафы (2)'!U50*'Дополнительная комплектация'!$AY$1,'Дополнительная комплектация'!$AY$3) -> 2433 | V50: =CEILING('Шкафы (2)'!V50*'Дополнительная комплектация'!$AY$1,'Дополнительная комплектация'!$AY$3) -> 2593 | W50: =CEILING('Шкафы (2)'!W50*'Дополнительная комплектация'!$AY$1,'Дополнительная комплектация'!$AY$3) -> 14 | X50: =CEILING('Шкафы (2)'!X50*'Дополнительная комплектация'!$AY$1,'Дополнительная комплектация'!$AY$3) -> 35 | Y50: =CEILING('Шкафы (2)'!Y50*'Дополнительная комплектация'!$AY$1,'Дополнительная комплектация'!$AY$3) -> 71 | Z50: =CEILING('Шкафы (2)'!Z50*'Дополнительная комплектация'!$AY$1,'Дополнительная комплектация'!$AY$3) -> 190 | AA50: =CEILING('Шкафы (2)'!AA50*'Дополнительная комплектация'!$AY$1,'Дополнительная комплектация'!$AY$3) -> 224 | AB50: =CEILING('Шкафы (2)'!AB50*'Дополнительная комплектация'!$AY$1,'Дополнительная комплектация'!$AY$3) -> 368 | AC50: =CEILING('Шкафы (2)'!AC50*'Дополнительная комплектация'!$AY$1,'Дополнительная комплектация'!$AY$3) -> 497 | AD50: =CEILING('Шкафы (2)'!AD50*'Дополнительная комплектация'!$AY$1,'Дополнительная комплектация'!$AY$3) -> 713 | AE50: =CEILING('Шкафы (2)'!AE50*'Дополнительная комплектация'!$AY$1,'Дополнительная комплектация'!$AY$3) -> 827 | AF50: * | AG50: =CEILING('Шкафы (2)'!AG50*'Дополнительная комплектация'!$AY$1,'Дополнительная комплектация'!$AY$3) -> 10 | AH50: =CEILING('Шкафы (2)'!AH50*'Дополнительная комплектация'!$AY$1,'Дополнительная комплектация'!$AY$3) -> 30 | AI50: =CEILING('Шкафы (2)'!AI50*'Дополнительная комплектация'!$AY$1,'Дополнительная комплектация'!$AY$3) -> 50 | AJ50: =CEILING('Шкафы (2)'!AJ50*'Дополнительная комплектация'!$AY$1,'Дополнительная комплектация'!$AY$3) -> 140 | AK50: =CEILING('Шкафы (2)'!AK50*'Дополнительная комплектация'!$AY$1,'Дополнительная комплектация'!$AY$3) -> 160 | AL50: =CEILING('Шкафы (2)'!AL50*'Дополнительная комплектация'!$AY$1,'Дополнительная комплектация'!$AY$3) -> 260 | AM50: =CEILING('Шкафы (2)'!AM50*'Дополнительная комплектация'!$AY$1,'Дополнительная комплектация'!$AY$3) -> 350 | AN50: =CEILING('Шкафы (2)'!AN50*'Дополнительная комплектация'!$AY$1,'Дополнительная комплектация'!$AY$3) -> 10 | AO50: =CEILING('Шкафы (2)'!AO50*'Дополнительная комплектация'!$AY$1,'Дополнительная комплектация'!$AY$3) -> 20 | AP50: =CEILING('Шкафы (2)'!AP50*'Дополнительная комплектация'!$AY$1,'Дополнительная комплектация'!$AY$3) -> 50 | AQ50: =CEILING('Шкафы (2)'!AQ50*'Дополнительная комплектация'!$AY$1,'Дополнительная комплектация'!$AY$3) -> 50 | AR50: =CEILING('Шкафы (2)'!AR50*'Дополнительная комплектация'!$AY$1,'Дополнительная комплектация'!$AY$3) -> 90 | AS50: L=450
D51: L=500* | E51: =CEILING('Шкафы (2)'!E51*'Дополнительная комплектация'!$AY$1,'Дополнительная комплектация'!$AY$3) -> 1886 | F51: =CEILING('Шкафы (2)'!F51*'Дополнительная комплектация'!$AY$1,'Дополнительная комплектация'!$AY$3) -> 2566 | G51: =CEILING('Шкафы (2)'!G51*'Дополнительная комплектация'!$AY$1,'Дополнительная комплектация'!$AY$3) -> 2036 | H51: =CEILING('Шкафы (2)'!H51*'Дополнительная комплектация'!$AY$1,'Дополнительная комплектация'!$AY$3) -> 2716 | I51: =CEILING('Шкафы (2)'!I51*'Дополнительная комплектация'!$AY$1,'Дополнительная комплектация'!$AY$3) -> 2296 | J51: =CEILING('Шкафы (2)'!J51*'Дополнительная комплектация'!$AY$1,'Дополнительная комплектация'!$AY$3) -> 3306 | K51: =CEILING('Шкафы (2)'!K51*'Дополнительная комплектация'!$AY$1,'Дополнительная комплектация'!$AY$3) -> 1766 | L51: =CEILING('Шкафы (2)'!L51*'Дополнительная комплектация'!$AY$1,'Дополнительная комплектация'!$AY$3) -> 4766 | M51: =CEILING('Шкафы (2)'!M51*'Дополнительная комплектация'!$AY$1,'Дополнительная комплектация'!$AY$3) -> 5446 | N51: =CEILING('Шкафы (2)'!N51*'Дополнительная комплектация'!$AY$1,'Дополнительная комплектация'!$AY$3) -> 1526 | O51: =CEILING('Шкафы (2)'!O51*'Дополнительная комплектация'!$AY$1,'Дополнительная комплектация'!$AY$3) -> 1556 | P51: =CEILING('Шкафы (2)'!P51*'Дополнительная комплектация'!$AY$1,'Дополнительная комплектация'!$AY$3) -> 1586 | Q51: =CEILING('Шкафы (2)'!Q51*'Дополнительная комплектация'!$AY$1,'Дополнительная комплектация'!$AY$3) -> 2516 | R51: =CEILING('Шкафы (2)'!R51*'Дополнительная комплектация'!$AY$1,'Дополнительная комплектация'!$AY$3) -> 2986 | S51: =CEILING('Шкафы (2)'!S51*'Дополнительная комплектация'!$AY$1,'Дополнительная комплектация'!$AY$3) -> 1956 | T51: =CEILING('Шкафы (2)'!T51*'Дополнительная комплектация'!$AY$1,'Дополнительная комплектация'!$AY$3) -> 2336 | U51: =CEILING('Шкафы (2)'!U51*'Дополнительная комплектация'!$AY$1,'Дополнительная комплектация'!$AY$3) -> 2536 | V51: =CEILING('Шкафы (2)'!V51*'Дополнительная комплектация'!$AY$1,'Дополнительная комплектация'!$AY$3) -> 2706 | W51: =CEILING('Шкафы (2)'!W51*'Дополнительная комплектация'!$AY$1,'Дополнительная комплектация'!$AY$3) -> 16 | X51: =CEILING('Шкафы (2)'!X51*'Дополнительная комплектация'!$AY$1,'Дополнительная комплектация'!$AY$3) -> 40 | Y51: =CEILING('Шкафы (2)'!Y51*'Дополнительная комплектация'!$AY$1,'Дополнительная комплектация'!$AY$3) -> 81 | Z51: =CEILING('Шкафы (2)'!Z51*'Дополнительная комплектация'!$AY$1,'Дополнительная комплектация'!$AY$3) -> 217 | AA51: =CEILING('Шкафы (2)'!AA51*'Дополнительная комплектация'!$AY$1,'Дополнительная комплектация'!$AY$3) -> 256 | AB51: =CEILING('Шкафы (2)'!AB51*'Дополнительная комплектация'!$AY$1,'Дополнительная комплектация'!$AY$3) -> 420 | AC51: =CEILING('Шкафы (2)'!AC51*'Дополнительная комплектация'!$AY$1,'Дополнительная комплектация'!$AY$3) -> 568 | AD51: =CEILING('Шкафы (2)'!AD51*'Дополнительная комплектация'!$AY$1,'Дополнительная комплектация'!$AY$3) -> 790 | AE51: =CEILING('Шкафы (2)'!AE51*'Дополнительная комплектация'!$AY$1,'Дополнительная комплектация'!$AY$3) -> 906 | AF51: =CEILING('Шкафы (2)'!AF51*'Дополнительная комплектация'!$AY$1,'Дополнительная комплектация'!$AY$3) -> 1440 | AG51: =CEILING('Шкафы (2)'!AG51*'Дополнительная комплектация'!$AY$1,'Дополнительная комплектация'!$AY$3) -> 10 | AH51: =CEILING('Шкафы (2)'!AH51*'Дополнительная комплектация'!$AY$1,'Дополнительная комплектация'!$AY$3) -> 30 | AI51: =CEILING('Шкафы (2)'!AI51*'Дополнительная комплектация'!$AY$1,'Дополнительная комплектация'!$AY$3) -> 60 | AJ51: =CEILING('Шкафы (2)'!AJ51*'Дополнительная комплектация'!$AY$1,'Дополнительная комплектация'!$AY$3) -> 160 | AK51: =CEILING('Шкафы (2)'!AK51*'Дополнительная комплектация'!$AY$1,'Дополнительная комплектация'!$AY$3) -> 190 | AL51: =CEILING('Шкафы (2)'!AL51*'Дополнительная комплектация'!$AY$1,'Дополнительная комплектация'!$AY$3) -> 300 | AM51: =CEILING('Шкафы (2)'!AM51*'Дополнительная комплектация'!$AY$1,'Дополнительная комплектация'!$AY$3) -> 410 | AN51: =CEILING('Шкафы (2)'!AN51*'Дополнительная комплектация'!$AY$1,'Дополнительная комплектация'!$AY$3) -> 10 | AO51: =CEILING('Шкафы (2)'!AO51*'Дополнительная комплектация'!$AY$1,'Дополнительная комплектация'!$AY$3) -> 20 | AP51: =CEILING('Шкафы (2)'!AP51*'Дополнительная комплектация'!$AY$1,'Дополнительная комплектация'!$AY$3) -> 50 | AQ51: =CEILING('Шкафы (2)'!AQ51*'Дополнительная комплектация'!$AY$1,'Дополнительная комплектация'!$AY$3) -> 60 | AR51: =CEILING('Шкафы (2)'!AR51*'Дополнительная комплектация'!$AY$1,'Дополнительная комплектация'!$AY$3) -> 100 | AS51: L=500*
D52: L=600* | E52: =CEILING('Шкафы (2)'!E52*'Дополнительная комплектация'!$AY$1,'Дополнительная комплектация'!$AY$3) -> 2093 | F52: =CEILING('Шкафы (2)'!F52*'Дополнительная комплектация'!$AY$1,'Дополнительная комплектация'!$AY$3) -> 2913 | G52: =CEILING('Шкафы (2)'!G52*'Дополнительная комплектация'!$AY$1,'Дополнительная комплектация'!$AY$3) -> 2273 | H52: =CEILING('Шкафы (2)'!H52*'Дополнительная комплектация'!$AY$1,'Дополнительная комплектация'!$AY$3) -> 3083 | I52: =CEILING('Шкафы (2)'!I52*'Дополнительная комплектация'!$AY$1,'Дополнительная комплектация'!$AY$3) -> 2583 | J52: =CEILING('Шкафы (2)'!J52*'Дополнительная комплектация'!$AY$1,'Дополнительная комплектация'!$AY$3) -> 3793 | K52: =CEILING('Шкафы (2)'!K52*'Дополнительная комплектация'!$AY$1,'Дополнительная комплектация'!$AY$3) -> 1882 | L52: =CEILING('Шкафы (2)'!L52*'Дополнительная комплектация'!$AY$1,'Дополнительная комплектация'!$AY$3) -> 5543 | M52: =CEILING('Шкафы (2)'!M52*'Дополнительная комплектация'!$AY$1,'Дополнительная комплектация'!$AY$3) -> 6363 | N52: =CEILING('Шкафы (2)'!N52*'Дополнительная комплектация'!$AY$1,'Дополнительная комплектация'!$AY$3) -> 1652 | O52: =CEILING('Шкафы (2)'!O52*'Дополнительная комплектация'!$AY$1,'Дополнительная комплектация'!$AY$3) -> 1682 | P52: =CEILING('Шкафы (2)'!P52*'Дополнительная комплектация'!$AY$1,'Дополнительная комплектация'!$AY$3) -> 1722 | Q52: =CEILING('Шкафы (2)'!Q52*'Дополнительная комплектация'!$AY$1,'Дополнительная комплектация'!$AY$3) -> 2802 | R52: =CEILING('Шкафы (2)'!R52*'Дополнительная комплектация'!$AY$1,'Дополнительная комплектация'!$AY$3) -> 3342 | S52: =CEILING('Шкафы (2)'!S52*'Дополнительная комплектация'!$AY$1,'Дополнительная комплектация'!$AY$3) -> 2102 | T52: =CEILING('Шкафы (2)'!T52*'Дополнительная комплектация'!$AY$1,'Дополнительная комплектация'!$AY$3) -> 2522 | U52: =CEILING('Шкафы (2)'!U52*'Дополнительная комплектация'!$AY$1,'Дополнительная комплектация'!$AY$3) -> 2742 | V52: =CEILING('Шкафы (2)'!V52*'Дополнительная комплектация'!$AY$1,'Дополнительная комплектация'!$AY$3) -> 2932 | W52: =CEILING('Шкафы (2)'!W52*'Дополнительная комплектация'!$AY$1,'Дополнительная комплектация'!$AY$3) -> 19 | X52: =CEILING('Шкафы (2)'!X52*'Дополнительная комплектация'!$AY$1,'Дополнительная комплектация'!$AY$3) -> 49 | Y52: =CEILING('Шкафы (2)'!Y52*'Дополнительная комплектация'!$AY$1,'Дополнительная комплектация'!$AY$3) -> 100 | Z52: =CEILING('Шкафы (2)'!Z52*'Дополнительная комплектация'!$AY$1,'Дополнительная комплектация'!$AY$3) -> 270 | AA52: =CEILING('Шкафы (2)'!AA52*'Дополнительная комплектация'!$AY$1,'Дополнительная комплектация'!$AY$3) -> 319 | AB52: =CEILING('Шкафы (2)'!AB52*'Дополнительная комплектация'!$AY$1,'Дополнительная комплектация'!$AY$3) -> 524 | AC52: =CEILING('Шкафы (2)'!AC52*'Дополнительная комплектация'!$AY$1,'Дополнительная комплектация'!$AY$3) -> 709 | AD52: =CEILING('Шкафы (2)'!AD52*'Дополнительная комплектация'!$AY$1,'Дополнительная комплектация'!$AY$3) -> 944 | AE52: =CEILING('Шкафы (2)'!AE52*'Дополнительная комплектация'!$AY$1,'Дополнительная комплектация'!$AY$3) -> 1064 | AF52: =CEILING('Шкафы (2)'!AF52*'Дополнительная комплектация'!$AY$1,'Дополнительная комплектация'!$AY$3) -> 1800 | AG52: =CEILING('Шкафы (2)'!AG52*'Дополнительная комплектация'!$AY$1,'Дополнительная комплектация'!$AY$3) -> 20 | AH52: =CEILING('Шкафы (2)'!AH52*'Дополнительная комплектация'!$AY$1,'Дополнительная комплектация'!$AY$3) -> 40 | AI52: =CEILING('Шкафы (2)'!AI52*'Дополнительная комплектация'!$AY$1,'Дополнительная комплектация'!$AY$3) -> 80 | AJ52: =CEILING('Шкафы (2)'!AJ52*'Дополнительная комплектация'!$AY$1,'Дополнительная комплектация'!$AY$3) -> 210 | AK52: =CEILING('Шкафы (2)'!AK52*'Дополнительная комплектация'!$AY$1,'Дополнительная комплектация'!$AY$3) -> 250 | AL52: =CEILING('Шкафы (2)'!AL52*'Дополнительная комплектация'!$AY$1,'Дополнительная комплектация'!$AY$3) -> 400 | AM52: =CEILING('Шкафы (2)'!AM52*'Дополнительная комплектация'!$AY$1,'Дополнительная комплектация'!$AY$3) -> 540 | AN52: =CEILING('Шкафы (2)'!AN52*'Дополнительная комплектация'!$AY$1,'Дополнительная комплектация'!$AY$3) -> 10 | AO52: =CEILING('Шкафы (2)'!AO52*'Дополнительная комплектация'!$AY$1,'Дополнительная комплектация'!$AY$3) -> 20 | AP52: =CEILING('Шкафы (2)'!AP52*'Дополнительная комплектация'!$AY$1,'Дополнительная комплектация'!$AY$3) -> 60 | AQ52: =CEILING('Шкафы (2)'!AQ52*'Дополнительная комплектация'!$AY$1,'Дополнительная комплектация'!$AY$3) -> 70 | AR52: =CEILING('Шкафы (2)'!AR52*'Дополнительная комплектация'!$AY$1,'Дополнительная комплектация'!$AY$3) -> 120 | AS52: L=600*
C53: Шкаф Н=720 1 стекло Л/ПР | D53: L=300 | E53: =CEILING('Шкафы (2)'!E53*'Дополнительная комплектация'!$AY$1,'Дополнительная комплектация'!$AY$3) -> 1618 | F53: =CEILING('Шкафы (2)'!F53*'Дополнительная комплектация'!$AY$1,'Дополнительная комплектация'!$AY$3) -> 2108 | G53: =CEILING('Шкафы (2)'!G53*'Дополнительная комплектация'!$AY$1,'Дополнительная комплектация'!$AY$3) -> 1728 | H53: =CEILING('Шкафы (2)'!H53*'Дополнительная комплектация'!$AY$1,'Дополнительная комплектация'!$AY$3) -> 2208 | I53: =CEILING('Шкафы (2)'!I53*'Дополнительная комплектация'!$AY$1,'Дополнительная комплектация'!$AY$3) -> 1908 | J53: =CEILING('Шкафы (2)'!J53*'Дополнительная комплектация'!$AY$1,'Дополнительная комплектация'!$AY$3) -> 2638 | K53: =CEILING('Шкафы (2)'!K53*'Дополнительная комплектация'!$AY$1,'Дополнительная комплектация'!$AY$3) -> 1643 | L53: =CEILING('Шкафы (2)'!L53*'Дополнительная комплектация'!$AY$1,'Дополнительная комплектация'!$AY$3) -> 3678 | M53: =CEILING('Шкафы (2)'!M53*'Дополнительная комплектация'!$AY$1,'Дополнительная комплектация'!$AY$3) -> 4168 | N53: =CEILING('Шкафы (2)'!N53*'Дополнительная комплектация'!$AY$1,'Дополнительная комплектация'!$AY$3) -> 1373 | O53: =CEILING('Шкафы (2)'!O53*'Дополнительная комплектация'!$AY$1,'Дополнительная комплектация'!$AY$3) -> 1393 | P53: =CEILING('Шкафы (2)'!P53*'Дополнительная комплектация'!$AY$1,'Дополнительная комплектация'!$AY$3) -> 1413 | Q53: =CEILING('Шкафы (2)'!Q53*'Дополнительная комплектация'!$AY$1,'Дополнительная комплектация'!$AY$3) -> 2123 | R53: =CEILING('Шкафы (2)'!R53*'Дополнительная комплектация'!$AY$1,'Дополнительная комплектация'!$AY$3) -> 2513 | S53: =CEILING('Шкафы (2)'!S53*'Дополнительная комплектация'!$AY$1,'Дополнительная комплектация'!$AY$3) -> 1803 | T53: =CEILING('Шкафы (2)'!T53*'Дополнительная комплектация'!$AY$1,'Дополнительная комплектация'!$AY$3) -> 2143 | U53: =CEILING('Шкафы (2)'!U53*'Дополнительная комплектация'!$AY$1,'Дополнительная комплектация'!$AY$3) -> 2333 | V53: =CEILING('Шкафы (2)'!V53*'Дополнительная комплектация'!$AY$1,'Дополнительная комплектация'!$AY$3) -> 2483 | W53: =CEILING('Шкафы (2)'!W53*'Дополнительная комплектация'!$AY$1,'Дополнительная комплектация'!$AY$3) -> 9 | X53: =CEILING('Шкафы (2)'!X53*'Дополнительная комплектация'!$AY$1,'Дополнительная комплектация'!$AY$3) -> 24 | Y53: =CEILING('Шкафы (2)'!Y53*'Дополнительная комплектация'!$AY$1,'Дополнительная комплектация'!$AY$3) -> 49 | Z53: =CEILING('Шкафы (2)'!Z53*'Дополнительная комплектация'!$AY$1,'Дополнительная комплектация'!$AY$3) -> 134 | AA53: =CEILING('Шкафы (2)'!AA53*'Дополнительная комплектация'!$AY$1,'Дополнительная комплектация'!$AY$3) -> 158 | AB53: =CEILING('Шкафы (2)'!AB53*'Дополнительная комплектация'!$AY$1,'Дополнительная комплектация'!$AY$3) -> 260 | AC53: =CEILING('Шкафы (2)'!AC53*'Дополнительная комплектация'!$AY$1,'Дополнительная комплектация'!$AY$3) -> 352 | AD53: =CEILING('Шкафы (2)'!AD53*'Дополнительная комплектация'!$AY$1,'Дополнительная комплектация'!$AY$3) -> 554 | AE53: =CEILING('Шкафы (2)'!AE53*'Дополнительная комплектация'!$AY$1,'Дополнительная комплектация'!$AY$3) -> 703 | AF53: * | AG53: =CEILING('Шкафы (2)'!AG53*'Дополнительная комплектация'!$AY$1,'Дополнительная комплектация'!$AY$3) -> 0 | AH53: =CEILING('Шкафы (2)'!AH53*'Дополнительная комплектация'!$AY$1,'Дополнительная комплектация'!$AY$3) -> 10 | AI53: =CEILING('Шкафы (2)'!AI53*'Дополнительная комплектация'!$AY$1,'Дополнительная комплектация'!$AY$3) -> 20 | AJ53: =CEILING('Шкафы (2)'!AJ53*'Дополнительная комплектация'!$AY$1,'Дополнительная комплектация'!$AY$3) -> 80 | AK53: =CEILING('Шкафы (2)'!AK53*'Дополнительная комплектация'!$AY$1,'Дополнительная комплектация'!$AY$3) -> 90 | AL53: =CEILING('Шкафы (2)'!AL53*'Дополнительная комплектация'!$AY$1,'Дополнительная комплектация'!$AY$3) -> 150 | AM53: =CEILING('Шкафы (2)'!AM53*'Дополнительная комплектация'!$AY$1,'Дополнительная комплектация'!$AY$3) -> 210 | AN53: =CEILING('Шкафы (2)'!AN53*'Дополнительная комплектация'!$AY$1,'Дополнительная комплектация'!$AY$3) -> 10 | AO53: =CEILING('Шкафы (2)'!AO53*'Дополнительная комплектация'!$AY$1,'Дополнительная комплектация'!$AY$3) -> 10 | AP53: =CEILING('Шкафы (2)'!AP53*'Дополнительная комплектация'!$AY$1,'Дополнительная комплектация'!$AY$3) -> 30 | AQ53: =CEILING('Шкафы (2)'!AQ53*'Дополнительная комплектация'!$AY$1,'Дополнительная комплектация'!$AY$3) -> 30 | AR53: =CEILING('Шкафы (2)'!AR53*'Дополнительная комплектация'!$AY$1,'Дополнительная комплектация'!$AY$3) -> 60 | AS53: L=300
D54: L=350 | E54: =CEILING('Шкафы (2)'!E54*'Дополнительная комплектация'!$AY$1,'Дополнительная комплектация'!$AY$3) -> 1740 | F54: =CEILING('Шкафы (2)'!F54*'Дополнительная комплектация'!$AY$1,'Дополнительная комплектация'!$AY$3) -> 2310 | G54: =CEILING('Шкафы (2)'!G54*'Дополнительная комплектация'!$AY$1,'Дополнительная комплектация'!$AY$3) -> 1860 | H54: =CEILING('Шкафы (2)'!H54*'Дополнительная комплектация'!$AY$1,'Дополнительная комплектация'!$AY$3) -> 2430 | I54: =CEILING('Шкафы (2)'!I54*'Дополнительная комплектация'!$AY$1,'Дополнительная комплектация'!$AY$3) -> 2080 | J54: =CEILING('Шкафы (2)'!J54*'Дополнительная комплектация'!$AY$1,'Дополнительная комплектация'!$AY$3) -> 2930 | K54: =CEILING('Шкафы (2)'!K54*'Дополнительная комплектация'!$AY$1,'Дополнительная комплектация'!$AY$3) -> 1697 | L54: =CEILING('Шкафы (2)'!L54*'Дополнительная комплектация'!$AY$1,'Дополнительная комплектация'!$AY$3) -> 4140 | M54: =CEILING('Шкафы (2)'!M54*'Дополнительная комплектация'!$AY$1,'Дополнительная комплектация'!$AY$3) -> 4710 | N54: =CEILING('Шкафы (2)'!N54*'Дополнительная комплектация'!$AY$1,'Дополнительная комплектация'!$AY$3) -> 1437 | O54: =CEILING('Шкафы (2)'!O54*'Дополнительная комплектация'!$AY$1,'Дополнительная комплектация'!$AY$3) -> 1457 | P54: =CEILING('Шкафы (2)'!P54*'Дополнительная комплектация'!$AY$1,'Дополнительная комплектация'!$AY$3) -> 1487 | Q54: =CEILING('Шкафы (2)'!Q54*'Дополнительная комплектация'!$AY$1,'Дополнительная комплектация'!$AY$3) -> 2297 | R54: =CEILING('Шкафы (2)'!R54*'Дополнительная комплектация'!$AY$1,'Дополнительная комплектация'!$AY$3) -> 2717 | S54: =CEILING('Шкафы (2)'!S54*'Дополнительная комплектация'!$AY$1,'Дополнительная комплектация'!$AY$3) -> 1877 | T54: =CEILING('Шкафы (2)'!T54*'Дополнительная комплектация'!$AY$1,'Дополнительная комплектация'!$AY$3) -> 2247 | U54: =CEILING('Шкафы (2)'!U54*'Дополнительная комплектация'!$AY$1,'Дополнительная комплектация'!$AY$3) -> 2437 | V54: =CEILING('Шкафы (2)'!V54*'Дополнительная комплектация'!$AY$1,'Дополнительная комплектация'!$AY$3) -> 2597 | W54: =CEILING('Шкафы (2)'!W54*'Дополнительная комплектация'!$AY$1,'Дополнительная комплектация'!$AY$3) -> 12 | X54: =CEILING('Шкафы (2)'!X54*'Дополнительная комплектация'!$AY$1,'Дополнительная комплектация'!$AY$3) -> 31 | Y54: =CEILING('Шкафы (2)'!Y54*'Дополнительная комплектация'!$AY$1,'Дополнительная комплектация'!$AY$3) -> 62 | Z54: =CEILING('Шкафы (2)'!Z54*'Дополнительная комплектация'!$AY$1,'Дополнительная комплектация'!$AY$3) -> 168 | AA54: =CEILING('Шкафы (2)'!AA54*'Дополнительная комплектация'!$AY$1,'Дополнительная комплектация'!$AY$3) -> 199 | AB54: =CEILING('Шкафы (2)'!AB54*'Дополнительная комплектация'!$AY$1,'Дополнительная комплектация'!$AY$3) -> 326 | AC54: =CEILING('Шкафы (2)'!AC54*'Дополнительная комплектация'!$AY$1,'Дополнительная комплектация'!$AY$3) -> 440 | AD54: =CEILING('Шкафы (2)'!AD54*'Дополнительная комплектация'!$AY$1,'Дополнительная комплектация'!$AY$3) -> 651 | AE54: =CEILING('Шкафы (2)'!AE54*'Дополнительная комплектация'!$AY$1,'Дополнительная комплектация'!$AY$3) -> 796 | AF54: * | AG54: =CEILING('Шкафы (2)'!AG54*'Дополнительная комплектация'!$AY$1,'Дополнительная комплектация'!$AY$3) -> 0 | AH54: =CEILING('Шкафы (2)'!AH54*'Дополнительная комплектация'!$AY$1,'Дополнительная комплектация'!$AY$3) -> 20 | AI54: =CEILING('Шкафы (2)'!AI54*'Дополнительная комплектация'!$AY$1,'Дополнительная комплектация'!$AY$3) -> 40 | AJ54: =CEILING('Шкафы (2)'!AJ54*'Дополнительная комплектация'!$AY$1,'Дополнительная комплектация'!$AY$3) -> 110 | AK54: =CEILING('Шкафы (2)'!AK54*'Дополнительная комплектация'!$AY$1,'Дополнительная комплектация'!$AY$3) -> 130 | AL54: =CEILING('Шкафы (2)'!AL54*'Дополнительная комплектация'!$AY$1,'Дополнительная комплектация'!$AY$3) -> 210 | AM54: =CEILING('Шкафы (2)'!AM54*'Дополнительная комплектация'!$AY$1,'Дополнительная комплектация'!$AY$3) -> 290 | AN54: =CEILING('Шкафы (2)'!AN54*'Дополнительная комплектация'!$AY$1,'Дополнительная комплектация'!$AY$3) -> 10 | AO54: =CEILING('Шкафы (2)'!AO54*'Дополнительная комплектация'!$AY$1,'Дополнительная комплектация'!$AY$3) -> 20 | AP54: =CEILING('Шкафы (2)'!AP54*'Дополнительная комплектация'!$AY$1,'Дополнительная комплектация'!$AY$3) -> 40 | AQ54: =CEILING('Шкафы (2)'!AQ54*'Дополнительная комплектация'!$AY$1,'Дополнительная комплектация'!$AY$3) -> 50 | AR54: =CEILING('Шкафы (2)'!AR54*'Дополнительная комплектация'!$AY$1,'Дополнительная комплектация'!$AY$3) -> 70 | AS54: L=350
D55: L=400 | E55: =CEILING('Шкафы (2)'!E55*'Дополнительная комплектация'!$AY$1,'Дополнительная комплектация'!$AY$3) -> 1853 | F55: =CEILING('Шкафы (2)'!F55*'Дополнительная комплектация'!$AY$1,'Дополнительная комплектация'!$AY$3) -> 2503 | G55: =CEILING('Шкафы (2)'!G55*'Дополнительная комплектация'!$AY$1,'Дополнительная комплектация'!$AY$3) -> 1993 | H55: =CEILING('Шкафы (2)'!H55*'Дополнительная комплектация'!$AY$1,'Дополнительная комплектация'!$AY$3) -> 2643 | I55: =CEILING('Шкафы (2)'!I55*'Дополнительная комплектация'!$AY$1,'Дополнительная комплектация'!$AY$3) -> 2243 | J55: =CEILING('Шкафы (2)'!J55*'Дополнительная комплектация'!$AY$1,'Дополнительная комплектация'!$AY$3) -> 3213 | K55: =CEILING('Шкафы (2)'!K55*'Дополнительная комплектация'!$AY$1,'Дополнительная комплектация'!$AY$3) -> 1761 | L55: =CEILING('Шкафы (2)'!L55*'Дополнительная комплектация'!$AY$1,'Дополнительная комплектация'!$AY$3) -> 4613 | M55: =CEILING('Шкафы (2)'!M55*'Дополнительная комплектация'!$AY$1,'Дополнительная комплектация'!$AY$3) -> 5263 | N55: =CEILING('Шкафы (2)'!N55*'Дополнительная комплектация'!$AY$1,'Дополнительная комплектация'!$AY$3) -> 1511 | O55: =CEILING('Шкафы (2)'!O55*'Дополнительная комплектация'!$AY$1,'Дополнительная комплектация'!$AY$3) -> 1531 | P55: =CEILING('Шкафы (2)'!P55*'Дополнительная комплектация'!$AY$1,'Дополнительная комплектация'!$AY$3) -> 1561 | Q55: =CEILING('Шкафы (2)'!Q55*'Дополнительная комплектация'!$AY$1,'Дополнительная комплектация'!$AY$3) -> 2461 | R55: =CEILING('Шкафы (2)'!R55*'Дополнительная комплектация'!$AY$1,'Дополнительная комплектация'!$AY$3) -> 2911 | S55: =CEILING('Шкафы (2)'!S55*'Дополнительная комплектация'!$AY$1,'Дополнительная комплектация'!$AY$3) -> 1951 | T55: =CEILING('Шкафы (2)'!T55*'Дополнительная комплектация'!$AY$1,'Дополнительная комплектация'!$AY$3) -> 2341 | U55: =CEILING('Шкафы (2)'!U55*'Дополнительная комплектация'!$AY$1,'Дополнительная комплектация'!$AY$3) -> 2541 | V55: =CEILING('Шкафы (2)'!V55*'Дополнительная комплектация'!$AY$1,'Дополнительная комплектация'!$AY$3) -> 2711 | W55: =CEILING('Шкафы (2)'!W55*'Дополнительная комплектация'!$AY$1,'Дополнительная комплектация'!$AY$3) -> 14 | X55: =CEILING('Шкафы (2)'!X55*'Дополнительная комплектация'!$AY$1,'Дополнительная комплектация'!$AY$3) -> 37 | Y55: =CEILING('Шкафы (2)'!Y55*'Дополнительная комплектация'!$AY$1,'Дополнительная комплектация'!$AY$3) -> 75 | Z55: =CEILING('Шкафы (2)'!Z55*'Дополнительная комплектация'!$AY$1,'Дополнительная комплектация'!$AY$3) -> 201 | AA55: =CEILING('Шкафы (2)'!AA55*'Дополнительная комплектация'!$AY$1,'Дополнительная комплектация'!$AY$3) -> 238 | AB55: =CEILING('Шкафы (2)'!AB55*'Дополнительная комплектация'!$AY$1,'Дополнительная комплектация'!$AY$3) -> 390 | AC55: =CEILING('Шкафы (2)'!AC55*'Дополнительная комплектация'!$AY$1,'Дополнительная комплектация'!$AY$3) -> 528 | AD55: =CEILING('Шкафы (2)'!AD55*'Дополнительная комплектация'!$AY$1,'Дополнительная комплектация'!$AY$3) -> 746 | AE55: =CEILING('Шкафы (2)'!AE55*'Дополнительная комплектация'!$AY$1,'Дополнительная комплектация'!$AY$3) -> 887 | AF55: =CEILING('Шкафы (2)'!AF55*'Дополнительная комплектация'!$AY$1,'Дополнительная комплектация'!$AY$3) -> 1340 | AG55: =CEILING('Шкафы (2)'!AG55*'Дополнительная комплектация'!$AY$1,'Дополнительная комплектация'!$AY$3) -> 10 | AH55: =CEILING('Шкафы (2)'!AH55*'Дополнительная комплектация'!$AY$1,'Дополнительная комплектация'!$AY$3) -> 20 | AI55: =CEILING('Шкафы (2)'!AI55*'Дополнительная комплектация'!$AY$1,'Дополнительная комплектация'!$AY$3) -> 50 | AJ55: =CEILING('Шкафы (2)'!AJ55*'Дополнительная комплектация'!$AY$1,'Дополнительная комплектация'!$AY$3) -> 140 | AK55: =CEILING('Шкафы (2)'!AK55*'Дополнительная комплектация'!$AY$1,'Дополнительная комплектация'!$AY$3) -> 160 | AL55: =CEILING('Шкафы (2)'!AL55*'Дополнительная комплектация'!$AY$1,'Дополнительная комплектация'!$AY$3) -> 270 | AM55: =CEILING('Шкафы (2)'!AM55*'Дополнительная комплектация'!$AY$1,'Дополнительная комплектация'!$AY$3) -> 370 | AN55: =CEILING('Шкафы (2)'!AN55*'Дополнительная комплектация'!$AY$1,'Дополнительная комплектация'!$AY$3) -> 10 | AO55: =CEILING('Шкафы (2)'!AO55*'Дополнительная комплектация'!$AY$1,'Дополнительная комплектация'!$AY$3) -> 20 | AP55: =CEILING('Шкафы (2)'!AP55*'Дополнительная комплектация'!$AY$1,'Дополнительная комплектация'!$AY$3) -> 40 | AQ55: =CEILING('Шкафы (2)'!AQ55*'Дополнительная комплектация'!$AY$1,'Дополнительная комплектация'!$AY$3) -> 50 | AR55: =CEILING('Шкафы (2)'!AR55*'Дополнительная комплектация'!$AY$1,'Дополнительная комплектация'!$AY$3) -> 80 | AS55: L=400
D56: L=450 | E56: =CEILING('Шкафы (2)'!E56*'Дополнительная комплектация'!$AY$1,'Дополнительная комплектация'!$AY$3) -> 1966 | F56: =CEILING('Шкафы (2)'!F56*'Дополнительная комплектация'!$AY$1,'Дополнительная комплектация'!$AY$3) -> 2706 | G56: =CEILING('Шкафы (2)'!G56*'Дополнительная комплектация'!$AY$1,'Дополнительная комплектация'!$AY$3) -> 2126 | H56: =CEILING('Шкафы (2)'!H56*'Дополнительная комплектация'!$AY$1,'Дополнительная комплектация'!$AY$3) -> 2866 | I56: =CEILING('Шкафы (2)'!I56*'Дополнительная комплектация'!$AY$1,'Дополнительная комплектация'!$AY$3) -> 2406 | J56: =CEILING('Шкафы (2)'!J56*'Дополнительная комплектация'!$AY$1,'Дополнительная комплектация'!$AY$3) -> 3506 | K56: =CEILING('Шкафы (2)'!K56*'Дополнительная комплектация'!$AY$1,'Дополнительная комплектация'!$AY$3) -> 1825 | L56: =CEILING('Шкафы (2)'!L56*'Дополнительная комплектация'!$AY$1,'Дополнительная комплектация'!$AY$3) -> 5076 | M56: =CEILING('Шкафы (2)'!M56*'Дополнительная комплектация'!$AY$1,'Дополнительная комплектация'!$AY$3) -> 5806 | N56: =CEILING('Шкафы (2)'!N56*'Дополнительная комплектация'!$AY$1,'Дополнительная комплектация'!$AY$3) -> 1585 | O56: =CEILING('Шкафы (2)'!O56*'Дополнительная комплектация'!$AY$1,'Дополнительная комплектация'!$AY$3) -> 1605 | P56: =CEILING('Шкафы (2)'!P56*'Дополнительная комплектация'!$AY$1,'Дополнительная комплектация'!$AY$3) -> 1645 | Q56: =CEILING('Шкафы (2)'!Q56*'Дополнительная комплектация'!$AY$1,'Дополнительная комплектация'!$AY$3) -> 2625 | R56: =CEILING('Шкафы (2)'!R56*'Дополнительная комплектация'!$AY$1,'Дополнительная комплектация'!$AY$3) -> 3115 | S56: =CEILING('Шкафы (2)'!S56*'Дополнительная комплектация'!$AY$1,'Дополнительная комплектация'!$AY$3) -> 2035 | T56: =CEILING('Шкафы (2)'!T56*'Дополнительная комплектация'!$AY$1,'Дополнительная комплектация'!$AY$3) -> 2435 | U56: =CEILING('Шкафы (2)'!U56*'Дополнительная комплектация'!$AY$1,'Дополнительная комплектация'!$AY$3) -> 2655 | V56: =CEILING('Шкафы (2)'!V56*'Дополнительная комплектация'!$AY$1,'Дополнительная комплектация'!$AY$3) -> 2835 | W56: =CEILING('Шкафы (2)'!W56*'Дополнительная комплектация'!$AY$1,'Дополнительная комплектация'!$AY$3) -> 17 | X56: =CEILING('Шкафы (2)'!X56*'Дополнительная комплектация'!$AY$1,'Дополнительная комплектация'!$AY$3) -> 43 | Y56: =CEILING('Шкафы (2)'!Y56*'Дополнительная комплектация'!$AY$1,'Дополнительная комплектация'!$AY$3) -> 87 | Z56: =CEILING('Шкафы (2)'!Z56*'Дополнительная комплектация'!$AY$1,'Дополнительная комплектация'!$AY$3) -> 234 | AA56: =CEILING('Шкафы (2)'!AA56*'Дополнительная комплектация'!$AY$1,'Дополнительная комплектация'!$AY$3) -> 277 | AB56: =CEILING('Шкафы (2)'!AB56*'Дополнительная комплектация'!$AY$1,'Дополнительная комплектация'!$AY$3) -> 455 | AC56: =CEILING('Шкафы (2)'!AC56*'Дополнительная комплектация'!$AY$1,'Дополнительная комплектация'!$AY$3) -> 615 | AD56: =CEILING('Шкафы (2)'!AD56*'Дополнительная комплектация'!$AY$1,'Дополнительная комплектация'!$AY$3) -> 842 | AE56: =CEILING('Шкафы (2)'!AE56*'Дополнительная комплектация'!$AY$1,'Дополнительная комплектация'!$AY$3) -> 979 | AF56: * | AG56: =CEILING('Шкафы (2)'!AG56*'Дополнительная комплектация'!$AY$1,'Дополнительная комплектация'!$AY$3) -> 10 | AH56: =CEILING('Шкафы (2)'!AH56*'Дополнительная комплектация'!$AY$1,'Дополнительная комплектация'!$AY$3) -> 30 | AI56: =CEILING('Шкафы (2)'!AI56*'Дополнительная комплектация'!$AY$1,'Дополнительная комплектация'!$AY$3) -> 60 | AJ56: =CEILING('Шкафы (2)'!AJ56*'Дополнительная комплектация'!$AY$1,'Дополнительная комплектация'!$AY$3) -> 170 | AK56: =CEILING('Шкафы (2)'!AK56*'Дополнительная комплектация'!$AY$1,'Дополнительная комплектация'!$AY$3) -> 200 | AL56: =CEILING('Шкафы (2)'!AL56*'Дополнительная комплектация'!$AY$1,'Дополнительная комплектация'!$AY$3) -> 330 | AM56: =CEILING('Шкафы (2)'!AM56*'Дополнительная комплектация'!$AY$1,'Дополнительная комплектация'!$AY$3) -> 440 | AN56: =CEILING('Шкафы (2)'!AN56*'Дополнительная комплектация'!$AY$1,'Дополнительная комплектация'!$AY$3) -> 0 | AO56: =CEILING('Шкафы (2)'!AO56*'Дополнительная комплектация'!$AY$1,'Дополнительная комплектация'!$AY$3) -> 10 | AP56: =CEILING('Шкафы (2)'!AP56*'Дополнительная комплектация'!$AY$1,'Дополнительная комплектация'!$AY$3) -> 40 | AQ56: =CEILING('Шкафы (2)'!AQ56*'Дополнительная комплектация'!$AY$1,'Дополнительная комплектация'!$AY$3) -> 50 | AR56: =CEILING('Шкафы (2)'!AR56*'Дополнительная комплектация'!$AY$1,'Дополнительная комплектация'!$AY$3) -> 80 | AS56: L=450
D57: L=500* | E57: =CEILING('Шкафы (2)'!E57*'Дополнительная комплектация'!$AY$1,'Дополнительная комплектация'!$AY$3) -> 2087 | F57: =CEILING('Шкафы (2)'!F57*'Дополнительная комплектация'!$AY$1,'Дополнительная комплектация'!$AY$3) -> 2907 | G57: =CEILING('Шкафы (2)'!G57*'Дополнительная комплектация'!$AY$1,'Дополнительная комплектация'!$AY$3) -> 2267 | H57: =CEILING('Шкафы (2)'!H57*'Дополнительная комплектация'!$AY$1,'Дополнительная комплектация'!$AY$3) -> 3077 | I57: =CEILING('Шкафы (2)'!I57*'Дополнительная комплектация'!$AY$1,'Дополнительная комплектация'!$AY$3) -> 2577 | J57: =CEILING('Шкафы (2)'!J57*'Дополнительная комплектация'!$AY$1,'Дополнительная комплектация'!$AY$3) -> 3787 | K57: =CEILING('Шкафы (2)'!K57*'Дополнительная комплектация'!$AY$1,'Дополнительная комплектация'!$AY$3) -> 1888 | L57: =CEILING('Шкафы (2)'!L57*'Дополнительная комплектация'!$AY$1,'Дополнительная комплектация'!$AY$3) -> 5537 | M57: =CEILING('Шкафы (2)'!M57*'Дополнительная комплектация'!$AY$1,'Дополнительная комплектация'!$AY$3) -> 6357 | N57: =CEILING('Шкафы (2)'!N57*'Дополнительная комплектация'!$AY$1,'Дополнительная комплектация'!$AY$3) -> 1648 | O57: =CEILING('Шкафы (2)'!O57*'Дополнительная комплектация'!$AY$1,'Дополнительная комплектация'!$AY$3) -> 1678 | P57: =CEILING('Шкафы (2)'!P57*'Дополнительная комплектация'!$AY$1,'Дополнительная комплектация'!$AY$3) -> 1718 | Q57: =CEILING('Шкафы (2)'!Q57*'Дополнительная комплектация'!$AY$1,'Дополнительная комплектация'!$AY$3) -> 2798 | R57: =CEILING('Шкафы (2)'!R57*'Дополнительная комплектация'!$AY$1,'Дополнительная комплектация'!$AY$3) -> 3308 | S57: =CEILING('Шкафы (2)'!S57*'Дополнительная комплектация'!$AY$1,'Дополнительная комплектация'!$AY$3) -> 2108 | T57: =CEILING('Шкафы (2)'!T57*'Дополнительная комплектация'!$AY$1,'Дополнительная комплектация'!$AY$3) -> 2538 | U57: =CEILING('Шкафы (2)'!U57*'Дополнительная комплектация'!$AY$1,'Дополнительная комплектация'!$AY$3) -> 2758 | V57: =CEILING('Шкафы (2)'!V57*'Дополнительная комплектация'!$AY$1,'Дополнительная комплектация'!$AY$3) -> 2948 | W57: =CEILING('Шкафы (2)'!W57*'Дополнительная комплектация'!$AY$1,'Дополнительная комплектация'!$AY$3) -> 20 | X57: =CEILING('Шкафы (2)'!X57*'Дополнительная комплектация'!$AY$1,'Дополнительная комплектация'!$AY$3) -> 50 | Y57: =CEILING('Шкафы (2)'!Y57*'Дополнительная комплектация'!$AY$1,'Дополнительная комплектация'!$AY$3) -> 100 | Z57: =CEILING('Шкафы (2)'!Z57*'Дополнительная комплектация'!$AY$1,'Дополнительная комплектация'!$AY$3) -> 268 | AA57: =CEILING('Шкафы (2)'!AA57*'Дополнительная комплектация'!$AY$1,'Дополнительная комплектация'!$AY$3) -> 317 | AB57: =CEILING('Шкафы (2)'!AB57*'Дополнительная комплектация'!$AY$1,'Дополнительная комплектация'!$AY$3) -> 521 | AC57: =CEILING('Шкафы (2)'!AC57*'Дополнительная комплектация'!$AY$1,'Дополнительная комплектация'!$AY$3) -> 704 | AD57: =CEILING('Шкафы (2)'!AD57*'Дополнительная комплектация'!$AY$1,'Дополнительная комплектация'!$AY$3) -> 939 | AE57: =CEILING('Шкафы (2)'!AE57*'Дополнительная комплектация'!$AY$1,'Дополнительная комплектация'!$AY$3) -> 1072 | AF57: =CEILING('Шкафы (2)'!AF57*'Дополнительная комплектация'!$AY$1,'Дополнительная комплектация'!$AY$3) -> 1790 | AG57: =CEILING('Шкафы (2)'!AG57*'Дополнительная комплектация'!$AY$1,'Дополнительная комплектация'!$AY$3) -> 10 | AH57: =CEILING('Шкафы (2)'!AH57*'Дополнительная комплектация'!$AY$1,'Дополнительная комплектация'!$AY$3) -> 30 | AI57: =CEILING('Шкафы (2)'!AI57*'Дополнительная комплектация'!$AY$1,'Дополнительная комплектация'!$AY$3) -> 70 | AJ57: =CEILING('Шкафы (2)'!AJ57*'Дополнительная комплектация'!$AY$1,'Дополнительная комплектация'!$AY$3) -> 200 | AK57: =CEILING('Шкафы (2)'!AK57*'Дополнительная комплектация'!$AY$1,'Дополнительная комплектация'!$AY$3) -> 230 | AL57: =CEILING('Шкафы (2)'!AL57*'Дополнительная комплектация'!$AY$1,'Дополнительная комплектация'!$AY$3) -> 390 | AM57: =CEILING('Шкафы (2)'!AM57*'Дополнительная комплектация'!$AY$1,'Дополнительная комплектация'!$AY$3) -> 520 | AN57: =CEILING('Шкафы (2)'!AN57*'Дополнительная комплектация'!$AY$1,'Дополнительная комплектация'!$AY$3) -> 10 | AO57: =CEILING('Шкафы (2)'!AO57*'Дополнительная комплектация'!$AY$1,'Дополнительная комплектация'!$AY$3) -> 20 | AP57: =CEILING('Шкафы (2)'!AP57*'Дополнительная комплектация'!$AY$1,'Дополнительная комплектация'!$AY$3) -> 50 | AQ57: =CEILING('Шкафы (2)'!AQ57*'Дополнительная комплектация'!$AY$1,'Дополнительная комплектация'!$AY$3) -> 60 | AR57: =CEILING('Шкафы (2)'!AR57*'Дополнительная комплектация'!$AY$1,'Дополнительная комплектация'!$AY$3) -> 100 | AS57: L=500*
D58: L=600* | E58: =CEILING('Шкафы (2)'!E58*'Дополнительная комплектация'!$AY$1,'Дополнительная комплектация'!$AY$3) -> 2322 | F58: =CEILING('Шкафы (2)'!F58*'Дополнительная комплектация'!$AY$1,'Дополнительная комплектация'!$AY$3) -> 3302 | G58: =CEILING('Шкафы (2)'!G58*'Дополнительная комплектация'!$AY$1,'Дополнительная комплектация'!$AY$3) -> 2532 | H58: =CEILING('Шкафы (2)'!H58*'Дополнительная комплектация'!$AY$1,'Дополнительная комплектация'!$AY$3) -> 3512 | I58: =CEILING('Шкафы (2)'!I58*'Дополнительная комплектация'!$AY$1,'Дополнительная комплектация'!$AY$3) -> 2902 | J58: =CEILING('Шкафы (2)'!J58*'Дополнительная комплектация'!$AY$1,'Дополнительная комплектация'!$AY$3) -> 4372 | K58: =CEILING('Шкафы (2)'!K58*'Дополнительная комплектация'!$AY$1,'Дополнительная комплектация'!$AY$3) -> 2015 | L58: =CEILING('Шкафы (2)'!L58*'Дополнительная комплектация'!$AY$1,'Дополнительная комплектация'!$AY$3) -> 6472 | M58: =CEILING('Шкафы (2)'!M58*'Дополнительная комплектация'!$AY$1,'Дополнительная комплектация'!$AY$3) -> 7452 | N58: =CEILING('Шкафы (2)'!N58*'Дополнительная комплектация'!$AY$1,'Дополнительная комплектация'!$AY$3) -> 1785 | O58: =CEILING('Шкафы (2)'!O58*'Дополнительная комплектация'!$AY$1,'Дополнительная комплектация'!$AY$3) -> 1825 | P58: =CEILING('Шкафы (2)'!P58*'Дополнительная комплектация'!$AY$1,'Дополнительная комплектация'!$AY$3) -> 1865 | Q58: =CEILING('Шкафы (2)'!Q58*'Дополнительная комплектация'!$AY$1,'Дополнительная комплектация'!$AY$3) -> 3135 | R58: =CEILING('Шкафы (2)'!R58*'Дополнительная комплектация'!$AY$1,'Дополнительная комплектация'!$AY$3) -> 3705 | S58: =CEILING('Шкафы (2)'!S58*'Дополнительная комплектация'!$AY$1,'Дополнительная комплектация'!$AY$3) -> 2255 | T58: =CEILING('Шкафы (2)'!T58*'Дополнительная комплектация'!$AY$1,'Дополнительная комплектация'!$AY$3) -> 2725 | U58: =CEILING('Шкафы (2)'!U58*'Дополнительная комплектация'!$AY$1,'Дополнительная комплектация'!$AY$3) -> 2975 | V58: =CEILING('Шкафы (2)'!V58*'Дополнительная комплектация'!$AY$1,'Дополнительная комплектация'!$AY$3) -> 3185 | W58: =CEILING('Шкафы (2)'!W58*'Дополнительная комплектация'!$AY$1,'Дополнительная комплектация'!$AY$3) -> 24 | X58: =CEILING('Шкафы (2)'!X58*'Дополнительная комплектация'!$AY$1,'Дополнительная комплектация'!$AY$3) -> 61 | Y58: =CEILING('Шкафы (2)'!Y58*'Дополнительная комплектация'!$AY$1,'Дополнительная комплектация'!$AY$3) -> 124 | Z58: =CEILING('Шкафы (2)'!Z58*'Дополнительная комплектация'!$AY$1,'Дополнительная комплектация'!$AY$3) -> 335 | AA58: =CEILING('Шкафы (2)'!AA58*'Дополнительная комплектация'!$AY$1,'Дополнительная комплектация'!$AY$3) -> 396 | AB58: =CEILING('Шкафы (2)'!AB58*'Дополнительная комплектация'!$AY$1,'Дополнительная комплектация'!$AY$3) -> 650 | AC58: =CEILING('Шкафы (2)'!AC58*'Дополнительная комплектация'!$AY$1,'Дополнительная комплектация'!$AY$3) -> 879 | AD58: =CEILING('Шкафы (2)'!AD58*'Дополнительная комплектация'!$AY$1,'Дополнительная комплектация'!$AY$3) -> 1130 | AE58: =CEILING('Шкафы (2)'!AE58*'Дополнительная комплектация'!$AY$1,'Дополнительная комплектация'!$AY$3) -> 1255 | AF58: =CEILING('Шкафы (2)'!AF58*'Дополнительная комплектация'!$AY$1,'Дополнительная комплектация'!$AY$3) -> 2235 | AG58: =CEILING('Шкафы (2)'!AG58*'Дополнительная комплектация'!$AY$1,'Дополнительная комплектация'!$AY$3) -> 20 | AH58: =CEILING('Шкафы (2)'!AH58*'Дополнительная комплектация'!$AY$1,'Дополнительная комплектация'!$AY$3) -> 50 | AI58: =CEILING('Шкафы (2)'!AI58*'Дополнительная комплектация'!$AY$1,'Дополнительная комплектация'!$AY$3) -> 90 | AJ58: =CEILING('Шкафы (2)'!AJ58*'Дополнительная комплектация'!$AY$1,'Дополнительная комплектация'!$AY$3) -> 260 | AK58: =CEILING('Шкафы (2)'!AK58*'Дополнительная комплектация'!$AY$1,'Дополнительная комплектация'!$AY$3) -> 310 | AL58: =CEILING('Шкафы (2)'!AL58*'Дополнительная комплектация'!$AY$1,'Дополнительная комплектация'!$AY$3) -> 500 | AM58: =CEILING('Шкафы (2)'!AM58*'Дополнительная комплектация'!$AY$1,'Дополнительная комплектация'!$AY$3) -> 680 | AN58: =CEILING('Шкафы (2)'!AN58*'Дополнительная комплектация'!$AY$1,'Дополнительная комплектация'!$AY$3) -> 10 | AO58: =CEILING('Шкафы (2)'!AO58*'Дополнительная комплектация'!$AY$1,'Дополнительная комплектация'!$AY$3) -> 20 | AP58: =CEILING('Шкафы (2)'!AP58*'Дополнительная комплектация'!$AY$1,'Дополнительная комплектация'!$AY$3) -> 60 | AQ58: =CEILING('Шкафы (2)'!AQ58*'Дополнительная комплектация'!$AY$1,'Дополнительная комплектация'!$AY$3) -> 70 | AR58: =CEILING('Шкафы (2)'!AR58*'Дополнительная комплектация'!$AY$1,'Дополнительная комплектация'!$AY$3) -> 120 | AS58: L=600*
C59: Шкаф Н=920 1 стекло Л/ПР | D59: L=300 | E59: =CEILING('Шкафы (2)'!E59*'Дополнительная комплектация'!$AY$1,'Дополнительная комплектация'!$AY$3) -> 1901 | F59: =CEILING('Шкафы (2)'!F59*'Дополнительная комплектация'!$AY$1,'Дополнительная комплектация'!$AY$3) -> 2521 | G59: =CEILING('Шкафы (2)'!G59*'Дополнительная комплектация'!$AY$1,'Дополнительная комплектация'!$AY$3) -> 2031 | H59: =CEILING('Шкафы (2)'!H59*'Дополнительная комплектация'!$AY$1,'Дополнительная комплектация'!$AY$3) -> 2661 | I59: =CEILING('Шкафы (2)'!I59*'Дополнительная комплектация'!$AY$1,'Дополнительная комплектация'!$AY$3) -> 2271 | J59: =CEILING('Шкафы (2)'!J59*'Дополнительная комплектация'!$AY$1,'Дополнительная комплектация'!$AY$3) -> 3201 | K59: =CEILING('Шкафы (2)'!K59*'Дополнительная комплектация'!$AY$1,'Дополнительная комплектация'!$AY$3) -> 1862 | L59: =CEILING('Шкафы (2)'!L59*'Дополнительная комплектация'!$AY$1,'Дополнительная комплектация'!$AY$3) -> 4531 | M59: =CEILING('Шкафы (2)'!M59*'Дополнительная комплектация'!$AY$1,'Дополнительная комплектация'!$AY$3) -> 5161 | N59: =CEILING('Шкафы (2)'!N59*'Дополнительная комплектация'!$AY$1,'Дополнительная комплектация'!$AY$3) -> 1582 | O59: =CEILING('Шкафы (2)'!O59*'Дополнительная комплектация'!$AY$1,'Дополнительная комплектация'!$AY$3) -> 1602 | P59: =CEILING('Шкафы (2)'!P59*'Дополнительная комплектация'!$AY$1,'Дополнительная комплектация'!$AY$3) -> 1632 | Q59: =CEILING('Шкафы (2)'!Q59*'Дополнительная комплектация'!$AY$1,'Дополнительная комплектация'!$AY$3) -> 2522 | R59: =CEILING('Шкафы (2)'!R59*'Дополнительная комплектация'!$AY$1,'Дополнительная комплектация'!$AY$3) -> 2972 | S59: =CEILING('Шкафы (2)'!S59*'Дополнительная комплектация'!$AY$1,'Дополнительная комплектация'!$AY$3) -> 2072 | T59: =CEILING('Шкафы (2)'!T59*'Дополнительная комплектация'!$AY$1,'Дополнительная комплектация'!$AY$3) -> 2502 | U59: =CEILING('Шкафы (2)'!U59*'Дополнительная комплектация'!$AY$1,'Дополнительная комплектация'!$AY$3) -> 2722 | V59: =CEILING('Шкафы (2)'!V59*'Дополнительная комплектация'!$AY$1,'Дополнительная комплектация'!$AY$3) -> 2912 | W59: =CEILING('Шкафы (2)'!W59*'Дополнительная комплектация'!$AY$1,'Дополнительная комплектация'!$AY$3) -> 13 | X59: =CEILING('Шкафы (2)'!X59*'Дополнительная комплектация'!$AY$1,'Дополнительная комплектация'!$AY$3) -> 32 | Y59: =CEILING('Шкафы (2)'!Y59*'Дополнительная комплектация'!$AY$1,'Дополнительная комплектация'!$AY$3) -> 65 | Z59: =CEILING('Шкафы (2)'!Z59*'Дополнительная комплектация'!$AY$1,'Дополнительная комплектация'!$AY$3) -> 177 | AA59: =CEILING('Шкафы (2)'!AA59*'Дополнительная комплектация'!$AY$1,'Дополнительная комплектация'!$AY$3) -> 209 | AB59: =CEILING('Шкафы (2)'!AB59*'Дополнительная комплектация'!$AY$1,'Дополнительная комплектация'!$AY$3) -> 344 | AC59: =CEILING('Шкафы (2)'!AC59*'Дополнительная комплектация'!$AY$1,'Дополнительная комплектация'!$AY$3) -> 465 | AD59: =CEILING('Шкафы (2)'!AD59*'Дополнительная комплектация'!$AY$1,'Дополнительная комплектация'!$AY$3) -> 678 | AE59: =CEILING('Шкафы (2)'!AE59*'Дополнительная комплектация'!$AY$1,'Дополнительная комплектация'!$AY$3) -> 895 | AF59: * | AG59: =CEILING('Шкафы (2)'!AG59*'Дополнительная комплектация'!$AY$1,'Дополнительная комплектация'!$AY$3) -> 0 | AH59: =CEILING('Шкафы (2)'!AH59*'Дополнительная комплектация'!$AY$1,'Дополнительная комплектация'!$AY$3) -> 20 | AI59: =CEILING('Шкафы (2)'!AI59*'Дополнительная комплектация'!$AY$1,'Дополнительная комплектация'!$AY$3) -> 40 | AJ59: =CEILING('Шкафы (2)'!AJ59*'Дополнительная комплектация'!$AY$1,'Дополнительная комплектация'!$AY$3) -> 110 | AK59: =CEILING('Шкафы (2)'!AK59*'Дополнительная комплектация'!$AY$1,'Дополнительная комплектация'!$AY$3) -> 130 | AL59: =CEILING('Шкафы (2)'!AL59*'Дополнительная комплектация'!$AY$1,'Дополнительная комплектация'!$AY$3) -> 210 | AM59: =CEILING('Шкафы (2)'!AM59*'Дополнительная комплектация'!$AY$1,'Дополнительная комплектация'!$AY$3) -> 280 | AN59: =CEILING('Шкафы (2)'!AN59*'Дополнительная комплектация'!$AY$1,'Дополнительная комплектация'!$AY$3) -> 0 | AO59: =CEILING('Шкафы (2)'!AO59*'Дополнительная комплектация'!$AY$1,'Дополнительная комплектация'!$AY$3) -> 10 | AP59: =CEILING('Шкафы (2)'!AP59*'Дополнительная комплектация'!$AY$1,'Дополнительная комплектация'!$AY$3) -> 30 | AQ59: =CEILING('Шкафы (2)'!AQ59*'Дополнительная комплектация'!$AY$1,'Дополнительная комплектация'!$AY$3) -> 30 | AR59: =CEILING('Шкафы (2)'!AR59*'Дополнительная комплектация'!$AY$1,'Дополнительная комплектация'!$AY$3) -> 60 | AS59: L=300
D60: L=350 | E60: =CEILING('Шкафы (2)'!E60*'Дополнительная комплектация'!$AY$1,'Дополнительная комплектация'!$AY$3) -> 2050 | F60: =CEILING('Шкафы (2)'!F60*'Дополнительная комплектация'!$AY$1,'Дополнительная комплектация'!$AY$3) -> 2780 | G60: =CEILING('Шкафы (2)'!G60*'Дополнительная комплектация'!$AY$1,'Дополнительная комплектация'!$AY$3) -> 2210 | H60: =CEILING('Шкафы (2)'!H60*'Дополнительная комплектация'!$AY$1,'Дополнительная комплектация'!$AY$3) -> 2940 | I60: =CEILING('Шкафы (2)'!I60*'Дополнительная комплектация'!$AY$1,'Дополнительная комплектация'!$AY$3) -> 2480 | J60: =CEILING('Шкафы (2)'!J60*'Дополнительная комплектация'!$AY$1,'Дополнительная комплектация'!$AY$3) -> 3570 | K60: =CEILING('Шкафы (2)'!K60*'Дополнительная комплектация'!$AY$1,'Дополнительная комплектация'!$AY$3) -> 1927 | L60: =CEILING('Шкафы (2)'!L60*'Дополнительная комплектация'!$AY$1,'Дополнительная комплектация'!$AY$3) -> 5130 | M60: =CEILING('Шкафы (2)'!M60*'Дополнительная комплектация'!$AY$1,'Дополнительная комплектация'!$AY$3) -> 5860 | N60: =CEILING('Шкафы (2)'!N60*'Дополнительная комплектация'!$AY$1,'Дополнительная комплектация'!$AY$3) -> 1667 | O60: =CEILING('Шкафы (2)'!O60*'Дополнительная комплектация'!$AY$1,'Дополнительная комплектация'!$AY$3) -> 1697 | P60: =CEILING('Шкафы (2)'!P60*'Дополнительная комплектация'!$AY$1,'Дополнительная комплектация'!$AY$3) -> 1737 | Q60: =CEILING('Шкафы (2)'!Q60*'Дополнительная комплектация'!$AY$1,'Дополнительная комплектация'!$AY$3) -> 2727 | R60: =CEILING('Шкафы (2)'!R60*'Дополнительная комплектация'!$AY$1,'Дополнительная комплектация'!$AY$3) -> 3207 | S60: =CEILING('Шкафы (2)'!S60*'Дополнительная комплектация'!$AY$1,'Дополнительная комплектация'!$AY$3) -> 2167 | T60: =CEILING('Шкафы (2)'!T60*'Дополнительная комплектация'!$AY$1,'Дополнительная комплектация'!$AY$3) -> 2617 | U60: =CEILING('Шкафы (2)'!U60*'Дополнительная комплектация'!$AY$1,'Дополнительная комплектация'!$AY$3) -> 2847 | V60: =CEILING('Шкафы (2)'!V60*'Дополнительная комплектация'!$AY$1,'Дополнительная комплектация'!$AY$3) -> 3047 | W60: =CEILING('Шкафы (2)'!W60*'Дополнительная комплектация'!$AY$1,'Дополнительная комплектация'!$AY$3) -> 16 | X60: =CEILING('Шкафы (2)'!X60*'Дополнительная комплектация'!$AY$1,'Дополнительная комплектация'!$AY$3) -> 41 | Y60: =CEILING('Шкафы (2)'!Y60*'Дополнительная комплектация'!$AY$1,'Дополнительная комплектация'!$AY$3) -> 83 | Z60: =CEILING('Шкафы (2)'!Z60*'Дополнительная комплектация'!$AY$1,'Дополнительная комплектация'!$AY$3) -> 222 | AA60: =CEILING('Шкафы (2)'!AA60*'Дополнительная комплектация'!$AY$1,'Дополнительная комплектация'!$AY$3) -> 263 | AB60: =CEILING('Шкафы (2)'!AB60*'Дополнительная комплектация'!$AY$1,'Дополнительная комплектация'!$AY$3) -> 431 | AC60: =CEILING('Шкафы (2)'!AC60*'Дополнительная комплектация'!$AY$1,'Дополнительная комплектация'!$AY$3) -> 582 | AD60: =CEILING('Шкафы (2)'!AD60*'Дополнительная комплектация'!$AY$1,'Дополнительная комплектация'!$AY$3) -> 806 | AE60: =CEILING('Шкафы (2)'!AE60*'Дополнительная комплектация'!$AY$1,'Дополнительная комплектация'!$AY$3) -> 1009 | AF60: * | AG60: =CEILING('Шкафы (2)'!AG60*'Дополнительная комплектация'!$AY$1,'Дополнительная комплектация'!$AY$3) -> 10 | AH60: =CEILING('Шкафы (2)'!AH60*'Дополнительная комплектация'!$AY$1,'Дополнительная комплектация'!$AY$3) -> 30 | AI60: =CEILING('Шкафы (2)'!AI60*'Дополнительная комплектация'!$AY$1,'Дополнительная комплектация'!$AY$3) -> 60 | AJ60: =CEILING('Шкафы (2)'!AJ60*'Дополнительная комплектация'!$AY$1,'Дополнительная комплектация'!$AY$3) -> 150 | AK60: =CEILING('Шкафы (2)'!AK60*'Дополнительная комплектация'!$AY$1,'Дополнительная комплектация'!$AY$3) -> 180 | AL60: =CEILING('Шкафы (2)'!AL60*'Дополнительная комплектация'!$AY$1,'Дополнительная комплектация'!$AY$3) -> 300 | AM60: =CEILING('Шкафы (2)'!AM60*'Дополнительная комплектация'!$AY$1,'Дополнительная комплектация'!$AY$3) -> 400 | AN60: =CEILING('Шкафы (2)'!AN60*'Дополнительная комплектация'!$AY$1,'Дополнительная комплектация'!$AY$3) -> 10 | AO60: =CEILING('Шкафы (2)'!AO60*'Дополнительная комплектация'!$AY$1,'Дополнительная комплектация'!$AY$3) -> 20 | AP60: =CEILING('Шкафы (2)'!AP60*'Дополнительная комплектация'!$AY$1,'Дополнительная комплектация'!$AY$3) -> 40 | AQ60: =CEILING('Шкафы (2)'!AQ60*'Дополнительная комплектация'!$AY$1,'Дополнительная комплектация'!$AY$3) -> 40 | AR60: =CEILING('Шкафы (2)'!AR60*'Дополнительная комплектация'!$AY$1,'Дополнительная комплектация'!$AY$3) -> 70 | AS60: L=350
D61: L=400 | E61: =CEILING('Шкафы (2)'!E61*'Дополнительная комплектация'!$AY$1,'Дополнительная комплектация'!$AY$3) -> 2199 | F61: =CEILING('Шкафы (2)'!F61*'Дополнительная комплектация'!$AY$1,'Дополнительная комплектация'!$AY$3) -> 3039 | G61: =CEILING('Шкафы (2)'!G61*'Дополнительная комплектация'!$AY$1,'Дополнительная комплектация'!$AY$3) -> 2379 | H61: =CEILING('Шкафы (2)'!H61*'Дополнительная комплектация'!$AY$1,'Дополнительная комплектация'!$AY$3) -> 3219 | I61: =CEILING('Шкафы (2)'!I61*'Дополнительная комплектация'!$AY$1,'Дополнительная комплектация'!$AY$3) -> 2699 | J61: =CEILING('Шкафы (2)'!J61*'Дополнительная комплектация'!$AY$1,'Дополнительная комплектация'!$AY$3) -> 3939 | K61: =CEILING('Шкафы (2)'!K61*'Дополнительная комплектация'!$AY$1,'Дополнительная комплектация'!$AY$3) -> 2011 | L61: =CEILING('Шкафы (2)'!L61*'Дополнительная комплектация'!$AY$1,'Дополнительная комплектация'!$AY$3) -> 5729 | M61: =CEILING('Шкафы (2)'!M61*'Дополнительная комплектация'!$AY$1,'Дополнительная комплектация'!$AY$3) -> 6559 | N61: =CEILING('Шкафы (2)'!N61*'Дополнительная комплектация'!$AY$1,'Дополнительная комплектация'!$AY$3) -> 1761 | O61: =CEILING('Шкафы (2)'!O61*'Дополнительная комплектация'!$AY$1,'Дополнительная комплектация'!$AY$3) -> 1791 | P61: =CEILING('Шкафы (2)'!P61*'Дополнительная комплектация'!$AY$1,'Дополнительная комплектация'!$AY$3) -> 1831 | Q61: =CEILING('Шкафы (2)'!Q61*'Дополнительная комплектация'!$AY$1,'Дополнительная комплектация'!$AY$3) -> 2941 | R61: =CEILING('Шкафы (2)'!R61*'Дополнительная комплектация'!$AY$1,'Дополнительная комплектация'!$AY$3) -> 3451 | S61: =CEILING('Шкафы (2)'!S61*'Дополнительная комплектация'!$AY$1,'Дополнительная комплектация'!$AY$3) -> 2251 | T61: =CEILING('Шкафы (2)'!T61*'Дополнительная комплектация'!$AY$1,'Дополнительная комплектация'!$AY$3) -> 2721 | U61: =CEILING('Шкафы (2)'!U61*'Дополнительная комплектация'!$AY$1,'Дополнительная комплектация'!$AY$3) -> 2971 | V61: =CEILING('Шкафы (2)'!V61*'Дополнительная комплектация'!$AY$1,'Дополнительная комплектация'!$AY$3) -> 3181 | W61: =CEILING('Шкафы (2)'!W61*'Дополнительная комплектация'!$AY$1,'Дополнительная комплектация'!$AY$3) -> 19 | X61: =CEILING('Шкафы (2)'!X61*'Дополнительная комплектация'!$AY$1,'Дополнительная комплектация'!$AY$3) -> 49 | Y61: =CEILING('Шкафы (2)'!Y61*'Дополнительная комплектация'!$AY$1,'Дополнительная комплектация'!$AY$3) -> 99 | Z61: =CEILING('Шкафы (2)'!Z61*'Дополнительная комплектация'!$AY$1,'Дополнительная комплектация'!$AY$3) -> 266 | AA61: =CEILING('Шкафы (2)'!AA61*'Дополнительная комплектация'!$AY$1,'Дополнительная комплектация'!$AY$3) -> 315 | AB61: =CEILING('Шкафы (2)'!AB61*'Дополнительная комплектация'!$AY$1,'Дополнительная комплектация'!$AY$3) -> 516 | AC61: =CEILING('Шкафы (2)'!AC61*'Дополнительная комплектация'!$AY$1,'Дополнительная комплектация'!$AY$3) -> 698 | AD61: =CEILING('Шкафы (2)'!AD61*'Дополнительная комплектация'!$AY$1,'Дополнительная комплектация'!$AY$3) -> 932 | AE61: =CEILING('Шкафы (2)'!AE61*'Дополнительная комплектация'!$AY$1,'Дополнительная комплектация'!$AY$3) -> 1121 | AF61: =CEILING('Шкафы (2)'!AF61*'Дополнительная комплектация'!$AY$1,'Дополнительная комплектация'!$AY$3) -> 1775 | AG61: =CEILING('Шкафы (2)'!AG61*'Дополнительная комплектация'!$AY$1,'Дополнительная комплектация'!$AY$3) -> 10 | AH61: =CEILING('Шкафы (2)'!AH61*'Дополнительная комплектация'!$AY$1,'Дополнительная комплектация'!$AY$3) -> 30 | AI61: =CEILING('Шкафы (2)'!AI61*'Дополнительная комплектация'!$AY$1,'Дополнительная комплектация'!$AY$3) -> 70 | AJ61: =CEILING('Шкафы (2)'!AJ61*'Дополнительная комплектация'!$AY$1,'Дополнительная комплектация'!$AY$3) -> 190 | AK61: =CEILING('Шкафы (2)'!AK61*'Дополнительная комплектация'!$AY$1,'Дополнительная комплектация'!$AY$3) -> 230 | AL61: =CEILING('Шкафы (2)'!AL61*'Дополнительная комплектация'!$AY$1,'Дополнительная комплектация'!$AY$3) -> 370 | AM61: =CEILING('Шкафы (2)'!AM61*'Дополнительная комплектация'!$AY$1,'Дополнительная комплектация'!$AY$3) -> 500 | AN61: =CEILING('Шкафы (2)'!AN61*'Дополнительная комплектация'!$AY$1,'Дополнительная комплектация'!$AY$3) -> 10 | AO61: =CEILING('Шкафы (2)'!AO61*'Дополнительная комплектация'!$AY$1,'Дополнительная комплектация'!$AY$3) -> 10 | AP61: =CEILING('Шкафы (2)'!AP61*'Дополнительная комплектация'!$AY$1,'Дополнительная комплектация'!$AY$3) -> 40 | AQ61: =CEILING('Шкафы (2)'!AQ61*'Дополнительная комплектация'!$AY$1,'Дополнительная комплектация'!$AY$3) -> 50 | AR61: =CEILING('Шкафы (2)'!AR61*'Дополнительная комплектация'!$AY$1,'Дополнительная комплектация'!$AY$3) -> 80 | AS61: L=400
D62: L=450 | E62: =CEILING('Шкафы (2)'!E62*'Дополнительная комплектация'!$AY$1,'Дополнительная комплектация'!$AY$3) -> 2358 | F62: =CEILING('Шкафы (2)'!F62*'Дополнительная комплектация'!$AY$1,'Дополнительная комплектация'!$AY$3) -> 3298 | G62: =CEILING('Шкафы (2)'!G62*'Дополнительная комплектация'!$AY$1,'Дополнительная комплектация'!$AY$3) -> 2558 | H62: =CEILING('Шкафы (2)'!H62*'Дополнительная комплектация'!$AY$1,'Дополнительная комплектация'!$AY$3) -> 3498 | I62: =CEILING('Шкафы (2)'!I62*'Дополнительная комплектация'!$AY$1,'Дополнительная комплектация'!$AY$3) -> 2918 | J62: =CEILING('Шкафы (2)'!J62*'Дополнительная комплектация'!$AY$1,'Дополнительная комплектация'!$AY$3) -> 4318 | K62: =CEILING('Шкафы (2)'!K62*'Дополнительная комплектация'!$AY$1,'Дополнительная комплектация'!$AY$3) -> 2095 | L62: =CEILING('Шкафы (2)'!L62*'Дополнительная комплектация'!$AY$1,'Дополнительная комплектация'!$AY$3) -> 6328 | M62: =CEILING('Шкафы (2)'!M62*'Дополнительная комплектация'!$AY$1,'Дополнительная комплектация'!$AY$3) -> 7268 | N62: =CEILING('Шкафы (2)'!N62*'Дополнительная комплектация'!$AY$1,'Дополнительная комплектация'!$AY$3) -> 1855 | O62: =CEILING('Шкафы (2)'!O62*'Дополнительная комплектация'!$AY$1,'Дополнительная комплектация'!$AY$3) -> 1885 | P62: =CEILING('Шкафы (2)'!P62*'Дополнительная комплектация'!$AY$1,'Дополнительная комплектация'!$AY$3) -> 1925 | Q62: =CEILING('Шкафы (2)'!Q62*'Дополнительная комплектация'!$AY$1,'Дополнительная комплектация'!$AY$3) -> 3145 | R62: =CEILING('Шкафы (2)'!R62*'Дополнительная комплектация'!$AY$1,'Дополнительная комплектация'!$AY$3) -> 3695 | S62: =CEILING('Шкафы (2)'!S62*'Дополнительная комплектация'!$AY$1,'Дополнительная комплектация'!$AY$3) -> 2345 | T62: =CEILING('Шкафы (2)'!T62*'Дополнительная комплектация'!$AY$1,'Дополнительная комплектация'!$AY$3) -> 2835 | U62: =CEILING('Шкафы (2)'!U62*'Дополнительная комплектация'!$AY$1,'Дополнительная комплектация'!$AY$3) -> 3095 | V62: =CEILING('Шкафы (2)'!V62*'Дополнительная комплектация'!$AY$1,'Дополнительная комплектация'!$AY$3) -> 3315 | W62: =CEILING('Шкафы (2)'!W62*'Дополнительная комплектация'!$AY$1,'Дополнительная комплектация'!$AY$3) -> 22 | X62: =CEILING('Шкафы (2)'!X62*'Дополнительная комплектация'!$AY$1,'Дополнительная комплектация'!$AY$3) -> 57 | Y62: =CEILING('Шкафы (2)'!Y62*'Дополнительная комплектация'!$AY$1,'Дополнительная комплектация'!$AY$3) -> 115 | Z62: =CEILING('Шкафы (2)'!Z62*'Дополнительная комплектация'!$AY$1,'Дополнительная комплектация'!$AY$3) -> 310 | AA62: =CEILING('Шкафы (2)'!AA62*'Дополнительная комплектация'!$AY$1,'Дополнительная комплектация'!$AY$3) -> 367 | AB62: =CEILING('Шкафы (2)'!AB62*'Дополнительная комплектация'!$AY$1,'Дополнительная комплектация'!$AY$3) -> 602 | AC62: =CEILING('Шкафы (2)'!AC62*'Дополнительная комплектация'!$AY$1,'Дополнительная комплектация'!$AY$3) -> 814 | AD62: =CEILING('Шкафы (2)'!AD62*'Дополнительная комплектация'!$AY$1,'Дополнительная комплектация'!$AY$3) -> 1059 | AE62: =CEILING('Шкафы (2)'!AE62*'Дополнительная комплектация'!$AY$1,'Дополнительная комплектация'!$AY$3) -> 1234 | AF62: * | AG62: =CEILING('Шкафы (2)'!AG62*'Дополнительная комплектация'!$AY$1,'Дополнительная комплектация'!$AY$3) -> 10 | AH62: =CEILING('Шкафы (2)'!AH62*'Дополнительная комплектация'!$AY$1,'Дополнительная комплектация'!$AY$3) -> 40 | AI62: =CEILING('Шкафы (2)'!AI62*'Дополнительная комплектация'!$AY$1,'Дополнительная комплектация'!$AY$3) -> 80 | AJ62: =CEILING('Шкафы (2)'!AJ62*'Дополнительная комплектация'!$AY$1,'Дополнительная комплектация'!$AY$3) -> 230 | AK62: =CEILING('Шкафы (2)'!AK62*'Дополнительная комплектация'!$AY$1,'Дополнительная комплектация'!$AY$3) -> 270 | AL62: =CEILING('Шкафы (2)'!AL62*'Дополнительная комплектация'!$AY$1,'Дополнительная комплектация'!$AY$3) -> 450 | AM62: =CEILING('Шкафы (2)'!AM62*'Дополнительная комплектация'!$AY$1,'Дополнительная комплектация'!$AY$3) -> 600 | AN62: =CEILING('Шкафы (2)'!AN62*'Дополнительная комплектация'!$AY$1,'Дополнительная комплектация'!$AY$3) -> 0 | AO62: =CEILING('Шкафы (2)'!AO62*'Дополнительная комплектация'!$AY$1,'Дополнительная комплектация'!$AY$3) -> 10 | AP62: =CEILING('Шкафы (2)'!AP62*'Дополнительная комплектация'!$AY$1,'Дополнительная комплектация'!$AY$3) -> 40 | AQ62: =CEILING('Шкафы (2)'!AQ62*'Дополнительная комплектация'!$AY$1,'Дополнительная комплектация'!$AY$3) -> 50 | AR62: =CEILING('Шкафы (2)'!AR62*'Дополнительная комплектация'!$AY$1,'Дополнительная комплектация'!$AY$3) -> 80 | AS62: L=450
D63: L=500* | E63: =CEILING('Шкафы (2)'!E63*'Дополнительная комплектация'!$AY$1,'Дополнительная комплектация'!$AY$3) -> 2507 | F63: =CEILING('Шкафы (2)'!F63*'Дополнительная комплектация'!$AY$1,'Дополнительная комплектация'!$AY$3) -> 3547 | G63: =CEILING('Шкафы (2)'!G63*'Дополнительная комплектация'!$AY$1,'Дополнительная комплектация'!$AY$3) -> 2727 | H63: =CEILING('Шкафы (2)'!H63*'Дополнительная комплектация'!$AY$1,'Дополнительная комплектация'!$AY$3) -> 3777 | I63: =CEILING('Шкафы (2)'!I63*'Дополнительная комплектация'!$AY$1,'Дополнительная комплектация'!$AY$3) -> 3127 | J63: =CEILING('Шкафы (2)'!J63*'Дополнительная комплектация'!$AY$1,'Дополнительная комплектация'!$AY$3) -> 4687 | K63: =CEILING('Шкафы (2)'!K63*'Дополнительная комплектация'!$AY$1,'Дополнительная комплектация'!$AY$3) -> 2170 | L63: =CEILING('Шкафы (2)'!L63*'Дополнительная комплектация'!$AY$1,'Дополнительная комплектация'!$AY$3) -> 6917 | M63: =CEILING('Шкафы (2)'!M63*'Дополнительная комплектация'!$AY$1,'Дополнительная комплектация'!$AY$3) -> 7967 | N63: =CEILING('Шкафы (2)'!N63*'Дополнительная комплектация'!$AY$1,'Дополнительная комплектация'!$AY$3) -> 1940 | O63: =CEILING('Шкафы (2)'!O63*'Дополнительная комплектация'!$AY$1,'Дополнительная комплектация'!$AY$3) -> 1980 | P63: =CEILING('Шкафы (2)'!P63*'Дополнительная комплектация'!$AY$1,'Дополнительная комплектация'!$AY$3) -> 2030 | Q63: =CEILING('Шкафы (2)'!Q63*'Дополнительная комплектация'!$AY$1,'Дополнительная комплектация'!$AY$3) -> 3360 | R63: =CEILING('Шкафы (2)'!R63*'Дополнительная комплектация'!$AY$1,'Дополнительная комплектация'!$AY$3) -> 3940 | S63: =CEILING('Шкафы (2)'!S63*'Дополнительная комплектация'!$AY$1,'Дополнительная комплектация'!$AY$3) -> 2440 | T63: =CEILING('Шкафы (2)'!T63*'Дополнительная комплектация'!$AY$1,'Дополнительная комплектация'!$AY$3) -> 2950 | U63: =CEILING('Шкафы (2)'!U63*'Дополнительная комплектация'!$AY$1,'Дополнительная комплектация'!$AY$3) -> 3220 | V63: =CEILING('Шкафы (2)'!V63*'Дополнительная комплектация'!$AY$1,'Дополнительная комплектация'!$AY$3) -> 3450 | W63: =CEILING('Шкафы (2)'!W63*'Дополнительная комплектация'!$AY$1,'Дополнительная комплектация'!$AY$3) -> 26 | X63: =CEILING('Шкафы (2)'!X63*'Дополнительная комплектация'!$AY$1,'Дополнительная комплектация'!$AY$3) -> 66 | Y63: =CEILING('Шкафы (2)'!Y63*'Дополнительная комплектация'!$AY$1,'Дополнительная комплектация'!$AY$3) -> 132 | Z63: =CEILING('Шкафы (2)'!Z63*'Дополнительная комплектация'!$AY$1,'Дополнительная комплектация'!$AY$3) -> 355 | AA63: =CEILING('Шкафы (2)'!AA63*'Дополнительная комплектация'!$AY$1,'Дополнительная комплектация'!$AY$3) -> 420 | AB63: =CEILING('Шкафы (2)'!AB63*'Дополнительная комплектация'!$AY$1,'Дополнительная комплектация'!$AY$3) -> 689 | AC63: =CEILING('Шкафы (2)'!AC63*'Дополнительная комплектация'!$AY$1,'Дополнительная комплектация'!$AY$3) -> 931 | AD63: =CEILING('Шкафы (2)'!AD63*'Дополнительная комплектация'!$AY$1,'Дополнительная комплектация'!$AY$3) -> 1187 | AE63: =CEILING('Шкафы (2)'!AE63*'Дополнительная комплектация'!$AY$1,'Дополнительная комплектация'!$AY$3) -> 1348 | AF63: =CEILING('Шкафы (2)'!AF63*'Дополнительная комплектация'!$AY$1,'Дополнительная комплектация'!$AY$3) -> 2365 | AG63: =CEILING('Шкафы (2)'!AG63*'Дополнительная комплектация'!$AY$1,'Дополнительная комплектация'!$AY$3) -> 20 | AH63: =CEILING('Шкафы (2)'!AH63*'Дополнительная комплектация'!$AY$1,'Дополнительная комплектация'!$AY$3) -> 50 | AI63: =CEILING('Шкафы (2)'!AI63*'Дополнительная комплектация'!$AY$1,'Дополнительная комплектация'!$AY$3) -> 100 | AJ63: =CEILING('Шкафы (2)'!AJ63*'Дополнительная комплектация'!$AY$1,'Дополнительная комплектация'!$AY$3) -> 280 | AK63: =CEILING('Шкафы (2)'!AK63*'Дополнительная комплектация'!$AY$1,'Дополнительная комплектация'!$AY$3) -> 330 | AL63: =CEILING('Шкафы (2)'!AL63*'Дополнительная комплектация'!$AY$1,'Дополнительная комплектация'!$AY$3) -> 530 | AM63: =CEILING('Шкафы (2)'!AM63*'Дополнительная комплектация'!$AY$1,'Дополнительная комплектация'!$AY$3) -> 720 | AN63: =CEILING('Шкафы (2)'!AN63*'Дополнительная комплектация'!$AY$1,'Дополнительная комплектация'!$AY$3) -> 10 | AO63: =CEILING('Шкафы (2)'!AO63*'Дополнительная комплектация'!$AY$1,'Дополнительная комплектация'!$AY$3) -> 20 | AP63: =CEILING('Шкафы (2)'!AP63*'Дополнительная комплектация'!$AY$1,'Дополнительная комплектация'!$AY$3) -> 50 | AQ63: =CEILING('Шкафы (2)'!AQ63*'Дополнительная комплектация'!$AY$1,'Дополнительная комплектация'!$AY$3) -> 60 | AR63: =CEILING('Шкафы (2)'!AR63*'Дополнительная комплектация'!$AY$1,'Дополнительная комплектация'!$AY$3) -> 100 | AS63: L=500*
D64: L=600* | E64: =CEILING('Шкафы (2)'!E64*'Дополнительная комплектация'!$AY$1,'Дополнительная комплектация'!$AY$3) -> 2806 | F64: =CEILING('Шкафы (2)'!F64*'Дополнительная комплектация'!$AY$1,'Дополнительная комплектация'!$AY$3) -> 4066 | G64: =CEILING('Шкафы (2)'!G64*'Дополнительная комплектация'!$AY$1,'Дополнительная комплектация'!$AY$3) -> 3086 | H64: =CEILING('Шкафы (2)'!H64*'Дополнительная комплектация'!$AY$1,'Дополнительная комплектация'!$AY$3) -> 4336 | I64: =CEILING('Шкафы (2)'!I64*'Дополнительная комплектация'!$AY$1,'Дополнительная комплектация'!$AY$3) -> 3556 | J64: =CEILING('Шкафы (2)'!J64*'Дополнительная комплектация'!$AY$1,'Дополнительная комплектация'!$AY$3) -> 5426 | K64: =CEILING('Шкафы (2)'!K64*'Дополнительная комплектация'!$AY$1,'Дополнительная комплектация'!$AY$3) -> 2339 | L64: =CEILING('Шкафы (2)'!L64*'Дополнительная комплектация'!$AY$1,'Дополнительная комплектация'!$AY$3) -> 8116 | M64: =CEILING('Шкафы (2)'!M64*'Дополнительная комплектация'!$AY$1,'Дополнительная комплектация'!$AY$3) -> 9366 | N64: =CEILING('Шкафы (2)'!N64*'Дополнительная комплектация'!$AY$1,'Дополнительная комплектация'!$AY$3) -> 2119 | O64: =CEILING('Шкафы (2)'!O64*'Дополнительная комплектация'!$AY$1,'Дополнительная комплектация'!$AY$3) -> 2169 | P64: =CEILING('Шкафы (2)'!P64*'Дополнительная комплектация'!$AY$1,'Дополнительная комплектация'!$AY$3) -> 2229 | Q64: =CEILING('Шкафы (2)'!Q64*'Дополнительная комплектация'!$AY$1,'Дополнительная комплектация'!$AY$3) -> 3779 | R64: =CEILING('Шкафы (2)'!R64*'Дополнительная комплектация'!$AY$1,'Дополнительная комплектация'!$AY$3) -> 4419 | S64: =CEILING('Шкафы (2)'!S64*'Дополнительная комплектация'!$AY$1,'Дополнительная комплектация'!$AY$3) -> 2629 | T64: =CEILING('Шкафы (2)'!T64*'Дополнительная комплектация'!$AY$1,'Дополнительная комплектация'!$AY$3) -> 3179 | U64: =CEILING('Шкафы (2)'!U64*'Дополнительная комплектация'!$AY$1,'Дополнительная комплектация'!$AY$3) -> 3469 | V64: =CEILING('Шкафы (2)'!V64*'Дополнительная комплектация'!$AY$1,'Дополнительная комплектация'!$AY$3) -> 3719 | W64: =CEILING('Шкафы (2)'!W64*'Дополнительная комплектация'!$AY$1,'Дополнительная комплектация'!$AY$3) -> 32 | X64: =CEILING('Шкафы (2)'!X64*'Дополнительная комплектация'!$AY$1,'Дополнительная комплектация'!$AY$3) -> 81 | Y64: =CEILING('Шкафы (2)'!Y64*'Дополнительная комплектация'!$AY$1,'Дополнительная комплектация'!$AY$3) -> 164 | Z64: =CEILING('Шкафы (2)'!Z64*'Дополнительная комплектация'!$AY$1,'Дополнительная комплектация'!$AY$3) -> 443 | AA64: =CEILING('Шкафы (2)'!AA64*'Дополнительная комплектация'!$AY$1,'Дополнительная комплектация'!$AY$3) -> 524 | AB64: =CEILING('Шкафы (2)'!AB64*'Дополнительная комплектация'!$AY$1,'Дополнительная комплектация'!$AY$3) -> 860 | AC64: =CEILING('Шкафы (2)'!AC64*'Дополнительная комплектация'!$AY$1,'Дополнительная комплектация'!$AY$3) -> 1163 | AD64: =CEILING('Шкафы (2)'!AD64*'Дополнительная комплектация'!$AY$1,'Дополнительная комплектация'!$AY$3) -> 1440 | AE64: =CEILING('Шкафы (2)'!AE64*'Дополнительная комплектация'!$AY$1,'Дополнительная комплектация'!$AY$3) -> 1573 | AF64: =CEILING('Шкафы (2)'!AF64*'Дополнительная комплектация'!$AY$1,'Дополнительная комплектация'!$AY$3) -> 2955 | AG64: =CEILING('Шкафы (2)'!AG64*'Дополнительная комплектация'!$AY$1,'Дополнительная комплектация'!$AY$3) -> 20 | AH64: =CEILING('Шкафы (2)'!AH64*'Дополнительная комплектация'!$AY$1,'Дополнительная комплектация'!$AY$3) -> 60 | AI64: =CEILING('Шкафы (2)'!AI64*'Дополнительная комплектация'!$AY$1,'Дополнительная комплектация'!$AY$3) -> 130 | AJ64: =CEILING('Шкафы (2)'!AJ64*'Дополнительная комплектация'!$AY$1,'Дополнительная комплектация'!$AY$3) -> 350 | AK64: =CEILING('Шкафы (2)'!AK64*'Дополнительная комплектация'!$AY$1,'Дополнительная комплектация'!$AY$3) -> 410 | AL64: =CEILING('Шкафы (2)'!AL64*'Дополнительная комплектация'!$AY$1,'Дополнительная комплектация'!$AY$3) -> 680 | AM64: =CEILING('Шкафы (2)'!AM64*'Дополнительная комплектация'!$AY$1,'Дополнительная комплектация'!$AY$3) -> 920 | AN64: =CEILING('Шкафы (2)'!AN64*'Дополнительная комплектация'!$AY$1,'Дополнительная комплектация'!$AY$3) -> 10 | AO64: =CEILING('Шкафы (2)'!AO64*'Дополнительная комплектация'!$AY$1,'Дополнительная комплектация'!$AY$3) -> 20 | AP64: =CEILING('Шкафы (2)'!AP64*'Дополнительная комплектация'!$AY$1,'Дополнительная комплектация'!$AY$3) -> 60 | AQ64: =CEILING('Шкафы (2)'!AQ64*'Дополнительная комплектация'!$AY$1,'Дополнительная комплектация'!$AY$3) -> 70 | AR64: =CEILING('Шкафы (2)'!AR64*'Дополнительная комплектация'!$AY$1,'Дополнительная комплектация'!$AY$3) -> 120 | AS64: L=600*
C65: Шкаф Н=600 2 двери | D65: L=600* | E65: =CEILING('Шкафы (2)'!E65*'Дополнительная комплектация'!$AY$1,'Дополнительная комплектация'!$AY$3) -> 2314 | F65: =CEILING('Шкафы (2)'!F65*'Дополнительная комплектация'!$AY$1,'Дополнительная комплектация'!$AY$3) -> 3114 | G65: =CEILING('Шкафы (2)'!G65*'Дополнительная комплектация'!$AY$1,'Дополнительная комплектация'!$AY$3) -> 2494 | H65: =CEILING('Шкафы (2)'!H65*'Дополнительная комплектация'!$AY$1,'Дополнительная комплектация'!$AY$3) -> 3294 | I65: =CEILING('Шкафы (2)'!I65*'Дополнительная комплектация'!$AY$1,'Дополнительная комплектация'!$AY$3) -> 2794 | J65: =CEILING('Шкафы (2)'!J65*'Дополнительная комплектация'!$AY$1,'Дополнительная комплектация'!$AY$3) -> 3994 | K65: =CEILING('Шкафы (2)'!K65*'Дополнительная комплектация'!$AY$1,'Дополнительная комплектация'!$AY$3) -> 2534 | L65: =CEILING('Шкафы (2)'!L65*'Дополнительная комплектация'!$AY$1,'Дополнительная комплектация'!$AY$3) -> 5734 | M65: =CEILING('Шкафы (2)'!M65*'Дополнительная комплектация'!$AY$1,'Дополнительная комплектация'!$AY$3) -> 6554 | N65: =CEILING('Шкафы (2)'!N65*'Дополнительная комплектация'!$AY$1,'Дополнительная комплектация'!$AY$3) -> 1994 | O65: =CEILING('Шкафы (2)'!O65*'Дополнительная комплектация'!$AY$1,'Дополнительная комплектация'!$AY$3) -> 2014 | P65: =CEILING('Шкафы (2)'!P65*'Дополнительная комплектация'!$AY$1,'Дополнительная комплектация'!$AY$3) -> 2054 | Q65: =CEILING('Шкафы (2)'!Q65*'Дополнительная комплектация'!$AY$1,'Дополнительная комплектация'!$AY$3) -> 3134 | R65: =CEILING('Шкафы (2)'!R65*'Дополнительная комплектация'!$AY$1,'Дополнительная комплектация'!$AY$3) -> 3634 | S65: =CEILING('Шкафы (2)'!S65*'Дополнительная комплектация'!$AY$1,'Дополнительная комплектация'!$AY$3) -> 2594 | T65: =CEILING('Шкафы (2)'!T65*'Дополнительная комплектация'!$AY$1,'Дополнительная комплектация'!$AY$3) -> 2994 | U65: =CEILING('Шкафы (2)'!U65*'Дополнительная комплектация'!$AY$1,'Дополнительная комплектация'!$AY$3) -> 3434 | V65: =CEILING('Шкафы (2)'!V65*'Дополнительная комплектация'!$AY$1,'Дополнительная комплектация'!$AY$3) -> 3774 | W65: - | X65: - | Y65: - | Z65: - | AA65: - | AB65: - | AC65: - | AD65: - | AE65: - | AF65: - | AG65: - | AH65: - | AI65: - | AJ65: - | AK65: - | AL65: - | AM65: - | AN65: - | AO65: - | AP65: - | AQ65: - | AR65: - | AS65: L=600*
D66: L=700* | E66: =CEILING('Шкафы (2)'!E66*'Дополнительная комплектация'!$AY$1,'Дополнительная комплектация'!$AY$3) -> 2491 | F66: =CEILING('Шкафы (2)'!F66*'Дополнительная комплектация'!$AY$1,'Дополнительная комплектация'!$AY$3) -> 3451 | G66: =CEILING('Шкафы (2)'!G66*'Дополнительная комплектация'!$AY$1,'Дополнительная комплектация'!$AY$3) -> 2691 | H66: =CEILING('Шкафы (2)'!H66*'Дополнительная комплектация'!$AY$1,'Дополнительная комплектация'!$AY$3) -> 3651 | I66: =CEILING('Шкафы (2)'!I66*'Дополнительная комплектация'!$AY$1,'Дополнительная комплектация'!$AY$3) -> 3051 | J66: =CEILING('Шкафы (2)'!J66*'Дополнительная комплектация'!$AY$1,'Дополнительная комплектация'!$AY$3) -> 4471 | K66: =CEILING('Шкафы (2)'!K66*'Дополнительная комплектация'!$AY$1,'Дополнительная комплектация'!$AY$3) -> 2631 | L66: =CEILING('Шкафы (2)'!L66*'Дополнительная комплектация'!$AY$1,'Дополнительная комплектация'!$AY$3) -> 6511 | M66: =CEILING('Шкафы (2)'!M66*'Дополнительная комплектация'!$AY$1,'Дополнительная комплектация'!$AY$3) -> 7451 | N66: =CEILING('Шкафы (2)'!N66*'Дополнительная комплектация'!$AY$1,'Дополнительная комплектация'!$AY$3) -> 2131 | O66: =CEILING('Шкафы (2)'!O66*'Дополнительная комплектация'!$AY$1,'Дополнительная комплектация'!$AY$3) -> 2151 | P66: =CEILING('Шкафы (2)'!P66*'Дополнительная комплектация'!$AY$1,'Дополнительная комплектация'!$AY$3) -> 2211 | Q66: =CEILING('Шкафы (2)'!Q66*'Дополнительная комплектация'!$AY$1,'Дополнительная комплектация'!$AY$3) -> 3411 | R66: =CEILING('Шкафы (2)'!R66*'Дополнительная комплектация'!$AY$1,'Дополнительная комплектация'!$AY$3) -> 3931 | S66: =CEILING('Шкафы (2)'!S66*'Дополнительная комплектация'!$AY$1,'Дополнительная комплектация'!$AY$3) -> 2831 | T66: =CEILING('Шкафы (2)'!T66*'Дополнительная комплектация'!$AY$1,'Дополнительная комплектация'!$AY$3) -> 3251 | U66: =CEILING('Шкафы (2)'!U66*'Дополнительная комплектация'!$AY$1,'Дополнительная комплектация'!$AY$3) -> 3751 | V66: =CEILING('Шкафы (2)'!V66*'Дополнительная комплектация'!$AY$1,'Дополнительная комплектация'!$AY$3) -> 4171 | W66: - | X66: - | Y66: - | Z66: - | AA66: - | AB66: - | AC66: - | AD66: - | AE66: - | AF66: - | AG66: - | AH66: - | AI66: - | AJ66: - | AK66: - | AL66: - | AM66: - | AN66: - | AO66: - | AP66: - | AQ66: - | AR66: - | AS66: L=700
D67: L=800* | E67: =CEILING('Шкафы (2)'!E67*'Дополнительная комплектация'!$AY$1,'Дополнительная комплектация'!$AY$3) -> 2657 | F67: =CEILING('Шкафы (2)'!F67*'Дополнительная комплектация'!$AY$1,'Дополнительная комплектация'!$AY$3) -> 3757 | G67: =CEILING('Шкафы (2)'!G67*'Дополнительная комплектация'!$AY$1,'Дополнительная комплектация'!$AY$3) -> 2897 | H67: =CEILING('Шкафы (2)'!H67*'Дополнительная комплектация'!$AY$1,'Дополнительная комплектация'!$AY$3) -> 3997 | I67: =CEILING('Шкафы (2)'!I67*'Дополнительная комплектация'!$AY$1,'Дополнительная комплектация'!$AY$3) -> 3317 | J67: =CEILING('Шкафы (2)'!J67*'Дополнительная комплектация'!$AY$1,'Дополнительная комплектация'!$AY$3) -> 4937 | K67: =CEILING('Шкафы (2)'!K67*'Дополнительная комплектация'!$AY$1,'Дополнительная комплектация'!$AY$3) -> 2757 | L67: =CEILING('Шкафы (2)'!L67*'Дополнительная комплектация'!$AY$1,'Дополнительная комплектация'!$AY$3) -> 7257 | M67: =CEILING('Шкафы (2)'!M67*'Дополнительная комплектация'!$AY$1,'Дополнительная комплектация'!$AY$3) -> 8337 | N67: =CEILING('Шкафы (2)'!N67*'Дополнительная комплектация'!$AY$1,'Дополнительная комплектация'!$AY$3) -> 2237 | O67: =CEILING('Шкафы (2)'!O67*'Дополнительная комплектация'!$AY$1,'Дополнительная комплектация'!$AY$3) -> 2277 | P67: =CEILING('Шкафы (2)'!P67*'Дополнительная комплектация'!$AY$1,'Дополнительная комплектация'!$AY$3) -> 2337 | Q67: =CEILING('Шкафы (2)'!Q67*'Дополнительная комплектация'!$AY$1,'Дополнительная комплектация'!$AY$3) -> 3677 | R67: =CEILING('Шкафы (2)'!R67*'Дополнительная комплектация'!$AY$1,'Дополнительная комплектация'!$AY$3) -> 4237 | S67: =CEILING('Шкафы (2)'!S67*'Дополнительная комплектация'!$AY$1,'Дополнительная комплектация'!$AY$3) -> 3037 | T67: =CEILING('Шкафы (2)'!T67*'Дополнительная комплектация'!$AY$1,'Дополнительная комплектация'!$AY$3) -> 3497 | U67: =CEILING('Шкафы (2)'!U67*'Дополнительная комплектация'!$AY$1,'Дополнительная комплектация'!$AY$3) -> 4057 | V67: =CEILING('Шкафы (2)'!V67*'Дополнительная комплектация'!$AY$1,'Дополнительная комплектация'!$AY$3) -> 4537 | W67: - | X67: - | Y67: - | Z67: - | AA67: - | AB67: - | AC67: - | AD67: - | AE67: - | AF67: - | AG67: - | AH67: - | AI67: - | AJ67: - | AK67: - | AL67: - | AM67: - | AN67: - | AO67: - | AP67: - | AQ67: - | AR67: - | AS67: L=800*
D68: L=900 | E68: =CEILING('Шкафы (2)'!E68*'Дополнительная комплектация'!$AY$1,'Дополнительная комплектация'!$AY$3) -> 2857 | F68: =CEILING('Шкафы (2)'!F68*'Дополнительная комплектация'!$AY$1,'Дополнительная комплектация'!$AY$3) -> 4077 | G68: =CEILING('Шкафы (2)'!G68*'Дополнительная комплектация'!$AY$1,'Дополнительная комплектация'!$AY$3) -> 3117 | H68: =CEILING('Шкафы (2)'!H68*'Дополнительная комплектация'!$AY$1,'Дополнительная комплектация'!$AY$3) -> 4337 | I68: =CEILING('Шкафы (2)'!I68*'Дополнительная комплектация'!$AY$1,'Дополнительная комплектация'!$AY$3) -> 3577 | J68: =CEILING('Шкафы (2)'!J68*'Дополнительная комплектация'!$AY$1,'Дополнительная комплектация'!$AY$3) -> 5397 | K68: =CEILING('Шкафы (2)'!K68*'Дополнительная комплектация'!$AY$1,'Дополнительная комплектация'!$AY$3) -> 2877 | L68: =CEILING('Шкафы (2)'!L68*'Дополнительная комплектация'!$AY$1,'Дополнительная комплектация'!$AY$3) -> 8017 | M68: =CEILING('Шкафы (2)'!M68*'Дополнительная комплектация'!$AY$1,'Дополнительная комплектация'!$AY$3) -> 9237 | N68: =CEILING('Шкафы (2)'!N68*'Дополнительная комплектация'!$AY$1,'Дополнительная комплектация'!$AY$3) -> 2377 | O68: =CEILING('Шкафы (2)'!O68*'Дополнительная комплектация'!$AY$1,'Дополнительная комплектация'!$AY$3) -> 2417 | P68: =CEILING('Шкафы (2)'!P68*'Дополнительная комплектация'!$AY$1,'Дополнительная комплектация'!$AY$3) -> 2477 | Q68: =CEILING('Шкафы (2)'!Q68*'Дополнительная комплектация'!$AY$1,'Дополнительная комплектация'!$AY$3) -> 3937 | R68: =CEILING('Шкафы (2)'!R68*'Дополнительная комплектация'!$AY$1,'Дополнительная комплектация'!$AY$3) -> 4537 | S68: =CEILING('Шкафы (2)'!S68*'Дополнительная комплектация'!$AY$1,'Дополнительная комплектация'!$AY$3) -> 3257 | T68: =CEILING('Шкафы (2)'!T68*'Дополнительная комплектация'!$AY$1,'Дополнительная комплектация'!$AY$3) -> 3737 | U68: =CEILING('Шкафы (2)'!U68*'Дополнительная комплектация'!$AY$1,'Дополнительная комплектация'!$AY$3) -> 4397 | V68: =CEILING('Шкафы (2)'!V68*'Дополнительная комплектация'!$AY$1,'Дополнительная комплектация'!$AY$3) -> 4937 | W68: - | X68: - | Y68: - | Z68: - | AA68: - | AB68: - | AC68: - | AD68: - | AE68: - | AF68: - | AG68: - | AH68: - | AI68: - | AJ68: - | AK68: - | AL68: - | AM68: - | AN68: - | AO68: - | AP68: - | AQ68: - | AR68: - | AS68: L=900
D69: L=1000 | E69: =CEILING('Шкафы (2)'!E69*'Дополнительная комплектация'!$AY$1,'Дополнительная комплектация'!$AY$3) -> 3023 | F69: =CEILING('Шкафы (2)'!F69*'Дополнительная комплектация'!$AY$1,'Дополнительная комплектация'!$AY$3) -> 4383 | G69: =CEILING('Шкафы (2)'!G69*'Дополнительная комплектация'!$AY$1,'Дополнительная комплектация'!$AY$3) -> 3323 | H69: =CEILING('Шкафы (2)'!H69*'Дополнительная комплектация'!$AY$1,'Дополнительная комплектация'!$AY$3) -> 4683 | I69: =CEILING('Шкафы (2)'!I69*'Дополнительная комплектация'!$AY$1,'Дополнительная комплектация'!$AY$3) -> 3843 | J69: =CEILING('Шкафы (2)'!J69*'Дополнительная комплектация'!$AY$1,'Дополнительная комплектация'!$AY$3) -> 5863 | K69: =CEILING('Шкафы (2)'!K69*'Дополнительная комплектация'!$AY$1,'Дополнительная комплектация'!$AY$3) -> 3003 | L69: =CEILING('Шкафы (2)'!L69*'Дополнительная комплектация'!$AY$1,'Дополнительная комплектация'!$AY$3) -> 8783 | M69: =CEILING('Шкафы (2)'!M69*'Дополнительная комплектация'!$AY$1,'Дополнительная комплектация'!$AY$3) -> 10143 | N69: =CEILING('Шкафы (2)'!N69*'Дополнительная комплектация'!$AY$1,'Дополнительная комплектация'!$AY$3) -> 2503 | O69: =CEILING('Шкафы (2)'!O69*'Дополнительная комплектация'!$AY$1,'Дополнительная комплектация'!$AY$3) -> 2543 | P69: =CEILING('Шкафы (2)'!P69*'Дополнительная комплектация'!$AY$1,'Дополнительная комплектация'!$AY$3) -> 2623 | Q69: =CEILING('Шкафы (2)'!Q69*'Дополнительная комплектация'!$AY$1,'Дополнительная комплектация'!$AY$3) -> 4203 | R69: =CEILING('Шкафы (2)'!R69*'Дополнительная комплектация'!$AY$1,'Дополнительная комплектация'!$AY$3) -> 4823 | S69: =CEILING('Шкафы (2)'!S69*'Дополнительная комплектация'!$AY$1,'Дополнительная комплектация'!$AY$3) -> 3483 | T69: =CEILING('Шкафы (2)'!T69*'Дополнительная комплектация'!$AY$1,'Дополнительная комплектация'!$AY$3) -> 3983 | U69: =CEILING('Шкафы (2)'!U69*'Дополнительная комплектация'!$AY$1,'Дополнительная комплектация'!$AY$3) -> 4703 | V69: =CEILING('Шкафы (2)'!V69*'Дополнительная комплектация'!$AY$1,'Дополнительная комплектация'!$AY$3) -> 5303 | W69: - | X69: - | Y69: - | Z69: - | AA69: - | AB69: - | AC69: - | AD69: - | AE69: - | AF69: - | AG69: - | AH69: - | AI69: - | AJ69: - | AK69: - | AL69: - | AM69: - | AN69: - | AO69: - | AP69: - | AQ69: - | AR69: - | AS69: L=1000
C70: Шкаф Н=720 2 двери | D70: L=600* | E70: =CEILING('Шкафы (2)'!E70*'Дополнительная комплектация'!$AY$1,'Дополнительная комплектация'!$AY$3) -> 2498 | F70: =CEILING('Шкафы (2)'!F70*'Дополнительная комплектация'!$AY$1,'Дополнительная комплектация'!$AY$3) -> 3478 | G70: =CEILING('Шкафы (2)'!G70*'Дополнительная комплектация'!$AY$1,'Дополнительная комплектация'!$AY$3) -> 2718 | H70: =CEILING('Шкафы (2)'!H70*'Дополнительная комплектация'!$AY$1,'Дополнительная комплектация'!$AY$3) -> 3678 | I70: =CEILING('Шкафы (2)'!I70*'Дополнительная комплектация'!$AY$1,'Дополнительная комплектация'!$AY$3) -> 3078 | J70: =CEILING('Шкафы (2)'!J70*'Дополнительная комплектация'!$AY$1,'Дополнительная комплектация'!$AY$3) -> 4538 | K70: =CEILING('Шкафы (2)'!K70*'Дополнительная комплектация'!$AY$1,'Дополнительная комплектация'!$AY$3) -> 2678 | L70: =CEILING('Шкафы (2)'!L70*'Дополнительная комплектация'!$AY$1,'Дополнительная комплектация'!$AY$3) -> 6618 | M70: =CEILING('Шкафы (2)'!M70*'Дополнительная комплектация'!$AY$1,'Дополнительная комплектация'!$AY$3) -> 7598 | N70: =CEILING('Шкафы (2)'!N70*'Дополнительная комплектация'!$AY$1,'Дополнительная комплектация'!$AY$3) -> 2118 | O70: =CEILING('Шкафы (2)'!O70*'Дополнительная комплектация'!$AY$1,'Дополнительная комплектация'!$AY$3) -> 2158 | P70: =CEILING('Шкафы (2)'!P70*'Дополнительная комплектация'!$AY$1,'Дополнительная комплектация'!$AY$3) -> 2198 | Q70: =CEILING('Шкафы (2)'!Q70*'Дополнительная комплектация'!$AY$1,'Дополнительная комплектация'!$AY$3) -> 3458 | R70: =CEILING('Шкафы (2)'!R70*'Дополнительная комплектация'!$AY$1,'Дополнительная комплектация'!$AY$3) -> 4038 | S70: =CEILING('Шкафы (2)'!S70*'Дополнительная комплектация'!$AY$1,'Дополнительная комплектация'!$AY$3) -> 2838 | T70: =CEILING('Шкафы (2)'!T70*'Дополнительная комплектация'!$AY$1,'Дополнительная комплектация'!$AY$3) -> 3298 | U70: =CEILING('Шкафы (2)'!U70*'Дополнительная комплектация'!$AY$1,'Дополнительная комплектация'!$AY$3) -> 3818 | V70: =CEILING('Шкафы (2)'!V70*'Дополнительная комплектация'!$AY$1,'Дополнительная комплектация'!$AY$3) -> 4238 | W70: - | X70: - | Y70: - | Z70: - | AA70: - | AB70: - | AC70: - | AD70: - | AE70: - | AF70: - | AG70: - | AH70: - | AI70: - | AJ70: - | AK70: - | AL70: - | AM70: - | AN70: - | AO70: - | AP70: - | AQ70: - | AR70: - | AS70: L=600*
D71: L=700* | E71: =CEILING('Шкафы (2)'!E71*'Дополнительная комплектация'!$AY$1,'Дополнительная комплектация'!$AY$3) -> 2720 | F71: =CEILING('Шкафы (2)'!F71*'Дополнительная комплектация'!$AY$1,'Дополнительная комплектация'!$AY$3) -> 3860 | G71: =CEILING('Шкафы (2)'!G71*'Дополнительная комплектация'!$AY$1,'Дополнительная комплектация'!$AY$3) -> 2960 | H71: =CEILING('Шкафы (2)'!H71*'Дополнительная комплектация'!$AY$1,'Дополнительная комплектация'!$AY$3) -> 4100 | I71: =CEILING('Шкафы (2)'!I71*'Дополнительная комплектация'!$AY$1,'Дополнительная комплектация'!$AY$3) -> 3400 | J71: =CEILING('Шкафы (2)'!J71*'Дополнительная комплектация'!$AY$1,'Дополнительная комплектация'!$AY$3) -> 5100 | K71: =CEILING('Шкафы (2)'!K71*'Дополнительная комплектация'!$AY$1,'Дополнительная комплектация'!$AY$3) -> 2800 | L71: =CEILING('Шкафы (2)'!L71*'Дополнительная комплектация'!$AY$1,'Дополнительная комплектация'!$AY$3) -> 7520 | M71: =CEILING('Шкафы (2)'!M71*'Дополнительная комплектация'!$AY$1,'Дополнительная комплектация'!$AY$3) -> 8660 | N71: =CEILING('Шкафы (2)'!N71*'Дополнительная комплектация'!$AY$1,'Дополнительная комплектация'!$AY$3) -> 2280 | O71: =CEILING('Шкафы (2)'!O71*'Дополнительная комплектация'!$AY$1,'Дополнительная комплектация'!$AY$3) -> 2320 | P71: =CEILING('Шкафы (2)'!P71*'Дополнительная комплектация'!$AY$1,'Дополнительная комплектация'!$AY$3) -> 2360 | Q71: =CEILING('Шкафы (2)'!Q71*'Дополнительная комплектация'!$AY$1,'Дополнительная комплектация'!$AY$3) -> 3780 | R71: =CEILING('Шкафы (2)'!R71*'Дополнительная комплектация'!$AY$1,'Дополнительная комплектация'!$AY$3) -> 4380 | S71: =CEILING('Шкафы (2)'!S71*'Дополнительная комплектация'!$AY$1,'Дополнительная комплектация'!$AY$3) -> 3100 | T71: =CEILING('Шкафы (2)'!T71*'Дополнительная комплектация'!$AY$1,'Дополнительная комплектация'!$AY$3) -> 3580 | U71: =CEILING('Шкафы (2)'!U71*'Дополнительная комплектация'!$AY$1,'Дополнительная комплектация'!$AY$3) -> 4180 | V71: =CEILING('Шкафы (2)'!V71*'Дополнительная комплектация'!$AY$1,'Дополнительная комплектация'!$AY$3) -> 4680 | W71: - | X71: - | Y71: - | Z71: - | AA71: - | AB71: - | AC71: - | AD71: - | AE71: - | AF71: - | AG71: - | AH71: - | AI71: - | AJ71: - | AK71: - | AL71: - | AM71: - | AN71: - | AO71: - | AP71: - | AQ71: - | AR71: - | AS71: L=700
D72: L=800* | E72: =CEILING('Шкафы (2)'!E72*'Дополнительная комплектация'!$AY$1,'Дополнительная комплектация'!$AY$3) -> 2908 | F72: =CEILING('Шкафы (2)'!F72*'Дополнительная комплектация'!$AY$1,'Дополнительная комплектация'!$AY$3) -> 4208 | G72: =CEILING('Шкафы (2)'!G72*'Дополнительная комплектация'!$AY$1,'Дополнительная комплектация'!$AY$3) -> 3188 | H72: =CEILING('Шкафы (2)'!H72*'Дополнительная комплектация'!$AY$1,'Дополнительная комплектация'!$AY$3) -> 4488 | I72: =CEILING('Шкафы (2)'!I72*'Дополнительная комплектация'!$AY$1,'Дополнительная комплектация'!$AY$3) -> 3688 | J72: =CEILING('Шкафы (2)'!J72*'Дополнительная комплектация'!$AY$1,'Дополнительная комплектация'!$AY$3) -> 5628 | K72: =CEILING('Шкафы (2)'!K72*'Дополнительная комплектация'!$AY$1,'Дополнительная комплектация'!$AY$3) -> 2908 | L72: =CEILING('Шкафы (2)'!L72*'Дополнительная комплектация'!$AY$1,'Дополнительная комплектация'!$AY$3) -> 8428 | M72: =CEILING('Шкафы (2)'!M72*'Дополнительная комплектация'!$AY$1,'Дополнительная комплектация'!$AY$3) -> 9728 | N72: =CEILING('Шкафы (2)'!N72*'Дополнительная комплектация'!$AY$1,'Дополнительная комплектация'!$AY$3) -> 2408 | O72: =CEILING('Шкафы (2)'!O72*'Дополнительная комплектация'!$AY$1,'Дополнительная комплектация'!$AY$3) -> 2448 | P72: =CEILING('Шкафы (2)'!P72*'Дополнительная комплектация'!$AY$1,'Дополнительная комплектация'!$AY$3) -> 2508 | Q72: =CEILING('Шкафы (2)'!Q72*'Дополнительная комплектация'!$AY$1,'Дополнительная комплектация'!$AY$3) -> 4068 | R72: =CEILING('Шкафы (2)'!R72*'Дополнительная комплектация'!$AY$1,'Дополнительная комплектация'!$AY$3) -> 4708 | S72: =CEILING('Шкафы (2)'!S72*'Дополнительная комплектация'!$AY$1,'Дополнительная комплектация'!$AY$3) -> 3348 | T72: =CEILING('Шкафы (2)'!T72*'Дополнительная комплектация'!$AY$1,'Дополнительная комплектация'!$AY$3) -> 3868 | U72: =CEILING('Шкафы (2)'!U72*'Дополнительная комплектация'!$AY$1,'Дополнительная комплектация'!$AY$3) -> 4548 | V72: =CEILING('Шкафы (2)'!V72*'Дополнительная комплектация'!$AY$1,'Дополнительная комплектация'!$AY$3) -> 5128 | W72: - | X72: - | Y72: - | Z72: - | AA72: - | AB72: - | AC72: - | AD72: - | AE72: - | AF72: - | AG72: - | AH72: - | AI72: - | AJ72: - | AK72: - | AL72: - | AM72: - | AN72: - | AO72: - | AP72: - | AQ72: - | AR72: - | AS72: L=800*
D73: L=900 | E73: =CEILING('Шкафы (2)'!E73*'Дополнительная комплектация'!$AY$1,'Дополнительная комплектация'!$AY$3) -> 3111 | F73: =CEILING('Шкафы (2)'!F73*'Дополнительная комплектация'!$AY$1,'Дополнительная комплектация'!$AY$3) -> 4591 | G73: =CEILING('Шкафы (2)'!G73*'Дополнительная комплектация'!$AY$1,'Дополнительная комплектация'!$AY$3) -> 3431 | H73: =CEILING('Шкафы (2)'!H73*'Дополнительная комплектация'!$AY$1,'Дополнительная комплектация'!$AY$3) -> 4911 | I73: =CEILING('Шкафы (2)'!I73*'Дополнительная комплектация'!$AY$1,'Дополнительная комплектация'!$AY$3) -> 3991 | J73: =CEILING('Шкафы (2)'!J73*'Дополнительная комплектация'!$AY$1,'Дополнительная комплектация'!$AY$3) -> 6191 | K73: =CEILING('Шкафы (2)'!K73*'Дополнительная комплектация'!$AY$1,'Дополнительная комплектация'!$AY$3) -> 3051 | L73: =CEILING('Шкафы (2)'!L73*'Дополнительная комплектация'!$AY$1,'Дополнительная комплектация'!$AY$3) -> 9331 | M73: =CEILING('Шкафы (2)'!M73*'Дополнительная комплектация'!$AY$1,'Дополнительная комплектация'!$AY$3) -> 10791 | N73: =CEILING('Шкафы (2)'!N73*'Дополнительная комплектация'!$AY$1,'Дополнительная комплектация'!$AY$3) -> 2551 | O73: =CEILING('Шкафы (2)'!O73*'Дополнительная комплектация'!$AY$1,'Дополнительная комплектация'!$AY$3) -> 2611 | P73: =CEILING('Шкафы (2)'!P73*'Дополнительная комплектация'!$AY$1,'Дополнительная комплектация'!$AY$3) -> 2671 | Q73: =CEILING('Шкафы (2)'!Q73*'Дополнительная комплектация'!$AY$1,'Дополнительная комплектация'!$AY$3) -> 4391 | R73: =CEILING('Шкафы (2)'!R73*'Дополнительная комплектация'!$AY$1,'Дополнительная комплектация'!$AY$3) -> 5051 | S73: =CEILING('Шкафы (2)'!S73*'Дополнительная комплектация'!$AY$1,'Дополнительная комплектация'!$AY$3) -> 3611 | T73: =CEILING('Шкафы (2)'!T73*'Дополнительная комплектация'!$AY$1,'Дополнительная комплектация'!$AY$3) -> 4151 | U73: =CEILING('Шкафы (2)'!U73*'Дополнительная комплектация'!$AY$1,'Дополнительная комплектация'!$AY$3) -> 4931 | V73: =CEILING('Шкафы (2)'!V73*'Дополнительная комплектация'!$AY$1,'Дополнительная комплектация'!$AY$3) -> 5571 | W73: - | X73: - | Y73: - | Z73: - | AA73: - | AB73: - | AC73: - | AD73: - | AE73: - | AF73: - | AG73: - | AH73: - | AI73: - | AJ73: - | AK73: - | AL73: - | AM73: - | AN73: - | AO73: - | AP73: - | AQ73: - | AR73: - | AS73: L=900
D74: L=1000 | E74: =CEILING('Шкафы (2)'!E74*'Дополнительная комплектация'!$AY$1,'Дополнительная комплектация'!$AY$3) -> 3319 | F74: =CEILING('Шкафы (2)'!F74*'Дополнительная комплектация'!$AY$1,'Дополнительная комплектация'!$AY$3) -> 4959 | G74: =CEILING('Шкафы (2)'!G74*'Дополнительная комплектация'!$AY$1,'Дополнительная комплектация'!$AY$3) -> 3679 | H74: =CEILING('Шкафы (2)'!H74*'Дополнительная комплектация'!$AY$1,'Дополнительная комплектация'!$AY$3) -> 5299 | I74: =CEILING('Шкафы (2)'!I74*'Дополнительная комплектация'!$AY$1,'Дополнительная комплектация'!$AY$3) -> 4299 | J74: =CEILING('Шкафы (2)'!J74*'Дополнительная комплектация'!$AY$1,'Дополнительная комплектация'!$AY$3) -> 6719 | K74: =CEILING('Шкафы (2)'!K74*'Дополнительная комплектация'!$AY$1,'Дополнительная комплектация'!$AY$3) -> 3179 | L74: =CEILING('Шкафы (2)'!L74*'Дополнительная комплектация'!$AY$1,'Дополнительная комплектация'!$AY$3) -> 10219 | M74: =CEILING('Шкафы (2)'!M74*'Дополнительная комплектация'!$AY$1,'Дополнительная комплектация'!$AY$3) -> 11859 | N74: =CEILING('Шкафы (2)'!N74*'Дополнительная комплектация'!$AY$1,'Дополнительная комплектация'!$AY$3) -> 2679 | O74: =CEILING('Шкафы (2)'!O74*'Дополнительная комплектация'!$AY$1,'Дополнительная комплектация'!$AY$3) -> 2739 | P74: =CEILING('Шкафы (2)'!P74*'Дополнительная комплектация'!$AY$1,'Дополнительная комплектация'!$AY$3) -> 2819 | Q74: =CEILING('Шкафы (2)'!Q74*'Дополнительная комплектация'!$AY$1,'Дополнительная комплектация'!$AY$3) -> 4699 | R74: =CEILING('Шкафы (2)'!R74*'Дополнительная комплектация'!$AY$1,'Дополнительная комплектация'!$AY$3) -> 5379 | S74: =CEILING('Шкафы (2)'!S74*'Дополнительная комплектация'!$AY$1,'Дополнительная комплектация'!$AY$3) -> 3859 | T74: =CEILING('Шкафы (2)'!T74*'Дополнительная комплектация'!$AY$1,'Дополнительная комплектация'!$AY$3) -> 4419 | U74: =CEILING('Шкафы (2)'!U74*'Дополнительная комплектация'!$AY$1,'Дополнительная комплектация'!$AY$3) -> 5279 | V74: =CEILING('Шкафы (2)'!V74*'Дополнительная комплектация'!$AY$1,'Дополнительная комплектация'!$AY$3) -> 5999 | W74: - | X74: - | Y74: - | Z74: - | AA74: - | AB74: - | AC74: - | AD74: - | AE74: - | AF74: - | AG74: - | AH74: - | AI74: - | AJ74: - | AK74: - | AL74: - | AM74: - | AN74: - | AO74: - | AP74: - | AQ74: - | AR74: - | AS74: L=1000
C75: Шкаф Н=920 2 двери | D75: L=600* | E75: =CEILING('Шкафы (2)'!E75*'Дополнительная комплектация'!$AY$1,'Дополнительная комплектация'!$AY$3) -> 2931 | F75: =CEILING('Шкафы (2)'!F75*'Дополнительная комплектация'!$AY$1,'Дополнительная комплектация'!$AY$3) -> 4171 | G75: =CEILING('Шкафы (2)'!G75*'Дополнительная комплектация'!$AY$1,'Дополнительная комплектация'!$AY$3) -> 3191 | H75: =CEILING('Шкафы (2)'!H75*'Дополнительная комплектация'!$AY$1,'Дополнительная комплектация'!$AY$3) -> 4451 | I75: =CEILING('Шкафы (2)'!I75*'Дополнительная комплектация'!$AY$1,'Дополнительная комплектация'!$AY$3) -> 3671 | J75: =CEILING('Шкафы (2)'!J75*'Дополнительная комплектация'!$AY$1,'Дополнительная комплектация'!$AY$3) -> 5531 | K75: =CEILING('Шкафы (2)'!K75*'Дополнительная комплектация'!$AY$1,'Дополнительная комплектация'!$AY$3) -> 3031 | L75: =CEILING('Шкафы (2)'!L75*'Дополнительная комплектация'!$AY$1,'Дополнительная комплектация'!$AY$3) -> 8191 | M75: =CEILING('Шкафы (2)'!M75*'Дополнительная комплектация'!$AY$1,'Дополнительная комплектация'!$AY$3) -> 9451 | N75: =CEILING('Шкафы (2)'!N75*'Дополнительная комплектация'!$AY$1,'Дополнительная комплектация'!$AY$3) -> 2451 | O75: =CEILING('Шкафы (2)'!O75*'Дополнительная комплектация'!$AY$1,'Дополнительная комплектация'!$AY$3) -> 2491 | P75: =CEILING('Шкафы (2)'!P75*'Дополнительная комплектация'!$AY$1,'Дополнительная комплектация'!$AY$3) -> 2551 | Q75: =CEILING('Шкафы (2)'!Q75*'Дополнительная комплектация'!$AY$1,'Дополнительная комплектация'!$AY$3) -> 4111 | R75: =CEILING('Шкафы (2)'!R75*'Дополнительная комплектация'!$AY$1,'Дополнительная комплектация'!$AY$3) -> 4791 | S75: =CEILING('Шкафы (2)'!S75*'Дополнительная комплектация'!$AY$1,'Дополнительная комплектация'!$AY$3) -> 3351 | T75: =CEILING('Шкафы (2)'!T75*'Дополнительная комплектация'!$AY$1,'Дополнительная комплектация'!$AY$3) -> 3911 | U75: =CEILING('Шкафы (2)'!U75*'Дополнительная комплектация'!$AY$1,'Дополнительная комплектация'!$AY$3) -> 4571 | V75: =CEILING('Шкафы (2)'!V75*'Дополнительная комплектация'!$AY$1,'Дополнительная комплектация'!$AY$3) -> 5111 | W75: - | X75: - | Y75: - | Z75: - | AA75: - | AB75: - | AC75: - | AD75: - | AE75: - | AF75: - | AG75: - | AH75: - | AI75: - | AJ75: - | AK75: - | AL75: - | AM75: - | AN75: - | AO75: - | AP75: - | AQ75: - | AR75: - | AS75: L=600*
D76: L=700* | E76: =CEILING('Шкафы (2)'!E76*'Дополнительная комплектация'!$AY$1,'Дополнительная комплектация'!$AY$3) -> 3198 | F76: =CEILING('Шкафы (2)'!F76*'Дополнительная комплектация'!$AY$1,'Дополнительная комплектация'!$AY$3) -> 4658 | G76: =CEILING('Шкафы (2)'!G76*'Дополнительная комплектация'!$AY$1,'Дополнительная комплектация'!$AY$3) -> 3518 | H76: =CEILING('Шкафы (2)'!H76*'Дополнительная комплектация'!$AY$1,'Дополнительная комплектация'!$AY$3) -> 4978 | I76: =CEILING('Шкафы (2)'!I76*'Дополнительная комплектация'!$AY$1,'Дополнительная комплектация'!$AY$3) -> 4058 | J76: =CEILING('Шкафы (2)'!J76*'Дополнительная комплектация'!$AY$1,'Дополнительная комплектация'!$AY$3) -> 6238 | K76: =CEILING('Шкафы (2)'!K76*'Дополнительная комплектация'!$AY$1,'Дополнительная комплектация'!$AY$3) -> 3178 | L76: =CEILING('Шкафы (2)'!L76*'Дополнительная комплектация'!$AY$1,'Дополнительная комплектация'!$AY$3) -> 9358 | M76: =CEILING('Шкафы (2)'!M76*'Дополнительная комплектация'!$AY$1,'Дополнительная комплектация'!$AY$3) -> 10818 | N76: =CEILING('Шкафы (2)'!N76*'Дополнительная комплектация'!$AY$1,'Дополнительная комплектация'!$AY$3) -> 2638 | O76: =CEILING('Шкафы (2)'!O76*'Дополнительная комплектация'!$AY$1,'Дополнительная комплектация'!$AY$3) -> 2678 | P76: =CEILING('Шкафы (2)'!P76*'Дополнительная комплектация'!$AY$1,'Дополнительная комплектация'!$AY$3) -> 2758 | Q76: =CEILING('Шкафы (2)'!Q76*'Дополнительная комплектация'!$AY$1,'Дополнительная комплектация'!$AY$3) -> 4518 | R76: =CEILING('Шкафы (2)'!R76*'Дополнительная комплектация'!$AY$1,'Дополнительная комплектация'!$AY$3) -> 5218 | S76: =CEILING('Шкафы (2)'!S76*'Дополнительная комплектация'!$AY$1,'Дополнительная комплектация'!$AY$3) -> 3698 | T76: =CEILING('Шкафы (2)'!T76*'Дополнительная комплектация'!$AY$1,'Дополнительная комплектация'!$AY$3) -> 4278 | U76: =CEILING('Шкафы (2)'!U76*'Дополнительная комплектация'!$AY$1,'Дополнительная комплектация'!$AY$3) -> 5038 | V76: =CEILING('Шкафы (2)'!V76*'Дополнительная комплектация'!$AY$1,'Дополнительная комплектация'!$AY$3) -> 5678 | W76: - | X76: - | Y76: - | Z76: - | AA76: - | AB76: - | AC76: - | AD76: - | AE76: - | AF76: - | AG76: - | AH76: - | AI76: - | AJ76: - | AK76: - | AL76: - | AM76: - | AN76: - | AO76: - | AP76: - | AQ76: - | AR76: - | AS76: L=700
D77: L=800* | E77: =CEILING('Шкафы (2)'!E77*'Дополнительная комплектация'!$AY$1,'Дополнительная комплектация'!$AY$3) -> 3447 | F77: =CEILING('Шкафы (2)'!F77*'Дополнительная комплектация'!$AY$1,'Дополнительная комплектация'!$AY$3) -> 5127 | G77: =CEILING('Шкафы (2)'!G77*'Дополнительная комплектация'!$AY$1,'Дополнительная комплектация'!$AY$3) -> 3807 | H77: =CEILING('Шкафы (2)'!H77*'Дополнительная комплектация'!$AY$1,'Дополнительная комплектация'!$AY$3) -> 5487 | I77: =CEILING('Шкафы (2)'!I77*'Дополнительная комплектация'!$AY$1,'Дополнительная комплектация'!$AY$3) -> 4447 | J77: =CEILING('Шкафы (2)'!J77*'Дополнительная комплектация'!$AY$1,'Дополнительная комплектация'!$AY$3) -> 6927 | K77: =CEILING('Шкафы (2)'!K77*'Дополнительная комплектация'!$AY$1,'Дополнительная комплектация'!$AY$3) -> 3327 | L77: =CEILING('Шкафы (2)'!L77*'Дополнительная комплектация'!$AY$1,'Дополнительная комплектация'!$AY$3) -> 10507 | M77: =CEILING('Шкафы (2)'!M77*'Дополнительная комплектация'!$AY$1,'Дополнительная комплектация'!$AY$3) -> 12167 | N77: =CEILING('Шкафы (2)'!N77*'Дополнительная комплектация'!$AY$1,'Дополнительная комплектация'!$AY$3) -> 2807 | O77: =CEILING('Шкафы (2)'!O77*'Дополнительная комплектация'!$AY$1,'Дополнительная комплектация'!$AY$3) -> 2867 | P77: =CEILING('Шкафы (2)'!P77*'Дополнительная комплектация'!$AY$1,'Дополнительная комплектация'!$AY$3) -> 2947 | Q77: =CEILING('Шкафы (2)'!Q77*'Дополнительная комплектация'!$AY$1,'Дополнительная комплектация'!$AY$3) -> 4887 | R77: =CEILING('Шкафы (2)'!R77*'Дополнительная комплектация'!$AY$1,'Дополнительная комплектация'!$AY$3) -> 5647 | S77: =CEILING('Шкафы (2)'!S77*'Дополнительная комплектация'!$AY$1,'Дополнительная комплектация'!$AY$3) -> 4007 | T77: =CEILING('Шкафы (2)'!T77*'Дополнительная комплектация'!$AY$1,'Дополнительная комплектация'!$AY$3) -> 4607 | U77: =CEILING('Шкафы (2)'!U77*'Дополнительная комплектация'!$AY$1,'Дополнительная комплектация'!$AY$3) -> 5507 | V77: =CEILING('Шкафы (2)'!V77*'Дополнительная комплектация'!$AY$1,'Дополнительная комплектация'!$AY$3) -> 6227 | W77: - | X77: - | Y77: - | Z77: - | AA77: - | AB77: - | AC77: - | AD77: - | AE77: - | AF77: - | AG77: - | AH77: - | AI77: - | AJ77: - | AK77: - | AL77: - | AM77: - | AN77: - | AO77: - | AP77: - | AQ77: - | AR77: - | AS77: L=800*
D78: L=900 | E78: =CEILING('Шкафы (2)'!E78*'Дополнительная комплектация'!$AY$1,'Дополнительная комплектация'!$AY$3) -> 3732 | F78: =CEILING('Шкафы (2)'!F78*'Дополнительная комплектация'!$AY$1,'Дополнительная комплектация'!$AY$3) -> 5612 | G78: =CEILING('Шкафы (2)'!G78*'Дополнительная комплектация'!$AY$1,'Дополнительная комплектация'!$AY$3) -> 4132 | H78: =CEILING('Шкафы (2)'!H78*'Дополнительная комплектация'!$AY$1,'Дополнительная комплектация'!$AY$3) -> 6012 | I78: =CEILING('Шкафы (2)'!I78*'Дополнительная комплектация'!$AY$1,'Дополнительная комплектация'!$AY$3) -> 4852 | J78: =CEILING('Шкафы (2)'!J78*'Дополнительная комплектация'!$AY$1,'Дополнительная комплектация'!$AY$3) -> 7652 | K78: =CEILING('Шкафы (2)'!K78*'Дополнительная комплектация'!$AY$1,'Дополнительная комплектация'!$AY$3) -> 3512 | L78: =CEILING('Шкафы (2)'!L78*'Дополнительная комплектация'!$AY$1,'Дополнительная комплектация'!$AY$3) -> 11672 | M78: =CEILING('Шкафы (2)'!M78*'Дополнительная комплектация'!$AY$1,'Дополнительная комплектация'!$AY$3) -> 13552 | N78: =CEILING('Шкафы (2)'!N78*'Дополнительная комплектация'!$AY$1,'Дополнительная комплектация'!$AY$3) -> 2992 | O78: =CEILING('Шкафы (2)'!O78*'Дополнительная комплектация'!$AY$1,'Дополнительная комплектация'!$AY$3) -> 3052 | P78: =CEILING('Шкафы (2)'!P78*'Дополнительная комплектация'!$AY$1,'Дополнительная комплектация'!$AY$3) -> 3152 | Q78: =CEILING('Шкафы (2)'!Q78*'Дополнительная комплектация'!$AY$1,'Дополнительная комплектация'!$AY$3) -> 5292 | R78: =CEILING('Шкафы (2)'!R78*'Дополнительная комплектация'!$AY$1,'Дополнительная комплектация'!$AY$3) -> 6072 | S78: =CEILING('Шкафы (2)'!S78*'Дополнительная комплектация'!$AY$1,'Дополнительная комплектация'!$AY$3) -> 4332 | T78: =CEILING('Шкафы (2)'!T78*'Дополнительная комплектация'!$AY$1,'Дополнительная комплектация'!$AY$3) -> 4972 | U78: =CEILING('Шкафы (2)'!U78*'Дополнительная комплектация'!$AY$1,'Дополнительная комплектация'!$AY$3) -> 5972 | V78: =CEILING('Шкафы (2)'!V78*'Дополнительная комплектация'!$AY$1,'Дополнительная комплектация'!$AY$3) -> 6792 | W78: - | X78: - | Y78: - | Z78: - | AA78: - | AB78: - | AC78: - | AD78: - | AE78: - | AF78: - | AG78: - | AH78: - | AI78: - | AJ78: - | AK78: - | AL78: - | AM78: - | AN78: - | AO78: - | AP78: - | AQ78: - | AR78: - | AS78: L=900
D79: L=1000 | E79: =CEILING('Шкафы (2)'!E79*'Дополнительная комплектация'!$AY$1,'Дополнительная комплектация'!$AY$3) -> 3981 | F79: =CEILING('Шкафы (2)'!F79*'Дополнительная комплектация'!$AY$1,'Дополнительная комплектация'!$AY$3) -> 6061 | G79: =CEILING('Шкафы (2)'!G79*'Дополнительная комплектация'!$AY$1,'Дополнительная комплектация'!$AY$3) -> 4421 | H79: =CEILING('Шкафы (2)'!H79*'Дополнительная комплектация'!$AY$1,'Дополнительная комплектация'!$AY$3) -> 6521 | I79: =CEILING('Шкафы (2)'!I79*'Дополнительная комплектация'!$AY$1,'Дополнительная комплектация'!$AY$3) -> 5221 | J79: =CEILING('Шкафы (2)'!J79*'Дополнительная комплектация'!$AY$1,'Дополнительная комплектация'!$AY$3) -> 8341 | K79: =CEILING('Шкафы (2)'!K79*'Дополнительная комплектация'!$AY$1,'Дополнительная комплектация'!$AY$3) -> 3661 | L79: =CEILING('Шкафы (2)'!L79*'Дополнительная комплектация'!$AY$1,'Дополнительная комплектация'!$AY$3) -> 12801 | M79: =CEILING('Шкафы (2)'!M79*'Дополнительная комплектация'!$AY$1,'Дополнительная комплектация'!$AY$3) -> 14901 | N79: =CEILING('Шкафы (2)'!N79*'Дополнительная комплектация'!$AY$1,'Дополнительная комплектация'!$AY$3) -> 3161 | O79: =CEILING('Шкафы (2)'!O79*'Дополнительная комплектация'!$AY$1,'Дополнительная комплектация'!$AY$3) -> 3241 | P79: =CEILING('Шкафы (2)'!P79*'Дополнительная комплектация'!$AY$1,'Дополнительная комплектация'!$AY$3) -> 3341 | Q79: =CEILING('Шкафы (2)'!Q79*'Дополнительная комплектация'!$AY$1,'Дополнительная комплектация'!$AY$3) -> 5661 | R79: =CEILING('Шкафы (2)'!R79*'Дополнительная комплектация'!$AY$1,'Дополнительная комплектация'!$AY$3) -> 6481 | S79: =CEILING('Шкафы (2)'!S79*'Дополнительная комплектация'!$AY$1,'Дополнительная комплектация'!$AY$3) -> 4661 | T79: =CEILING('Шкафы (2)'!T79*'Дополнительная комплектация'!$AY$1,'Дополнительная комплектация'!$AY$3) -> 5321 | U79: =CEILING('Шкафы (2)'!U79*'Дополнительная комплектация'!$AY$1,'Дополнительная комплектация'!$AY$3) -> 6441 | V79: =CEILING('Шкафы (2)'!V79*'Дополнительная комплектация'!$AY$1,'Дополнительная комплектация'!$AY$3) -> 7341 | W79: - | X79: - | Y79: - | Z79: - | AA79: - | AB79: - | AC79: - | AD79: - | AE79: - | AF79: - | AG79: - | AH79: - | AI79: - | AJ79: - | AK79: - | AL79: - | AM79: - | AN79: - | AO79: - | AP79: - | AQ79: - | AR79: - | AS79: L=1000
B80: * - позиция может использоваться под посудосушитель
B81: Шкафы с нишей, глубина каркаса 300 мм. высотой 600, 720, 920 мм.
B82: ЭСКИЗ | C82: ГРУППА | D82: РАЗМЕР | E82: ПВХ 1-я цен. кат. | F82: ПВХ 1-я ц.к. + патина | G82: ПВХ 2-я цен. кат. | H82: ПВХ 2-я ц.к. + патина | I82: ПВХ 3-я цен. кат. | J82: Эмаль по RAL | K82: Фасад 22 сборный | L82: Виктория | N82: ЛДСП | Q82: UV-лак кромка ABC/AL кромка | R82: UV-лак кромка 3D акр | S82: Пластик 1 | T82: Пластик 2 | U82: Пластик 3 | V82: Пластик 4
L83: 1 ц.к. | M83: 1 ц.к. +патина | N83: 1 ц.к. | O83: 2 ц.к. | P83: 3 ц.к.
C84: Шкаф Н=600 2 двери 2 стекла | D84: L=600* | E84: =CEILING('Шкафы (2)'!E80*'Дополнительная комплектация'!$AY$1,'Дополнительная комплектация'!$AY$3) -> 2449 | F84: =CEILING('Шкафы (2)'!F80*'Дополнительная комплектация'!$AY$1,'Дополнительная комплектация'!$AY$3) -> 3249 | G84: =CEILING('Шкафы (2)'!G80*'Дополнительная комплектация'!$AY$1,'Дополнительная комплектация'!$AY$3) -> 2629 | H84: =CEILING('Шкафы (2)'!H80*'Дополнительная комплектация'!$AY$1,'Дополнительная комплектация'!$AY$3) -> 3429 | I84: =CEILING('Шкафы (2)'!I80*'Дополнительная комплектация'!$AY$1,'Дополнительная комплектация'!$AY$3) -> 2929 | J84: =CEILING('Шкафы (2)'!J80*'Дополнительная комплектация'!$AY$1,'Дополнительная комплектация'!$AY$3) -> 4129 | K84: =CEILING('Шкафы (2)'!K80*'Дополнительная комплектация'!$AY$1,'Дополнительная комплектация'!$AY$3) -> 2549 | L84: =CEILING('Шкафы (2)'!L80*'Дополнительная комплектация'!$AY$1,'Дополнительная комплектация'!$AY$3) -> 5869 | M84: =CEILING('Шкафы (2)'!M80*'Дополнительная комплектация'!$AY$1,'Дополнительная комплектация'!$AY$3) -> 6689 | N84: =CEILING('Шкафы (2)'!N80*'Дополнительная комплектация'!$AY$1,'Дополнительная комплектация'!$AY$3) -> 2029 | O84: =CEILING('Шкафы (2)'!O80*'Дополнительная комплектация'!$AY$1,'Дополнительная комплектация'!$AY$3) -> 2069 | P84: =CEILING('Шкафы (2)'!P80*'Дополнительная комплектация'!$AY$1,'Дополнительная комплектация'!$AY$3) -> 2109 | Q84: =CEILING('Шкафы (2)'!Q80*'Дополнительная комплектация'!$AY$1,'Дополнительная комплектация'!$AY$3) -> 3329 | R84: =CEILING('Шкафы (2)'!R80*'Дополнительная комплектация'!$AY$1,'Дополнительная комплектация'!$AY$3) -> 4029 | S84: =CEILING('Шкафы (2)'!S80*'Дополнительная комплектация'!$AY$1,'Дополнительная комплектация'!$AY$3) -> 2829 | T84: =CEILING('Шкафы (2)'!T80*'Дополнительная комплектация'!$AY$1,'Дополнительная комплектация'!$AY$3) -> 3409 | U84: =CEILING('Шкафы (2)'!U80*'Дополнительная комплектация'!$AY$1,'Дополнительная комплектация'!$AY$3) -> 3729 | V84: =CEILING('Шкафы (2)'!V80*'Дополнительная комплектация'!$AY$1,'Дополнительная комплектация'!$AY$3) -> 3989 | W84: =CEILING('Шкафы (2)'!W80*'Дополнительная комплектация'!$AY$1,'Дополнительная комплектация'!$AY$3) -> 16 | X84: =CEILING('Шкафы (2)'!X80*'Дополнительная комплектация'!$AY$1,'Дополнительная комплектация'!$AY$3) -> 40 | Y84: =CEILING('Шкафы (2)'!Y80*'Дополнительная комплектация'!$AY$1,'Дополнительная комплектация'!$AY$3) -> 80 | Z84: =CEILING('Шкафы (2)'!Z80*'Дополнительная комплектация'!$AY$1,'Дополнительная комплектация'!$AY$3) -> 216 | AA84: =CEILING('Шкафы (2)'!AA80*'Дополнительная комплектация'!$AY$1,'Дополнительная комплектация'!$AY$3) -> 256 | AB84: =CEILING('Шкафы (2)'!AB80*'Дополнительная комплектация'!$AY$1,'Дополнительная комплектация'!$AY$3) -> 420 | AC84: =CEILING('Шкафы (2)'!AC80*'Дополнительная комплектация'!$AY$1,'Дополнительная комплектация'!$AY$3) -> 568 | AD84: =CEILING('Шкафы (2)'!AD80*'Дополнительная комплектация'!$AY$1,'Дополнительная комплектация'!$AY$3) -> 960 | AE84: =CEILING('Шкафы (2)'!AE80*'Дополнительная комплектация'!$AY$1,'Дополнительная комплектация'!$AY$3) -> 1176 | AF84: =CEILING('Шкафы (2)'!AF80*'Дополнительная комплектация'!$AY$1,'Дополнительная комплектация'!$AY$3) -> 1440 | AG84: =CEILING('Шкафы (2)'!AG80*'Дополнительная комплектация'!$AY$1,'Дополнительная комплектация'!$AY$3) -> 20 | AH84: =CEILING('Шкафы (2)'!AH80*'Дополнительная комплектация'!$AY$1,'Дополнительная комплектация'!$AY$3) -> 20 | AI84: =CEILING('Шкафы (2)'!AI80*'Дополнительная комплектация'!$AY$1,'Дополнительная комплектация'!$AY$3) -> 60 | AJ84: =CEILING('Шкафы (2)'!AJ80*'Дополнительная комплектация'!$AY$1,'Дополнительная комплектация'!$AY$3) -> 140 | AK84: =CEILING('Шкафы (2)'!AK80*'Дополнительная комплектация'!$AY$1,'Дополнительная комплектация'!$AY$3) -> 160 | AL84: =CEILING('Шкафы (2)'!AL80*'Дополнительная комплектация'!$AY$1,'Дополнительная комплектация'!$AY$3) -> 240 | AM84: =CEILING('Шкафы (2)'!AM80*'Дополнительная комплектация'!$AY$1,'Дополнительная комплектация'!$AY$3) -> 340 | AN84: =CEILING('Шкафы (2)'!AN80*'Дополнительная комплектация'!$AY$1,'Дополнительная комплектация'!$AY$3) -> 20 | AO84: =CEILING('Шкафы (2)'!AO80*'Дополнительная комплектация'!$AY$1,'Дополнительная комплектация'!$AY$3) -> 40 | AP84: =CEILING('Шкафы (2)'!AP80*'Дополнительная комплектация'!$AY$1,'Дополнительная комплектация'!$AY$3) -> 60 | AQ84: =CEILING('Шкафы (2)'!AQ80*'Дополнительная комплектация'!$AY$1,'Дополнительная комплектация'!$AY$3) -> 80 | AR84: =CEILING('Шкафы (2)'!AR80*'Дополнительная комплектация'!$AY$1,'Дополнительная комплектация'!$AY$3) -> 120 | AS84: L=600*
D85: L=700* | E85: =CEILING('Шкафы (2)'!E81*'Дополнительная комплектация'!$AY$1,'Дополнительная комплектация'!$AY$3) -> 2656 | F85: =CEILING('Шкафы (2)'!F81*'Дополнительная комплектация'!$AY$1,'Дополнительная комплектация'!$AY$3) -> 3616 | G85: =CEILING('Шкафы (2)'!G81*'Дополнительная комплектация'!$AY$1,'Дополнительная комплектация'!$AY$3) -> 2856 | H85: =CEILING('Шкафы (2)'!H81*'Дополнительная комплектация'!$AY$1,'Дополнительная комплектация'!$AY$3) -> 3816 | I85: =CEILING('Шкафы (2)'!I81*'Дополнительная комплектация'!$AY$1,'Дополнительная комплектация'!$AY$3) -> 3216 | J85: =CEILING('Шкафы (2)'!J81*'Дополнительная комплектация'!$AY$1,'Дополнительная комплектация'!$AY$3) -> 4636 | K85: =CEILING('Шкафы (2)'!K81*'Дополнительная комплектация'!$AY$1,'Дополнительная комплектация'!$AY$3) -> 2666 | L85: =CEILING('Шкафы (2)'!L81*'Дополнительная комплектация'!$AY$1,'Дополнительная комплектация'!$AY$3) -> 6676 | M85: =CEILING('Шкафы (2)'!M81*'Дополнительная комплектация'!$AY$1,'Дополнительная комплектация'!$AY$3) -> 7616 | N85: =CEILING('Шкафы (2)'!N81*'Дополнительная комплектация'!$AY$1,'Дополнительная комплектация'!$AY$3) -> 2166 | O85: =CEILING('Шкафы (2)'!O81*'Дополнительная комплектация'!$AY$1,'Дополнительная комплектация'!$AY$3) -> 2206 | P85: =CEILING('Шкафы (2)'!P81*'Дополнительная комплектация'!$AY$1,'Дополнительная комплектация'!$AY$3) -> 2246 | Q85: =CEILING('Шкафы (2)'!Q81*'Дополнительная комплектация'!$AY$1,'Дополнительная комплектация'!$AY$3) -> 3626 | R85: =CEILING('Шкафы (2)'!R81*'Дополнительная комплектация'!$AY$1,'Дополнительная комплектация'!$AY$3) -> 4386 | S85: =CEILING('Шкафы (2)'!S81*'Дополнительная комплектация'!$AY$1,'Дополнительная комплектация'!$AY$3) -> 2966 | T85: =CEILING('Шкафы (2)'!T81*'Дополнительная комплектация'!$AY$1,'Дополнительная комплектация'!$AY$3) -> 3606 | U85: =CEILING('Шкафы (2)'!U81*'Дополнительная комплектация'!$AY$1,'Дополнительная комплектация'!$AY$3) -> 3946 | V85: =CEILING('Шкафы (2)'!V81*'Дополнительная комплектация'!$AY$1,'Дополнительная комплектация'!$AY$3) -> 4226 | W85: =CEILING('Шкафы (2)'!W81*'Дополнительная комплектация'!$AY$1,'Дополнительная комплектация'!$AY$3) -> 20 | X85: =CEILING('Шкафы (2)'!X81*'Дополнительная комплектация'!$AY$1,'Дополнительная комплектация'!$AY$3) -> 50 | Y85: =CEILING('Шкафы (2)'!Y81*'Дополнительная комплектация'!$AY$1,'Дополнительная комплектация'!$AY$3) -> 100 | Z85: =CEILING('Шкафы (2)'!Z81*'Дополнительная комплектация'!$AY$1,'Дополнительная комплектация'!$AY$3) -> 270 | AA85: =CEILING('Шкафы (2)'!AA81*'Дополнительная комплектация'!$AY$1,'Дополнительная комплектация'!$AY$3) -> 320 | AB85: =CEILING('Шкафы (2)'!AB81*'Дополнительная комплектация'!$AY$1,'Дополнительная комплектация'!$AY$3) -> 526 | AC85: =CEILING('Шкафы (2)'!AC81*'Дополнительная комплектация'!$AY$1,'Дополнительная комплектация'!$AY$3) -> 710 | AD85: =CEILING('Шкафы (2)'!AD81*'Дополнительная комплектация'!$AY$1,'Дополнительная комплектация'!$AY$3) -> 1116 | AE85: =CEILING('Шкафы (2)'!AE81*'Дополнительная комплектация'!$AY$1,'Дополнительная комплектация'!$AY$3) -> 1336 | AF85: =CEILING('Шкафы (2)'!AF81*'Дополнительная комплектация'!$AY$1,'Дополнительная комплектация'!$AY$3) -> 1800 | AG85: =CEILING('Шкафы (2)'!AG81*'Дополнительная комплектация'!$AY$1,'Дополнительная комплектация'!$AY$3) -> 20 | AH85: =CEILING('Шкафы (2)'!AH81*'Дополнительная комплектация'!$AY$1,'Дополнительная комплектация'!$AY$3) -> 40 | AI85: =CEILING('Шкафы (2)'!AI81*'Дополнительная комплектация'!$AY$1,'Дополнительная комплектация'!$AY$3) -> 60 | AJ85: =CEILING('Шкафы (2)'!AJ81*'Дополнительная комплектация'!$AY$1,'Дополнительная комплектация'!$AY$3) -> 180 | AK85: =CEILING('Шкафы (2)'!AK81*'Дополнительная комплектация'!$AY$1,'Дополнительная комплектация'!$AY$3) -> 200 | AL85: =CEILING('Шкафы (2)'!AL81*'Дополнительная комплектация'!$AY$1,'Дополнительная комплектация'!$AY$3) -> 340 | AM85: =CEILING('Шкафы (2)'!AM81*'Дополнительная комплектация'!$AY$1,'Дополнительная комплектация'!$AY$3) -> 460 | AN85: =CEILING('Шкафы (2)'!AN81*'Дополнительная комплектация'!$AY$1,'Дополнительная комплектация'!$AY$3) -> 20 | AO85: =CEILING('Шкафы (2)'!AO81*'Дополнительная комплектация'!$AY$1,'Дополнительная комплектация'!$AY$3) -> 40 | AP85: =CEILING('Шкафы (2)'!AP81*'Дополнительная комплектация'!$AY$1,'Дополнительная комплектация'!$AY$3) -> 80 | AQ85: =CEILING('Шкафы (2)'!AQ81*'Дополнительная комплектация'!$AY$1,'Дополнительная комплектация'!$AY$3) -> 80 | AR85: =CEILING('Шкафы (2)'!AR81*'Дополнительная комплектация'!$AY$1,'Дополнительная комплектация'!$AY$3) -> 140 | AS85: L=700
D86: L=800* | E86: =CEILING('Шкафы (2)'!E82*'Дополнительная комплектация'!$AY$1,'Дополнительная комплектация'!$AY$3) -> 2852 | F86: =CEILING('Шкафы (2)'!F82*'Дополнительная комплектация'!$AY$1,'Дополнительная комплектация'!$AY$3) -> 3952 | G86: =CEILING('Шкафы (2)'!G82*'Дополнительная комплектация'!$AY$1,'Дополнительная комплектация'!$AY$3) -> 3092 | H86: =CEILING('Шкафы (2)'!H82*'Дополнительная комплектация'!$AY$1,'Дополнительная комплектация'!$AY$3) -> 4192 | I86: =CEILING('Шкафы (2)'!I82*'Дополнительная комплектация'!$AY$1,'Дополнительная комплектация'!$AY$3) -> 3512 | J86: =CEILING('Шкафы (2)'!J82*'Дополнительная комплектация'!$AY$1,'Дополнительная комплектация'!$AY$3) -> 5132 | K86: =CEILING('Шкафы (2)'!K82*'Дополнительная комплектация'!$AY$1,'Дополнительная комплектация'!$AY$3) -> 2792 | L86: =CEILING('Шкафы (2)'!L82*'Дополнительная комплектация'!$AY$1,'Дополнительная комплектация'!$AY$3) -> 7452 | M86: =CEILING('Шкафы (2)'!M82*'Дополнительная комплектация'!$AY$1,'Дополнительная комплектация'!$AY$3) -> 8532 | N86: =CEILING('Шкафы (2)'!N82*'Дополнительная комплектация'!$AY$1,'Дополнительная комплектация'!$AY$3) -> 2292 | O86: =CEILING('Шкафы (2)'!O82*'Дополнительная комплектация'!$AY$1,'Дополнительная комплектация'!$AY$3) -> 2332 | P86: =CEILING('Шкафы (2)'!P82*'Дополнительная комплектация'!$AY$1,'Дополнительная комплектация'!$AY$3) -> 2392 | Q86: =CEILING('Шкафы (2)'!Q82*'Дополнительная комплектация'!$AY$1,'Дополнительная комплектация'!$AY$3) -> 3932 | R86: =CEILING('Шкафы (2)'!R82*'Дополнительная комплектация'!$AY$1,'Дополнительная комплектация'!$AY$3) -> 4752 | S86: =CEILING('Шкафы (2)'!S82*'Дополнительная комплектация'!$AY$1,'Дополнительная комплектация'!$AY$3) -> 3112 | T86: =CEILING('Шкафы (2)'!T82*'Дополнительная комплектация'!$AY$1,'Дополнительная комплектация'!$AY$3) -> 3792 | U86: =CEILING('Шкафы (2)'!U82*'Дополнительная комплектация'!$AY$1,'Дополнительная комплектация'!$AY$3) -> 4152 | V86: =CEILING('Шкафы (2)'!V82*'Дополнительная комплектация'!$AY$1,'Дополнительная комплектация'!$AY$3) -> 4452 | W86: =CEILING('Шкафы (2)'!W82*'Дополнительная комплектация'!$AY$1,'Дополнительная комплектация'!$AY$3) -> 24 | X86: =CEILING('Шкафы (2)'!X82*'Дополнительная комплектация'!$AY$1,'Дополнительная комплектация'!$AY$3) -> 60 | Y86: =CEILING('Шкафы (2)'!Y82*'Дополнительная комплектация'!$AY$1,'Дополнительная комплектация'!$AY$3) -> 120 | Z86: =CEILING('Шкафы (2)'!Z82*'Дополнительная комплектация'!$AY$1,'Дополнительная комплектация'!$AY$3) -> 324 | AA86: =CEILING('Шкафы (2)'!AA82*'Дополнительная комплектация'!$AY$1,'Дополнительная комплектация'!$AY$3) -> 384 | AB86: =CEILING('Шкафы (2)'!AB82*'Дополнительная комплектация'!$AY$1,'Дополнительная комплектация'!$AY$3) -> 630 | AC86: =CEILING('Шкафы (2)'!AC82*'Дополнительная комплектация'!$AY$1,'Дополнительная комплектация'!$AY$3) -> 852 | AD86: =CEILING('Шкафы (2)'!AD82*'Дополнительная комплектация'!$AY$1,'Дополнительная комплектация'!$AY$3) -> 1270 | AE86: =CEILING('Шкафы (2)'!AE82*'Дополнительная комплектация'!$AY$1,'Дополнительная комплектация'!$AY$3) -> 1494 | AF86: =CEILING('Шкафы (2)'!AF82*'Дополнительная комплектация'!$AY$1,'Дополнительная комплектация'!$AY$3) -> 2160 | AG86: =CEILING('Шкафы (2)'!AG82*'Дополнительная комплектация'!$AY$1,'Дополнительная комплектация'!$AY$3) -> 20 | AH86: =CEILING('Шкафы (2)'!AH82*'Дополнительная комплектация'!$AY$1,'Дополнительная комплектация'!$AY$3) -> 40 | AI86: =CEILING('Шкафы (2)'!AI82*'Дополнительная комплектация'!$AY$1,'Дополнительная комплектация'!$AY$3) -> 80 | AJ86: =CEILING('Шкафы (2)'!AJ82*'Дополнительная комплектация'!$AY$1,'Дополнительная комплектация'!$AY$3) -> 220 | AK86: =CEILING('Шкафы (2)'!AK82*'Дополнительная комплектация'!$AY$1,'Дополнительная комплектация'!$AY$3) -> 260 | AL86: =CEILING('Шкафы (2)'!AL82*'Дополнительная комплектация'!$AY$1,'Дополнительная комплектация'!$AY$3) -> 420 | AM86: =CEILING('Шкафы (2)'!AM82*'Дополнительная комплектация'!$AY$1,'Дополнительная комплектация'!$AY$3) -> 580 | AN86: =CEILING('Шкафы (2)'!AN82*'Дополнительная комплектация'!$AY$1,'Дополнительная комплектация'!$AY$3) -> 20 | AO86: =CEILING('Шкафы (2)'!AO82*'Дополнительная комплектация'!$AY$1,'Дополнительная комплектация'!$AY$3) -> 40 | AP86: =CEILING('Шкафы (2)'!AP82*'Дополнительная комплектация'!$AY$1,'Дополнительная комплектация'!$AY$3) -> 80 | AQ86: =CEILING('Шкафы (2)'!AQ82*'Дополнительная комплектация'!$AY$1,'Дополнительная комплектация'!$AY$3) -> 100 | AR86: =CEILING('Шкафы (2)'!AR82*'Дополнительная комплектация'!$AY$1,'Дополнительная комплектация'!$AY$3) -> 160 | AS86: L=800*
D87: L=900 | E87: =CEILING('Шкафы (2)'!E83*'Дополнительная комплектация'!$AY$1,'Дополнительная комплектация'!$AY$3) -> 3082 | F87: =CEILING('Шкафы (2)'!F83*'Дополнительная комплектация'!$AY$1,'Дополнительная комплектация'!$AY$3) -> 4302 | G87: =CEILING('Шкафы (2)'!G83*'Дополнительная комплектация'!$AY$1,'Дополнительная комплектация'!$AY$3) -> 3342 | H87: =CEILING('Шкафы (2)'!H83*'Дополнительная комплектация'!$AY$1,'Дополнительная комплектация'!$AY$3) -> 4562 | I87: =CEILING('Шкафы (2)'!I83*'Дополнительная комплектация'!$AY$1,'Дополнительная комплектация'!$AY$3) -> 3802 | J87: =CEILING('Шкафы (2)'!J83*'Дополнительная комплектация'!$AY$1,'Дополнительная комплектация'!$AY$3) -> 5622 | K87: =CEILING('Шкафы (2)'!K83*'Дополнительная комплектация'!$AY$1,'Дополнительная комплектация'!$AY$3) -> 2912 | L87: =CEILING('Шкафы (2)'!L83*'Дополнительная комплектация'!$AY$1,'Дополнительная комплектация'!$AY$3) -> 8242 | M87: =CEILING('Шкафы (2)'!M83*'Дополнительная комплектация'!$AY$1,'Дополнительная комплектация'!$AY$3) -> 9462 | N87: =CEILING('Шкафы (2)'!N83*'Дополнительная комплектация'!$AY$1,'Дополнительная комплектация'!$AY$3) -> 2432 | O87: =CEILING('Шкафы (2)'!O83*'Дополнительная комплектация'!$AY$1,'Дополнительная комплектация'!$AY$3) -> 2472 | P87: =CEILING('Шкафы (2)'!P83*'Дополнительная комплектация'!$AY$1,'Дополнительная комплектация'!$AY$3) -> 2532 | Q87: =CEILING('Шкафы (2)'!Q83*'Дополнительная комплектация'!$AY$1,'Дополнительная комплектация'!$AY$3) -> 4232 | R87: =CEILING('Шкафы (2)'!R83*'Дополнительная комплектация'!$AY$1,'Дополнительная комплектация'!$AY$3) -> 5132 | S87: =CEILING('Шкафы (2)'!S83*'Дополнительная комплектация'!$AY$1,'Дополнительная комплектация'!$AY$3) -> 3272 | T87: =CEILING('Шкафы (2)'!T83*'Дополнительная комплектация'!$AY$1,'Дополнительная комплектация'!$AY$3) -> 3992 | U87: =CEILING('Шкафы (2)'!U83*'Дополнительная комплектация'!$AY$1,'Дополнительная комплектация'!$AY$3) -> 4372 | V87: =CEILING('Шкафы (2)'!V83*'Дополнительная комплектация'!$AY$1,'Дополнительная комплектация'!$AY$3) -> 4692 | W87: =CEILING('Шкафы (2)'!W83*'Дополнительная комплектация'!$AY$1,'Дополнительная комплектация'!$AY$3) -> 28 | X87: =CEILING('Шкафы (2)'!X83*'Дополнительная комплектация'!$AY$1,'Дополнительная комплектация'!$AY$3) -> 70 | Y87: =CEILING('Шкафы (2)'!Y83*'Дополнительная комплектация'!$AY$1,'Дополнительная комплектация'!$AY$3) -> 142 | Z87: =CEILING('Шкафы (2)'!Z83*'Дополнительная комплектация'!$AY$1,'Дополнительная комплектация'!$AY$3) -> 380 | AA87: =CEILING('Шкафы (2)'!AA83*'Дополнительная комплектация'!$AY$1,'Дополнительная комплектация'!$AY$3) -> 448 | AB87: =CEILING('Шкафы (2)'!AB83*'Дополнительная комплектация'!$AY$1,'Дополнительная комплектация'!$AY$3) -> 736 | AC87: =CEILING('Шкафы (2)'!AC83*'Дополнительная комплектация'!$AY$1,'Дополнительная комплектация'!$AY$3) -> 994 | AD87: =CEILING('Шкафы (2)'!AD83*'Дополнительная комплектация'!$AY$1,'Дополнительная комплектация'!$AY$3) -> 1426 | AE87: =CEILING('Шкафы (2)'!AE83*'Дополнительная комплектация'!$AY$1,'Дополнительная комплектация'!$AY$3) -> 1654 | AF87: * | AG87: =CEILING('Шкафы (2)'!AG83*'Дополнительная комплектация'!$AY$1,'Дополнительная комплектация'!$AY$3) -> 20 | AH87: =CEILING('Шкафы (2)'!AH83*'Дополнительная комплектация'!$AY$1,'Дополнительная комплектация'!$AY$3) -> 60 | AI87: =CEILING('Шкафы (2)'!AI83*'Дополнительная комплектация'!$AY$1,'Дополнительная комплектация'!$AY$3) -> 100 | AJ87: =CEILING('Шкафы (2)'!AJ83*'Дополнительная комплектация'!$AY$1,'Дополнительная комплектация'!$AY$3) -> 280 | AK87: =CEILING('Шкафы (2)'!AK83*'Дополнительная комплектация'!$AY$1,'Дополнительная комплектация'!$AY$3) -> 320 | AL87: =CEILING('Шкафы (2)'!AL83*'Дополнительная комплектация'!$AY$1,'Дополнительная комплектация'!$AY$3) -> 520 | AM87: =CEILING('Шкафы (2)'!AM83*'Дополнительная комплектация'!$AY$1,'Дополнительная комплектация'!$AY$3) -> 700 | AN87: =CEILING('Шкафы (2)'!AN83*'Дополнительная комплектация'!$AY$1,'Дополнительная комплектация'!$AY$3) -> 20 | AO87: =CEILING('Шкафы (2)'!AO83*'Дополнительная комплектация'!$AY$1,'Дополнительная комплектация'!$AY$3) -> 40 | AP87: =CEILING('Шкафы (2)'!AP83*'Дополнительная комплектация'!$AY$1,'Дополнительная комплектация'!$AY$3) -> 100 | AQ87: =CEILING('Шкафы (2)'!AQ83*'Дополнительная комплектация'!$AY$1,'Дополнительная комплектация'!$AY$3) -> 100 | AR87: =CEILING('Шкафы (2)'!AR83*'Дополнительная комплектация'!$AY$1,'Дополнительная комплектация'!$AY$3) -> 180 | AS87: L=900
D88: L=1000 | E88: =CEILING('Шкафы (2)'!E84*'Дополнительная комплектация'!$AY$1,'Дополнительная комплектация'!$AY$3) -> 3278 | F88: =CEILING('Шкафы (2)'!F84*'Дополнительная комплектация'!$AY$1,'Дополнительная комплектация'!$AY$3) -> 4638 | G88: =CEILING('Шкафы (2)'!G84*'Дополнительная комплектация'!$AY$1,'Дополнительная комплектация'!$AY$3) -> 3578 | H88: =CEILING('Шкафы (2)'!H84*'Дополнительная комплектация'!$AY$1,'Дополнительная комплектация'!$AY$3) -> 4938 | I88: =CEILING('Шкафы (2)'!I84*'Дополнительная комплектация'!$AY$1,'Дополнительная комплектация'!$AY$3) -> 4098 | J88: =CEILING('Шкафы (2)'!J84*'Дополнительная комплектация'!$AY$1,'Дополнительная комплектация'!$AY$3) -> 6118 | K88: =CEILING('Шкафы (2)'!K84*'Дополнительная комплектация'!$AY$1,'Дополнительная комплектация'!$AY$3) -> 3038 | L88: =CEILING('Шкафы (2)'!L84*'Дополнительная комплектация'!$AY$1,'Дополнительная комплектация'!$AY$3) -> 9038 | M88: =CEILING('Шкафы (2)'!M84*'Дополнительная комплектация'!$AY$1,'Дополнительная комплектация'!$AY$3) -> 10398 | N88: =CEILING('Шкафы (2)'!N84*'Дополнительная комплектация'!$AY$1,'Дополнительная комплектация'!$AY$3) -> 2558 | O88: =CEILING('Шкафы (2)'!O84*'Дополнительная комплектация'!$AY$1,'Дополнительная комплектация'!$AY$3) -> 2618 | P88: =CEILING('Шкафы (2)'!P84*'Дополнительная комплектация'!$AY$1,'Дополнительная комплектация'!$AY$3) -> 2678 | Q88: =CEILING('Шкафы (2)'!Q84*'Дополнительная комплектация'!$AY$1,'Дополнительная комплектация'!$AY$3) -> 4538 | R88: =CEILING('Шкафы (2)'!R84*'Дополнительная комплектация'!$AY$1,'Дополнительная комплектация'!$AY$3) -> 5478 | S88: =CEILING('Шкафы (2)'!S84*'Дополнительная комплектация'!$AY$1,'Дополнительная комплектация'!$AY$3) -> 3418 | T88: =CEILING('Шкафы (2)'!T84*'Дополнительная комплектация'!$AY$1,'Дополнительная комплектация'!$AY$3) -> 4178 | U88: =CEILING('Шкафы (2)'!U84*'Дополнительная комплектация'!$AY$1,'Дополнительная комплектация'!$AY$3) -> 4578 | V88: =CEILING('Шкафы (2)'!V84*'Дополнительная комплектация'!$AY$1,'Дополнительная комплектация'!$AY$3) -> 4918 | W88: =CEILING('Шкафы (2)'!W84*'Дополнительная комплектация'!$AY$1,'Дополнительная комплектация'!$AY$3) -> 32 | X88: =CEILING('Шкафы (2)'!X84*'Дополнительная комплектация'!$AY$1,'Дополнительная комплектация'!$AY$3) -> 80 | Y88: =CEILING('Шкафы (2)'!Y84*'Дополнительная комплектация'!$AY$1,'Дополнительная комплектация'!$AY$3) -> 162 | Z88: =CEILING('Шкафы (2)'!Z84*'Дополнительная комплектация'!$AY$1,'Дополнительная комплектация'!$AY$3) -> 434 | AA88: =CEILING('Шкафы (2)'!AA84*'Дополнительная комплектация'!$AY$1,'Дополнительная комплектация'!$AY$3) -> 512 | AB88: =CEILING('Шкафы (2)'!AB84*'Дополнительная комплектация'!$AY$1,'Дополнительная комплектация'!$AY$3) -> 840 | AC88: =CEILING('Шкафы (2)'!AC84*'Дополнительная комплектация'!$AY$1,'Дополнительная комплектация'!$AY$3) -> 1136 | AD88: =CEILING('Шкафы (2)'!AD84*'Дополнительная комплектация'!$AY$1,'Дополнительная комплектация'!$AY$3) -> 1580 | AE88: =CEILING('Шкафы (2)'!AE84*'Дополнительная комплектация'!$AY$1,'Дополнительная комплектация'!$AY$3) -> 1812 | AF88: * | AG88: =CEILING('Шкафы (2)'!AG84*'Дополнительная комплектация'!$AY$1,'Дополнительная комплектация'!$AY$3) -> 20 | AH88: =CEILING('Шкафы (2)'!AH84*'Дополнительная комплектация'!$AY$1,'Дополнительная комплектация'!$AY$3) -> 60 | AI88: =CEILING('Шкафы (2)'!AI84*'Дополнительная комплектация'!$AY$1,'Дополнительная комплектация'!$AY$3) -> 120 | AJ88: =CEILING('Шкафы (2)'!AJ84*'Дополнительная комплектация'!$AY$1,'Дополнительная комплектация'!$AY$3) -> 320 | AK88: =CEILING('Шкафы (2)'!AK84*'Дополнительная комплектация'!$AY$1,'Дополнительная комплектация'!$AY$3) -> 380 | AL88: =CEILING('Шкафы (2)'!AL84*'Дополнительная комплектация'!$AY$1,'Дополнительная комплектация'!$AY$3) -> 600 | AM88: =CEILING('Шкафы (2)'!AM84*'Дополнительная комплектация'!$AY$1,'Дополнительная комплектация'!$AY$3) -> 820 | AN88: =CEILING('Шкафы (2)'!AN84*'Дополнительная комплектация'!$AY$1,'Дополнительная комплектация'!$AY$3) -> 20 | AO88: =CEILING('Шкафы (2)'!AO84*'Дополнительная комплектация'!$AY$1,'Дополнительная комплектация'!$AY$3) -> 40 | AP88: =CEILING('Шкафы (2)'!AP84*'Дополнительная комплектация'!$AY$1,'Дополнительная комплектация'!$AY$3) -> 100 | AQ88: =CEILING('Шкафы (2)'!AQ84*'Дополнительная комплектация'!$AY$1,'Дополнительная комплектация'!$AY$3) -> 120 | AR88: =CEILING('Шкафы (2)'!AR84*'Дополнительная комплектация'!$AY$1,'Дополнительная комплектация'!$AY$3) -> 200 | AS88: L=1000
C89: Шкаф Н=720 2 двери 2 стекла | D89: L=600* | E89: =CEILING('Шкафы (2)'!E85*'Дополнительная комплектация'!$AY$1,'Дополнительная комплектация'!$AY$3) -> 2663 | F89: =CEILING('Шкафы (2)'!F85*'Дополнительная комплектация'!$AY$1,'Дополнительная комплектация'!$AY$3) -> 3643 | G89: =CEILING('Шкафы (2)'!G85*'Дополнительная комплектация'!$AY$1,'Дополнительная комплектация'!$AY$3) -> 2883 | H89: =CEILING('Шкафы (2)'!H85*'Дополнительная комплектация'!$AY$1,'Дополнительная комплектация'!$AY$3) -> 3843 | I89: =CEILING('Шкафы (2)'!I85*'Дополнительная комплектация'!$AY$1,'Дополнительная комплектация'!$AY$3) -> 3243 | J89: =CEILING('Шкафы (2)'!J85*'Дополнительная комплектация'!$AY$1,'Дополнительная комплектация'!$AY$3) -> 4703 | K89: =CEILING('Шкафы (2)'!K85*'Дополнительная комплектация'!$AY$1,'Дополнительная комплектация'!$AY$3) -> 2713 | L89: =CEILING('Шкафы (2)'!L85*'Дополнительная комплектация'!$AY$1,'Дополнительная комплектация'!$AY$3) -> 6783 | M89: =CEILING('Шкафы (2)'!M85*'Дополнительная комплектация'!$AY$1,'Дополнительная комплектация'!$AY$3) -> 7763 | N89: =CEILING('Шкафы (2)'!N85*'Дополнительная комплектация'!$AY$1,'Дополнительная комплектация'!$AY$3) -> 2173 | O89: =CEILING('Шкафы (2)'!O85*'Дополнительная комплектация'!$AY$1,'Дополнительная комплектация'!$AY$3) -> 2213 | P89: =CEILING('Шкафы (2)'!P85*'Дополнительная комплектация'!$AY$1,'Дополнительная комплектация'!$AY$3) -> 2253 | Q89: =CEILING('Шкафы (2)'!Q85*'Дополнительная комплектация'!$AY$1,'Дополнительная комплектация'!$AY$3) -> 3673 | R89: =CEILING('Шкафы (2)'!R85*'Дополнительная комплектация'!$AY$1,'Дополнительная комплектация'!$AY$3) -> 4453 | S89: =CEILING('Шкафы (2)'!S85*'Дополнительная комплектация'!$AY$1,'Дополнительная комплектация'!$AY$3) -> 3033 | T89: =CEILING('Шкафы (2)'!T85*'Дополнительная комплектация'!$AY$1,'Дополнительная комплектация'!$AY$3) -> 3713 | U89: =CEILING('Шкафы (2)'!U85*'Дополнительная комплектация'!$AY$1,'Дополнительная комплектация'!$AY$3) -> 4093 | V89: =CEILING('Шкафы (2)'!V85*'Дополнительная комплектация'!$AY$1,'Дополнительная комплектация'!$AY$3) -> 4393 | W89: =CEILING('Шкафы (2)'!W85*'Дополнительная комплектация'!$AY$1,'Дополнительная комплектация'!$AY$3) -> 18 | X89: =CEILING('Шкафы (2)'!X85*'Дополнительная комплектация'!$AY$1,'Дополнительная комплектация'!$AY$3) -> 48 | Y89: =CEILING('Шкафы (2)'!Y85*'Дополнительная комплектация'!$AY$1,'Дополнительная комплектация'!$AY$3) -> 98 | Z89: =CEILING('Шкафы (2)'!Z85*'Дополнительная комплектация'!$AY$1,'Дополнительная комплектация'!$AY$3) -> 268 | AA89: =CEILING('Шкафы (2)'!AA85*'Дополнительная комплектация'!$AY$1,'Дополнительная комплектация'!$AY$3) -> 316 | AB89: =CEILING('Шкафы (2)'!AB85*'Дополнительная комплектация'!$AY$1,'Дополнительная комплектация'!$AY$3) -> 520 | AC89: =CEILING('Шкафы (2)'!AC85*'Дополнительная комплектация'!$AY$1,'Дополнительная комплектация'!$AY$3) -> 704 | AD89: =CEILING('Шкафы (2)'!AD85*'Дополнительная комплектация'!$AY$1,'Дополнительная комплектация'!$AY$3) -> 1108 | AE89: =CEILING('Шкафы (2)'!AE85*'Дополнительная комплектация'!$AY$1,'Дополнительная комплектация'!$AY$3) -> 1406 | AF89: =CEILING('Шкафы (2)'!AF85*'Дополнительная комплектация'!$AY$1,'Дополнительная комплектация'!$AY$3) -> 1790 | AG89: =CEILING('Шкафы (2)'!AG85*'Дополнительная комплектация'!$AY$1,'Дополнительная комплектация'!$AY$3) -> 0 | AH89: =CEILING('Шкафы (2)'!AH85*'Дополнительная комплектация'!$AY$1,'Дополнительная комплектация'!$AY$3) -> 20 | AI89: =CEILING('Шкафы (2)'!AI85*'Дополнительная комплектация'!$AY$1,'Дополнительная комплектация'!$AY$3) -> 40 | AJ89: =CEILING('Шкафы (2)'!AJ85*'Дополнительная комплектация'!$AY$1,'Дополнительная комплектация'!$AY$3) -> 160 | AK89: =CEILING('Шкафы (2)'!AK85*'Дополнительная комплектация'!$AY$1,'Дополнительная комплектация'!$AY$3) -> 180 | AL89: =CEILING('Шкафы (2)'!AL85*'Дополнительная комплектация'!$AY$1,'Дополнительная комплектация'!$AY$3) -> 300 | AM89: =CEILING('Шкафы (2)'!AM85*'Дополнительная комплектация'!$AY$1,'Дополнительная комплектация'!$AY$3) -> 420 | AN89: =CEILING('Шкафы (2)'!AN85*'Дополнительная комплектация'!$AY$1,'Дополнительная комплектация'!$AY$3) -> 20 | AO89: =CEILING('Шкафы (2)'!AO85*'Дополнительная комплектация'!$AY$1,'Дополнительная комплектация'!$AY$3) -> 20 | AP89: =CEILING('Шкафы (2)'!AP85*'Дополнительная комплектация'!$AY$1,'Дополнительная комплектация'!$AY$3) -> 60 | AQ89: =CEILING('Шкафы (2)'!AQ85*'Дополнительная комплектация'!$AY$1,'Дополнительная комплектация'!$AY$3) -> 60 | AR89: =CEILING('Шкафы (2)'!AR85*'Дополнительная комплектация'!$AY$1,'Дополнительная комплектация'!$AY$3) -> 120 | AS89: L=600*
D90: L=700* | E90: =CEILING('Шкафы (2)'!E86*'Дополнительная комплектация'!$AY$1,'Дополнительная комплектация'!$AY$3) -> 2921 | F90: =CEILING('Шкафы (2)'!F86*'Дополнительная комплектация'!$AY$1,'Дополнительная комплектация'!$AY$3) -> 4061 | G90: =CEILING('Шкафы (2)'!G86*'Дополнительная комплектация'!$AY$1,'Дополнительная комплектация'!$AY$3) -> 3161 | H90: =CEILING('Шкафы (2)'!H86*'Дополнительная комплектация'!$AY$1,'Дополнительная комплектация'!$AY$3) -> 4301 | I90: =CEILING('Шкафы (2)'!I86*'Дополнительная комплектация'!$AY$1,'Дополнительная комплектация'!$AY$3) -> 3601 | J90: =CEILING('Шкафы (2)'!J86*'Дополнительная комплектация'!$AY$1,'Дополнительная комплектация'!$AY$3) -> 5301 | K90: =CEILING('Шкафы (2)'!K86*'Дополнительная комплектация'!$AY$1,'Дополнительная комплектация'!$AY$3) -> 2835 | L90: =CEILING('Шкафы (2)'!L86*'Дополнительная комплектация'!$AY$1,'Дополнительная комплектация'!$AY$3) -> 7721 | M90: =CEILING('Шкафы (2)'!M86*'Дополнительная комплектация'!$AY$1,'Дополнительная комплектация'!$AY$3) -> 8861 | N90: =CEILING('Шкафы (2)'!N86*'Дополнительная комплектация'!$AY$1,'Дополнительная комплектация'!$AY$3) -> 2315 | O90: =CEILING('Шкафы (2)'!O86*'Дополнительная комплектация'!$AY$1,'Дополнительная комплектация'!$AY$3) -> 2355 | P90: =CEILING('Шкафы (2)'!P86*'Дополнительная комплектация'!$AY$1,'Дополнительная комплектация'!$AY$3) -> 2415 | Q90: =CEILING('Шкафы (2)'!Q86*'Дополнительная комплектация'!$AY$1,'Дополнительная комплектация'!$AY$3) -> 4035 | R90: =CEILING('Шкафы (2)'!R86*'Дополнительная комплектация'!$AY$1,'Дополнительная комплектация'!$AY$3) -> 4875 | S90: =CEILING('Шкафы (2)'!S86*'Дополнительная комплектация'!$AY$1,'Дополнительная комплектация'!$AY$3) -> 3195 | T90: =CEILING('Шкафы (2)'!T86*'Дополнительная комплектация'!$AY$1,'Дополнительная комплектация'!$AY$3) -> 3935 | U90: =CEILING('Шкафы (2)'!U86*'Дополнительная комплектация'!$AY$1,'Дополнительная комплектация'!$AY$3) -> 4315 | V90: =CEILING('Шкафы (2)'!V86*'Дополнительная комплектация'!$AY$1,'Дополнительная комплектация'!$AY$3) -> 4635 | W90: =CEILING('Шкафы (2)'!W86*'Дополнительная комплектация'!$AY$1,'Дополнительная комплектация'!$AY$3) -> 24 | X90: =CEILING('Шкафы (2)'!X86*'Дополнительная комплектация'!$AY$1,'Дополнительная комплектация'!$AY$3) -> 62 | Y90: =CEILING('Шкафы (2)'!Y86*'Дополнительная комплектация'!$AY$1,'Дополнительная комплектация'!$AY$3) -> 124 | Z90: =CEILING('Шкафы (2)'!Z86*'Дополнительная комплектация'!$AY$1,'Дополнительная комплектация'!$AY$3) -> 336 | AA90: =CEILING('Шкафы (2)'!AA86*'Дополнительная комплектация'!$AY$1,'Дополнительная комплектация'!$AY$3) -> 398 | AB90: =CEILING('Шкафы (2)'!AB86*'Дополнительная комплектация'!$AY$1,'Дополнительная комплектация'!$AY$3) -> 652 | AC90: =CEILING('Шкафы (2)'!AC86*'Дополнительная комплектация'!$AY$1,'Дополнительная комплектация'!$AY$3) -> 880 | AD90: =CEILING('Шкафы (2)'!AD86*'Дополнительная комплектация'!$AY$1,'Дополнительная комплектация'!$AY$3) -> 1302 | AE90: =CEILING('Шкафы (2)'!AE86*'Дополнительная комплектация'!$AY$1,'Дополнительная комплектация'!$AY$3) -> 1592 | AF90: =CEILING('Шкафы (2)'!AF86*'Дополнительная комплектация'!$AY$1,'Дополнительная комплектация'!$AY$3) -> 2240 | AG90: =CEILING('Шкафы (2)'!AG86*'Дополнительная комплектация'!$AY$1,'Дополнительная комплектация'!$AY$3) -> 0 | AH90: =CEILING('Шкафы (2)'!AH86*'Дополнительная комплектация'!$AY$1,'Дополнительная комплектация'!$AY$3) -> 40 | AI90: =CEILING('Шкафы (2)'!AI86*'Дополнительная комплектация'!$AY$1,'Дополнительная комплектация'!$AY$3) -> 80 | AJ90: =CEILING('Шкафы (2)'!AJ86*'Дополнительная комплектация'!$AY$1,'Дополнительная комплектация'!$AY$3) -> 220 | AK90: =CEILING('Шкафы (2)'!AK86*'Дополнительная комплектация'!$AY$1,'Дополнительная комплектация'!$AY$3) -> 260 | AL90: =CEILING('Шкафы (2)'!AL86*'Дополнительная комплектация'!$AY$1,'Дополнительная комплектация'!$AY$3) -> 420 | AM90: =CEILING('Шкафы (2)'!AM86*'Дополнительная комплектация'!$AY$1,'Дополнительная комплектация'!$AY$3) -> 580 | AN90: =CEILING('Шкафы (2)'!AN86*'Дополнительная комплектация'!$AY$1,'Дополнительная комплектация'!$AY$3) -> 20 | AO90: =CEILING('Шкафы (2)'!AO86*'Дополнительная комплектация'!$AY$1,'Дополнительная комплектация'!$AY$3) -> 40 | AP90: =CEILING('Шкафы (2)'!AP86*'Дополнительная комплектация'!$AY$1,'Дополнительная комплектация'!$AY$3) -> 80 | AQ90: =CEILING('Шкафы (2)'!AQ86*'Дополнительная комплектация'!$AY$1,'Дополнительная комплектация'!$AY$3) -> 100 | AR90: =CEILING('Шкафы (2)'!AR86*'Дополнительная комплектация'!$AY$1,'Дополнительная комплектация'!$AY$3) -> 140 | AS90: L=700
